Workbook

Sheet Cover page
A8: Supplementary Data for
A9: Ambitious food system interventions required to mitigate the risk of exceeding Earth's environmental limits
A10: M. Hadjikakou et al. (2025), One Earth
A11: correspondence to: m.hadjikakou@deakin.edu.au
A13: Harmonised scenario input database
A15: Contents
A16: Acknowledgments | B16: Acknowledgements to other contributing individuals
A17: T1: | B17: Main input database with data from all selected studies (grey cells indicated values not used in the analysis)
A18: T2: | B18: Study details
A19: T3: | B19: Study summary
A20: T4: | B20: Land-use change scope
A21: T5: | B21: GHG categories and global warming potential assumptions
A22: T6: | B22: N2O agricultural soil GHG inclusions
A23: T7: | B23: Consumer Price Index
A24: T8: | B24: Water withdrawals & consumption
A25: T9: | B25: Base year feed composition and livestock unit conversions
A26: T10: | B26: FAOSTAT food supply (1961-2013)
A27: T11: | B27: FAOSTAT livestock yields (1961-2018)
A28: T12: | B28: FAOSTAT cereal yields (1961-2018)
A31: Disclaimer: Due to the large amount of data, there may be transcription or formula errors. Please get in touch with Michalis Hadjikakou (m.hadjikakou@deakin.edu.au) if you spot any.

Sheet Acknowledgements
A1: Name | B1: Surname | C1: Organization
A2: Luis | B2: Lassaletta | C2: Universidad Politécnica de Madrid
A3: Cherry Myo | B3: Lwin | C3: Ritsumeikan Global Innovation Research Organization (R-GIRO)
A4: Ester | B4: van der Voet | C4: Leiden University
A5: Faye | B5: Duchin | C5: Rensselaer Polytechnic Institute
A6: Paul | B6: Lucas | C6: PBL Netherlands Environmental Assessment Agency
A7: Rineke | B7: Oostenrijk | C7: PBL Netherlands Environmental Assessment Agency
A8: Annelies | B8: Sewell | C8: PBL Netherlands Environmental Assessment Agency
A9: Stefan | B9: van der Esch | C9: PBL Netherlands Environmental Assessment Agency
A10: David | B10: Tilman | C10: University of Minnesota
A11: Stephen | B11: Polasky | C11: University of Minnesota
A12: Peter | B12: Hawthorne | C12: University of Minnesota
A13: Claudia | B13: Ringler | C13: IFPRI
A14: Chantal | B14: Le Mouel | C14: French National Institute for Agricultural Research
A15: Tom | B15: Powell | C15: University of Exeter
A17: We acknowledge the above for their contributions to this work through helpful email correspondence and/or supplementary data.

Sheet T1 - Main scenario database
A1: ID | B1: Year | C1: Title | D1: Authors | E1: Study abbreviation | F1: Type | G1: Journal or Organization name | H1: Scenario (author code) | I1: Scenario description | J1: Scenario year (numeric) | K1: Study scope | L1: Included in meta-model | M1: Model | N1: GHG scope | O1: Enteric fermentation (CH4) | P1: Rice cultivation (CH4) | Q1: Manure management (CH4) | R1: Burning of crop residue & savanna (CH4) | S1: TotalDirectCH4 | T1: Manure management (N2O) | U1: Synthetic fertilisers (N2O) | V1: Biological fixation (N2O) | W1: Manure applied to crops (N2O) | X1: Manure left on pasture (N2O) | Y1: Manure for crops/pasture combined (N2O) | Z1: Cropland soils total (synthetic fertiliser+biological fixation + manure) | AA1: Crop residues (N2O) | AB1: Total agricultural soils (N2O) | AC1: Burning of crop residue & savanna (N2O) | AD1: TotalDirectN2O | AE1: CH4&N2Ounits | AF1: TotalNonCO2 (excludes burning) | AG1: Pre-productionCO2 | AH1: OnFarmEnergyCO2 | AI1: TotalPre-prodOn-farmCO2 | AJ1: LUC - Biomass burning | AK1: LUC - Re/a-forestation | AL1: LUC - Forestry | AM1: LUC - Deforestation | AN1: LUC - Other land use | AO1: LUC - Total | AP1: NonCO2+LUC | AQ1: TotalAgWithCO2LUC | AR1: LCA | AS1: GHG units | AT1: Carbon price (original) | AU1: Carbon price (year) | AV1: Carbon price (denominator) | AW1: Carbon price ($US 2010/tCO2eq) | AX1: GHGefficiency-CH4 | AY1: GHGefficiency-N2O | AZ1: GHGefficiency-CO2 | BA1: GHGeffinc | BB1: Pasture scope | BC1: Cropland scope | BD1: TotalArea | BE1: Pasture | BF1: Cropland | BG1: IrrigatedArea | BH1: RainfedArea | BI1: Forest | BJ1: Land units | BK1: Remaining forest (%) | BL1: Water scope | BM1: Blue water consumption | BN1: Blue water withdrawals | BO1: Green water consumption | BP1: Water units | BQ1: WUEinc | BR1: WUE | BS1: WPinc | BT1: WP | BU1: Nfert | BV1: Nfix | BW1: Nsurplus | BX1: Nitrogen units | BY1: NUEinc | BZ1: NUE | CA1: Pfert | CB1: Psurplus | CC1: Prunoff | CD1: Pdelivery_total | CE1: Pdelivery_agri | CF1: Pmouth_total | CG1: Pmouth_agri | CH1: Phosphorus units | CI1: PUEinc | CJ1: PUE | CK1: NrecHousehold | CL1: NrecManure | CM1: PrecHousehold | CN1: PrecManure | CO1: Organic | CP1: World population | CQ1: Population (units) | CR1: Total food supply | CS1: Diet | CT1: Beef | CU1: Lamb/Mutton/Goat | CV1: Ruminant meat | CW1: Pork | CX1: Poultry | CY1: Non-ruminant meat | CZ1: Total meat excl. seafood | DA1: Aquaculture | DB1: Capture seafood | DC1: Total seafood | DD1: Total meat incl. seafood | DE1: Dairy | DF1: Eggs | DG1: Dairy & eggs combined | DH1: Other animal | DI1: Cultured meat | DJ1: Animal products (total) | DK1: Animal products (%) | DL1: Cereals | DM1: Roots & tubers | DN1: Oilseeds | DO1: Legumes & nuts | DP1: Fruit & vegetables | DQ1: Sugar crops | DR1: Other crops | DS1: Non-food (e.g. biofuels, fiber) | DT1: Plant products | DU1: Food units | DV1: Food waste reduction (%) | DW1: GDP original | DX1: GDP original units | DY1: GDP per capita 2005 USD PPP | DZ1: Yield increase (%) relative to study base year | EA1: Cereal yield - 2010 (BAU trajectory) | EB1: Cereal yield - average | EC1: Cereal yield - irrigated | ED1: Cereal yield - rainfed | EE1: Oilseed yields | EF1: Palm oil yields | EG1: Pulses yields | EH1: Roots & tuber yields | EI1: All crops yields | EJ1: Crop yield units | EK1: Feed efficiency - 2010 (BAU trajectory) | EL1: Livestock yield/efficiency | EM1: Beef FCR | EN1: Sheep/goat FCR | EO1: Ruminant meat FCR | EP1: Pork FCR | EQ1: Chicken FCR | ER1: Aquaculture FCR | ES1: Non-ruminant meat FCR | ET1: Dairy FCR | EU1: Eggs FCR | EV1: Dairy & Eggs FCR | EW1: Ruminant FCR (meat & dairy) | EX1: Non-ruminant FCR (meat & eggs) | EY1: Livestock productivity units | EZ1: Grains & by-product feed beef | FA1: Grains & by-product feed sheep/goat | FB1: Grains & by-product feed ruminant meat | FC1: Grains & by-product feed pork | FD1: Grains & by-product feed chicken | FE1: Grains & by-product feed aqua | FF1: Grains & by-product feed non-ruminant meat | FG1: Grains & by-product feed dairy | FH1: Grains & by-product feed eggs | FI1: Grains & by-product feed ruminant (meat & dairy) | FJ1: Grains & by-product feed non-ruminant (meat & eggs) | FK1: Grains & by-product all animals | FL1: FCF beef | FM1: FCF sheep/goat | FN1: FCF ruminant meat | FO1: FCF pork | FP1: FCF chicken | FQ1: FCF aquaculture | FR1: FCF non-ruminant meat | FS1: FCF dairy | FT1: FCF egg | FU1: FCF All ruminants | FV1: FCF All non-ruminants | FW1: FCF overall | FX1: Scenario family | FY1: Scenario name | FZ1: Objectives | GA1: Intervention family
A2: 1 | B2: 2016 | C2: Meeting future food demand with current agricultural resources | D2: Davis, K. F. Gephart, J. A. Emery, K. A. Leach, A. M. Galloway, J. N. D’Odorico, P. | E2: Davis et al. (2016) | F2: Journal article | G2: Global Environmental Change | H2: Base year | I2: Base year | J2: 2009 | K2: Food system | L2: Yes | M2: =E2 -> Davis et al. (2016) | N2: GHGLCA | AR2: 7.50 | AS2: Gt CO2e/yr | BA2: 0.0% | BB2: FAO - Permanent meadows and pastures | BC2: Agriculture | BD2: 4900.0 | BE2: 3363.8 | BF2: 1536.2 | BJ2: Mha | BL2: Water Footprint Network - Mekonnen & Hoekstra (2011) | BM2: 778.3 | BO2: 4,528.56 | BP2: km3/yr | BQ2: 0.0% | BR2: 0.04132253596 | BS2: 0.0% | BU2: 113.84 | BX2: TgN/yr | BY2: 0.0% | CK2: 0.0% | CL2: =CL531 -> 75.5% | CO2: 0% | CP2: 6.83 | CQ2: billion | CR2: =SUM(DJ2,DT2) -> 2,847.61 | CS2: =IF(AND(CZ2=0,DE2=0),"VGN",IF(AND(CZ2=0,DE2>0,DC2=0),"VEG",IF(AND(CZ2=0,DE2>0,DC2>0),"PSC","OMN/FLX"))) -> OMN/FLX | CV2: 46.7 | CW2: 119.5 | CX2: 55.2 | CY2: =CW2+CX2 -> 174.7 | CZ2: =CV2+CY2 -> 221.4 | DA2: =DC2-DB2 -> 21.1 | DB2: =0.601*DC2 -> 31.8 | DC2: 53.0 | DD2: =CZ2+DC2 -> 274.4 | DE2: 139.1 | DF2: 35.2 | DG2: =SUM(DE2:DF2) -> 174.3 | DJ2: =DD2+DG2 -> 448.7 | DK2: =DJ2/CR2 -> 15.8% | DL2: 1,296.3 | DM2: 142.8 | DN2: 473.2 | DO2: 68.5 | DP2: 183.3 | DQ2: 234.8 | DT2: =SUM(DL2:DQ2) -> 2,398.9 | DU2: kcal/capita/day | DV2: 0% | EI2: 5.16 | EJ2: Mtonne/Mha | EL2: 7.05 | EM2: 57.59 | EO2: =EM2 -> 57.59 | EP2: 3.4 | EQ2: 3.1 | ER2: 2.35 | ES2: 3.06 | ET2: 3.4 | EU2: 3.1 | EV2: 3.33 | EW2: 8.89 | EX2: 3.07 | EY2: FCR (kg feed per kg animal) | FL2: 16.2% | FN2: 16.2% | FO2: 87.1% | FP2: 94.1% | FQ2: 85.9% | FR2: 89.6% | FS2: 20.7% | FT2: 95.3% | FU2: 17.7% | FV2: 90.7% | FW2: 27.7% | FX2: Base year (2009) | GA2: BAU
A3: =IF(C3=C2,A2,A2+1) -> 1 | B3: 2016 | C3: Meeting future food demand with current agricultural resources | D3: Davis, K. F. Gephart, J. A. Emery, K. A. Leach, A. M. Galloway, J. N. D’Odorico, P. | E3: Davis et al. (2016) | F3: Journal article | G3: Global Environmental Change | H3: B | I3: BAU | J3: 2010 | K3: Food system | L3: Yes | M3: Davis et al. (2016) | N3: GHGLCA | AR3: 7.64 | AS3: Gt CO2e/yr | BA3: 0.0% | BB3: FAO - Permanent meadows and pastures | BC3: Agriculture | BD3: 4949.1 | BE3: 3374.0 | BF3: 1575.1 | BJ3: Mha | BL3: Water Footprint Network - Mekonnen & Hoekstra (2011) | BM3: 796.0 | BO3: 4,623.43 | BP3: km3/yr | BQ3: 0.0% | BS3: 0.0% | BU3: 116.87 | BX3: TgN/yr | BY3: 0.0% | CK3: 0.0% | CL3: =CL$2 -> 75.5% | CO3: 0% | CP3: 6.92 | CQ3: billion | CR3: 2,849.63 | CS3: OMN/FLX | CV3: 47.2 | CW3: 120.3 | CX3: 55.2 | CY3: 175.5 | CZ3: 222.6 | DA3: 22.4 | DB3: =IF(DB$2*CP$2/CP3<DC3,DB$2*CP$2/CP3,DC3) -> 31.5 | DC3: 53.8 | DD3: 276.5 | DE3: 140.9 | DF3: 35.6 | DG3: 176.5 | DJ3: 453.0 | DK3: 15.9% | DL3: 1,296.5 | DM3: 143.6 | DN3: 469.0 | DO3: 67.5 | DP3: 182.1 | DQ3: 237.9 | DT3: 2,396.6 | DU3: kcal/capita/day | DV3: 0% | EI3: 5.16 | EJ3: Mtonne/Mha | EL3: 7.04 | EM3: 57.59 | EO3: 57.59 | EP3: 3.4 | EQ3: 3.1 | ER3: 2.35 | ES3: 3.05 | ET3: 3.4 | EU3: 3.1 | EV3: 3.33 | EW3: 8.87 | EX3: 3.06 | EY3: FCR (kg feed per kg animal) | FL3: 16.2% | FN3: 16.2% | FO3: 87.1% | FP3: 94.1% | FQ3: 85.9% | FR3: 89.6% | FS3: 20.7% | FT3: 95.3% | FU3: 17.7% | FV3: 90.7% | FW3: 27.7% | GA3: BAU
A4: 1 | B4: 2016 | C4: Meeting future food demand with current agricultural resources | D4: Davis, K. F. Gephart, J. A. Emery, K. A. Leach, A. M. Galloway, J. N. D’Odorico, P. | E4: Davis et al. (2016) | F4: Journal article | G4: Global Environmental Change | H4: B | I4: BAU | J4: 2011 | K4: Food system | L4: Yes | M4: Davis et al. (2016) | N4: GHGLCA | AR4: 7.74 | AS4: Gt CO2e/yr | BA4: 0.0% | BB4: FAO - Permanent meadows and pastures | BC4: Agriculture | BD4: 4990.8 | BE4: 3384.0 | BF4: 1606.8 | BJ4: Mha | BL4: Water Footprint Network - Mekonnen & Hoekstra (2011) | BM4: 816.0 | BO4: 4,700.34 | BP4: km3/yr | BQ4: 0.0% | BS4: 0.0% | BU4: 119.11 | BX4: TgN/yr | BY4: 0.0% | CK4: 0.0% | CL4: 75.5% | CO4: 0% | CP4: 7.00 | CQ4: billion | CR4: 2,851.65 | CS4: OMN/FLX | CV4: 47.6 | CW4: 121.0 | CX4: 55.2 | CY4: 176.3 | CZ4: 223.9 | DA4: 23.6 | DB4: 31.1 | DC4: 54.7 | DD4: 278.6 | DE4: 142.7 | DF4: 36.0 | DG4: 178.7 | DJ4: 457.3 | DK4: 16.0% | DL4: 1,296.7 | DM4: 144.3 | DN4: 464.7 | DO4: 66.6 | DP4: 181.0 | DQ4: 241.0 | DT4: 2,394.4 | DU4: kcal/capita/day | DV4: 0% | EI4: 5.16 | EJ4: Mtonne/Mha | EL4: 7.03 | EM4: 57.59 | EO4: 57.59 | EP4: 3.4 | EQ4: 3.1 | ER4: 2.35 | ES4: 3.05 | ET4: 3.4 | EU4: 3.1 | EV4: 3.33 | EW4: 8.86 | EX4: 3.05 | EY4: FCR (kg feed per kg animal) | FL4: 16.2% | FN4: 16.2% | FO4: 87.1% | FP4: 94.1% | FQ4: 85.9% | FR4: 89.5% | FS4: 20.7% | FT4: 95.3% | FU4: 17.7% | FV4: 90.7% | FW4: 27.7% | GA4: BAU
A5: 1 | B5: 2016 | C5: Meeting future food demand with current agricultural resources | D5: Davis, K. F. Gephart, J. A. Emery, K. A. Leach, A. M. Galloway, J. N. D’Odorico, P. | E5: Davis et al. (2016) | F5: Journal article | G5: Global Environmental Change | H5: B | I5: BAU | J5: 2012 | K5: Food system | L5: Yes | M5: Davis et al. (2016) | N5: GHGLCA | AR5: 7.89 | AS5: Gt CO2e/yr | BA5: 0.0% | BB5: FAO - Permanent meadows and pastures | BC5: Agriculture | BD5: 5109.0 | BE5: 3467.6 | BF5: 1641.3 | BJ5: Mha | BL5: Water Footprint Network - Mekonnen & Hoekstra (2011) | BM5: 838.0 | BO5: 4,777.84 | BP5: km3/yr | BQ5: 0.0% | BS5: 0.0% | BU5: 121.70 | BX5: TgN/yr | BY5: 0.0% | CK5: 0.0% | CL5: 75.5% | CO5: 0% | CP5: 7.08 | CQ5: billion | CR5: 2,853.68 | CS5: OMN/FLX | CV5: 48.1 | CW5: 121.8 | CX5: 55.2 | CY5: 177.0 | CZ5: 225.1 | DA5: 24.8 | DB5: 30.7 | DC5: 55.5 | DD5: 280.7 | DE5: 144.5 | DF5: 36.4 | DG5: 180.9 | DJ5: 461.6 | DK5: 16.2% | DL5: 1,296.9 | DM5: 145.1 | DN5: 460.5 | DO5: 65.6 | DP5: 179.9 | DQ5: 244.1 | DT5: 2,392.1 | DU5: kcal/capita/day | DV5: 0% | EI5: 5.16 | EJ5: Mtonne/Mha | EL5: 7.01 | EM5: 57.59 | EO5: 57.59 | EP5: 3.4 | EQ5: 3.1 | ER5: 2.35 | ES5: 3.04 | ET5: 3.4 | EU5: 3.1 | EV5: 3.33 | EW5: 8.84 | EX5: 3.05 | EY5: FCR (kg feed per kg animal) | FL5: 16.2% | FN5: 16.2% | FO5: 87.1% | FP5: 94.1% | FQ5: 85.9% | FR5: 89.5% | FS5: 20.7% | FT5: 95.3% | FU5: 17.8% | FV5: 90.6% | FW5: 27.7% | GA5: BAU
A6: 1 | B6: 2016 | C6: Meeting future food demand with current agricultural resources | D6: Davis, K. F. Gephart, J. A. Emery, K. A. Leach, A. M. Galloway, J. N. D’Odorico, P. | E6: Davis et al. (2016) | F6: Journal article | G6: Global Environmental Change | H6: B | I6: BAU | J6: 2013 | K6: Food system | L6: Yes | M6: Davis et al. (2016) | N6: GHGLCA | AR6: 8.03 | AS6: Gt CO2e/yr | BA6: 0.0% | BB6: FAO - Permanent meadows and pastures | BC6: Agriculture | BD6: 5228.5 | BE6: 3552.3 | BF6: 1676.2 | BJ6: Mha | BL6: Water Footprint Network - Mekonnen & Hoekstra (2011) | BM6: 860.0 | BO6: 4,856.06 | BP6: km3/yr | BQ6: 0.0% | BS6: 0.0% | BU6: 124.31 | BX6: TgN/yr | BY6: 0.0% | CK6: 0.0% | CL6: 75.5% | CO6: 0% | CP6: 7.16 | CQ6: billion | CR6: 2,855.70 | CS6: OMN/FLX | CV6: 48.5 | CW6: 122.6 | CX6: 55.2 | CY6: 177.8 | CZ6: 226.3 | DA6: 26.0 | DB6: 30.4 | DC6: 56.4 | DD6: 282.8 | DE6: 146.3 | DF6: 36.8 | DG6: 183.1 | DJ6: 465.8 | DK6: 16.3% | DL6: 1,297.1 | DM6: 145.8 | DN6: 456.2 | DO6: 64.7 | DP6: 178.8 | DQ6: 247.2 | DT6: 2,389.9 | DU6: kcal/capita/day | DV6: 0% | EI6: 5.16 | EJ6: Mtonne/Mha | EL6: 7.00 | EM6: 57.59 | EO6: 57.59 | EP6: 3.4 | EQ6: 3.1 | ER6: 2.35 | ES6: 3.03 | ET6: 3.4 | EU6: 3.1 | EV6: 3.33 | EW6: 8.83 | EX6: 3.04 | EY6: FCR (kg feed per kg animal) | FL6: 16.2% | FN6: 16.2% | FO6: 87.1% | FP6: 94.1% | FQ6: 85.9% | FR6: 89.4% | FS6: 20.7% | FT6: 95.3% | FU6: 17.8% | FV6: 90.6% | FW6: 27.7% | GA6: BAU
A7: 1 | B7: 2016 | C7: Meeting future food demand with current agricultural resources | D7: Davis, K. F. Gephart, J. A. Emery, K. A. Leach, A. M. Galloway, J. N. D’Odorico, P. | E7: Davis et al. (2016) | F7: Journal article | G7: Global Environmental Change | H7: B | I7: BAU | J7: 2014 | K7: Food system | L7: Yes | M7: Davis et al. (2016) | N7: GHGLCA | AR7: 8.18 | AS7: Gt CO2e/yr | BA7: 0.0% | BB7: FAO - Permanent meadows and pastures | BC7: Agriculture | BD7: 5349.0 | BE7: 3637.8 | BF7: 1711.3 | BJ7: Mha | BL7: Water Footprint Network - Mekonnen & Hoekstra (2011) | BM7: 882.0 | BO7: 4,934.68 | BP7: km3/yr | BQ7: 0.0% | BS7: 0.0% | BU7: 126.93 | BX7: TgN/yr | BY7: 0.0% | CK7: 0.0% | CL7: 75.5% | CO7: 0% | CP7: 7.24 | CQ7: billion | CR7: 2,857.72 | CS7: OMN/FLX | CV7: 49.0 | CW7: 123.4 | CX7: 55.2 | CY7: 178.6 | CZ7: 227.6 | DA7: 27.2 | DB7: 30.0 | DC7: 57.3 | DD7: 284.9 | DE7: 148.1 | DF7: 37.1 | DG7: 185.3 | DJ7: 470.1 | DK7: 16.5% | DL7: 1,297.3 | DM7: 146.6 | DN7: 452.0 | DO7: 63.7 | DP7: 177.7 | DQ7: 250.3 | DT7: 2,387.6 | DU7: kcal/capita/day | DV7: 0% | EI7: 5.16 | EJ7: Mtonne/Mha | EL7: 6.99 | EM7: 57.59 | EO7: 57.59 | EP7: 3.4 | EQ7: 3.1 | ER7: 2.35 | ES7: 3.03 | ET7: 3.4 | EU7: 3.1 | EV7: 3.33 | EW7: 8.81 | EX7: 3.04 | EY7: FCR (kg feed per kg animal) | FL7: 16.2% | FN7: 16.2% | FO7: 87.1% | FP7: 94.1% | FQ7: 85.9% | FR7: 89.4% | FS7: 20.7% | FT7: 95.3% | FU7: 17.8% | FV7: 90.6% | FW7: 27.7% | GA7: BAU
A8: 1 | B8: 2016 | C8: Meeting future food demand with current agricultural resources | D8: Davis, K. F. Gephart, J. A. Emery, K. A. Leach, A. M. Galloway, J. N. D’Odorico, P. | E8: Davis et al. (2016) | F8: Journal article | G8: Global Environmental Change | H8: B | I8: BAU | J8: 2015 | K8: Food system | L8: Yes | M8: Davis et al. (2016) | N8: GHGLCA | AR8: 8.32 | AS8: Gt CO2e/yr | BA8: 0.0% | BB8: FAO - Permanent meadows and pastures | BC8: Agriculture | BD8: 5470.4 | BE8: 3723.9 | BF8: 1746.5 | BJ8: Mha | BL8: Water Footprint Network - Mekonnen & Hoekstra (2011) | BM8: 905.0 | BO8: 5,012.46 | BP8: km3/yr | BQ8: 0.0% | BS8: 0.0% | BU8: 129.57 | BX8: TgN/yr | BY8: 0.0% | CK8: 0.0% | CL8: 75.5% | CO8: 0% | CP8: 7.32 | CQ8: billion | CR8: 2,859.75 | CS8: OMN/FLX | CV8: 49.4 | CW8: 124.2 | CX8: 55.2 | CY8: 179.4 | CZ8: 228.8 | DA8: 28.4 | DB8: 29.7 | DC8: 58.1 | DD8: 286.9 | DE8: 150.0 | DF8: 37.5 | DG8: 187.5 | DJ8: 474.4 | DK8: 16.6% | DL8: 1,297.6 | DM8: 147.3 | DN8: 447.7 | DO8: 62.8 | DP8: 176.5 | DQ8: 253.4 | DT8: 2,385.3 | DU8: kcal/capita/day | DV8: 0% | EI8: 5.16 | EJ8: Mtonne/Mha | EL8: 6.98 | EM8: 57.59 | EO8: 57.59 | EP8: 3.4 | EQ8: 3.1 | ER8: 2.35 | ES8: 3.02 | ET8: 3.4 | EU8: 3.1 | EV8: 3.33 | EW8: 8.80 | EX8: 3.03 | EY8: FCR (kg feed per kg animal) | FL8: 16.2% | FN8: 16.2% | FO8: 87.1% | FP8: 94.1% | FQ8: 85.9% | FR8: 89.4% | FS8: 20.7% | FT8: 95.3% | FU8: 17.8% | FV8: 90.6% | FW8: 27.7% | GA8: BAU
A9: 1 | B9: 2016 | C9: Meeting future food demand with current agricultural resources | D9: Davis, K. F. Gephart, J. A. Emery, K. A. Leach, A. M. Galloway, J. N. D’Odorico, P. | E9: Davis et al. (2016) | F9: Journal article | G9: Global Environmental Change | H9: B | I9: BAU | J9: 2016 | K9: Food system | L9: Yes | M9: Davis et al. (2016) | N9: GHGLCA | AR9: 8.47 | AS9: Gt CO2e/yr | BA9: 0.0% | BB9: FAO - Permanent meadows and pastures | BC9: Agriculture | BD9: 5592.4 | BE9: 3810.7 | BF9: 1781.8 | BJ9: Mha | BL9: Water Footprint Network - Mekonnen & Hoekstra (2011) | BM9: 927.0 | BO9: 5,091.28 | BP9: km3/yr | BQ9: 0.0% | BS9: 0.0% | BU9: 132.21 | BX9: TgN/yr | BY9: 0.0% | CK9: 0.0% | CL9: 75.5% | CO9: 0% | CP9: 7.40 | CQ9: billion | CR9: 2,861.77 | CS9: OMN/FLX | CV9: 49.9 | CW9: 124.9 | CX9: 55.2 | CY9: 180.2 | CZ9: 230.0 | DA9: 29.6 | DB9: 29.4 | DC9: 59.0 | DD9: 289.0 | DE9: 151.8 | DF9: 37.9 | DG9: 189.7 | DJ9: 478.7 | DK9: 16.7% | DL9: 1,297.8 | DM9: 148.0 | DN9: 443.5 | DO9: 61.8 | DP9: 175.4 | DQ9: 256.6 | DT9: 2,383.1 | DU9: kcal/capita/day | DV9: 0% | EI9: 5.16 | EJ9: Mtonne/Mha | EL9: 6.96 | EM9: 57.59 | EO9: 57.59 | EP9: 3.4 | EQ9: 3.1 | ER9: 2.35 | ES9: 3.01 | ET9: 3.4 | EU9: 3.1 | EV9: 3.33 | EW9: 8.79 | EX9: 3.03 | EY9: FCR (kg feed per kg animal) | FL9: 16.2% | FN9: 16.2% | FO9: 87.1% | FP9: 94.1% | FQ9: 85.9% | FR9: 89.3% | FS9: 20.7% | FT9: 95.3% | FU9: 17.8% | FV9: 90.5% | FW9: 27.7% | GA9: BAU
A10: 1 | B10: 2016 | C10: Meeting future food demand with current agricultural resources | D10: Davis, K. F. Gephart, J. A. Emery, K. A. Leach, A. M. Galloway, J. N. D’Odorico, P. | E10: Davis et al. (2016) | F10: Journal article | G10: Global Environmental Change | H10: B | I10: BAU | J10: 2017 | K10: Food system | L10: Yes | M10: Davis et al. (2016) | N10: GHGLCA | AR10: 8.62 | AS10: Gt CO2e/yr | BA10: 0.0% | BB10: FAO - Permanent meadows and pastures | BC10: Agriculture | BD10: 5715.1 | BE10: 3898.0 | BF10: 1817.1 | BJ10: Mha | BL10: Water Footprint Network - Mekonnen & Hoekstra (2011) | BM10: 950.0 | BO10: 5,169.10 | BP10: km3/yr | BQ10: 0.0% | BS10: 0.0% | BU10: 134.86 | BX10: TgN/yr | BY10: 0.0% | CK10: 0.0% | CL10: 75.5% | CO10: 0% | CP10: 7.48 | CQ10: billion | CR10: 2,863.80 | CS10: OMN/FLX | CV10: 50.3 | CW10: 125.7 | CX10: 55.2 | CY10: 180.9 | CZ10: 231.3 | DA10: 30.8 | DB10: 29.1 | DC10: 59.9 | DD10: 291.1 | DE10: 153.6 | DF10: 38.3 | DG10: 191.9 | DJ10: 483.0 | DK10: 16.9% | DL10: 1,298.0 | DM10: 148.8 | DN10: 439.2 | DO10: 60.9 | DP10: 174.3 | DQ10: 259.7 | DT10: 2,380.8 | DU10: kcal/capita/day | DV10: 0% | EI10: 5.16 | EJ10: Mtonne/Mha | EL10: 6.95 | EM10: 57.59 | EO10: 57.59 | EP10: 3.4 | EQ10: 3.1 | ER10: 2.35 | ES10: 3.01 | ET10: 3.4 | EU10: 3.1 | EV10: 3.33 | EW10: 8.77 | EX10: 3.02 | EY10: FCR (kg feed per kg animal) | FL10: 16.2% | FN10: 16.2% | FO10: 87.1% | FP10: 94.1% | FQ10: 85.9% | FR10: 89.3% | FS10: 20.7% | FT10: 95.3% | FU10: 17.8% | FV10: 90.5% | FW10: 27.6% | GA10: BAU
A11: 1 | B11: 2016 | C11: Meeting future food demand with current agricultural resources | D11: Davis, K. F. Gephart, J. A. Emery, K. A. Leach, A. M. Galloway, J. N. D’Odorico, P. | E11: Davis et al. (2016) | F11: Journal article | G11: Global Environmental Change | H11: B | I11: BAU | J11: 2018 | K11: Food system | L11: Yes | M11: Davis et al. (2016) | N11: GHGLCA | AR11: 8.76 | AS11: Gt CO2e/yr | BA11: 0.0% | BB11: FAO - Permanent meadows and pastures | BC11: Agriculture | BD11: 5838.3 | BE11: 3985.8 | BF11: 1852.5 | BJ11: Mha | BL11: Water Footprint Network - Mekonnen & Hoekstra (2011) | BM11: 973.0 | BO11: 5,246.84 | BP11: km3/yr | BQ11: 0.0% | BS11: 0.0% | BU11: 137.51 | BX11: TgN/yr | BY11: 0.0% | CK11: 0.0% | CL11: 75.5% | CO11: 0% | CP11: 7.56 | CQ11: billion | CR11: 2,865.82 | CS11: OMN/FLX | CV11: 50.8 | CW11: 126.5 | CX11: 55.2 | CY11: 181.7 | CZ11: 232.5 | DA11: 31.9 | DB11: 28.8 | DC11: 60.7 | DD11: 293.2 | DE11: 155.4 | DF11: 38.7 | DG11: 194.1 | DJ11: 487.3 | DK11: 17.0% | DL11: 1,298.2 | DM11: 149.5 | DN11: 435.0 | DO11: 59.9 | DP11: 173.2 | DQ11: 262.8 | DT11: 2,378.5 | DU11: kcal/capita/day | DV11: 0% | EI11: 5.16 | EJ11: Mtonne/Mha | EL11: 6.94 | EM11: 57.59 | EO11: 57.59 | EP11: 3.4 | EQ11: 3.1 | ER11: 2.35 | ES11: 3.00 | ET11: 3.4 | EU11: 3.1 | EV11: 3.33 | EW11: 8.76 | EX11: 3.02 | EY11: FCR (kg feed per kg animal) | FL11: 16.2% | FN11: 16.2% | FO11: 87.1% | FP11: 94.1% | FQ11: 85.9% | FR11: 89.3% | FS11: 20.7% | FT11: 95.3% | FU11: 17.8% | FV11: 90.5% | FW11: 27.6% | GA11: BAU
A12: 1 | B12: 2016 | C12: Meeting future food demand with current agricultural resources | D12: Davis, K. F. Gephart, J. A. Emery, K. A. Leach, A. M. Galloway, J. N. D’Odorico, P. | E12: Davis et al. (2016) | F12: Journal article | G12: Global Environmental Change | H12: B | I12: BAU | J12: 2019 | K12: Food system | L12: Yes | M12: Davis et al. (2016) | N12: GHGLCA | AR12: 8.91 | AS12: Gt CO2e/yr | BA12: 0.0% | BB12: FAO - Permanent meadows and pastures | BC12: Agriculture | BD12: 5962.1 | BE12: 4074.0 | BF12: 1888.0 | BJ12: Mha | BL12: Water Footprint Network - Mekonnen & Hoekstra (2011) | BM12: 995.0 | BO12: 5,325.45 | BP12: km3/yr | BQ12: 0.0% | BS12: 0.0% | BU12: 140.16 | BX12: TgN/yr | BY12: 0.0% | CK12: 0.0% | CL12: 75.5% | CO12: 0% | CP12: 7.64 | CQ12: billion | CR12: 2,867.84 | CS12: OMN/FLX | CV12: 51.3 | CW12: 127.3 | CX12: 55.2 | CY12: 182.5 | CZ12: 233.7 | DA12: 33.1 | DB12: 28.5 | DC12: 61.6 | DD12: 295.3 | DE12: 157.2 | DF12: 39.0 | DG12: 196.3 | DJ12: 491.6 | DK12: 17.1% | DL12: 1,298.4 | DM12: 150.3 | DN12: 430.7 | DO12: 58.9 | DP12: 172.1 | DQ12: 265.9 | DT12: 2,376.3 | DU12: kcal/capita/day | DV12: 0% | EI12: 5.16 | EJ12: Mtonne/Mha | EL12: 6.93 | EM12: 57.59 | EO12: 57.59 | EP12: 3.4 | EQ12: 3.1 | ER12: 2.35 | ES12: 3.00 | ET12: 3.4 | EU12: 3.1 | EV12: 3.33 | EW12: 8.75 | EX12: 3.02 | EY12: FCR (kg feed per kg animal) | FL12: 16.2% | FN12: 16.2% | FO12: 87.1% | FP12: 94.1% | FQ12: 85.9% | FR12: 89.2% | FS12: 20.7% | FT12: 95.3% | FU12: 17.8% | FV12: 90.4% | FW12: 27.6% | GA12: BAU
A13: 1 | B13: 2016 | C13: Meeting future food demand with current agricultural resources | D13: Davis, K. F. Gephart, J. A. Emery, K. A. Leach, A. M. Galloway, J. N. D’Odorico, P. | E13: Davis et al. (2016) | F13: Journal article | G13: Global Environmental Change | H13: B | I13: BAU | J13: 2020 | K13: Food system | L13: Yes | M13: Davis et al. (2016) | N13: GHGLCA | AR13: 9.06 | AS13: Gt CO2e/yr | BA13: 0.0% | BB13: FAO - Permanent meadows and pastures | BC13: Agriculture | BD13: 6086.2 | BE13: 4162.7 | BF13: 1923.5 | BJ13: Mha | BL13: Water Footprint Network - Mekonnen & Hoekstra (2011) | BM13: 1,018.0 | BO13: 5,402.91 | BP13: km3/yr | BQ13: 0.0% | BS13: 0.0% | BU13: 142.82 | BX13: TgN/yr | BY13: 0.0% | CK13: 0.0% | CL13: 75.5% | CO13: 0% | CP13: 7.72 | CQ13: billion | CR13: 2,869.87 | CS13: OMN/FLX | CV13: 51.7 | CW13: 128.0 | CX13: 55.2 | CY13: 183.3 | CZ13: 235.0 | DA13: 34.2 | DB13: 28.2 | DC13: 62.4 | DD13: 297.4 | DE13: 159.0 | DF13: 39.4 | DG13: 198.4 | DJ13: 495.9 | DK13: 17.3% | DL13: 1,298.6 | DM13: 151.0 | DN13: 426.4 | DO13: 58.0 | DP13: 171.0 | DQ13: 269.0 | DT13: 2,374.0 | DU13: kcal/capita/day | DV13: 0% | EI13: 5.16 | EJ13: Mtonne/Mha | EL13: 6.92 | EM13: 57.59 | EO13: 57.59 | EP13: 3.4 | EQ13: 3.1 | ER13: 2.35 | ES13: 2.99 | ET13: 3.4 | EU13: 3.1 | EV13: 3.33 | EW13: 8.73 | EX13: 3.01 | EY13: FCR (kg feed per kg animal) | FL13: 16.2% | FN13: 16.2% | FO13: 87.1% | FP13: 94.1% | FQ13: 85.9% | FR13: 89.2% | FS13: 20.7% | FT13: 95.3% | FU13: 17.8% | FV13: 90.4% | FW13: 27.6% | GA13: BAU
A14: 1 | B14: 2016 | C14: Meeting future food demand with current agricultural resources | D14: Davis, K. F. Gephart, J. A. Emery, K. A. Leach, A. M. Galloway, J. N. D’Odorico, P. | E14: Davis et al. (2016) | F14: Journal article | G14: Global Environmental Change | H14: B | I14: BAU | J14: 2021 | K14: Food system | L14: Yes | M14: Davis et al. (2016) | N14: GHGLCA | AR14: 9.20 | AS14: Gt CO2e/yr | BA14: 0.0% | BB14: FAO - Permanent meadows and pastures | BC14: Agriculture | BD14: 6210.8 | BE14: 4251.8 | BF14: 1959.0 | BJ14: Mha | BL14: Water Footprint Network - Mekonnen & Hoekstra (2011) | BM14: 1,041.0 | BO14: 5,480.13 | BP14: km3/yr | BQ14: 0.0% | BS14: 0.0% | BU14: 145.47 | BX14: TgN/yr | BY14: 0.0% | CK14: 0.0% | CL14: 75.5% | CO14: 0% | CP14: 7.79 | CQ14: billion | CR14: 2,871.89 | CS14: OMN/FLX | CV14: 52.2 | CW14: 128.8 | CX14: 55.2 | CY14: 184.0 | CZ14: 236.2 | DA14: 35.4 | DB14: 27.9 | DC14: 63.3 | DD14: 299.5 | DE14: 160.8 | DF14: 39.8 | DG14: 200.6 | DJ14: 500.1 | DK14: 17.4% | DL14: 1,298.9 | DM14: 151.8 | DN14: 422.2 | DO14: 57.0 | DP14: 169.8 | DQ14: 272.1 | DT14: 2,371.7 | DU14: kcal/capita/day | DV14: 0% | EI14: 5.16 | EJ14: Mtonne/Mha | EL14: 6.91 | EM14: 57.59 | EO14: 57.59 | EP14: 3.4 | EQ14: 3.1 | ER14: 2.35 | ES14: 2.99 | ET14: 3.4 | EU14: 3.1 | EV14: 3.33 | EW14: 8.72 | EX14: 3.01 | EY14: FCR (kg feed per kg animal) | FL14: 16.2% | FN14: 16.2% | FO14: 87.1% | FP14: 94.1% | FQ14: 85.9% | FR14: 89.2% | FS14: 20.7% | FT14: 95.3% | FU14: 17.8% | FV14: 90.4% | FW14: 27.6% | GA14: BAU
A15: 1 | B15: 2016 | C15: Meeting future food demand with current agricultural resources | D15: Davis, K. F. Gephart, J. A. Emery, K. A. Leach, A. M. Galloway, J. N. D’Odorico, P. | E15: Davis et al. (2016) | F15: Journal article | G15: Global Environmental Change | H15: B | I15: BAU | J15: 2022 | K15: Food system | L15: Yes | M15: Davis et al. (2016) | N15: GHGLCA | AR15: 9.35 | AS15: Gt CO2e/yr | BA15: 0.0% | BB15: FAO - Permanent meadows and pastures | BC15: Agriculture | BD15: 6335.7 | BE15: 4341.3 | BF15: 1994.4 | BJ15: Mha | BL15: Water Footprint Network - Mekonnen & Hoekstra (2011) | BM15: 1,063.0 | BO15: 5,558.07 | BP15: km3/yr | BQ15: 0.0% | BS15: 0.0% | BU15: 148.13 | BX15: TgN/yr | BY15: 0.0% | CK15: 0.0% | CL15: 75.5% | CO15: 0% | CP15: 7.87 | CQ15: billion | CR15: 2,873.92 | CS15: OMN/FLX | CV15: 52.6 | CW15: 129.6 | CX15: 55.2 | CY15: 184.8 | CZ15: 237.4 | DA15: 36.5 | DB15: 27.7 | DC15: 64.2 | DD15: 301.6 | DE15: 162.6 | DF15: 40.2 | DG15: 202.8 | DJ15: 504.4 | DK15: 17.6% | DL15: 1,299.1 | DM15: 152.5 | DN15: 417.9 | DO15: 56.1 | DP15: 168.7 | DQ15: 275.2 | DT15: 2,369.5 | DU15: kcal/capita/day | DV15: 0% | EI15: 5.16 | EJ15: Mtonne/Mha | EL15: 6.90 | EM15: 57.59 | EO15: 57.59 | EP15: 3.4 | EQ15: 3.1 | ER15: 2.35 | ES15: 2.98 | ET15: 3.4 | EU15: 3.1 | EV15: 3.33 | EW15: 8.71 | EX15: 3.00 | EY15: FCR (kg feed per kg animal) | FL15: 16.2% | FN15: 16.2% | FO15: 87.1% | FP15: 94.1% | FQ15: 85.9% | FR15: 89.2% | FS15: 20.7% | FT15: 95.3% | FU15: 17.8% | FV15: 90.4% | FW15: 27.6% | GA15: BAU
A16: 1 | B16: 2016 | C16: Meeting future food demand with current agricultural resources | D16: Davis, K. F. Gephart, J. A. Emery, K. A. Leach, A. M. Galloway, J. N. D’Odorico, P. | E16: Davis et al. (2016) | F16: Journal article | G16: Global Environmental Change | H16: B | I16: BAU | J16: 2023 | K16: Food system | L16: Yes | M16: Davis et al. (2016) | N16: GHGLCA | AR16: 9.50 | AS16: Gt CO2e/yr | BA16: 0.0% | BB16: FAO - Permanent meadows and pastures | BC16: Agriculture | BD16: 6460.9 | BE16: 4431.0 | BF16: 2029.9 | BJ16: Mha | BL16: Water Footprint Network - Mekonnen & Hoekstra (2011) | BM16: 1,086.0 | BO16: 5,634.73 | BP16: km3/yr | BQ16: 0.0% | BS16: 0.0% | BU16: 150.78 | BX16: TgN/yr | BY16: 0.0% | CK16: 0.0% | CL16: 75.5% | CO16: 0% | CP16: 7.94 | CQ16: billion | CR16: 2,875.94 | CS16: OMN/FLX | CV16: 53.1 | CW16: 130.4 | CX16: 55.2 | CY16: 185.6 | CZ16: 238.7 | DA16: 37.6 | DB16: 27.4 | DC16: 65.0 | DD16: 303.7 | DE16: 164.5 | DF16: 40.6 | DG16: 205.0 | DJ16: 508.7 | DK16: 17.7% | DL16: 1,299.3 | DM16: 153.2 | DN16: 413.7 | DO16: 55.1 | DP16: 167.6 | DQ16: 278.3 | DT16: 2,367.2 | DU16: kcal/capita/day | DV16: 0% | EI16: 5.16 | EJ16: Mtonne/Mha | EL16: 6.89 | EM16: 57.59 | EO16: 57.59 | EP16: 3.4 | EQ16: 3.1 | ER16: 2.35 | ES16: 2.98 | ET16: 3.4 | EU16: 3.1 | EV16: 3.33 | EW16: 8.70 | EX16: 3.00 | EY16: FCR (kg feed per kg animal) | FL16: 16.2% | FN16: 16.2% | FO16: 87.1% | FP16: 94.1% | FQ16: 85.9% | FR16: 89.1% | FS16: 20.7% | FT16: 95.3% | FU16: 17.8% | FV16: 90.4% | FW16: 27.6% | GA16: BAU
A17: 1 | B17: 2016 | C17: Meeting future food demand with current agricultural resources | D17: Davis, K. F. Gephart, J. A. Emery, K. A. Leach, A. M. Galloway, J. N. D’Odorico, P. | E17: Davis et al. (2016) | F17: Journal article | G17: Global Environmental Change | H17: B | I17: BAU | J17: 2024 | K17: Food system | L17: Yes | M17: Davis et al. (2016) | N17: GHGLCA | AR17: 9.64 | AS17: Gt CO2e/yr | BA17: 0.0% | BB17: FAO - Permanent meadows and pastures | BC17: Agriculture | BD17: 6586.4 | BE17: 4521.1 | BF17: 2065.3 | BJ17: Mha | BL17: Water Footprint Network - Mekonnen & Hoekstra (2011) | BM17: 1,109.0 | BO17: 5,711.13 | BP17: km3/yr | BQ17: 0.0% | BS17: 0.0% | BU17: 153.43 | BX17: TgN/yr | BY17: 0.0% | CK17: 0.0% | CL17: 75.5% | CO17: 0% | CP17: 8.01 | CQ17: billion | CR17: 2,877.96 | CS17: OMN/FLX | CV17: 53.5 | CW17: 131.2 | CX17: 55.2 | CY17: 186.4 | CZ17: 239.9 | DA17: 38.7 | DB17: 27.2 | DC17: 65.9 | DD17: 305.8 | DE17: 166.3 | DF17: 41.0 | DG17: 207.2 | DJ17: 513.0 | DK17: 17.8% | DL17: 1,299.5 | DM17: 154.0 | DN17: 409.4 | DO17: 54.2 | DP17: 166.5 | DQ17: 281.4 | DT17: 2,365.0 | DU17: kcal/capita/day | DV17: 0% | EI17: 5.16 | EJ17: Mtonne/Mha | EL17: 6.88 | EM17: 57.59 | EO17: 57.59 | EP17: 3.4 | EQ17: 3.1 | ER17: 2.35 | ES17: 2.97 | ET17: 3.4 | EU17: 3.1 | EV17: 3.33 | EW17: 8.69 | EX17: 3.00 | EY17: FCR (kg feed per kg animal) | FL17: 16.2% | FN17: 16.2% | FO17: 87.1% | FP17: 94.1% | FQ17: 85.9% | FR17: 89.1% | FS17: 20.7% | FT17: 95.3% | FU17: 17.8% | FV17: 90.3% | FW17: 27.6% | GA17: BAU
A18: 1 | B18: 2016 | C18: Meeting future food demand with current agricultural resources | D18: Davis, K. F. Gephart, J. A. Emery, K. A. Leach, A. M. Galloway, J. N. D’Odorico, P. | E18: Davis et al. (2016) | F18: Journal article | G18: Global Environmental Change | H18: B | I18: BAU | J18: 2025 | K18: Food system | L18: Yes | M18: Davis et al. (2016) | N18: GHGLCA | AR18: 9.79 | AS18: Gt CO2e/yr | BA18: 0.0% | BB18: FAO - Permanent meadows and pastures | BC18: Agriculture | BD18: 6712.2 | BE18: 4611.5 | BF18: 2100.8 | BJ18: Mha | BL18: Water Footprint Network - Mekonnen & Hoekstra (2011) | BM18: 1,132.0 | BO18: 5,787.29 | BP18: km3/yr | BQ18: 0.0% | BS18: 0.0% | BU18: 156.09 | BX18: TgN/yr | BY18: 0.0% | CK18: 0.0% | CL18: 75.5% | CO18: 0% | CP18: 8.08 | CQ18: billion | CR18: 2,879.99 | CS18: OMN/FLX | CV18: 54.0 | CW18: 131.9 | CX18: 55.2 | CY18: 187.2 | CZ18: 241.1 | DA18: 39.8 | DB18: 26.9 | DC18: 66.7 | DD18: 307.9 | DE18: 168.1 | DF18: 41.3 | DG18: 209.4 | DJ18: 517.3 | DK18: 18.0% | DL18: 1,299.7 | DM18: 154.7 | DN18: 405.2 | DO18: 53.2 | DP18: 165.4 | DQ18: 284.5 | DT18: 2,362.7 | DU18: kcal/capita/day | DV18: 0% | EI18: 5.16 | EJ18: Mtonne/Mha | EL18: 6.87 | EM18: 57.59 | EO18: 57.59 | EP18: 3.4 | EQ18: 3.1 | ER18: 2.35 | ES18: 2.97 | ET18: 3.4 | EU18: 3.1 | EV18: 3.33 | EW18: 8.67 | EX18: 2.99 | EY18: FCR (kg feed per kg animal) | FL18: 16.2% | FN18: 16.2% | FO18: 87.1% | FP18: 94.1% | FQ18: 85.9% | FR18: 89.1% | FS18: 20.7% | FT18: 95.3% | FU18: 17.8% | FV18: 90.3% | FW18: 27.6% | GA18: BAU
A19: 1 | B19: 2016 | C19: Meeting future food demand with current agricultural resources | D19: Davis, K. F. Gephart, J. A. Emery, K. A. Leach, A. M. Galloway, J. N. D’Odorico, P. | E19: Davis et al. (2016) | F19: Journal article | G19: Global Environmental Change | H19: B | I19: BAU | J19: 2026 | K19: Food system | L19: Yes | M19: Davis et al. (2016) | N19: GHGLCA | AR19: 9.94 | AS19: Gt CO2e/yr | BA19: 0.0% | BB19: FAO - Permanent meadows and pastures | BC19: Agriculture | BD19: 6838.4 | BE19: 4702.2 | BF19: 2136.2 | BJ19: Mha | BL19: Water Footprint Network - Mekonnen & Hoekstra (2011) | BM19: 1,154.0 | BO19: 5,864.18 | BP19: km3/yr | BQ19: 0.0% | BS19: 0.0% | BU19: 158.74 | BX19: TgN/yr | BY19: 0.0% | CK19: 0.0% | CL19: 75.5% | CO19: 0% | CP19: 8.15 | CQ19: billion | CR19: 2,882.01 | CS19: OMN/FLX | CV19: 54.4 | CW19: 132.7 | CX19: 55.2 | CY19: 187.9 | CZ19: 242.4 | DA19: 40.9 | DB19: 26.7 | DC19: 67.6 | DD19: 310.0 | DE19: 169.9 | DF19: 41.7 | DG19: 211.6 | DJ19: 521.6 | DK19: 18.1% | DL19: 1,299.9 | DM19: 155.5 | DN19: 400.9 | DO19: 52.3 | DP19: 164.2 | DQ19: 287.6 | DT19: 2,360.4 | DU19: kcal/capita/day | DV19: 0% | EI19: 5.16 | EJ19: Mtonne/Mha | EL19: 6.87 | EM19: 57.59 | EO19: 57.59 | EP19: 3.4 | EQ19: 3.1 | ER19: 2.35 | ES19: 2.96 | ET19: 3.4 | EU19: 3.1 | EV19: 3.33 | EW19: 8.66 | EX19: 2.99 | EY19: FCR (kg feed per kg animal) | FL19: 16.2% | FN19: 16.2% | FO19: 87.1% | FP19: 94.1% | FQ19: 85.9% | FR19: 89.0% | FS19: 20.7% | FT19: 95.3% | FU19: 17.8% | FV19: 90.3% | FW19: 27.6% | GA19: BAU
A20: 1 | B20: 2016 | C20: Meeting future food demand with current agricultural resources | D20: Davis, K. F. Gephart, J. A. Emery, K. A. Leach, A. M. Galloway, J. N. D’Odorico, P. | E20: Davis et al. (2016) | F20: Journal article | G20: Global Environmental Change | H20: B | I20: BAU | J20: 2027 | K20: Food system | L20: Yes | M20: Davis et al. (2016) | N20: GHGLCA | AR20: 10.08 | AS20: Gt CO2e/yr | BA20: 0.0% | BB20: FAO - Permanent meadows and pastures | BC20: Agriculture | BD20: 6964.7 | BE20: 4793.2 | BF20: 2171.6 | BJ20: Mha | BL20: Water Footprint Network - Mekonnen & Hoekstra (2011) | BM20: 1,177.0 | BO20: 5,939.78 | BP20: km3/yr | BQ20: 0.0% | BS20: 0.0% | BU20: 161.38 | BX20: TgN/yr | BY20: 0.0% | CK20: 0.0% | CL20: 75.5% | CO20: 0% | CP20: 8.22 | CQ20: billion | CR20: 2,884.03 | CS20: OMN/FLX | CV20: 54.9 | CW20: 133.5 | CX20: 55.2 | CY20: 188.7 | CZ20: 243.6 | DA20: 42.0 | DB20: 26.5 | DC20: 68.5 | DD20: 312.1 | DE20: 171.7 | DF20: 42.1 | DG20: 213.8 | DJ20: 525.9 | DK20: 18.2% | DL20: 1,300.2 | DM20: 156.2 | DN20: 396.7 | DO20: 51.3 | DP20: 163.1 | DQ20: 290.7 | DT20: 2,358.2 | DU20: kcal/capita/day | DV20: 0% | EI20: 5.16 | EJ20: Mtonne/Mha | EL20: 6.86 | EM20: 57.59 | EO20: 57.59 | EP20: 3.4 | EQ20: 3.1 | ER20: 2.35 | ES20: 2.96 | ET20: 3.4 | EU20: 3.1 | EV20: 3.33 | EW20: 8.65 | EX20: 2.99 | EY20: FCR (kg feed per kg animal) | FL20: 16.2% | FN20: 16.2% | FO20: 87.1% | FP20: 94.1% | FQ20: 85.9% | FR20: 89.0% | FS20: 20.7% | FT20: 95.3% | FU20: 17.8% | FV20: 90.3% | FW20: 27.6% | GA20: BAU
A21: 1 | B21: 2016 | C21: Meeting future food demand with current agricultural resources | D21: Davis, K. F. Gephart, J. A. Emery, K. A. Leach, A. M. Galloway, J. N. D’Odorico, P. | E21: Davis et al. (2016) | F21: Journal article | G21: Global Environmental Change | H21: B | I21: BAU | J21: 2028 | K21: Food system | L21: Yes | M21: Davis et al. (2016) | N21: GHGLCA | AR21: 10.23 | AS21: Gt CO2e/yr | BA21: 0.0% | BB21: FAO - Permanent meadows and pastures | BC21: Agriculture | BD21: 7091.4 | BE21: 4884.4 | BF21: 2206.9 | BJ21: Mha | BL21: Water Footprint Network - Mekonnen & Hoekstra (2011) | BM21: 1,200.0 | BO21: 6,015.12 | BP21: km3/yr | BQ21: 0.0% | BS21: 0.0% | BU21: 164.03 | BX21: TgN/yr | BY21: 0.0% | CK21: 0.0% | CL21: 75.5% | CO21: 0% | CP21: 8.29 | CQ21: billion | CR21: 2,886.06 | CS21: OMN/FLX | CV21: 55.4 | CW21: 134.3 | CX21: 55.2 | CY21: 189.5 | CZ21: 244.8 | DA21: 43.1 | DB21: 26.2 | DC21: 69.3 | DD21: 314.2 | DE21: 173.5 | DF21: 42.5 | DG21: 216.0 | DJ21: 530.2 | DK21: 18.4% | DL21: 1,300.4 | DM21: 156.9 | DN21: 392.4 | DO21: 50.4 | DP21: 162.0 | DQ21: 293.8 | DT21: 2,355.9 | DU21: kcal/capita/day | DV21: 0% | EI21: 5.16 | EJ21: Mtonne/Mha | EL21: 6.85 | EM21: 57.59 | EO21: 57.59 | EP21: 3.4 | EQ21: 3.1 | ER21: 2.35 | ES21: 2.96 | ET21: 3.4 | EU21: 3.1 | EV21: 3.33 | EW21: 8.64 | EX21: 2.98 | EY21: FCR (kg feed per kg animal) | FL21: 16.2% | FN21: 16.2% | FO21: 87.1% | FP21: 94.1% | FQ21: 85.9% | FR21: 89.0% | FS21: 20.7% | FT21: 95.3% | FU21: 17.8% | FV21: 90.2% | FW21: 27.5% | GA21: BAU
A22: 1 | B22: 2016 | C22: Meeting future food demand with current agricultural resources | D22: Davis, K. F. Gephart, J. A. Emery, K. A. Leach, A. M. Galloway, J. N. D’Odorico, P. | E22: Davis et al. (2016) | F22: Journal article | G22: Global Environmental Change | H22: B | I22: BAU | J22: 2029 | K22: Food system | L22: Yes | M22: Davis et al. (2016) | N22: GHGLCA | AR22: 10.37 | AS22: Gt CO2e/yr | BA22: 0.0% | BB22: FAO - Permanent meadows and pastures | BC22: Agriculture | BD22: 7218.3 | BE22: 4976.0 | BF22: 2242.3 | BJ22: Mha | BL22: Water Footprint Network - Mekonnen & Hoekstra (2011) | BM22: 1,223.0 | BO22: 6,090.20 | BP22: km3/yr | BQ22: 0.0% | BS22: 0.0% | BU22: 166.68 | BX22: TgN/yr | BY22: 0.0% | CK22: 0.0% | CL22: 75.5% | CO22: 0% | CP22: 8.36 | CQ22: billion | CR22: 2,888.08 | CS22: OMN/FLX | CV22: 55.8 | CW22: 135.0 | CX22: 55.2 | CY22: 190.3 | CZ22: 246.1 | DA22: 44.2 | DB22: 26.0 | DC22: 70.2 | DD22: 316.3 | DE22: 175.3 | DF22: 42.9 | DG22: 218.2 | DJ22: 534.5 | DK22: 18.5% | DL22: 1,300.6 | DM22: 157.7 | DN22: 388.2 | DO22: 49.4 | DP22: 160.9 | DQ22: 296.9 | DT22: 2,353.6 | DU22: kcal/capita/day | DV22: 0% | EI22: 5.16 | EJ22: Mtonne/Mha | EL22: 6.84 | EM22: 57.59 | EO22: 57.59 | EP22: 3.4 | EQ22: 3.1 | ER22: 2.35 | ES22: 2.95 | ET22: 3.4 | EU22: 3.1 | EV22: 3.33 | EW22: 8.63 | EX22: 2.98 | EY22: FCR (kg feed per kg animal) | FL22: 16.2% | FN22: 16.2% | FO22: 87.1% | FP22: 94.1% | FQ22: 85.9% | FR22: 89.0% | FS22: 20.7% | FT22: 95.3% | FU22: 17.8% | FV22: 90.2% | FW22: 27.5% | GA22: BAU
A23: 1 | B23: 2016 | C23: Meeting future food demand with current agricultural resources | D23: Davis, K. F. Gephart, J. A. Emery, K. A. Leach, A. M. Galloway, J. N. D’Odorico, P. | E23: Davis et al. (2016) | F23: Journal article | G23: Global Environmental Change | H23: B | I23: BAU | J23: 2030 | K23: Food system | L23: Yes | M23: Davis et al. (2016) | N23: GHGLCA | AR23: 10.52 | AS23: Gt CO2e/yr | BA23: 0.0% | BB23: FAO - Permanent meadows and pastures | BC23: Agriculture | BD23: 7345.5 | BE23: 5067.8 | BF23: 2277.6 | BJ23: Mha | BL23: Water Footprint Network - Mekonnen & Hoekstra (2011) | BM23: 1,246.0 | BO23: 6,165.06 | BP23: km3/yr | BQ23: 0.0% | BS23: 0.0% | BU23: 169.32 | BX23: TgN/yr | BY23: 0.0% | CK23: 0.0% | CL23: 75.5% | CO23: 0% | CP23: 8.42 | CQ23: billion | CR23: 2,890.11 | CS23: OMN/FLX | CV23: 56.3 | CW23: 135.8 | CX23: 55.2 | CY23: 191.0 | CZ23: 247.3 | DA23: 45.2 | DB23: 25.8 | DC23: 71.0 | DD23: 318.4 | DE23: 177.1 | DF23: 43.2 | DG23: 220.4 | DJ23: 538.7 | DK23: 18.6% | DL23: 1,300.8 | DM23: 158.4 | DN23: 383.9 | DO23: 48.4 | DP23: 159.8 | DQ23: 300.0 | DT23: 2,351.4 | DU23: kcal/capita/day | DV23: 0% | EI23: 5.16 | EJ23: Mtonne/Mha | EL23: 6.83 | EM23: 57.59 | EO23: 57.59 | EP23: 3.4 | EQ23: 3.1 | ER23: 2.35 | ES23: 2.95 | ET23: 3.4 | EU23: 3.1 | EV23: 3.33 | EW23: 8.62 | EX23: 2.98 | EY23: FCR (kg feed per kg animal) | FL23: 16.2% | FN23: 16.2% | FO23: 87.1% | FP23: 94.1% | FQ23: 85.9% | FR23: 88.9% | FS23: 20.7% | FT23: 95.3% | FU23: 17.8% | FV23: 90.2% | FW23: 27.5% | GA23: BAU
A24: 1 | B24: 2016 | C24: Meeting future food demand with current agricultural resources | D24: Davis, K. F. Gephart, J. A. Emery, K. A. Leach, A. M. Galloway, J. N. D’Odorico, P. | E24: Davis et al. (2016) | F24: Journal article | G24: Global Environmental Change | H24: B | I24: BAU | J24: 2031 | K24: Food system | L24: Yes | M24: Davis et al. (2016) | N24: GHGLCA | AR24: 10.65 | AS24: Gt CO2e/yr | BA24: 0.0% | BB24: FAO - Permanent meadows and pastures | BC24: Agriculture | BD24: 7461.4 | BE24: 5160.0 | BF24: 2301.5 | BJ24: Mha | BL24: Water Footprint Network - Mekonnen & Hoekstra (2011) | BM24: 1,268.0 | BO24: 6,217.41 | BP24: km3/yr | BQ24: 0.0% | BS24: 0.0% | BU24: 171.52 | BX24: TgN/yr | BY24: 0.0% | CK24: 0.0% | CL24: 75.5% | CO24: 0% | CP24: 8.49 | CQ24: billion | CR24: 2,892.13 | CS24: OMN/FLX | CV24: 56.7 | CW24: 136.6 | CX24: 55.2 | CY24: 191.8 | CZ24: 248.5 | DA24: 46.3 | DB24: 25.6 | DC24: 71.9 | DD24: 320.4 | DE24: 179.0 | DF24: 43.6 | DG24: 222.6 | DJ24: 543.0 | DK24: 18.8% | DL24: 1,301.0 | DM24: 159.2 | DN24: 379.7 | DO24: 47.5 | DP24: 158.6 | DQ24: 303.1 | DT24: 2,349.1 | DU24: kcal/capita/day | DV24: 0% | EI24: 5.16 | EJ24: Mtonne/Mha | EL24: 6.83 | EM24: 57.59 | EO24: 57.59 | EP24: 3.4 | EQ24: 3.1 | ER24: 2.35 | ES24: 2.95 | ET24: 3.4 | EU24: 3.1 | EV24: 3.33 | EW24: 8.61 | EX24: 2.97 | EY24: FCR (kg feed per kg animal) | FL24: 16.2% | FN24: 16.2% | FO24: 87.1% | FP24: 94.1% | FQ24: 85.9% | FR24: 88.9% | FS24: 20.7% | FT24: 95.3% | FU24: 17.8% | FV24: 90.2% | FW24: 27.5% | GA24: BAU
A25: 1 | B25: 2016 | C25: Meeting future food demand with current agricultural resources | D25: Davis, K. F. Gephart, J. A. Emery, K. A. Leach, A. M. Galloway, J. N. D’Odorico, P. | E25: Davis et al. (2016) | F25: Journal article | G25: Global Environmental Change | H25: B | I25: BAU | J25: 2032 | K25: Food system | L25: Yes | M25: Davis et al. (2016) | N25: GHGLCA | AR25: 10.77 | AS25: Gt CO2e/yr | BA25: 0.0% | BB25: FAO - Permanent meadows and pastures | BC25: Agriculture | BD25: 7577.5 | BE25: 5252.3 | BF25: 2325.1 | BJ25: Mha | BL25: Water Footprint Network - Mekonnen & Hoekstra (2011) | BM25: 1,290.0 | BO25: 6,269.16 | BP25: km3/yr | BQ25: 0.0% | BS25: 0.0% | BU25: 173.72 | BX25: TgN/yr | BY25: 0.0% | CK25: 0.0% | CL25: 75.5% | CO25: 0% | CP25: 8.56 | CQ25: billion | CR25: 2,894.15 | CS25: OMN/FLX | CV25: 57.2 | CW25: 137.4 | CX25: 55.2 | CY25: 192.6 | CZ25: 249.8 | DA25: 47.3 | DB25: 25.4 | DC25: 72.8 | DD25: 322.5 | DE25: 180.8 | DF25: 44.0 | DG25: 224.8 | DJ25: 547.3 | DK25: 18.9% | DL25: 1,301.2 | DM25: 159.9 | DN25: 375.4 | DO25: 46.5 | DP25: 157.5 | DQ25: 306.2 | DT25: 2,346.8 | DU25: kcal/capita/day | DV25: 0% | EI25: 5.16 | EJ25: Mtonne/Mha | EL25: 6.82 | EM25: 57.59 | EO25: 57.59 | EP25: 3.4 | EQ25: 3.1 | ER25: 2.35 | ES25: 2.94 | ET25: 3.4 | EU25: 3.1 | EV25: 3.33 | EW25: 8.60 | EX25: 2.97 | EY25: FCR (kg feed per kg animal) | FL25: 16.2% | FN25: 16.2% | FO25: 87.1% | FP25: 94.1% | FQ25: 85.9% | FR25: 88.9% | FS25: 20.7% | FT25: 95.3% | FU25: 17.8% | FV25: 90.2% | FW25: 27.5% | GA25: BAU
A26: 1 | B26: 2016 | C26: Meeting future food demand with current agricultural resources | D26: Davis, K. F. Gephart, J. A. Emery, K. A. Leach, A. M. Galloway, J. N. D’Odorico, P. | E26: Davis et al. (2016) | F26: Journal article | G26: Global Environmental Change | H26: B | I26: BAU | J26: 2033 | K26: Food system | L26: Yes | M26: Davis et al. (2016) | N26: GHGLCA | AR26: 10.90 | AS26: Gt CO2e/yr | BA26: 0.0% | BB26: FAO - Permanent meadows and pastures | BC26: Agriculture | BD26: 7693.5 | BE26: 5345.0 | BF26: 2348.6 | BJ26: Mha | BL26: Water Footprint Network - Mekonnen & Hoekstra (2011) | BM26: 1,312.0 | BO26: 6,320.29 | BP26: km3/yr | BQ26: 0.0% | BS26: 0.0% | BU26: 175.90 | BX26: TgN/yr | BY26: 0.0% | CK26: 0.0% | CL26: 75.5% | CO26: 0% | CP26: 8.62 | CQ26: billion | CR26: 2,896.18 | CS26: OMN/FLX | CV26: 57.6 | CW26: 138.1 | CX26: 55.2 | CY26: 193.4 | CZ26: 251.0 | DA26: 48.4 | DB26: 25.2 | DC26: 73.6 | DD26: 324.6 | DE26: 182.6 | DF26: 44.4 | DG26: 227.0 | DJ26: 551.6 | DK26: 19.0% | DL26: 1,301.5 | DM26: 160.7 | DN26: 371.2 | DO26: 45.6 | DP26: 156.4 | DQ26: 309.3 | DT26: 2,344.6 | DU26: kcal/capita/day | DV26: 0% | EI26: 5.16 | EJ26: Mtonne/Mha | EL26: 6.81 | EM26: 57.59 | EO26: 57.59 | EP26: 3.4 | EQ26: 3.1 | ER26: 2.35 | ES26: 2.94 | ET26: 3.4 | EU26: 3.1 | EV26: 3.33 | EW26: 8.59 | EX26: 2.97 | EY26: FCR (kg feed per kg animal) | FL26: 16.2% | FN26: 16.2% | FO26: 87.1% | FP26: 94.1% | FQ26: 85.9% | FR26: 88.9% | FS26: 20.7% | FT26: 95.3% | FU26: 17.8% | FV26: 90.2% | FW26: 27.5% | GA26: BAU
A27: 1 | B27: 2016 | C27: Meeting future food demand with current agricultural resources | D27: Davis, K. F. Gephart, J. A. Emery, K. A. Leach, A. M. Galloway, J. N. D’Odorico, P. | E27: Davis et al. (2016) | F27: Journal article | G27: Global Environmental Change | H27: B | I27: BAU | J27: 2034 | K27: Food system | L27: Yes | M27: Davis et al. (2016) | N27: GHGLCA | AR27: 11.02 | AS27: Gt CO2e/yr | BA27: 0.0% | BB27: FAO - Permanent meadows and pastures | BC27: Agriculture | BD27: 7809.6 | BE27: 5437.8 | BF27: 2371.8 | BJ27: Mha | BL27: Water Footprint Network - Mekonnen & Hoekstra (2011) | BM27: 1,334.0 | BO27: 6,370.80 | BP27: km3/yr | BQ27: 0.0% | BS27: 0.0% | BU27: 178.08 | BX27: TgN/yr | BY27: 0.0% | CK27: 0.0% | CL27: 75.5% | CO27: 0% | CP27: 8.68 | CQ27: billion | CR27: 2,898.20 | CS27: OMN/FLX | CV27: 58.1 | CW27: 138.9 | CX27: 55.2 | CY27: 194.1 | CZ27: 252.2 | DA27: 49.4 | DB27: 25.1 | DC27: 74.5 | DD27: 326.7 | DE27: 184.4 | DF27: 44.8 | DG27: 229.2 | DJ27: 555.9 | DK27: 19.2% | DL27: 1,301.7 | DM27: 161.4 | DN27: 366.9 | DO27: 44.6 | DP27: 155.3 | DQ27: 312.4 | DT27: 2,342.3 | DU27: kcal/capita/day | DV27: 0% | EI27: 5.16 | EJ27: Mtonne/Mha | EL27: 6.81 | EM27: 57.59 | EO27: 57.59 | EP27: 3.4 | EQ27: 3.1 | ER27: 2.35 | ES27: 2.93 | ET27: 3.4 | EU27: 3.1 | EV27: 3.33 | EW27: 8.58 | EX27: 2.96 | EY27: FCR (kg feed per kg animal) | FL27: 16.2% | FN27: 16.2% | FO27: 87.1% | FP27: 94.1% | FQ27: 85.9% | FR27: 88.9% | FS27: 20.7% | FT27: 95.3% | FU27: 17.8% | FV27: 90.1% | FW27: 27.5% | GA27: BAU
A28: 1 | B28: 2016 | C28: Meeting future food demand with current agricultural resources | D28: Davis, K. F. Gephart, J. A. Emery, K. A. Leach, A. M. Galloway, J. N. D’Odorico, P. | E28: Davis et al. (2016) | F28: Journal article | G28: Global Environmental Change | H28: B | I28: BAU | J28: 2035 | K28: Food system | L28: Yes | M28: Davis et al. (2016) | N28: GHGLCA | AR28: 11.14 | AS28: Gt CO2e/yr | BA28: 0.0% | BB28: FAO - Permanent meadows and pastures | BC28: Agriculture | BD28: 7925.7 | BE28: 5530.8 | BF28: 2394.9 | BJ28: Mha | BL28: Water Footprint Network - Mekonnen & Hoekstra (2011) | BM28: 1,356.0 | BO28: 6,420.69 | BP28: km3/yr | BQ28: 0.0% | BS28: 0.0% | BU28: 180.25 | BX28: TgN/yr | BY28: 0.0% | CK28: 0.0% | CL28: 75.5% | CO28: 0% | CP28: 8.74 | CQ28: billion | CR28: 2,900.22 | CS28: OMN/FLX | CV28: 58.5 | CW28: 139.7 | CX28: 55.2 | CY28: 194.9 | CZ28: 253.5 | DA28: 50.5 | DB28: 24.9 | DC28: 75.4 | DD28: 328.8 | DE28: 186.2 | DF28: 45.2 | DG28: 231.4 | DJ28: 560.2 | DK28: 19.3% | DL28: 1,301.9 | DM28: 162.1 | DN28: 362.7 | DO28: 43.7 | DP28: 154.2 | DQ28: 315.5 | DT28: 2,340.0 | DU28: kcal/capita/day | DV28: 0% | EI28: 5.16 | EJ28: Mtonne/Mha | EL28: 6.80 | EM28: 57.59 | EO28: 57.59 | EP28: 3.4 | EQ28: 3.1 | ER28: 2.35 | ES28: 2.93 | ET28: 3.4 | EU28: 3.1 | EV28: 3.33 | EW28: 8.57 | EX28: 2.96 | EY28: FCR (kg feed per kg animal) | FL28: 16.2% | FN28: 16.2% | FO28: 87.1% | FP28: 94.1% | FQ28: 85.9% | FR28: 88.8% | FS28: 20.7% | FT28: 95.3% | FU28: 17.8% | FV28: 90.1% | FW28: 27.5% | GA28: BAU
A29: 1 | B29: 2016 | C29: Meeting future food demand with current agricultural resources | D29: Davis, K. F. Gephart, J. A. Emery, K. A. Leach, A. M. Galloway, J. N. D’Odorico, P. | E29: Davis et al. (2016) | F29: Journal article | G29: Global Environmental Change | H29: B | I29: BAU | J29: 2036 | K29: Food system | L29: Yes | M29: Davis et al. (2016) | N29: GHGLCA | AR29: 11.27 | AS29: Gt CO2e/yr | BA29: 0.0% | BB29: FAO - Permanent meadows and pastures | BC29: Agriculture | BD29: 8041.8 | BE29: 5624.1 | BF29: 2417.7 | BJ29: Mha | BL29: Water Footprint Network - Mekonnen & Hoekstra (2011) | BM29: 1,378.0 | BO29: 6,469.94 | BP29: km3/yr | BQ29: 0.0% | BS29: 0.0% | BU29: 182.41 | BX29: TgN/yr | BY29: 0.0% | CK29: 0.0% | CL29: 75.5% | CO29: 0% | CP29: 8.80 | CQ29: billion | CR29: 2,902.25 | CS29: OMN/FLX | CV29: 59.0 | CW29: 140.5 | CX29: 55.2 | CY29: 195.7 | CZ29: 254.7 | DA29: 51.5 | DB29: 24.7 | DC29: 76.2 | DD29: 330.9 | DE29: 188.0 | DF29: 45.5 | DG29: 233.5 | DJ29: 564.5 | DK29: 19.4% | DL29: 1,302.1 | DM29: 162.9 | DN29: 358.4 | DO29: 42.7 | DP29: 153.1 | DQ29: 318.6 | DT29: 2,337.8 | DU29: kcal/capita/day | DV29: 0% | EI29: 5.16 | EJ29: Mtonne/Mha | EL29: 6.79 | EM29: 57.59 | EO29: 57.59 | EP29: 3.4 | EQ29: 3.1 | ER29: 2.35 | ES29: 2.93 | ET29: 3.4 | EU29: 3.1 | EV29: 3.33 | EW29: 8.56 | EX29: 2.96 | EY29: FCR (kg feed per kg animal) | FL29: 16.2% | FN29: 16.2% | FO29: 87.1% | FP29: 94.1% | FQ29: 85.9% | FR29: 88.8% | FS29: 20.7% | FT29: 95.3% | FU29: 17.8% | FV29: 90.1% | FW29: 27.5% | GA29: BAU
A30: 1 | B30: 2016 | C30: Meeting future food demand with current agricultural resources | D30: Davis, K. F. Gephart, J. A. Emery, K. A. Leach, A. M. Galloway, J. N. D’Odorico, P. | E30: Davis et al. (2016) | F30: Journal article | G30: Global Environmental Change | H30: B | I30: BAU | J30: 2037 | K30: Food system | L30: Yes | M30: Davis et al. (2016) | N30: GHGLCA | AR30: 11.39 | AS30: Gt CO2e/yr | BA30: 0.0% | BB30: FAO - Permanent meadows and pastures | BC30: Agriculture | BD30: 8157.8 | BE30: 5717.4 | BF30: 2440.3 | BJ30: Mha | BL30: Water Footprint Network - Mekonnen & Hoekstra (2011) | BM30: 1,400.0 | BO30: 6,518.54 | BP30: km3/yr | BQ30: 0.0% | BS30: 0.0% | BU30: 184.55 | BX30: TgN/yr | BY30: 0.0% | CK30: 0.0% | CL30: 75.5% | CO30: 0% | CP30: 8.86 | CQ30: billion | CR30: 2,904.27 | CS30: OMN/FLX | CV30: 59.5 | CW30: 141.3 | CX30: 55.2 | CY30: 196.5 | CZ30: 255.9 | DA30: 52.5 | DB30: 24.5 | DC30: 77.1 | DD30: 333.0 | DE30: 189.8 | DF30: 45.9 | DG30: 235.7 | DJ30: 568.8 | DK30: 19.6% | DL30: 1,302.3 | DM30: 163.6 | DN30: 354.2 | DO30: 41.8 | DP30: 151.9 | DQ30: 321.7 | DT30: 2,335.5 | DU30: kcal/capita/day | DV30: 0% | EI30: 5.16 | EJ30: Mtonne/Mha | EL30: 6.79 | EM30: 57.59 | EO30: 57.59 | EP30: 3.4 | EQ30: 3.1 | ER30: 2.35 | ES30: 2.93 | ET30: 3.4 | EU30: 3.1 | EV30: 3.33 | EW30: 8.56 | EX30: 2.96 | EY30: FCR (kg feed per kg animal) | FL30: 16.2% | FN30: 16.2% | FO30: 87.1% | FP30: 94.1% | FQ30: 85.9% | FR30: 88.8% | FS30: 20.7% | FT30: 95.3% | FU30: 17.8% | FV30: 90.1% | FW30: 27.5% | GA30: BAU
A31: 1 | B31: 2016 | C31: Meeting future food demand with current agricultural resources | D31: Davis, K. F. Gephart, J. A. Emery, K. A. Leach, A. M. Galloway, J. N. D’Odorico, P. | E31: Davis et al. (2016) | F31: Journal article | G31: Global Environmental Change | H31: B | I31: BAU | J31: 2038 | K31: Food system | L31: Yes | M31: Davis et al. (2016) | N31: GHGLCA | AR31: 11.51 | AS31: Gt CO2e/yr | BA31: 0.0% | BB31: FAO - Permanent meadows and pastures | BC31: Agriculture | BD31: 8273.7 | BE31: 5811.0 | BF31: 2462.8 | BJ31: Mha | BL31: Water Footprint Network - Mekonnen & Hoekstra (2011) | BM31: 1,421.0 | BO31: 6,567.46 | BP31: km3/yr | BQ31: 0.0% | BS31: 0.0% | BU31: 186.69 | BX31: TgN/yr | BY31: 0.0% | CK31: 0.0% | CL31: 75.5% | CO31: 0% | CP31: 8.92 | CQ31: billion | CR31: 2,906.30 | CS31: OMN/FLX | CV31: 59.9 | CW31: 142.0 | CX31: 55.2 | CY31: 197.3 | CZ31: 257.2 | DA31: 53.6 | DB31: 24.4 | DC31: 77.9 | DD31: 335.1 | DE31: 191.6 | DF31: 46.3 | DG31: 237.9 | DJ31: 573.0 | DK31: 19.7% | DL31: 1,302.5 | DM31: 164.4 | DN31: 349.9 | DO31: 40.8 | DP31: 150.8 | DQ31: 324.8 | DT31: 2,333.3 | DU31: kcal/capita/day | DV31: 0% | EI31: 5.16 | EJ31: Mtonne/Mha | EL31: 6.78 | EM31: 57.59 | EO31: 57.59 | EP31: 3.4 | EQ31: 3.1 | ER31: 2.35 | ES31: 2.92 | ET31: 3.4 | EU31: 3.1 | EV31: 3.33 | EW31: 8.55 | EX31: 2.95 | EY31: FCR (kg feed per kg animal) | FL31: 16.2% | FN31: 16.2% | FO31: 87.1% | FP31: 94.1% | FQ31: 85.9% | FR31: 88.8% | FS31: 20.7% | FT31: 95.3% | FU31: 17.8% | FV31: 90.1% | FW31: 27.5% | GA31: BAU
A32: 1 | B32: 2016 | C32: Meeting future food demand with current agricultural resources | D32: Davis, K. F. Gephart, J. A. Emery, K. A. Leach, A. M. Galloway, J. N. D’Odorico, P. | E32: Davis et al. (2016) | F32: Journal article | G32: Global Environmental Change | H32: B | I32: BAU | J32: 2039 | K32: Food system | L32: Yes | M32: Davis et al. (2016) | N32: GHGLCA | AR32: 11.64 | AS32: Gt CO2e/yr | BA32: 0.0% | BB32: FAO - Permanent meadows and pastures | BC32: Agriculture | BD32: 8389.5 | BE32: 5904.5 | BF32: 2484.9 | BJ32: Mha | BL32: Water Footprint Network - Mekonnen & Hoekstra (2011) | BM32: 1,443.0 | BO32: 6,614.67 | BP32: km3/yr | BQ32: 0.0% | BS32: 0.0% | BU32: 188.82 | BX32: TgN/yr | BY32: 0.0% | CK32: 0.0% | CL32: 75.5% | CO32: 0% | CP32: 8.98 | CQ32: billion | CR32: 2,908.32 | CS32: OMN/FLX | CV32: 60.4 | CW32: 142.8 | CX32: 55.2 | CY32: 198.0 | CZ32: 258.4 | DA32: 54.6 | DB32: 24.2 | DC32: 78.8 | DD32: 337.2 | DE32: 193.4 | DF32: 46.7 | DG32: 240.1 | DJ32: 577.3 | DK32: 19.9% | DL32: 1,302.8 | DM32: 165.1 | DN32: 345.7 | DO32: 39.9 | DP32: 149.7 | DQ32: 327.9 | DT32: 2,331.0 | DU32: kcal/capita/day | DV32: 0% | EI32: 5.16 | EJ32: Mtonne/Mha | EL32: 6.77 | EM32: 57.59 | EO32: 57.59 | EP32: 3.4 | EQ32: 3.1 | ER32: 2.35 | ES32: 2.92 | ET32: 3.4 | EU32: 3.1 | EV32: 3.33 | EW32: 8.54 | EX32: 2.95 | EY32: FCR (kg feed per kg animal) | FL32: 16.2% | FN32: 16.2% | FO32: 87.1% | FP32: 94.1% | FQ32: 85.9% | FR32: 88.8% | FS32: 20.7% | FT32: 95.3% | FU32: 17.8% | FV32: 90.1% | FW32: 27.5% | GA32: BAU
A33: 1 | B33: 2016 | C33: Meeting future food demand with current agricultural resources | D33: Davis, K. F. Gephart, J. A. Emery, K. A. Leach, A. M. Galloway, J. N. D’Odorico, P. | E33: Davis et al. (2016) | F33: Journal article | G33: Global Environmental Change | H33: B | I33: BAU | J33: 2040 | K33: Food system | L33: Yes | M33: Davis et al. (2016) | N33: GHGLCA | AR33: 11.76 | AS33: Gt CO2e/yr | BA33: 0.0% | BB33: FAO - Permanent meadows and pastures | BC33: Agriculture | BD33: 8505.1 | BE33: 5998.2 | BF33: 2506.9 | BJ33: Mha | BL33: Water Footprint Network - Mekonnen & Hoekstra (2011) | BM33: 1,465.0 | BO33: 6,661.14 | BP33: km3/yr | BQ33: 0.0% | BS33: 0.0% | BU33: 190.93 | BX33: TgN/yr | BY33: 0.0% | CK33: 0.0% | CL33: 75.5% | CO33: 0% | CP33: 9.04 | CQ33: billion | CR33: 2,910.34 | CS33: OMN/FLX | CV33: 60.8 | CW33: 143.6 | CX33: 55.2 | CY33: 198.8 | CZ33: 259.6 | DA33: 55.6 | DB33: 24.1 | DC33: 79.7 | DD33: 339.3 | DE33: 195.3 | DF33: 47.1 | DG33: 242.3 | DJ33: 581.6 | DK33: 20.0% | DL33: 1,303.0 | DM33: 165.9 | DN33: 341.4 | DO33: 38.9 | DP33: 148.6 | DQ33: 331.0 | DT33: 2,328.7 | DU33: kcal/capita/day | DV33: 0% | EI33: 5.16 | EJ33: Mtonne/Mha | EL33: 6.77 | EM33: 57.59 | EO33: 57.59 | EP33: 3.4 | EQ33: 3.1 | ER33: 2.35 | ES33: 2.92 | ET33: 3.4 | EU33: 3.1 | EV33: 3.33 | EW33: 8.53 | EX33: 2.95 | EY33: FCR (kg feed per kg animal) | FL33: 16.2% | FN33: 16.2% | FO33: 87.1% | FP33: 94.1% | FQ33: 85.9% | FR33: 88.7% | FS33: 20.7% | FT33: 95.3% | FU33: 17.8% | FV33: 90.0% | FW33: 27.5% | GA33: BAU
A34: 1 | B34: 2016 | C34: Meeting future food demand with current agricultural resources | D34: Davis, K. F. Gephart, J. A. Emery, K. A. Leach, A. M. Galloway, J. N. D’Odorico, P. | E34: Davis et al. (2016) | F34: Journal article | G34: Global Environmental Change | H34: B | I34: BAU | J34: 2041 | K34: Food system | L34: Yes | M34: Davis et al. (2016) | N34: GHGLCA | AR34: 11.88 | AS34: Gt CO2e/yr | BA34: 0.0% | BB34: FAO - Permanent meadows and pastures | BC34: Agriculture | BD34: 8620.4 | BE34: 6091.8 | BF34: 2528.6 | BJ34: Mha | BL34: Water Footprint Network - Mekonnen & Hoekstra (2011) | BM34: 1,487.0 | BO34: 6,706.85 | BP34: km3/yr | BQ34: 0.0% | BS34: 0.0% | BU34: 193.03 | BX34: TgN/yr | BY34: 0.0% | CK34: 0.0% | CL34: 75.5% | CO34: 0% | CP34: 9.09 | CQ34: billion | CR34: 2,912.37 | CS34: OMN/FLX | CV34: 61.3 | CW34: 144.4 | CX34: 55.2 | CY34: 199.6 | CZ34: 260.9 | DA34: 56.6 | DB34: 23.9 | DC34: 80.5 | DD34: 341.4 | DE34: 197.1 | DF34: 47.4 | DG34: 244.5 | DJ34: 585.9 | DK34: 20.1% | DL34: 1,303.2 | DM34: 166.6 | DN34: 337.2 | DO34: 37.9 | DP34: 147.5 | DQ34: 334.1 | DT34: 2,326.5 | DU34: kcal/capita/day | DV34: 0% | EI34: 5.16 | EJ34: Mtonne/Mha | EL34: 6.76 | EM34: 57.59 | EO34: 57.59 | EP34: 3.4 | EQ34: 3.1 | ER34: 2.35 | ES34: 2.91 | ET34: 3.4 | EU34: 3.1 | EV34: 3.33 | EW34: 8.52 | EX34: 2.95 | EY34: FCR (kg feed per kg animal) | FL34: 16.2% | FN34: 16.2% | FO34: 87.1% | FP34: 94.1% | FQ34: 85.9% | FR34: 88.7% | FS34: 20.7% | FT34: 95.3% | FU34: 17.8% | FV34: 90.0% | FW34: 27.5% | GA34: BAU
A35: 1 | B35: 2016 | C35: Meeting future food demand with current agricultural resources | D35: Davis, K. F. Gephart, J. A. Emery, K. A. Leach, A. M. Galloway, J. N. D’Odorico, P. | E35: Davis et al. (2016) | F35: Journal article | G35: Global Environmental Change | H35: B | I35: BAU | J35: 2042 | K35: Food system | L35: Yes | M35: Davis et al. (2016) | N35: GHGLCA | AR35: 12.00 | AS35: Gt CO2e/yr | BA35: 0.0% | BB35: FAO - Permanent meadows and pastures | BC35: Agriculture | BD35: 8735.6 | BE35: 6185.5 | BF35: 2550.0 | BJ35: Mha | BL35: Water Footprint Network - Mekonnen & Hoekstra (2011) | BM35: 1,508.0 | BO35: 6,752.79 | BP35: km3/yr | BQ35: 0.0% | BS35: 0.0% | BU35: 195.12 | BX35: TgN/yr | BY35: 0.0% | CK35: 0.0% | CL35: 75.5% | CO35: 0% | CP35: 9.15 | CQ35: billion | CR35: 2,914.39 | CS35: OMN/FLX | CV35: 61.7 | CW35: 145.1 | CX35: 55.2 | CY35: 200.4 | CZ35: 262.1 | DA35: 57.6 | DB35: 23.8 | DC35: 81.4 | DD35: 343.5 | DE35: 198.9 | DF35: 47.8 | DG35: 246.7 | DJ35: 590.2 | DK35: 20.3% | DL35: 1,303.4 | DM35: 167.3 | DN35: 332.9 | DO35: 37.0 | DP35: 146.3 | DQ35: 337.2 | DT35: 2,324.2 | DU35: kcal/capita/day | DV35: 0% | EI35: 5.16 | EJ35: Mtonne/Mha | EL35: 6.76 | EM35: 57.59 | EO35: 57.59 | EP35: 3.4 | EQ35: 3.1 | ER35: 2.35 | ES35: 2.91 | ET35: 3.4 | EU35: 3.1 | EV35: 3.33 | EW35: 8.51 | EX35: 2.94 | EY35: FCR (kg feed per kg animal) | FL35: 16.2% | FN35: 16.2% | FO35: 87.1% | FP35: 94.1% | FQ35: 85.9% | FR35: 88.7% | FS35: 20.7% | FT35: 95.3% | FU35: 17.8% | FV35: 90.0% | FW35: 27.4% | GA35: BAU
A36: 1 | B36: 2016 | C36: Meeting future food demand with current agricultural resources | D36: Davis, K. F. Gephart, J. A. Emery, K. A. Leach, A. M. Galloway, J. N. D’Odorico, P. | E36: Davis et al. (2016) | F36: Journal article | G36: Global Environmental Change | H36: B | I36: BAU | J36: 2043 | K36: Food system | L36: Yes | M36: Davis et al. (2016) | N36: GHGLCA | AR36: 12.11 | AS36: Gt CO2e/yr | BA36: 0.0% | BB36: FAO - Permanent meadows and pastures | BC36: Agriculture | BD36: 8850.4 | BE36: 6279.1 | BF36: 2571.2 | BJ36: Mha | BL36: Water Footprint Network - Mekonnen & Hoekstra (2011) | BM36: 1,530.0 | BO36: 6,796.93 | BP36: km3/yr | BQ36: 0.0% | BS36: 0.0% | BU36: 197.19 | BX36: TgN/yr | BY36: 0.0% | CK36: 0.0% | CL36: 75.5% | CO36: 0% | CP36: 9.20 | CQ36: billion | CR36: 2,916.41 | CS36: OMN/FLX | CV36: 62.2 | CW36: 145.9 | CX36: 55.2 | CY36: 201.1 | CZ36: 263.3 | DA36: 58.6 | DB36: 23.6 | DC36: 82.2 | DD36: 345.6 | DE36: 200.7 | DF36: 48.2 | DG36: 248.9 | DJ36: 594.5 | DK36: 20.4% | DL36: 1,303.6 | DM36: 168.1 | DN36: 328.6 | DO36: 36.0 | DP36: 145.2 | DQ36: 340.3 | DT36: 2,321.9 | DU36: kcal/capita/day | DV36: 0% | EI36: 5.16 | EJ36: Mtonne/Mha | EL36: 6.75 | EM36: 57.59 | EO36: 57.59 | EP36: 3.4 | EQ36: 3.1 | ER36: 2.35 | ES36: 2.91 | ET36: 3.4 | EU36: 3.1 | EV36: 3.33 | EW36: 8.51 | EX36: 2.94 | EY36: FCR (kg feed per kg animal) | FL36: 16.2% | FN36: 16.2% | FO36: 87.1% | FP36: 94.1% | FQ36: 85.9% | FR36: 88.7% | FS36: 20.7% | FT36: 95.3% | FU36: 17.8% | FV36: 90.0% | FW36: 27.4% | GA36: BAU
A37: 1 | B37: 2016 | C37: Meeting future food demand with current agricultural resources | D37: Davis, K. F. Gephart, J. A. Emery, K. A. Leach, A. M. Galloway, J. N. D’Odorico, P. | E37: Davis et al. (2016) | F37: Journal article | G37: Global Environmental Change | H37: B | I37: BAU | J37: 2044 | K37: Food system | L37: Yes | M37: Davis et al. (2016) | N37: GHGLCA | AR37: 12.23 | AS37: Gt CO2e/yr | BA37: 0.0% | BB37: FAO - Permanent meadows and pastures | BC37: Agriculture | BD37: 8964.9 | BE37: 6372.7 | BF37: 2592.2 | BJ37: Mha | BL37: Water Footprint Network - Mekonnen & Hoekstra (2011) | BM37: 1,552.0 | BO37: 6,840.25 | BP37: km3/yr | BQ37: 0.0% | BS37: 0.0% | BU37: 199.24 | BX37: TgN/yr | BY37: 0.0% | CK37: 0.0% | CL37: 75.5% | CO37: 0% | CP37: 9.26 | CQ37: billion | CR37: 2,918.44 | CS37: OMN/FLX | CV37: 62.6 | CW37: 146.7 | CX37: 55.2 | CY37: 201.9 | CZ37: 264.6 | DA37: 59.6 | DB37: 23.5 | DC37: 83.1 | DD37: 347.7 | DE37: 202.5 | DF37: 48.6 | DG37: 251.1 | DJ37: 598.8 | DK37: 20.5% | DL37: 1,303.8 | DM37: 168.8 | DN37: 324.4 | DO37: 35.1 | DP37: 144.1 | DQ37: 343.4 | DT37: 2,319.7 | DU37: kcal/capita/day | DV37: 0% | EI37: 5.16 | EJ37: Mtonne/Mha | EL37: 6.75 | EM37: 57.59 | EO37: 57.59 | EP37: 3.4 | EQ37: 3.1 | ER37: 2.35 | ES37: 2.90 | ET37: 3.4 | EU37: 3.1 | EV37: 3.33 | EW37: 8.50 | EX37: 2.94 | EY37: FCR (kg feed per kg animal) | FL37: 16.2% | FN37: 16.2% | FO37: 87.1% | FP37: 94.1% | FQ37: 85.9% | FR37: 88.7% | FS37: 20.7% | FT37: 95.3% | FU37: 17.8% | FV37: 90.0% | FW37: 27.4% | GA37: BAU
A38: 1 | B38: 2016 | C38: Meeting future food demand with current agricultural resources | D38: Davis, K. F. Gephart, J. A. Emery, K. A. Leach, A. M. Galloway, J. N. D’Odorico, P. | E38: Davis et al. (2016) | F38: Journal article | G38: Global Environmental Change | H38: B | I38: BAU | J38: 2045 | K38: Food system | L38: Yes | M38: Davis et al. (2016) | N38: GHGLCA | AR38: 12.35 | AS38: Gt CO2e/yr | BA38: 0.0% | BB38: FAO - Permanent meadows and pastures | BC38: Agriculture | BD38: 9079.0 | BE38: 6466.1 | BF38: 2612.8 | BJ38: Mha | BL38: Water Footprint Network - Mekonnen & Hoekstra (2011) | BM38: 1,573.0 | BO38: 6,883.73 | BP38: km3/yr | BQ38: 0.0% | BS38: 0.0% | BU38: 201.28 | BX38: TgN/yr | BY38: 0.0% | CK38: 0.0% | CL38: 75.5% | CO38: 0% | CP38: 9.31 | CQ38: billion | CR38: 2,920.46 | CS38: OMN/FLX | CV38: 63.1 | CW38: 147.5 | CX38: 55.2 | CY38: 202.7 | CZ38: 265.8 | DA38: 60.6 | DB38: 23.4 | DC38: 84.0 | DD38: 349.8 | DE38: 204.3 | DF38: 49.0 | DG38: 253.3 | DJ38: 603.1 | DK38: 20.6% | DL38: 1,304.1 | DM38: 169.6 | DN38: 320.1 | DO38: 34.1 | DP38: 143.0 | DQ38: 346.5 | DT38: 2,317.4 | DU38: kcal/capita/day | DV38: 0% | EI38: 5.16 | EJ38: Mtonne/Mha | EL38: 6.74 | EM38: 57.59 | EO38: 57.59 | EP38: 3.4 | EQ38: 3.1 | ER38: 2.35 | ES38: 2.90 | ET38: 3.4 | EU38: 3.1 | EV38: 3.33 | EW38: 8.49 | EX38: 2.94 | EY38: FCR (kg feed per kg animal) | FL38: 16.2% | FN38: 16.2% | FO38: 87.1% | FP38: 94.1% | FQ38: 85.9% | FR38: 88.6% | FS38: 20.7% | FT38: 95.3% | FU38: 17.8% | FV38: 90.0% | FW38: 27.4% | GA38: BAU
A39: 1 | B39: 2016 | C39: Meeting future food demand with current agricultural resources | D39: Davis, K. F. Gephart, J. A. Emery, K. A. Leach, A. M. Galloway, J. N. D’Odorico, P. | E39: Davis et al. (2016) | F39: Journal article | G39: Global Environmental Change | H39: B | I39: BAU | J39: 2046 | K39: Food system | L39: Yes | M39: Davis et al. (2016) | N39: GHGLCA | AR39: 12.47 | AS39: Gt CO2e/yr | BA39: 0.0% | BB39: FAO - Permanent meadows and pastures | BC39: Agriculture | BD39: 9192.7 | BE39: 6559.5 | BF39: 2633.2 | BJ39: Mha | BL39: Water Footprint Network - Mekonnen & Hoekstra (2011) | BM39: 1,594.0 | BO39: 6,926.35 | BP39: km3/yr | BQ39: 0.0% | BS39: 0.0% | BU39: 203.31 | BX39: TgN/yr | BY39: 0.0% | CK39: 0.0% | CL39: 75.5% | CO39: 0% | CP39: 9.36 | CQ39: billion | CR39: 2,922.49 | CS39: OMN/FLX | CV39: 63.6 | CW39: 148.2 | CX39: 55.2 | CY39: 203.5 | CZ39: 267.0 | DA39: 61.6 | DB39: 23.2 | DC39: 84.8 | DD39: 351.9 | DE39: 206.1 | DF39: 49.4 | DG39: 255.5 | DJ39: 607.3 | DK39: 20.8% | DL39: 1,304.3 | DM39: 170.3 | DN39: 315.9 | DO39: 33.2 | DP39: 141.9 | DQ39: 349.6 | DT39: 2,315.1 | DU39: kcal/capita/day | DV39: 0% | EI39: 5.16 | EJ39: Mtonne/Mha | EL39: 6.74 | EM39: 57.59 | EO39: 57.59 | EP39: 3.4 | EQ39: 3.1 | ER39: 2.35 | ES39: 2.90 | ET39: 3.4 | EU39: 3.1 | EV39: 3.33 | EW39: 8.48 | EX39: 2.94 | EY39: FCR (kg feed per kg animal) | FL39: 16.2% | FN39: 16.2% | FO39: 87.1% | FP39: 94.1% | FQ39: 85.9% | FR39: 88.6% | FS39: 20.7% | FT39: 95.3% | FU39: 17.8% | FV39: 90.0% | FW39: 27.4% | GA39: BAU
A40: 1 | B40: 2016 | C40: Meeting future food demand with current agricultural resources | D40: Davis, K. F. Gephart, J. A. Emery, K. A. Leach, A. M. Galloway, J. N. D’Odorico, P. | E40: Davis et al. (2016) | F40: Journal article | G40: Global Environmental Change | H40: B | I40: BAU | J40: 2047 | K40: Food system | L40: Yes | M40: Davis et al. (2016) | N40: GHGLCA | AR40: 12.58 | AS40: Gt CO2e/yr | BA40: 0.0% | BB40: FAO - Permanent meadows and pastures | BC40: Agriculture | BD40: 9306.0 | BE40: 6652.7 | BF40: 2653.3 | BJ40: Mha | BL40: Water Footprint Network - Mekonnen & Hoekstra (2011) | BM40: 1,615.0 | BO40: 6,968.10 | BP40: km3/yr | BQ40: 0.0% | BS40: 0.0% | BU40: 205.32 | BX40: TgN/yr | BY40: 0.0% | CK40: 0.0% | CL40: 75.5% | CO40: 0% | CP40: 9.41 | CQ40: billion | CR40: 2,924.51 | CS40: OMN/FLX | CV40: 64.0 | CW40: 149.0 | CX40: 55.2 | CY40: 204.2 | CZ40: 268.3 | DA40: 62.6 | DB40: 23.1 | DC40: 85.7 | DD40: 354.0 | DE40: 207.9 | DF40: 49.7 | DG40: 257.7 | DJ40: 611.6 | DK40: 20.9% | DL40: 1,304.5 | DM40: 171.1 | DN40: 311.6 | DO40: 32.2 | DP40: 140.8 | DQ40: 352.7 | DT40: 2,312.9 | DU40: kcal/capita/day | DV40: 0% | EI40: 5.16 | EJ40: Mtonne/Mha | EL40: 6.73 | EM40: 57.59 | EO40: 57.59 | EP40: 3.4 | EQ40: 3.1 | ER40: 2.35 | ES40: 2.90 | ET40: 3.4 | EU40: 3.1 | EV40: 3.33 | EW40: 8.47 | EX40: 2.93 | EY40: FCR (kg feed per kg animal) | FL40: 16.2% | FN40: 16.2% | FO40: 87.1% | FP40: 94.1% | FQ40: 85.9% | FR40: 88.6% | FS40: 20.7% | FT40: 95.3% | FU40: 17.8% | FV40: 89.9% | FW40: 27.4% | GA40: BAU
A41: 1 | B41: 2016 | C41: Meeting future food demand with current agricultural resources | D41: Davis, K. F. Gephart, J. A. Emery, K. A. Leach, A. M. Galloway, J. N. D’Odorico, P. | E41: Davis et al. (2016) | F41: Journal article | G41: Global Environmental Change | H41: B | I41: BAU | J41: 2048 | K41: Food system | L41: Yes | M41: Davis et al. (2016) | N41: GHGLCA | AR41: 12.69 | AS41: Gt CO2e/yr | BA41: 0.0% | BB41: FAO - Permanent meadows and pastures | BC41: Agriculture | BD41: 9418.8 | BE41: 6745.7 | BF41: 2673.2 | BJ41: Mha | BL41: Water Footprint Network - Mekonnen & Hoekstra (2011) | BM41: 1,637.0 | BO41: 7,007.99 | BP41: km3/yr | BQ41: 0.0% | BS41: 0.0% | BU41: 207.31 | BX41: TgN/yr | BY41: 0.0% | CK41: 0.0% | CL41: 75.5% | CO41: 0% | CP41: 9.46 | CQ41: billion | CR41: 2,926.53 | CS41: OMN/FLX | CV41: 64.5 | CW41: 149.8 | CX41: 55.2 | CY41: 205.0 | CZ41: 269.5 | DA41: 63.5 | DB41: 23.0 | DC41: 86.6 | DD41: 356.0 | DE41: 209.8 | DF41: 50.1 | DG41: 259.9 | DJ41: 615.9 | DK41: 21.0% | DL41: 1,304.7 | DM41: 171.8 | DN41: 307.4 | DO41: 31.3 | DP41: 139.6 | DQ41: 355.8 | DT41: 2,310.6 | DU41: kcal/capita/day | DV41: 0% | EI41: 5.16 | EJ41: Mtonne/Mha | EL41: 6.73 | EM41: 57.59 | EO41: 57.59 | EP41: 3.4 | EQ41: 3.1 | ER41: 2.35 | ES41: 2.89 | ET41: 3.4 | EU41: 3.1 | EV41: 3.33 | EW41: 8.47 | EX41: 2.93 | EY41: FCR (kg feed per kg animal) | FL41: 16.2% | FN41: 16.2% | FO41: 87.1% | FP41: 94.1% | FQ41: 85.9% | FR41: 88.6% | FS41: 20.7% | FT41: 95.3% | FU41: 17.8% | FV41: 89.9% | FW41: 27.4% | GA41: BAU
A42: 1 | B42: 2016 | C42: Meeting future food demand with current agricultural resources | D42: Davis, K. F. Gephart, J. A. Emery, K. A. Leach, A. M. Galloway, J. N. D’Odorico, P. | E42: Davis et al. (2016) | F42: Journal article | G42: Global Environmental Change | H42: B | I42: BAU | J42: 2049 | K42: Food system | L42: Yes | M42: Davis et al. (2016) | N42: GHGLCA | AR42: 12.81 | AS42: Gt CO2e/yr | BA42: 0.0% | BB42: FAO - Permanent meadows and pastures | BC42: Agriculture | BD42: 9531.2 | BE42: 6838.5 | BF42: 2692.7 | BJ42: Mha | BL42: Water Footprint Network - Mekonnen & Hoekstra (2011) | BM42: 1,658.0 | BO42: 7,048.01 | BP42: km3/yr | BQ42: 0.0% | BS42: 0.0% | BU42: 209.28 | BX42: TgN/yr | BY42: 0.0% | CK42: 0.0% | CL42: 75.5% | CO42: 0% | CP42: 9.50 | CQ42: billion | CR42: 2,928.56 | CS42: OMN/FLX | CV42: 64.9 | CW42: 150.6 | CX42: 55.2 | CY42: 205.8 | CZ42: 270.7 | DA42: 64.5 | DB42: 22.9 | DC42: 87.4 | DD42: 358.1 | DE42: 211.6 | DF42: 50.5 | DG42: 262.1 | DJ42: 620.2 | DK42: 21.2% | DL42: 1,304.9 | DM42: 172.5 | DN42: 303.1 | DO42: 30.3 | DP42: 138.5 | DQ42: 358.9 | DT42: 2,308.4 | DU42: kcal/capita/day | DV42: 0% | EI42: 5.16 | EJ42: Mtonne/Mha | EL42: 6.72 | EM42: 57.59 | EO42: 57.59 | EP42: 3.4 | EQ42: 3.1 | ER42: 2.35 | ES42: 2.89 | ET42: 3.4 | EU42: 3.1 | EV42: 3.33 | EW42: 8.46 | EX42: 2.93 | EY42: FCR (kg feed per kg animal) | FL42: 16.2% | FN42: 16.2% | FO42: 87.1% | FP42: 94.1% | FQ42: 85.9% | FR42: 88.6% | FS42: 20.7% | FT42: 95.3% | FU42: 17.8% | FV42: 89.9% | FW42: 27.4% | GA42: BAU
A43: 1 | B43: 2016 | C43: Meeting future food demand with current agricultural resources | D43: Davis, K. F. Gephart, J. A. Emery, K. A. Leach, A. M. Galloway, J. N. D’Odorico, P. | E43: Davis et al. (2016) | F43: Journal article | G43: Global Environmental Change | H43: S1 | I43: BAU | J43: 2050 | K43: Food system | L43: Yes | M43: Davis et al. (2016) | N43: GHGLCA | AR43: 12.92 | AS43: Gt CO2e/yr | BA43: 0.0% | BB43: FAO - Permanent meadows and pastures | BC43: Agriculture | BD43: 9643.0 | BE43: 6931.1 | BF43: 2711.9 | BJ43: Mha | BL43: Water Footprint Network - Mekonnen & Hoekstra (2011) | BM43: 1,678.5 | BO43: 7,087.66 | BP43: km3/yr | BQ43: 0.0% | BS43: 0.0% | BU43: 211.23 | BX43: TgN/yr | BY43: 0.0% | CK43: 0.0% | CL43: 75.5% | CO43: 0% | CP43: 9.55 | CQ43: billion | CR43: 2,930.58 | CS43: OMN/FLX | CV43: 65.4 | CW43: 151.4 | CX43: 55.2 | CY43: 206.6 | CZ43: 272.0 | DA43: 65.5 | DB43: 22.8 | DC43: 88.3 | DD43: 360.2 | DE43: 213.4 | DF43: 50.9 | DG43: 264.3 | DJ43: 624.5 | DK43: 21.3% | DL43: 1,305.1 | DM43: 173.3 | DN43: 298.9 | DO43: 29.4 | DP43: 137.4 | DQ43: 362.0 | DT43: 2,306.1 | DU43: kcal/capita/day | DV43: 0% | EI43: 5.16 | EJ43: Mtonne/Mha | EL43: 6.72 | EM43: 57.59 | EO43: 57.59 | EP43: 3.4 | EQ43: 3.1 | ER43: 2.35 | ES43: 2.89 | ET43: 3.4 | EU43: 3.1 | EV43: 3.33 | EW43: 8.45 | EX43: 2.93 | EY43: FCR (kg feed per kg animal) | FL43: 16.2% | FN43: 16.2% | FO43: 87.1% | FP43: 94.1% | FQ43: 85.9% | FR43: 88.6% | FS43: 20.7% | FT43: 95.3% | FU43: 17.8% | FV43: 89.9% | FW43: 27.4% | GA43: BAU
A44: 1 | B44: 2016 | C44: Meeting future food demand with current agricultural resources | D44: Davis, K. F. Gephart, J. A. Emery, K. A. Leach, A. M. Galloway, J. N. D’Odorico, P. | E44: Davis et al. (2016) | F44: Journal article | G44: Global Environmental Change | H44: S1 | I44: Mediterranean diet | J44: 2010 | K44: Food system | L44: Yes | M44: Davis et al. (2016) | N44: GHGLCA | AR44: 7.64 | AS44: Gt CO2e/yr | BA44: 0.0% | BB44: FAO - Permanent meadows and pastures | BC44: Agriculture | BD44: 4949.1 | BE44: 3374.0 | BF44: 1575.1 | BJ44: Mha | BL44: Water Footprint Network - Mekonnen & Hoekstra (2011) | BM44: 796.0 | BO44: 4,623.43 | BP44: km3/yr | BQ44: 0.0% | BS44: 0.0% | BU44: 116.87 | BX44: TgN/yr | BY44: 0.0% | CK44: 0.0% | CL44: 75.5% | CO44: 0% | CP44: 6.92 | CQ44: billion | CR44: 2,849.01 | CS44: OMN/FLX | CV44: 46.1 | CW44: 117.0 | CX44: 54.4 | CY44: 171.3 | CZ44: 217.5 | DA44: 21.7 | DB44: 31.5 | DC44: 53.2 | DD44: 270.6 | DE44: 141.9 | DF44: 35.9 | DG44: 177.8 | DJ44: 448.5 | DK44: 15.7% | DL44: 1,283.3 | DM44: 141.2 | DN44: 479.9 | DO44: 67.3 | DP44: 195.0 | DQ44: 233.9 | DT44: 2,400.5 | DU44: kcal/capita/day | DV44: 0% | EI44: 5.16 | EJ44: Mtonne/Mha | EL44: 6.97 | EM44: 57.59 | EO44: 57.59 | EP44: 3.4 | EQ44: 3.1 | ER44: 2.35 | ES44: 3.05 | ET44: 3.4 | EU44: 3.1 | EV44: 3.33 | EW44: 8.73 | EX44: 3.06 | EY44: FCR (kg feed per kg animal) | FL44: 16.2% | FN44: 16.2% | FO44: 87.1% | FP44: 94.1% | FQ44: 85.9% | FR44: 89.6% | FS44: 20.7% | FT44: 95.3% | FU44: 17.8% | FV44: 90.8% | FW44: 27.7% | GA44: DIET
A45: 1 | B45: 2016 | C45: Meeting future food demand with current agricultural resources | D45: Davis, K. F. Gephart, J. A. Emery, K. A. Leach, A. M. Galloway, J. N. D’Odorico, P. | E45: Davis et al. (2016) | F45: Journal article | G45: Global Environmental Change | H45: S1 | I45: Mediterranean diet | J45: 2011 | K45: Food system | L45: Yes | M45: Davis et al. (2016) | N45: GHGLCA | AR45: 7.74 | AS45: Gt CO2e/yr | BA45: 0.0% | BB45: FAO - Permanent meadows and pastures | BC45: Agriculture | BD45: 4990.8 | BE45: 3384.0 | BF45: 1606.8 | BJ45: Mha | BL45: Water Footprint Network - Mekonnen & Hoekstra (2011) | BM45: 816.0 | BO45: 4,700.34 | BP45: km3/yr | BQ45: 0.0% | BS45: 0.0% | BU45: 119.11 | BX45: TgN/yr | BY45: 0.0% | CK45: 0.0% | CL45: 75.5% | CO45: 0% | CP45: 7.00 | CQ45: billion | CR45: 2,850.41 | CS45: OMN/FLX | CV45: 45.6 | CW45: 114.4 | CX45: 53.5 | CY45: 167.9 | CZ45: 213.5 | DA45: 22.3 | DB45: 31.1 | DC45: 53.4 | DD45: 266.9 | DE45: 144.8 | DF45: 36.6 | DG45: 181.4 | DJ45: 448.2 | DK45: 15.7% | DL45: 1,270.3 | DM45: 139.5 | DN45: 486.6 | DO45: 66.1 | DP45: 206.7 | DQ45: 232.9 | DT45: 2,402.2 | DU45: kcal/capita/day | DV45: 0% | EI45: 5.16 | EJ45: Mtonne/Mha | EL45: 6.88 | EM45: 57.59 | EO45: 57.59 | EP45: 3.4 | EQ45: 3.1 | ER45: 2.35 | ES45: 3.05 | ET45: 3.4 | EU45: 3.1 | EV45: 3.33 | EW45: 8.58 | EX45: 3.05 | EY45: FCR (kg feed per kg animal) | FL45: 16.2% | FN45: 16.2% | FO45: 87.1% | FP45: 94.1% | FQ45: 85.9% | FR45: 89.6% | FS45: 20.7% | FT45: 95.3% | FU45: 17.8% | FV45: 90.8% | FW45: 27.7% | GA45: DIET
A46: 1 | B46: 2016 | C46: Meeting future food demand with current agricultural resources | D46: Davis, K. F. Gephart, J. A. Emery, K. A. Leach, A. M. Galloway, J. N. D’Odorico, P. | E46: Davis et al. (2016) | F46: Journal article | G46: Global Environmental Change | H46: S1 | I46: Mediterranean diet | J46: 2012 | K46: Food system | L46: Yes | M46: Davis et al. (2016) | N46: GHGLCA | AR46: 7.81 | AS46: Gt CO2e/yr | BA46: 0.0% | BB46: FAO - Permanent meadows and pastures | BC46: Agriculture | BD46: 5023.0 | BE46: 3389.3 | BF46: 1633.7 | BJ46: Mha | BL46: Water Footprint Network - Mekonnen & Hoekstra (2011) | BM46: 835.0 | BO46: 4,775.46 | BP46: km3/yr | BQ46: 0.0% | BS46: 0.0% | BU46: 121.21 | BX46: TgN/yr | BY46: 0.0% | CK46: 0.0% | CL46: 75.5% | CO46: 0% | CP46: 7.08 | CQ46: billion | CR46: 2,851.81 | CS46: OMN/FLX | CV46: 45.0 | CW46: 111.9 | CX46: 52.6 | CY46: 164.5 | CZ46: 209.5 | DA46: 22.9 | DB46: 30.7 | DC46: 53.6 | DD46: 263.1 | DE46: 147.6 | DF46: 37.2 | DG46: 184.9 | DJ46: 448.0 | DK46: 15.7% | DL46: 1,257.3 | DM46: 137.9 | DN46: 493.3 | DO46: 64.9 | DP46: 218.5 | DQ46: 232.0 | DT46: 2,403.8 | DU46: kcal/capita/day | DV46: 0% | EI46: 5.16 | EJ46: Mtonne/Mha | EL46: 6.80 | EM46: 57.59 | EO46: 57.59 | EP46: 3.4 | EQ46: 3.1 | ER46: 2.35 | ES46: 3.04 | ET46: 3.4 | EU46: 3.1 | EV46: 3.33 | EW46: 8.43 | EX46: 3.05 | EY46: FCR (kg feed per kg animal) | FL46: 16.2% | FN46: 16.2% | FO46: 87.1% | FP46: 94.1% | FQ46: 85.9% | FR46: 89.5% | FS46: 20.7% | FT46: 95.3% | FU46: 17.8% | FV46: 90.8% | FW46: 27.7% | GA46: DIET
A47: 1 | B47: 2016 | C47: Meeting future food demand with current agricultural resources | D47: Davis, K. F. Gephart, J. A. Emery, K. A. Leach, A. M. Galloway, J. N. D’Odorico, P. | E47: Davis et al. (2016) | F47: Journal article | G47: Global Environmental Change | H47: S1 | I47: Mediterranean diet | J47: 2013 | K47: Food system | L47: Yes | M47: Davis et al. (2016) | N47: GHGLCA | AR47: 7.87 | AS47: Gt CO2e/yr | BA47: 0.0% | BB47: FAO - Permanent meadows and pastures | BC47: Agriculture | BD47: 5054.6 | BE47: 3393.8 | BF47: 1660.8 | BJ47: Mha | BL47: Water Footprint Network - Mekonnen & Hoekstra (2011) | BM47: 854.0 | BO47: 4,851.16 | BP47: km3/yr | BQ47: 0.0% | BS47: 0.0% | BU47: 123.31 | BX47: TgN/yr | BY47: 0.0% | CK47: 0.0% | CL47: 75.5% | CO47: 0% | CP47: 7.16 | CQ47: billion | CR47: 2,853.21 | CS47: OMN/FLX | CV47: 44.4 | CW47: 109.4 | CX47: 51.8 | CY47: 161.1 | CZ47: 205.6 | DA47: 23.4 | DB47: 30.4 | DC47: 53.8 | DD47: 259.4 | DE47: 150.5 | DF47: 37.9 | DG47: 188.4 | DJ47: 447.8 | DK47: 15.7% | DL47: 1,244.3 | DM47: 136.2 | DN47: 500.0 | DO47: 63.7 | DP47: 230.2 | DQ47: 231.0 | DT47: 2,405.4 | DU47: kcal/capita/day | DV47: 0% | EI47: 5.16 | EJ47: Mtonne/Mha | EL47: 6.72 | EM47: 57.59 | EO47: 57.59 | EP47: 3.4 | EQ47: 3.1 | ER47: 2.35 | ES47: 3.03 | ET47: 3.4 | EU47: 3.1 | EV47: 3.33 | EW47: 8.28 | EX47: 3.04 | EY47: FCR (kg feed per kg animal) | FL47: 16.2% | FN47: 16.2% | FO47: 87.1% | FP47: 94.1% | FQ47: 85.9% | FR47: 89.5% | FS47: 20.7% | FT47: 95.3% | FU47: 17.9% | FV47: 90.8% | FW47: 27.6% | GA47: DIET
A48: 1 | B48: 2016 | C48: Meeting future food demand with current agricultural resources | D48: Davis, K. F. Gephart, J. A. Emery, K. A. Leach, A. M. Galloway, J. N. D’Odorico, P. | E48: Davis et al. (2016) | F48: Journal article | G48: Global Environmental Change | H48: S1 | I48: Mediterranean diet | J48: 2014 | K48: Food system | L48: Yes | M48: Davis et al. (2016) | N48: GHGLCA | AR48: 7.94 | AS48: Gt CO2e/yr | BA48: 0.0% | BB48: FAO - Permanent meadows and pastures | BC48: Agriculture | BD48: 5085.2 | BE48: 3397.3 | BF48: 1687.9 | BJ48: Mha | BL48: Water Footprint Network - Mekonnen & Hoekstra (2011) | BM48: 873.0 | BO48: 4,927.14 | BP48: km3/yr | BQ48: 0.0% | BS48: 0.0% | BU48: 125.41 | BX48: TgN/yr | BY48: 0.0% | CK48: 0.0% | CL48: 75.5% | CO48: 0% | CP48: 7.24 | CQ48: billion | CR48: 2,854.61 | CS48: OMN/FLX | CV48: 43.9 | CW48: 106.9 | CX48: 50.9 | CY48: 157.8 | CZ48: 201.6 | DA48: 24.0 | DB48: 30.0 | DC48: 54.0 | DD48: 255.7 | DE48: 153.4 | DF48: 38.6 | DG48: 191.9 | DJ48: 447.6 | DK48: 15.7% | DL48: 1,231.3 | DM48: 134.6 | DN48: 506.6 | DO48: 62.5 | DP48: 242.0 | DQ48: 230.1 | DT48: 2,407.0 | DU48: kcal/capita/day | DV48: 0% | EI48: 5.16 | EJ48: Mtonne/Mha | EL48: 6.64 | EM48: 57.59 | EO48: 57.59 | EP48: 3.4 | EQ48: 3.1 | ER48: 2.35 | ES48: 3.02 | ET48: 3.4 | EU48: 3.1 | EV48: 3.33 | EW48: 8.14 | EX48: 3.04 | EY48: FCR (kg feed per kg animal) | FL48: 16.2% | FN48: 16.2% | FO48: 87.1% | FP48: 94.1% | FQ48: 85.9% | FR48: 89.5% | FS48: 20.7% | FT48: 95.3% | FU48: 17.9% | FV48: 90.8% | FW48: 27.6% | GA48: DIET
A49: 1 | B49: 2016 | C49: Meeting future food demand with current agricultural resources | D49: Davis, K. F. Gephart, J. A. Emery, K. A. Leach, A. M. Galloway, J. N. D’Odorico, P. | E49: Davis et al. (2016) | F49: Journal article | G49: Global Environmental Change | H49: S1 | I49: Mediterranean diet | J49: 2015 | K49: Food system | L49: Yes | M49: Davis et al. (2016) | N49: GHGLCA | AR49: 8.00 | AS49: Gt CO2e/yr | BA49: 0.0% | BB49: FAO - Permanent meadows and pastures | BC49: Agriculture | BD49: 5114.7 | BE49: 3399.8 | BF49: 1714.9 | BJ49: Mha | BL49: Water Footprint Network - Mekonnen & Hoekstra (2011) | BM49: 892.0 | BO49: 5,003.17 | BP49: km3/yr | BQ49: 0.0% | BS49: 0.0% | BU49: 127.52 | BX49: TgN/yr | BY49: 0.0% | CK49: 0.0% | CL49: 75.5% | CO49: 0% | CP49: 7.32 | CQ49: billion | CR49: 2,856.01 | CS49: OMN/FLX | CV49: 43.3 | CW49: 104.3 | CX49: 50.0 | CY49: 154.4 | CZ49: 197.6 | DA49: 24.6 | DB49: 29.7 | DC49: 54.3 | DD49: 251.9 | DE49: 156.2 | DF49: 39.2 | DG49: 195.4 | DJ49: 447.3 | DK49: 15.7% | DL49: 1,218.3 | DM49: 132.9 | DN49: 513.3 | DO49: 61.3 | DP49: 253.7 | DQ49: 229.1 | DT49: 2,408.7 | DU49: kcal/capita/day | DV49: 0% | EI49: 5.16 | EJ49: Mtonne/Mha | EL49: 6.56 | EM49: 57.59 | EO49: 57.59 | EP49: 3.4 | EQ49: 3.1 | ER49: 2.35 | ES49: 3.02 | ET49: 3.4 | EU49: 3.1 | EV49: 3.33 | EW49: 8.01 | EX49: 3.03 | EY49: FCR (kg feed per kg animal) | FL49: 16.2% | FN49: 16.2% | FO49: 87.1% | FP49: 94.1% | FQ49: 85.9% | FR49: 89.5% | FS49: 20.7% | FT49: 95.3% | FU49: 17.9% | FV49: 90.8% | FW49: 27.6% | GA49: DIET
A50: 1 | B50: 2016 | C50: Meeting future food demand with current agricultural resources | D50: Davis, K. F. Gephart, J. A. Emery, K. A. Leach, A. M. Galloway, J. N. D’Odorico, P. | E50: Davis et al. (2016) | F50: Journal article | G50: Global Environmental Change | H50: S1 | I50: Mediterranean diet | J50: 2016 | K50: Food system | L50: Yes | M50: Davis et al. (2016) | N50: GHGLCA | AR50: 8.06 | AS50: Gt CO2e/yr | BA50: 0.0% | BB50: FAO - Permanent meadows and pastures | BC50: Agriculture | BD50: 5142.9 | BE50: 3401.0 | BF50: 1741.9 | BJ50: Mha | BL50: Water Footprint Network - Mekonnen & Hoekstra (2011) | BM50: 911.0 | BO50: 5,079.11 | BP50: km3/yr | BQ50: 0.0% | BS50: 0.0% | BU50: 129.62 | BX50: TgN/yr | BY50: 0.0% | CK50: 0.0% | CL50: 75.5% | CO50: 0% | CP50: 7.40 | CQ50: billion | CR50: 2,857.41 | CS50: OMN/FLX | CV50: 42.7 | CW50: 101.8 | CX50: 49.2 | CY50: 151.0 | CZ50: 193.7 | DA50: 25.1 | DB50: 29.4 | DC50: 54.5 | DD50: 248.2 | DE50: 159.1 | DF50: 39.9 | DG50: 199.0 | DJ50: 447.1 | DK50: 15.6% | DL50: 1,205.3 | DM50: 131.2 | DN50: 520.0 | DO50: 60.1 | DP50: 265.4 | DQ50: 228.2 | DT50: 2,410.3 | DU50: kcal/capita/day | DV50: 0% | EI50: 5.16 | EJ50: Mtonne/Mha | EL50: 6.49 | EM50: 57.59 | EO50: 57.59 | EP50: 3.4 | EQ50: 3.1 | ER50: 2.35 | ES50: 3.01 | ET50: 3.4 | EU50: 3.1 | EV50: 3.33 | EW50: 7.88 | EX50: 3.03 | EY50: FCR (kg feed per kg animal) | FL50: 16.2% | FN50: 16.2% | FO50: 87.1% | FP50: 94.1% | FQ50: 85.9% | FR50: 89.5% | FS50: 20.7% | FT50: 95.3% | FU50: 18.0% | FV50: 90.8% | FW50: 27.6% | GA50: DIET
A51: 1 | B51: 2016 | C51: Meeting future food demand with current agricultural resources | D51: Davis, K. F. Gephart, J. A. Emery, K. A. Leach, A. M. Galloway, J. N. D’Odorico, P. | E51: Davis et al. (2016) | F51: Journal article | G51: Global Environmental Change | H51: S1 | I51: Mediterranean diet | J51: 2017 | K51: Food system | L51: Yes | M51: Davis et al. (2016) | N51: GHGLCA | AR51: 8.12 | AS51: Gt CO2e/yr | BA51: 0.0% | BB51: FAO - Permanent meadows and pastures | BC51: Agriculture | BD51: 5169.9 | BE51: 3401.1 | BF51: 1768.8 | BJ51: Mha | BL51: Water Footprint Network - Mekonnen & Hoekstra (2011) | BM51: 931.0 | BO51: 5,153.93 | BP51: km3/yr | BQ51: 0.0% | BS51: 0.0% | BU51: 131.71 | BX51: TgN/yr | BY51: 0.0% | CK51: 0.0% | CL51: 75.5% | CO51: 0% | CP51: 7.48 | CQ51: billion | CR51: 2,858.81 | CS51: OMN/FLX | CV51: 42.1 | CW51: 99.3 | CX51: 48.3 | CY51: 147.6 | CZ51: 189.7 | DA51: 25.6 | DB51: 29.1 | DC51: 54.7 | DD51: 244.4 | DE51: 161.9 | DF51: 40.6 | DG51: 202.5 | DJ51: 446.9 | DK51: 15.6% | DL51: 1,192.3 | DM51: 129.6 | DN51: 526.7 | DO51: 58.9 | DP51: 277.2 | DQ51: 227.2 | DT51: 2,411.9 | DU51: kcal/capita/day | DV51: 0% | EI51: 5.16 | EJ51: Mtonne/Mha | EL51: 6.42 | EM51: 57.59 | EO51: 57.59 | EP51: 3.4 | EQ51: 3.1 | ER51: 2.35 | ES51: 3.00 | ET51: 3.4 | EU51: 3.1 | EV51: 3.33 | EW51: 7.75 | EX51: 3.02 | EY51: FCR (kg feed per kg animal) | FL51: 16.2% | FN51: 16.2% | FO51: 87.1% | FP51: 94.1% | FQ51: 85.9% | FR51: 89.4% | FS51: 20.7% | FT51: 95.3% | FU51: 18.0% | FV51: 90.9% | FW51: 27.5% | GA51: DIET
A52: 1 | B52: 2016 | C52: Meeting future food demand with current agricultural resources | D52: Davis, K. F. Gephart, J. A. Emery, K. A. Leach, A. M. Galloway, J. N. D’Odorico, P. | E52: Davis et al. (2016) | F52: Journal article | G52: Global Environmental Change | H52: S1 | I52: Mediterranean diet | J52: 2018 | K52: Food system | L52: Yes | M52: Davis et al. (2016) | N52: GHGLCA | AR52: 8.18 | AS52: Gt CO2e/yr | BA52: 0.0% | BB52: FAO - Permanent meadows and pastures | BC52: Agriculture | BD52: 5195.6 | BE52: 3400.1 | BF52: 1795.6 | BJ52: Mha | BL52: Water Footprint Network - Mekonnen & Hoekstra (2011) | BM52: 950.0 | BO52: 5,229.56 | BP52: km3/yr | BQ52: 0.0% | BS52: 0.0% | BU52: 133.80 | BX52: TgN/yr | BY52: 0.0% | CK52: 0.0% | CL52: 75.5% | CO52: 0% | CP52: 7.56 | CQ52: billion | CR52: 2,860.21 | CS52: OMN/FLX | CV52: 41.6 | CW52: 96.8 | CX52: 47.4 | CY52: 144.2 | CZ52: 185.8 | DA52: 26.1 | DB52: 28.8 | DC52: 54.9 | DD52: 240.7 | DE52: 164.8 | DF52: 41.2 | DG52: 206.0 | DJ52: 446.7 | DK52: 15.6% | DL52: 1,179.3 | DM52: 127.9 | DN52: 533.4 | DO52: 57.8 | DP52: 288.9 | DQ52: 226.2 | DT52: 2,413.5 | DU52: kcal/capita/day | DV52: 0% | EI52: 5.16 | EJ52: Mtonne/Mha | EL52: 6.34 | EM52: 57.59 | EO52: 57.59 | EP52: 3.4 | EQ52: 3.1 | ER52: 2.35 | ES52: 2.99 | ET52: 3.4 | EU52: 3.1 | EV52: 3.33 | EW52: 7.62 | EX52: 3.02 | EY52: FCR (kg feed per kg animal) | FL52: 16.2% | FN52: 16.2% | FO52: 87.1% | FP52: 94.1% | FQ52: 85.9% | FR52: 89.4% | FS52: 20.7% | FT52: 95.3% | FU52: 18.0% | FV52: 90.9% | FW52: 27.5% | GA52: DIET
A53: 1 | B53: 2016 | C53: Meeting future food demand with current agricultural resources | D53: Davis, K. F. Gephart, J. A. Emery, K. A. Leach, A. M. Galloway, J. N. D’Odorico, P. | E53: Davis et al. (2016) | F53: Journal article | G53: Global Environmental Change | H53: S1 | I53: Mediterranean diet | J53: 2019 | K53: Food system | L53: Yes | M53: Davis et al. (2016) | N53: GHGLCA | AR53: 8.23 | AS53: Gt CO2e/yr | BA53: 0.0% | BB53: FAO - Permanent meadows and pastures | BC53: Agriculture | BD53: 5220.0 | BE53: 3397.8 | BF53: 1822.2 | BJ53: Mha | BL53: Water Footprint Network - Mekonnen & Hoekstra (2011) | BM53: 969.0 | BO53: 5,304.95 | BP53: km3/yr | BQ53: 0.0% | BS53: 0.0% | BU53: 135.88 | BX53: TgN/yr | BY53: 0.0% | CK53: 0.0% | CL53: 75.5% | CO53: 0% | CP53: 7.64 | CQ53: billion | CR53: 2,861.61 | CS53: OMN/FLX | CV53: 41.0 | CW53: 94.2 | CX53: 46.6 | CY53: 140.8 | CZ53: 181.8 | DA53: 26.6 | DB53: 28.5 | DC53: 55.1 | DD53: 236.9 | DE53: 167.6 | DF53: 41.9 | DG53: 209.5 | DJ53: 446.4 | DK53: 15.6% | DL53: 1,166.3 | DM53: 126.3 | DN53: 540.0 | DO53: 56.6 | DP53: 300.7 | DQ53: 225.3 | DT53: 2,415.2 | DU53: kcal/capita/day | DV53: 0% | EI53: 5.16 | EJ53: Mtonne/Mha | EL53: 6.27 | EM53: 57.59 | EO53: 57.59 | EP53: 3.4 | EQ53: 3.1 | ER53: 2.35 | ES53: 2.99 | ET53: 3.4 | EU53: 3.1 | EV53: 3.33 | EW53: 7.50 | EX53: 3.01 | EY53: FCR (kg feed per kg animal) | FL53: 16.2% | FN53: 16.2% | FO53: 87.1% | FP53: 94.1% | FQ53: 85.9% | FR53: 89.4% | FS53: 20.7% | FT53: 95.3% | FU53: 18.1% | FV53: 90.9% | FW53: 27.5% | GA53: DIET
A54: 1 | B54: 2016 | C54: Meeting future food demand with current agricultural resources | D54: Davis, K. F. Gephart, J. A. Emery, K. A. Leach, A. M. Galloway, J. N. D’Odorico, P. | E54: Davis et al. (2016) | F54: Journal article | G54: Global Environmental Change | H54: S1 | I54: Mediterranean diet | J54: 2020 | K54: Food system | L54: Yes | M54: Davis et al. (2016) | N54: GHGLCA | AR54: 8.29 | AS54: Gt CO2e/yr | BA54: 0.0% | BB54: FAO - Permanent meadows and pastures | BC54: Agriculture | BD54: 5243.1 | BE54: 3394.4 | BF54: 1848.7 | BJ54: Mha | BL54: Water Footprint Network - Mekonnen & Hoekstra (2011) | BM54: 988.0 | BO54: 5,380.06 | BP54: km3/yr | BQ54: 0.0% | BS54: 0.0% | BU54: 137.96 | BX54: TgN/yr | BY54: 0.0% | CK54: 0.0% | CL54: 75.5% | CO54: 0% | CP54: 7.72 | CQ54: billion | CR54: 2,863.01 | CS54: OMN/FLX | CV54: 40.4 | CW54: 91.7 | CX54: 45.7 | CY54: 137.4 | CZ54: 177.8 | DA54: 27.1 | DB54: 28.2 | DC54: 55.3 | DD54: 233.2 | DE54: 170.5 | DF54: 42.6 | DG54: 213.0 | DJ54: 446.2 | DK54: 15.6% | DL54: 1,153.3 | DM54: 124.6 | DN54: 546.7 | DO54: 55.4 | DP54: 312.4 | DQ54: 224.3 | DT54: 2,416.8 | DU54: kcal/capita/day | DV54: 0% | EI54: 5.16 | EJ54: Mtonne/Mha | EL54: 6.20 | EM54: 57.59 | EO54: 57.59 | EP54: 3.4 | EQ54: 3.1 | ER54: 2.35 | ES54: 2.98 | ET54: 3.4 | EU54: 3.1 | EV54: 3.33 | EW54: 7.39 | EX54: 3.01 | EY54: FCR (kg feed per kg animal) | FL54: 16.2% | FN54: 16.2% | FO54: 87.1% | FP54: 94.1% | FQ54: 85.9% | FR54: 89.4% | FS54: 20.7% | FT54: 95.3% | FU54: 18.1% | FV54: 90.9% | FW54: 27.5% | GA54: DIET
A55: 1 | B55: 2016 | C55: Meeting future food demand with current agricultural resources | D55: Davis, K. F. Gephart, J. A. Emery, K. A. Leach, A. M. Galloway, J. N. D’Odorico, P. | E55: Davis et al. (2016) | F55: Journal article | G55: Global Environmental Change | H55: S1 | I55: Mediterranean diet | J55: 2021 | K55: Food system | L55: Yes | M55: Davis et al. (2016) | N55: GHGLCA | AR55: 8.34 | AS55: Gt CO2e/yr | BA55: 0.0% | BB55: FAO - Permanent meadows and pastures | BC55: Agriculture | BD55: 5264.8 | BE55: 3389.7 | BF55: 1875.1 | BJ55: Mha | BL55: Water Footprint Network - Mekonnen & Hoekstra (2011) | BM55: 1,007.0 | BO55: 5,454.84 | BP55: km3/yr | BQ55: 0.0% | BS55: 0.0% | BU55: 140.02 | BX55: TgN/yr | BY55: 0.0% | CK55: 0.0% | CL55: 75.5% | CO55: 0% | CP55: 7.79 | CQ55: billion | CR55: 2,864.41 | CS55: OMN/FLX | CV55: 39.9 | CW55: 89.2 | CX55: 44.8 | CY55: 134.0 | CZ55: 173.9 | DA55: 27.6 | DB55: 27.9 | DC55: 55.5 | DD55: 229.4 | DE55: 173.3 | DF55: 43.2 | DG55: 216.6 | DJ55: 446.0 | DK55: 15.6% | DL55: 1,140.3 | DM55: 123.0 | DN55: 553.4 | DO55: 54.2 | DP55: 324.1 | DQ55: 223.4 | DT55: 2,418.4 | DU55: kcal/capita/day | DV55: 0% | EI55: 5.16 | EJ55: Mtonne/Mha | EL55: 6.13 | EM55: 57.59 | EO55: 57.59 | EP55: 3.4 | EQ55: 3.1 | ER55: 2.35 | ES55: 2.97 | ET55: 3.4 | EU55: 3.1 | EV55: 3.33 | EW55: 7.27 | EX55: 3.00 | EY55: FCR (kg feed per kg animal) | FL55: 16.2% | FN55: 16.2% | FO55: 87.1% | FP55: 94.1% | FQ55: 85.9% | FR55: 89.4% | FS55: 20.7% | FT55: 95.3% | FU55: 18.1% | FV55: 90.9% | FW55: 27.4% | GA55: DIET
A56: 1 | B56: 2016 | C56: Meeting future food demand with current agricultural resources | D56: Davis, K. F. Gephart, J. A. Emery, K. A. Leach, A. M. Galloway, J. N. D’Odorico, P. | E56: Davis et al. (2016) | F56: Journal article | G56: Global Environmental Change | H56: S1 | I56: Mediterranean diet | J56: 2022 | K56: Food system | L56: Yes | M56: Davis et al. (2016) | N56: GHGLCA | AR56: 8.39 | AS56: Gt CO2e/yr | BA56: 0.0% | BB56: FAO - Permanent meadows and pastures | BC56: Agriculture | BD56: 5285.2 | BE56: 3383.9 | BF56: 1901.3 | BJ56: Mha | BL56: Water Footprint Network - Mekonnen & Hoekstra (2011) | BM56: 1,026.0 | BO56: 5,529.24 | BP56: km3/yr | BQ56: 0.0% | BS56: 0.0% | BU56: 142.07 | BX56: TgN/yr | BY56: 0.0% | CK56: 0.0% | CL56: 75.5% | CO56: 0% | CP56: 7.87 | CQ56: billion | CR56: 2,865.81 | CS56: OMN/FLX | CV56: 39.3 | CW56: 86.7 | CX56: 44.0 | CY56: 130.6 | CZ56: 169.9 | DA56: 28.1 | DB56: 27.7 | DC56: 55.8 | DD56: 225.7 | DE56: 176.2 | DF56: 43.9 | DG56: 220.1 | DJ56: 445.8 | DK56: 15.6% | DL56: 1,127.4 | DM56: 121.3 | DN56: 560.1 | DO56: 53.0 | DP56: 335.9 | DQ56: 222.4 | DT56: 2,420.0 | DU56: kcal/capita/day | DV56: 0% | EI56: 5.16 | EJ56: Mtonne/Mha | EL56: 6.07 | EM56: 57.59 | EO56: 57.59 | EP56: 3.4 | EQ56: 3.1 | ER56: 2.35 | ES56: 2.96 | ET56: 3.4 | EU56: 3.1 | EV56: 3.33 | EW56: 7.16 | EX56: 3.00 | EY56: FCR (kg feed per kg animal) | FL56: 16.2% | FN56: 16.2% | FO56: 87.1% | FP56: 94.1% | FQ56: 85.9% | FR56: 89.3% | FS56: 20.7% | FT56: 95.3% | FU56: 18.2% | FV56: 90.9% | FW56: 27.4% | GA56: DIET
A57: 1 | B57: 2016 | C57: Meeting future food demand with current agricultural resources | D57: Davis, K. F. Gephart, J. A. Emery, K. A. Leach, A. M. Galloway, J. N. D’Odorico, P. | E57: Davis et al. (2016) | F57: Journal article | G57: Global Environmental Change | H57: S1 | I57: Mediterranean diet | J57: 2023 | K57: Food system | L57: Yes | M57: Davis et al. (2016) | N57: GHGLCA | AR57: 8.44 | AS57: Gt CO2e/yr | BA57: 0.0% | BB57: FAO - Permanent meadows and pastures | BC57: Agriculture | BD57: 5304.2 | BE57: 3376.9 | BF57: 1927.3 | BJ57: Mha | BL57: Water Footprint Network - Mekonnen & Hoekstra (2011) | BM57: 1,045.0 | BO57: 5,603.24 | BP57: km3/yr | BQ57: 0.0% | BS57: 0.0% | BU57: 144.11 | BX57: TgN/yr | BY57: 0.0% | CK57: 0.0% | CL57: 75.5% | CO57: 0% | CP57: 7.94 | CQ57: billion | CR57: 2,867.21 | CS57: OMN/FLX | CV57: 38.7 | CW57: 84.1 | CX57: 43.1 | CY57: 127.2 | CZ57: 166.0 | DA57: 28.6 | DB57: 27.4 | DC57: 56.0 | DD57: 221.9 | DE57: 179.0 | DF57: 44.6 | DG57: 223.6 | DJ57: 445.5 | DK57: 15.5% | DL57: 1,114.4 | DM57: 119.7 | DN57: 566.8 | DO57: 51.8 | DP57: 347.6 | DQ57: 221.5 | DT57: 2,421.7 | DU57: kcal/capita/day | DV57: 0% | EI57: 5.16 | EJ57: Mtonne/Mha | EL57: 6.00 | EM57: 57.59 | EO57: 57.59 | EP57: 3.4 | EQ57: 3.1 | ER57: 2.35 | ES57: 2.95 | ET57: 3.4 | EU57: 3.1 | EV57: 3.33 | EW57: 7.06 | EX57: 2.99 | EY57: FCR (kg feed per kg animal) | FL57: 16.2% | FN57: 16.2% | FO57: 87.1% | FP57: 94.1% | FQ57: 85.9% | FR57: 89.3% | FS57: 20.7% | FT57: 95.3% | FU57: 18.2% | FV57: 91.0% | FW57: 27.4% | GA57: DIET
A58: 1 | B58: 2016 | C58: Meeting future food demand with current agricultural resources | D58: Davis, K. F. Gephart, J. A. Emery, K. A. Leach, A. M. Galloway, J. N. D’Odorico, P. | E58: Davis et al. (2016) | F58: Journal article | G58: Global Environmental Change | H58: S1 | I58: Mediterranean diet | J58: 2024 | K58: Food system | L58: Yes | M58: Davis et al. (2016) | N58: GHGLCA | AR58: 8.49 | AS58: Gt CO2e/yr | BA58: 0.0% | BB58: FAO - Permanent meadows and pastures | BC58: Agriculture | BD58: 5321.9 | BE58: 3368.7 | BF58: 1953.2 | BJ58: Mha | BL58: Water Footprint Network - Mekonnen & Hoekstra (2011) | BM58: 1,064.0 | BO58: 5,676.88 | BP58: km3/yr | BQ58: 0.0% | BS58: 0.0% | BU58: 146.14 | BX58: TgN/yr | BY58: 0.0% | CK58: 0.0% | CL58: 75.5% | CO58: 0% | CP58: 8.01 | CQ58: billion | CR58: 2,868.61 | CS58: OMN/FLX | CV58: 38.2 | CW58: 81.6 | CX58: 42.2 | CY58: 123.8 | CZ58: 162.0 | DA58: 29.0 | DB58: 27.2 | DC58: 56.2 | DD58: 218.2 | DE58: 181.9 | DF58: 45.2 | DG58: 227.1 | DJ58: 445.3 | DK58: 15.5% | DL58: 1,101.4 | DM58: 118.0 | DN58: 573.5 | DO58: 50.6 | DP58: 359.4 | DQ58: 220.5 | DT58: 2,423.3 | DU58: kcal/capita/day | DV58: 0% | EI58: 5.16 | EJ58: Mtonne/Mha | EL58: 5.94 | EM58: 57.59 | EO58: 57.59 | EP58: 3.4 | EQ58: 3.1 | ER58: 2.35 | ES58: 2.95 | ET58: 3.4 | EU58: 3.1 | EV58: 3.33 | EW58: 6.95 | EX58: 2.99 | EY58: FCR (kg feed per kg animal) | FL58: 16.2% | FN58: 16.2% | FO58: 87.1% | FP58: 94.1% | FQ58: 85.9% | FR58: 89.3% | FS58: 20.7% | FT58: 95.3% | FU58: 18.2% | FV58: 91.0% | FW58: 27.4% | GA58: DIET
A59: 1 | B59: 2016 | C59: Meeting future food demand with current agricultural resources | D59: Davis, K. F. Gephart, J. A. Emery, K. A. Leach, A. M. Galloway, J. N. D’Odorico, P. | E59: Davis et al. (2016) | F59: Journal article | G59: Global Environmental Change | H59: S1 | I59: Mediterranean diet | J59: 2025 | K59: Food system | L59: Yes | M59: Davis et al. (2016) | N59: GHGLCA | AR59: 8.54 | AS59: Gt CO2e/yr | BA59: 0.0% | BB59: FAO - Permanent meadows and pastures | BC59: Agriculture | BD59: 5338.3 | BE59: 3359.4 | BF59: 1978.9 | BJ59: Mha | BL59: Water Footprint Network - Mekonnen & Hoekstra (2011) | BM59: 1,083.0 | BO59: 5,750.18 | BP59: km3/yr | BQ59: 0.0% | BS59: 0.0% | BU59: 148.17 | BX59: TgN/yr | BY59: 0.0% | CK59: 0.0% | CL59: 75.5% | CO59: 0% | CP59: 8.08 | CQ59: billion | CR59: 2,870.01 | CS59: OMN/FLX | CV59: 37.6 | CW59: 79.1 | CX59: 41.4 | CY59: 120.4 | CZ59: 158.0 | DA59: 29.5 | DB59: 26.9 | DC59: 56.4 | DD59: 214.4 | DE59: 184.7 | DF59: 45.9 | DG59: 230.6 | DJ59: 445.1 | DK59: 15.5% | DL59: 1,088.4 | DM59: 116.3 | DN59: 580.1 | DO59: 49.4 | DP59: 371.1 | DQ59: 219.6 | DT59: 2,424.9 | DU59: kcal/capita/day | DV59: 0% | EI59: 5.16 | EJ59: Mtonne/Mha | EL59: 5.87 | EM59: 57.59 | EO59: 57.59 | EP59: 3.4 | EQ59: 3.1 | ER59: 2.35 | ES59: 2.94 | ET59: 3.4 | EU59: 3.1 | EV59: 3.33 | EW59: 6.85 | EX59: 2.98 | EY59: FCR (kg feed per kg animal) | FL59: 16.2% | FN59: 16.2% | FO59: 87.1% | FP59: 94.1% | FQ59: 85.9% | FR59: 89.3% | FS59: 20.7% | FT59: 95.3% | FU59: 18.3% | FV59: 91.0% | FW59: 27.3% | GA59: DIET
A60: 1 | B60: 2016 | C60: Meeting future food demand with current agricultural resources | D60: Davis, K. F. Gephart, J. A. Emery, K. A. Leach, A. M. Galloway, J. N. D’Odorico, P. | E60: Davis et al. (2016) | F60: Journal article | G60: Global Environmental Change | H60: S1 | I60: Mediterranean diet | J60: 2026 | K60: Food system | L60: Yes | M60: Davis et al. (2016) | N60: GHGLCA | AR60: 8.58 | AS60: Gt CO2e/yr | BA60: 0.0% | BB60: FAO - Permanent meadows and pastures | BC60: Agriculture | BD60: 5353.5 | BE60: 3349.0 | BF60: 2004.5 | BJ60: Mha | BL60: Water Footprint Network - Mekonnen & Hoekstra (2011) | BM60: 1,102.0 | BO60: 5,823.12 | BP60: km3/yr | BQ60: 0.0% | BS60: 0.0% | BU60: 150.18 | BX60: TgN/yr | BY60: 0.0% | CK60: 0.0% | CL60: 75.5% | CO60: 0% | CP60: 8.15 | CQ60: billion | CR60: 2,871.41 | CS60: OMN/FLX | CV60: 37.0 | CW60: 76.6 | CX60: 40.5 | CY60: 117.1 | CZ60: 154.1 | DA60: 29.9 | DB60: 26.7 | DC60: 56.6 | DD60: 210.7 | DE60: 187.6 | DF60: 46.6 | DG60: 234.2 | DJ60: 444.9 | DK60: 15.5% | DL60: 1,075.4 | DM60: 114.7 | DN60: 586.8 | DO60: 48.2 | DP60: 382.8 | DQ60: 218.6 | DT60: 2,426.5 | DU60: kcal/capita/day | DV60: 0% | EI60: 5.16 | EJ60: Mtonne/Mha | EL60: 5.81 | EM60: 57.59 | EO60: 57.59 | EP60: 3.4 | EQ60: 3.1 | ER60: 2.35 | ES60: 2.93 | ET60: 3.4 | EU60: 3.1 | EV60: 3.33 | EW60: 6.75 | EX60: 2.97 | EY60: FCR (kg feed per kg animal) | FL60: 16.2% | FN60: 16.2% | FO60: 87.1% | FP60: 94.1% | FQ60: 85.9% | FR60: 89.2% | FS60: 20.7% | FT60: 95.3% | FU60: 18.3% | FV60: 91.0% | FW60: 27.3% | GA60: DIET
A61: 1 | B61: 2016 | C61: Meeting future food demand with current agricultural resources | D61: Davis, K. F. Gephart, J. A. Emery, K. A. Leach, A. M. Galloway, J. N. D’Odorico, P. | E61: Davis et al. (2016) | F61: Journal article | G61: Global Environmental Change | H61: S1 | I61: Mediterranean diet | J61: 2027 | K61: Food system | L61: Yes | M61: Davis et al. (2016) | N61: GHGLCA | AR61: 8.63 | AS61: Gt CO2e/yr | BA61: 0.0% | BB61: FAO - Permanent meadows and pastures | BC61: Agriculture | BD61: 5367.5 | BE61: 3337.5 | BF61: 2029.9 | BJ61: Mha | BL61: Water Footprint Network - Mekonnen & Hoekstra (2011) | BM61: 1,120.0 | BO61: 5,896.68 | BP61: km3/yr | BQ61: 0.0% | BS61: 0.0% | BU61: 152.18 | BX61: TgN/yr | BY61: 0.0% | CK61: 0.0% | CL61: 75.5% | CO61: 0% | CP61: 8.22 | CQ61: billion | CR61: 2,872.81 | CS61: OMN/FLX | CV61: 36.4 | CW61: 74.0 | CX61: 39.6 | CY61: 113.7 | CZ61: 150.1 | DA61: 30.4 | DB61: 26.5 | DC61: 56.8 | DD61: 207.0 | DE61: 190.4 | DF61: 47.3 | DG61: 237.7 | DJ61: 444.6 | DK61: 15.5% | DL61: 1,062.4 | DM61: 113.0 | DN61: 593.5 | DO61: 47.0 | DP61: 394.6 | DQ61: 217.7 | DT61: 2,428.2 | DU61: kcal/capita/day | DV61: 0% | EI61: 5.16 | EJ61: Mtonne/Mha | EL61: 5.75 | EM61: 57.59 | EO61: 57.59 | EP61: 3.4 | EQ61: 3.1 | ER61: 2.35 | ES61: 2.92 | ET61: 3.4 | EU61: 3.1 | EV61: 3.33 | EW61: 6.66 | EX61: 2.97 | EY61: FCR (kg feed per kg animal) | FL61: 16.2% | FN61: 16.2% | FO61: 87.1% | FP61: 94.1% | FQ61: 85.9% | FR61: 89.2% | FS61: 20.7% | FT61: 95.3% | FU61: 18.3% | FV61: 91.0% | FW61: 27.3% | GA61: DIET
A62: 1 | B62: 2016 | C62: Meeting future food demand with current agricultural resources | D62: Davis, K. F. Gephart, J. A. Emery, K. A. Leach, A. M. Galloway, J. N. D’Odorico, P. | E62: Davis et al. (2016) | F62: Journal article | G62: Global Environmental Change | H62: S1 | I62: Mediterranean diet | J62: 2028 | K62: Food system | L62: Yes | M62: Davis et al. (2016) | N62: GHGLCA | AR62: 8.67 | AS62: Gt CO2e/yr | BA62: 0.0% | BB62: FAO - Permanent meadows and pastures | BC62: Agriculture | BD62: 5380.2 | BE62: 3325.0 | BF62: 2055.2 | BJ62: Mha | BL62: Water Footprint Network - Mekonnen & Hoekstra (2011) | BM62: 1,139.0 | BO62: 5,968.87 | BP62: km3/yr | BQ62: 0.0% | BS62: 0.0% | BU62: 154.17 | BX62: TgN/yr | BY62: 0.0% | CK62: 0.0% | CL62: 75.5% | CO62: 0% | CP62: 8.29 | CQ62: billion | CR62: 2,874.21 | CS62: OMN/FLX | CV62: 35.9 | CW62: 71.5 | CX62: 38.8 | CY62: 110.3 | CZ62: 146.2 | DA62: 30.8 | DB62: 26.2 | DC62: 57.1 | DD62: 203.2 | DE62: 193.3 | DF62: 47.9 | DG62: 241.2 | DJ62: 444.4 | DK62: 15.5% | DL62: 1,049.4 | DM62: 111.4 | DN62: 600.2 | DO62: 45.8 | DP62: 406.3 | DQ62: 216.7 | DT62: 2,429.8 | DU62: kcal/capita/day | DV62: 0% | EI62: 5.16 | EJ62: Mtonne/Mha | EL62: 5.69 | EM62: 57.59 | EO62: 57.59 | EP62: 3.4 | EQ62: 3.1 | ER62: 2.35 | ES62: 2.91 | ET62: 3.4 | EU62: 3.1 | EV62: 3.33 | EW62: 6.56 | EX62: 2.96 | EY62: FCR (kg feed per kg animal) | FL62: 16.2% | FN62: 16.2% | FO62: 87.1% | FP62: 94.1% | FQ62: 85.9% | FR62: 89.2% | FS62: 20.7% | FT62: 95.3% | FU62: 18.4% | FV62: 91.1% | FW62: 27.2% | GA62: DIET
A63: 1 | B63: 2016 | C63: Meeting future food demand with current agricultural resources | D63: Davis, K. F. Gephart, J. A. Emery, K. A. Leach, A. M. Galloway, J. N. D’Odorico, P. | E63: Davis et al. (2016) | F63: Journal article | G63: Global Environmental Change | H63: S1 | I63: Mediterranean diet | J63: 2029 | K63: Food system | L63: Yes | M63: Davis et al. (2016) | N63: GHGLCA | AR63: 8.71 | AS63: Gt CO2e/yr | BA63: 0.0% | BB63: FAO - Permanent meadows and pastures | BC63: Agriculture | BD63: 5391.7 | BE63: 3311.4 | BF63: 2080.3 | BJ63: Mha | BL63: Water Footprint Network - Mekonnen & Hoekstra (2011) | BM63: 1,158.0 | BO63: 6,040.73 | BP63: km3/yr | BQ63: 0.0% | BS63: 0.0% | BU63: 156.15 | BX63: TgN/yr | BY63: 0.0% | CK63: 0.0% | CL63: 75.5% | CO63: 0% | CP63: 8.36 | CQ63: billion | CR63: 2,875.61 | CS63: OMN/FLX | CV63: 35.3 | CW63: 69.0 | CX63: 37.9 | CY63: 106.9 | CZ63: 142.2 | DA63: 31.2 | DB63: 26.0 | DC63: 57.3 | DD63: 199.5 | DE63: 196.1 | DF63: 48.6 | DG63: 244.7 | DJ63: 444.2 | DK63: 15.4% | DL63: 1,036.4 | DM63: 109.7 | DN63: 606.9 | DO63: 44.6 | DP63: 418.1 | DQ63: 215.7 | DT63: 2,431.4 | DU63: kcal/capita/day | DV63: 0% | EI63: 5.16 | EJ63: Mtonne/Mha | EL63: 5.63 | EM63: 57.59 | EO63: 57.59 | EP63: 3.4 | EQ63: 3.1 | ER63: 2.35 | ES63: 2.90 | ET63: 3.4 | EU63: 3.1 | EV63: 3.33 | EW63: 6.47 | EX63: 2.96 | EY63: FCR (kg feed per kg animal) | FL63: 16.2% | FN63: 16.2% | FO63: 87.1% | FP63: 94.1% | FQ63: 85.9% | FR63: 89.2% | FS63: 20.7% | FT63: 95.3% | FU63: 18.4% | FV63: 91.1% | FW63: 27.2% | GA63: DIET
A64: 1 | B64: 2016 | C64: Meeting future food demand with current agricultural resources | D64: Davis, K. F. Gephart, J. A. Emery, K. A. Leach, A. M. Galloway, J. N. D’Odorico, P. | E64: Davis et al. (2016) | F64: Journal article | G64: Global Environmental Change | H64: S1 | I64: Mediterranean diet | J64: 2030 | K64: Food system | L64: Yes | M64: Davis et al. (2016) | N64: GHGLCA | AR64: 8.75 | AS64: Gt CO2e/yr | BA64: 0.0% | BB64: FAO - Permanent meadows and pastures | BC64: Agriculture | BD64: 5402.1 | BE64: 3296.8 | BF64: 2105.3 | BJ64: Mha | BL64: Water Footprint Network - Mekonnen & Hoekstra (2011) | BM64: 1,176.0 | BO64: 6,113.27 | BP64: km3/yr | BQ64: 0.0% | BS64: 0.0% | BU64: 158.12 | BX64: TgN/yr | BY64: 0.0% | CK64: 0.0% | CL64: 75.5% | CO64: 0% | CP64: 8.42 | CQ64: billion | CR64: 2,877.01 | CS64: OMN/FLX | CV64: 34.7 | CW64: 66.4 | CX64: 37.0 | CY64: 103.5 | CZ64: 138.2 | DA64: 31.7 | DB64: 25.8 | DC64: 57.5 | DD64: 195.7 | DE64: 199.0 | DF64: 49.3 | DG64: 248.3 | DJ64: 444.0 | DK64: 15.4% | DL64: 1,023.4 | DM64: 108.1 | DN64: 613.6 | DO64: 43.4 | DP64: 429.8 | DQ64: 214.8 | DT64: 2,433.0 | DU64: kcal/capita/day | DV64: 0% | EI64: 5.16 | EJ64: Mtonne/Mha | EL64: 5.57 | EM64: 57.59 | EO64: 57.59 | EP64: 3.4 | EQ64: 3.1 | ER64: 2.35 | ES64: 2.89 | ET64: 3.4 | EU64: 3.1 | EV64: 3.33 | EW64: 6.38 | EX64: 2.95 | EY64: FCR (kg feed per kg animal) | FL64: 16.2% | FN64: 16.2% | FO64: 87.1% | FP64: 94.1% | FQ64: 85.9% | FR64: 89.1% | FS64: 20.7% | FT64: 95.3% | FU64: 18.4% | FV64: 91.1% | FW64: 27.2% | GA64: DIET
A65: 1 | B65: 2016 | C65: Meeting future food demand with current agricultural resources | D65: Davis, K. F. Gephart, J. A. Emery, K. A. Leach, A. M. Galloway, J. N. D’Odorico, P. | E65: Davis et al. (2016) | F65: Journal article | G65: Global Environmental Change | H65: S1 | I65: Mediterranean diet | J65: 2031 | K65: Food system | L65: Yes | M65: Davis et al. (2016) | N65: GHGLCA | AR65: 8.79 | AS65: Gt CO2e/yr | BA65: 0.0% | BB65: FAO - Permanent meadows and pastures | BC65: Agriculture | BD65: 5411.4 | BE65: 3281.2 | BF65: 2130.1 | BJ65: Mha | BL65: Water Footprint Network - Mekonnen & Hoekstra (2011) | BM65: 1,195.0 | BO65: 6,184.49 | BP65: km3/yr | BQ65: 0.0% | BS65: 0.0% | BU65: 160.08 | BX65: TgN/yr | BY65: 0.0% | CK65: 0.0% | CL65: 75.5% | CO65: 0% | CP65: 8.49 | CQ65: billion | CR65: 2,878.41 | CS65: OMN/FLX | CV65: 34.2 | CW65: 63.9 | CX65: 36.2 | CY65: 100.1 | CZ65: 134.3 | DA65: 32.1 | DB65: 25.6 | DC65: 57.7 | DD65: 192.0 | DE65: 201.8 | DF65: 49.9 | DG65: 251.8 | DJ65: 443.7 | DK65: 15.4% | DL65: 1,010.4 | DM65: 106.4 | DN65: 620.2 | DO65: 42.2 | DP65: 441.5 | DQ65: 213.8 | DT65: 2,434.7 | DU65: kcal/capita/day | DV65: 0% | EI65: 5.16 | EJ65: Mtonne/Mha | EL65: 5.52 | EM65: 57.59 | EO65: 57.59 | EP65: 3.4 | EQ65: 3.1 | ER65: 2.35 | ES65: 2.88 | ET65: 3.4 | EU65: 3.1 | EV65: 3.33 | EW65: 6.30 | EX65: 2.95 | EY65: FCR (kg feed per kg animal) | FL65: 16.2% | FN65: 16.2% | FO65: 87.1% | FP65: 94.1% | FQ65: 85.9% | FR65: 89.1% | FS65: 20.7% | FT65: 95.3% | FU65: 18.5% | FV65: 91.1% | FW65: 27.2% | GA65: DIET
A66: 1 | B66: 2016 | C66: Meeting future food demand with current agricultural resources | D66: Davis, K. F. Gephart, J. A. Emery, K. A. Leach, A. M. Galloway, J. N. D’Odorico, P. | E66: Davis et al. (2016) | F66: Journal article | G66: Global Environmental Change | H66: S1 | I66: Mediterranean diet | J66: 2032 | K66: Food system | L66: Yes | M66: =E66 -> Davis et al. (2016) | N66: GHGLCA | AR66: 8.82 | AS66: Gt CO2e/yr | BA66: 0.0% | BB66: FAO - Permanent meadows and pastures | BC66: Agriculture | BD66: 5419.5 | BE66: 3264.7 | BF66: 2154.8 | BJ66: Mha | BL66: Water Footprint Network - Mekonnen & Hoekstra (2011) | BM66: 1,214.0 | BO66: 6,255.37 | BP66: km3/yr | BQ66: 0.0% | BS66: 0.0% | BU66: 162.03 | BX66: TgN/yr | BY66: 0.0% | CK66: 0.0% | CL66: 75.5% | CO66: 0% | CP66: 8.56 | CQ66: billion | CR66: =SUM(DJ66,DT66) -> 2,879.81 | CS66: =IF(AND(CZ66=0,DE66=0),"VGN",IF(AND(CZ66=0,DE66>0,DC66=0),"VEG",IF(AND(CZ66=0,DE66>0,DC66>0),"PSC","OMN/FLX"))) -> OMN/FLX | CV66: 33.6 | CW66: 61.4 | CX66: 35.3 | CY66: =CW66+CX66 -> 96.7 | CZ66: =CV66+CY66 -> 130.3 | DA66: =DC66-DB66 -> 32.5 | DB66: 25.4 | DC66: 57.9 | DD66: =CZ66+DC66 -> 188.2 | DE66: 204.7 | DF66: 50.6 | DG66: =SUM(DE66:DF66) -> 255.3 | DJ66: =DD66+DG66 -> 443.5 | DK66: =DJ66/CR66 -> 15.4% | DL66: 997.4 | DM66: 104.7 | DN66: 626.9 | DO66: 41.0 | DP66: 453.3 | DQ66: 212.9 | DT66: =SUM(DL66:DQ66) -> 2,436.3 | DU66: kcal/capita/day | DV66: 0% | EI66: 5.16 | EJ66: Mtonne/Mha | EL66: 5.46 | EM66: 57.59 | EO66: 57.59 | EP66: 3.4 | EQ66: 3.1 | ER66: 2.35 | ES66: 2.87 | ET66: 3.4 | EU66: 3.1 | EV66: 3.33 | EW66: 6.21 | EX66: 2.94 | EY66: FCR (kg feed per kg animal) | FL66: 16.2% | FN66: 16.2% | FO66: 87.1% | FP66: 94.1% | FQ66: 85.9% | FR66: 89.1% | FS66: 20.7% | FT66: 95.3% | FU66: 18.5% | FV66: 91.2% | FW66: 27.1% | GA66: DIET
A67: =IF(C67=C66,A66,A66+1) -> 1 | B67: 2016 | C67: Meeting future food demand with current agricultural resources | D67: Davis, K. F. Gephart, J. A. Emery, K. A. Leach, A. M. Galloway, J. N. D’Odorico, P. | E67: Davis et al. (2016) | F67: Journal article | G67: Global Environmental Change | H67: S1 | I67: Mediterranean diet | J67: 2033 | K67: Food system | L67: Yes | M67: Davis et al. (2016) | N67: GHGLCA | AR67: 8.86 | AS67: Gt CO2e/yr | BA67: 0.0% | BB67: FAO - Permanent meadows and pastures | BC67: Agriculture | BD67: 5426.5 | BE67: 3247.1 | BF67: 2179.4 | BJ67: Mha | BL67: Water Footprint Network - Mekonnen & Hoekstra (2011) | BM67: 1,232.0 | BO67: 6,326.90 | BP67: km3/yr | BQ67: 0.0% | BS67: 0.0% | BU67: 163.98 | BX67: TgN/yr | BY67: 0.0% | CK67: 0.0% | CL67: =CL$2 -> 75.5% | CO67: 0% | CP67: 8.62 | CQ67: billion | CR67: 2,881.21 | CS67: OMN/FLX | CV67: 33.0 | CW67: 58.9 | CX67: 34.4 | CY67: 93.3 | CZ67: 126.3 | DA67: 32.9 | DB67: =IF(DB$2*CP$2/CP67<DC67,DB$2*CP$2/CP67,DC67) -> 25.2 | DC67: 58.1 | DD67: 184.5 | DE67: 207.6 | DF67: 51.3 | DG67: 258.8 | DJ67: 443.3 | DK67: 15.4% | DL67: 984.4 | DM67: 103.1 | DN67: 633.6 | DO67: 39.9 | DP67: 465.0 | DQ67: 211.9 | DT67: 2,437.9 | DU67: kcal/capita/day | DV67: 0% | EI67: 5.16 | EJ67: Mtonne/Mha | EL67: 5.41 | EM67: 57.59 | EO67: 57.59 | EP67: 3.4 | EQ67: 3.1 | ER67: 2.35 | ES67: 2.86 | ET67: 3.4 | EU67: 3.1 | EV67: 3.33 | EW67: 6.13 | EX67: 2.94 | EY67: FCR (kg feed per kg animal) | FL67: 16.2% | FN67: 16.2% | FO67: 87.1% | FP67: 94.1% | FQ67: 85.9% | FR67: 89.1% | FS67: 20.7% | FT67: 95.3% | FU67: 18.5% | FV67: 91.2% | FW67: 27.1% | GA67: DIET
A68: 1 | B68: 2016 | C68: Meeting future food demand with current agricultural resources | D68: Davis, K. F. Gephart, J. A. Emery, K. A. Leach, A. M. Galloway, J. N. D’Odorico, P. | E68: Davis et al. (2016) | F68: Journal article | G68: Global Environmental Change | H68: S1 | I68: Mediterranean diet | J68: 2034 | K68: Food system | L68: Yes | M68: Davis et al. (2016) | N68: GHGLCA | AR68: 8.89 | AS68: Gt CO2e/yr | BA68: 0.0% | BB68: FAO - Permanent meadows and pastures | BC68: Agriculture | BD68: 5432.4 | BE68: 3228.6 | BF68: 2203.8 | BJ68: Mha | BL68: Water Footprint Network - Mekonnen & Hoekstra (2011) | BM68: 1,251.0 | BO68: 6,397.08 | BP68: km3/yr | BQ68: 0.0% | BS68: 0.0% | BU68: 165.91 | BX68: TgN/yr | BY68: 0.0% | CK68: 0.0% | CL68: 75.5% | CO68: 0% | CP68: 8.68 | CQ68: billion | CR68: 2,882.61 | CS68: OMN/FLX | CV68: 32.5 | CW68: 56.3 | CX68: 33.6 | CY68: 89.9 | CZ68: 122.4 | DA68: 33.3 | DB68: 25.1 | DC68: 58.3 | DD68: 180.7 | DE68: 210.4 | DF68: 51.9 | DG68: 262.3 | DJ68: 443.1 | DK68: 15.4% | DL68: 971.4 | DM68: 101.4 | DN68: 640.3 | DO68: 38.7 | DP68: 476.8 | DQ68: 211.0 | DT68: 2,439.5 | DU68: kcal/capita/day | DV68: 0% | EI68: 5.16 | EJ68: Mtonne/Mha | EL68: 5.35 | EM68: 57.59 | EO68: 57.59 | EP68: 3.4 | EQ68: 3.1 | ER68: 2.35 | ES68: 2.85 | ET68: 3.4 | EU68: 3.1 | EV68: 3.33 | EW68: 6.05 | EX68: 2.93 | EY68: FCR (kg feed per kg animal) | FL68: 16.2% | FN68: 16.2% | FO68: 87.1% | FP68: 94.1% | FQ68: 85.9% | FR68: 89.0% | FS68: 20.7% | FT68: 95.3% | FU68: 18.6% | FV68: 91.2% | FW68: 27.1% | GA68: DIET
A69: 1 | B69: 2016 | C69: Meeting future food demand with current agricultural resources | D69: Davis, K. F. Gephart, J. A. Emery, K. A. Leach, A. M. Galloway, J. N. D’Odorico, P. | E69: Davis et al. (2016) | F69: Journal article | G69: Global Environmental Change | H69: S1 | I69: Mediterranean diet | J69: 2035 | K69: Food system | L69: Yes | M69: Davis et al. (2016) | N69: GHGLCA | AR69: 8.92 | AS69: Gt CO2e/yr | BA69: 0.0% | BB69: FAO - Permanent meadows and pastures | BC69: Agriculture | BD69: 5437.3 | BE69: 3209.2 | BF69: 2228.1 | BJ69: Mha | BL69: Water Footprint Network - Mekonnen & Hoekstra (2011) | BM69: 1,269.0 | BO69: 6,467.88 | BP69: km3/yr | BQ69: 0.0% | BS69: 0.0% | BU69: 167.84 | BX69: TgN/yr | BY69: 0.0% | CK69: 0.0% | CL69: 75.5% | CO69: 0% | CP69: 8.74 | CQ69: billion | CR69: 2,884.01 | CS69: OMN/FLX | CV69: 31.9 | CW69: 53.8 | CX69: 32.7 | CY69: 86.5 | CZ69: 118.4 | DA69: 33.7 | DB69: 24.9 | DC69: 58.6 | DD69: 177.0 | DE69: 213.3 | DF69: 52.6 | DG69: 265.9 | DJ69: 442.8 | DK69: 15.4% | DL69: 958.4 | DM69: 99.8 | DN69: 647.0 | DO69: 37.5 | DP69: 488.5 | DQ69: 210.0 | DT69: 2,441.2 | DU69: kcal/capita/day | DV69: 0% | EI69: 5.16 | EJ69: Mtonne/Mha | EL69: 5.30 | EM69: 57.59 | EO69: 57.59 | EP69: 3.4 | EQ69: 3.1 | ER69: 2.35 | ES69: 2.84 | ET69: 3.4 | EU69: 3.1 | EV69: 3.33 | EW69: 5.97 | EX69: 2.92 | EY69: FCR (kg feed per kg animal) | FL69: 16.2% | FN69: 16.2% | FO69: 87.1% | FP69: 94.1% | FQ69: 85.9% | FR69: 89.0% | FS69: 20.7% | FT69: 95.3% | FU69: 18.6% | FV69: 91.2% | FW69: 27.1% | GA69: DIET
A70: 1 | B70: 2016 | C70: Meeting future food demand with current agricultural resources | D70: Davis, K. F. Gephart, J. A. Emery, K. A. Leach, A. M. Galloway, J. N. D’Odorico, P. | E70: Davis et al. (2016) | F70: Journal article | G70: Global Environmental Change | H70: S1 | I70: Mediterranean diet | J70: 2036 | K70: Food system | L70: Yes | M70: Davis et al. (2016) | N70: GHGLCA | AR70: 8.95 | AS70: Gt CO2e/yr | BA70: 0.0% | BB70: FAO - Permanent meadows and pastures | BC70: Agriculture | BD70: 5441.0 | BE70: 3188.8 | BF70: 2252.2 | BJ70: Mha | BL70: Water Footprint Network - Mekonnen & Hoekstra (2011) | BM70: 1,287.0 | BO70: 6,538.29 | BP70: km3/yr | BQ70: 0.0% | BS70: 0.0% | BU70: 169.75 | BX70: TgN/yr | BY70: 0.0% | CK70: 0.0% | CL70: 75.5% | CO70: 0% | CP70: 8.80 | CQ70: billion | CR70: 2,885.41 | CS70: OMN/FLX | CV70: 31.3 | CW70: 51.3 | CX70: 31.8 | CY70: 83.1 | CZ70: 114.5 | DA70: 34.1 | DB70: 24.7 | DC70: 58.8 | DD70: 173.2 | DE70: 216.1 | DF70: 53.3 | DG70: 269.4 | DJ70: 442.6 | DK70: 15.3% | DL70: 945.5 | DM70: 98.1 | DN70: 653.6 | DO70: 36.3 | DP70: 500.2 | DQ70: 209.1 | DT70: 2,442.8 | DU70: kcal/capita/day | DV70: 0% | EI70: 5.16 | EJ70: Mtonne/Mha | EL70: 5.25 | EM70: 57.59 | EO70: 57.59 | EP70: 3.4 | EQ70: 3.1 | ER70: 2.35 | ES70: 2.83 | ET70: 3.4 | EU70: 3.1 | EV70: 3.33 | EW70: 5.89 | EX70: 2.92 | EY70: FCR (kg feed per kg animal) | FL70: 16.2% | FN70: 16.2% | FO70: 87.1% | FP70: 94.1% | FQ70: 85.9% | FR70: 89.0% | FS70: 20.7% | FT70: 95.3% | FU70: 18.7% | FV70: 91.3% | FW70: 27.0% | GA70: DIET
A71: 1 | B71: 2016 | C71: Meeting future food demand with current agricultural resources | D71: Davis, K. F. Gephart, J. A. Emery, K. A. Leach, A. M. Galloway, J. N. D’Odorico, P. | E71: Davis et al. (2016) | F71: Journal article | G71: Global Environmental Change | H71: S1 | I71: Mediterranean diet | J71: 2037 | K71: Food system | L71: Yes | M71: Davis et al. (2016) | N71: GHGLCA | AR71: 8.98 | AS71: Gt CO2e/yr | BA71: 0.0% | BB71: FAO - Permanent meadows and pastures | BC71: Agriculture | BD71: 5443.7 | BE71: 3167.5 | BF71: 2276.1 | BJ71: Mha | BL71: Water Footprint Network - Mekonnen & Hoekstra (2011) | BM71: 1,306.0 | BO71: 6,607.29 | BP71: km3/yr | BQ71: 0.0% | BS71: 0.0% | BU71: 171.65 | BX71: TgN/yr | BY71: 0.0% | CK71: 0.0% | CL71: 75.5% | CO71: 0% | CP71: 8.86 | CQ71: billion | CR71: 2,886.82 | CS71: OMN/FLX | CV71: 30.8 | CW71: 48.8 | CX71: 31.0 | CY71: 79.7 | CZ71: 110.5 | DA71: 34.4 | DB71: 24.5 | DC71: 59.0 | DD71: 169.5 | DE71: 219.0 | DF71: 53.9 | DG71: 272.9 | DJ71: 442.4 | DK71: 15.3% | DL71: 932.5 | DM71: 96.5 | DN71: 660.3 | DO71: 35.1 | DP71: 512.0 | DQ71: 208.1 | DT71: 2,444.4 | DU71: kcal/capita/day | DV71: 0% | EI71: 5.16 | EJ71: Mtonne/Mha | EL71: 5.20 | EM71: 57.59 | EO71: 57.59 | EP71: 3.4 | EQ71: 3.1 | ER71: 2.35 | ES71: 2.82 | ET71: 3.4 | EU71: 3.1 | EV71: 3.33 | EW71: 5.82 | EX71: 2.91 | EY71: FCR (kg feed per kg animal) | FL71: 16.2% | FN71: 16.2% | FO71: 87.1% | FP71: 94.1% | FQ71: 85.9% | FR71: 88.9% | FS71: 20.7% | FT71: 95.3% | FU71: 18.7% | FV71: 91.3% | FW71: 27.0% | GA71: DIET
A72: 1 | B72: 2016 | C72: Meeting future food demand with current agricultural resources | D72: Davis, K. F. Gephart, J. A. Emery, K. A. Leach, A. M. Galloway, J. N. D’Odorico, P. | E72: Davis et al. (2016) | F72: Journal article | G72: Global Environmental Change | H72: S1 | I72: Mediterranean diet | J72: 2038 | K72: Food system | L72: Yes | M72: Davis et al. (2016) | N72: GHGLCA | AR72: 9.01 | AS72: Gt CO2e/yr | BA72: 0.0% | BB72: FAO - Permanent meadows and pastures | BC72: Agriculture | BD72: 5445.2 | BE72: 3145.3 | BF72: 2299.9 | BJ72: Mha | BL72: Water Footprint Network - Mekonnen & Hoekstra (2011) | BM72: 1,324.0 | BO72: 6,676.85 | BP72: km3/yr | BQ72: 0.0% | BS72: 0.0% | BU72: 173.54 | BX72: TgN/yr | BY72: 0.0% | CK72: 0.0% | CL72: 75.5% | CO72: 0% | CP72: 8.92 | CQ72: billion | CR72: 2,888.22 | CS72: OMN/FLX | CV72: 30.2 | CW72: 46.2 | CX72: 30.1 | CY72: 76.4 | CZ72: 106.5 | DA72: 34.8 | DB72: 24.4 | DC72: 59.2 | DD72: 165.7 | DE72: 221.8 | DF72: 54.6 | DG72: 276.4 | DJ72: 442.2 | DK72: 15.3% | DL72: 919.5 | DM72: 94.8 | DN72: 667.0 | DO72: 33.9 | DP72: 523.7 | DQ72: 207.2 | DT72: 2,446.0 | DU72: kcal/capita/day | DV72: 0% | EI72: 5.16 | EJ72: Mtonne/Mha | EL72: 5.15 | EM72: 57.59 | EO72: 57.59 | EP72: 3.4 | EQ72: 3.1 | ER72: 2.35 | ES72: 2.81 | ET72: 3.4 | EU72: 3.1 | EV72: 3.33 | EW72: 5.75 | EX72: 2.91 | EY72: FCR (kg feed per kg animal) | FL72: 16.2% | FN72: 16.2% | FO72: 87.1% | FP72: 94.1% | FQ72: 85.9% | FR72: 88.9% | FS72: 20.7% | FT72: 95.3% | FU72: 18.7% | FV72: 91.3% | FW72: 27.0% | GA72: DIET
A73: 1 | B73: 2016 | C73: Meeting future food demand with current agricultural resources | D73: Davis, K. F. Gephart, J. A. Emery, K. A. Leach, A. M. Galloway, J. N. D’Odorico, P. | E73: Davis et al. (2016) | F73: Journal article | G73: Global Environmental Change | H73: S1 | I73: Mediterranean diet | J73: 2039 | K73: Food system | L73: Yes | M73: Davis et al. (2016) | N73: GHGLCA | AR73: 9.04 | AS73: Gt CO2e/yr | BA73: 0.0% | BB73: FAO - Permanent meadows and pastures | BC73: Agriculture | BD73: 5445.7 | BE73: 3122.2 | BF73: 2323.5 | BJ73: Mha | BL73: Water Footprint Network - Mekonnen & Hoekstra (2011) | BM73: 1,342.0 | BO73: 6,745.93 | BP73: km3/yr | BQ73: 0.0% | BS73: 0.0% | BU73: 175.42 | BX73: TgN/yr | BY73: 0.0% | CK73: 0.0% | CL73: 75.5% | CO73: 0% | CP73: 8.98 | CQ73: billion | CR73: 2,889.62 | CS73: OMN/FLX | CV73: 29.6 | CW73: 43.7 | CX73: 29.2 | CY73: 73.0 | CZ73: 102.6 | DA73: 35.2 | DB73: 24.2 | DC73: 59.4 | DD73: 162.0 | DE73: 224.7 | DF73: 55.3 | DG73: 279.9 | DJ73: 441.9 | DK73: 15.3% | DL73: 906.5 | DM73: 93.2 | DN73: 673.7 | DO73: 32.7 | DP73: 535.5 | DQ73: 206.2 | DT73: 2,447.7 | DU73: kcal/capita/day | DV73: 0% | EI73: 5.16 | EJ73: Mtonne/Mha | EL73: 5.10 | EM73: 57.59 | EO73: 57.59 | EP73: 3.4 | EQ73: 3.1 | ER73: 2.35 | ES73: 2.79 | ET73: 3.4 | EU73: 3.1 | EV73: 3.33 | EW73: 5.67 | EX73: 2.90 | EY73: FCR (kg feed per kg animal) | FL73: 16.2% | FN73: 16.2% | FO73: 87.1% | FP73: 94.1% | FQ73: 85.9% | FR73: 88.9% | FS73: 20.7% | FT73: 95.3% | FU73: 18.8% | FV73: 91.3% | FW73: 27.0% | GA73: DIET
A74: 1 | B74: 2016 | C74: Meeting future food demand with current agricultural resources | D74: Davis, K. F. Gephart, J. A. Emery, K. A. Leach, A. M. Galloway, J. N. D’Odorico, P. | E74: Davis et al. (2016) | F74: Journal article | G74: Global Environmental Change | H74: S1 | I74: Mediterranean diet | J74: 2040 | K74: Food system | L74: Yes | M74: Davis et al. (2016) | N74: GHGLCA | AR74: 9.06 | AS74: Gt CO2e/yr | BA74: 0.0% | BB74: FAO - Permanent meadows and pastures | BC74: Agriculture | BD74: 5445.1 | BE74: 3098.1 | BF74: 2346.9 | BJ74: Mha | BL74: Water Footprint Network - Mekonnen & Hoekstra (2011) | BM74: 1,360.0 | BO74: 6,814.49 | BP74: km3/yr | BQ74: 0.0% | BS74: 0.0% | BU74: 177.28 | BX74: TgN/yr | BY74: 0.0% | CK74: 0.0% | CL74: 75.5% | CO74: 0% | CP74: 9.04 | CQ74: billion | CR74: 2,891.02 | CS74: OMN/FLX | CV74: 29.0 | CW74: 41.2 | CX74: 28.4 | CY74: 69.6 | CZ74: 98.6 | DA74: 35.6 | DB74: 24.1 | DC74: 59.6 | DD74: 158.3 | DE74: 227.5 | DF74: 55.9 | DG74: 283.5 | DJ74: 441.7 | DK74: 15.3% | DL74: 893.5 | DM74: 91.5 | DN74: 680.4 | DO74: 31.5 | DP74: 547.2 | DQ74: 205.2 | DT74: 2,449.3 | DU74: kcal/capita/day | DV74: 0% | EI74: 5.16 | EJ74: Mtonne/Mha | EL74: 5.05 | EM74: 57.59 | EO74: 57.59 | EP74: 3.4 | EQ74: 3.1 | ER74: 2.35 | ES74: 2.78 | ET74: 3.4 | EU74: 3.1 | EV74: 3.33 | EW74: 5.60 | EX74: 2.90 | EY74: FCR (kg feed per kg animal) | FL74: 16.2% | FN74: 16.2% | FO74: 87.1% | FP74: 94.1% | FQ74: 85.9% | FR74: 88.8% | FS74: 20.7% | FT74: 95.3% | FU74: 18.8% | FV74: 91.4% | FW74: 26.9% | GA74: DIET
A75: 1 | B75: 2016 | C75: Meeting future food demand with current agricultural resources | D75: Davis, K. F. Gephart, J. A. Emery, K. A. Leach, A. M. Galloway, J. N. D’Odorico, P. | E75: Davis et al. (2016) | F75: Journal article | G75: Global Environmental Change | H75: S1 | I75: Mediterranean diet | J75: 2041 | K75: Food system | L75: Yes | M75: Davis et al. (2016) | N75: GHGLCA | AR75: 9.09 | AS75: Gt CO2e/yr | BA75: 0.0% | BB75: FAO - Permanent meadows and pastures | BC75: Agriculture | BD75: 5443.3 | BE75: 3073.2 | BF75: 2370.1 | BJ75: Mha | BL75: Water Footprint Network - Mekonnen & Hoekstra (2011) | BM75: 1,378.0 | BO75: 6,882.52 | BP75: km3/yr | BQ75: 0.0% | BS75: 0.0% | BU75: 179.14 | BX75: TgN/yr | BY75: 0.0% | CK75: 0.0% | CL75: 75.5% | CO75: 0% | CP75: 9.09 | CQ75: billion | CR75: 2,892.42 | CS75: OMN/FLX | CV75: 28.5 | CW75: 38.7 | CX75: 27.5 | CY75: 66.2 | CZ75: 94.7 | DA75: 35.9 | DB75: 23.9 | DC75: 59.9 | DD75: 154.5 | DE75: 230.4 | DF75: 56.6 | DG75: 287.0 | DJ75: 441.5 | DK75: 15.3% | DL75: 880.5 | DM75: 89.8 | DN75: 687.1 | DO75: 30.3 | DP75: 558.9 | DQ75: 204.3 | DT75: 2,450.9 | DU75: kcal/capita/day | DV75: 0% | EI75: 5.16 | EJ75: Mtonne/Mha | EL75: 5.00 | EM75: 57.59 | EO75: 57.59 | EP75: 3.4 | EQ75: 3.1 | ER75: 2.35 | ES75: 2.77 | ET75: 3.4 | EU75: 3.1 | EV75: 3.33 | EW75: 5.54 | EX75: 2.89 | EY75: FCR (kg feed per kg animal) | FL75: 16.2% | FN75: 16.2% | FO75: 87.1% | FP75: 94.1% | FQ75: 85.9% | FR75: 88.8% | FS75: 20.7% | FT75: 95.3% | FU75: 18.8% | FV75: 91.4% | FW75: 26.9% | GA75: DIET
A76: 1 | B76: 2016 | C76: Meeting future food demand with current agricultural resources | D76: Davis, K. F. Gephart, J. A. Emery, K. A. Leach, A. M. Galloway, J. N. D’Odorico, P. | E76: Davis et al. (2016) | F76: Journal article | G76: Global Environmental Change | H76: S1 | I76: Mediterranean diet | J76: 2042 | K76: Food system | L76: Yes | M76: Davis et al. (2016) | N76: GHGLCA | AR76: 9.11 | AS76: Gt CO2e/yr | BA76: 0.0% | BB76: FAO - Permanent meadows and pastures | BC76: Agriculture | BD76: 5440.5 | BE76: 3047.4 | BF76: 2393.2 | BJ76: Mha | BL76: Water Footprint Network - Mekonnen & Hoekstra (2011) | BM76: 1,396.0 | BO76: 6,949.98 | BP76: km3/yr | BQ76: 0.0% | BS76: 0.0% | BU76: 180.97 | BX76: TgN/yr | BY76: 0.0% | CK76: 0.0% | CL76: 75.5% | CO76: 0% | CP76: 9.15 | CQ76: billion | CR76: 2,893.82 | CS76: OMN/FLX | CV76: 27.9 | CW76: 36.1 | CX76: 26.6 | CY76: 62.8 | CZ76: 90.7 | DA76: 36.3 | DB76: 23.8 | DC76: 60.1 | DD76: 150.8 | DE76: 233.2 | DF76: 57.3 | DG76: 290.5 | DJ76: 441.3 | DK76: 15.2% | DL76: 867.5 | DM76: 88.2 | DN76: 693.7 | DO76: 29.1 | DP76: 570.7 | DQ76: 203.3 | DT76: 2,452.5 | DU76: kcal/capita/day | DV76: 0% | EI76: 5.16 | EJ76: Mtonne/Mha | EL76: 4.95 | EM76: 57.59 | EO76: 57.59 | EP76: 3.4 | EQ76: 3.1 | ER76: 2.35 | ES76: 2.76 | ET76: 3.4 | EU76: 3.1 | EV76: 3.33 | EW76: 5.47 | EX76: 2.88 | EY76: FCR (kg feed per kg animal) | FL76: 16.2% | FN76: 16.2% | FO76: 87.1% | FP76: 94.1% | FQ76: 85.9% | FR76: 88.8% | FS76: 20.7% | FT76: 95.3% | FU76: 18.9% | FV76: 91.4% | FW76: 26.9% | GA76: DIET
A77: 1 | B77: 2016 | C77: Meeting future food demand with current agricultural resources | D77: Davis, K. F. Gephart, J. A. Emery, K. A. Leach, A. M. Galloway, J. N. D’Odorico, P. | E77: Davis et al. (2016) | F77: Journal article | G77: Global Environmental Change | H77: S1 | I77: Mediterranean diet | J77: 2043 | K77: Food system | L77: Yes | M77: Davis et al. (2016) | N77: GHGLCA | AR77: 9.13 | AS77: Gt CO2e/yr | BA77: 0.0% | BB77: FAO - Permanent meadows and pastures | BC77: Agriculture | BD77: 5436.6 | BE77: 3020.6 | BF77: 2416.0 | BJ77: Mha | BL77: Water Footprint Network - Mekonnen & Hoekstra (2011) | BM77: 1,414.0 | BO77: 7,016.86 | BP77: km3/yr | BQ77: 0.0% | BS77: 0.0% | BU77: 182.80 | BX77: TgN/yr | BY77: 0.0% | CK77: 0.0% | CL77: 75.5% | CO77: 0% | CP77: 9.20 | CQ77: billion | CR77: 2,895.22 | CS77: OMN/FLX | CV77: 27.3 | CW77: 33.6 | CX77: 25.8 | CY77: 59.4 | CZ77: 86.7 | DA77: 36.6 | DB77: 23.6 | DC77: 60.3 | DD77: 147.0 | DE77: 236.1 | DF77: 57.9 | DG77: 294.0 | DJ77: 441.0 | DK77: 15.2% | DL77: 854.5 | DM77: 86.5 | DN77: 700.4 | DO77: 27.9 | DP77: 582.4 | DQ77: 202.4 | DT77: 2,454.2 | DU77: kcal/capita/day | DV77: 0% | EI77: 5.16 | EJ77: Mtonne/Mha | EL77: 4.91 | EM77: 57.59 | EO77: 57.59 | EP77: 3.4 | EQ77: 3.1 | ER77: 2.35 | ES77: 2.74 | ET77: 3.4 | EU77: 3.1 | EV77: 3.33 | EW77: 5.40 | EX77: 2.88 | EY77: FCR (kg feed per kg animal) | FL77: 16.2% | FN77: 16.2% | FO77: 87.1% | FP77: 94.1% | FQ77: 85.9% | FR77: 88.7% | FS77: 20.7% | FT77: 95.3% | FU77: 18.9% | FV77: 91.5% | FW77: 26.8% | GA77: DIET
A78: 1 | B78: 2016 | C78: Meeting future food demand with current agricultural resources | D78: Davis, K. F. Gephart, J. A. Emery, K. A. Leach, A. M. Galloway, J. N. D’Odorico, P. | E78: Davis et al. (2016) | F78: Journal article | G78: Global Environmental Change | H78: S1 | I78: Mediterranean diet | J78: 2044 | K78: Food system | L78: Yes | M78: Davis et al. (2016) | N78: GHGLCA | AR78: 9.15 | AS78: Gt CO2e/yr | BA78: 0.0% | BB78: FAO - Permanent meadows and pastures | BC78: Agriculture | BD78: 5431.6 | BE78: 2993.1 | BF78: 2438.6 | BJ78: Mha | BL78: Water Footprint Network - Mekonnen & Hoekstra (2011) | BM78: 1,431.0 | BO78: 7,084.11 | BP78: km3/yr | BQ78: 0.0% | BS78: 0.0% | BU78: 184.60 | BX78: TgN/yr | BY78: 0.0% | CK78: 0.0% | CL78: 75.5% | CO78: 0% | CP78: 9.26 | CQ78: billion | CR78: 2,896.62 | CS78: OMN/FLX | CV78: 26.8 | CW78: 31.1 | CX78: 24.9 | CY78: 56.0 | CZ78: 82.8 | DA78: 37.0 | DB78: 23.5 | DC78: 60.5 | DD78: 143.3 | DE78: 238.9 | DF78: 58.6 | DG78: 297.5 | DJ78: 440.8 | DK78: 15.2% | DL78: 841.5 | DM78: 84.9 | DN78: 707.1 | DO78: 26.7 | DP78: 594.2 | DQ78: 201.4 | DT78: 2,455.8 | DU78: kcal/capita/day | DV78: 0% | EI78: 5.16 | EJ78: Mtonne/Mha | EL78: 4.86 | EM78: 57.59 | EO78: 57.59 | EP78: 3.4 | EQ78: 3.1 | ER78: 2.35 | ES78: 2.73 | ET78: 3.4 | EU78: 3.1 | EV78: 3.33 | EW78: 5.34 | EX78: 2.87 | EY78: FCR (kg feed per kg animal) | FL78: 16.2% | FN78: 16.2% | FO78: 87.1% | FP78: 94.1% | FQ78: 85.9% | FR78: 88.7% | FS78: 20.7% | FT78: 95.3% | FU78: 18.9% | FV78: 91.5% | FW78: 26.8% | GA78: DIET
A79: 1 | B79: 2016 | C79: Meeting future food demand with current agricultural resources | D79: Davis, K. F. Gephart, J. A. Emery, K. A. Leach, A. M. Galloway, J. N. D’Odorico, P. | E79: Davis et al. (2016) | F79: Journal article | G79: Global Environmental Change | H79: S1 | I79: Mediterranean diet | J79: 2045 | K79: Food system | L79: Yes | M79: Davis et al. (2016) | N79: GHGLCA | AR79: 9.17 | AS79: Gt CO2e/yr | BA79: 0.0% | BB79: FAO - Permanent meadows and pastures | BC79: Agriculture | BD79: 5425.5 | BE79: 2964.6 | BF79: 2460.9 | BJ79: Mha | BL79: Water Footprint Network - Mekonnen & Hoekstra (2011) | BM79: 1,449.0 | BO79: 7,149.71 | BP79: km3/yr | BQ79: 0.0% | BS79: 0.0% | BU79: 186.39 | BX79: TgN/yr | BY79: 0.0% | CK79: 0.0% | CL79: 75.5% | CO79: 0% | CP79: 9.31 | CQ79: billion | CR79: 2,898.02 | CS79: OMN/FLX | CV79: 26.2 | CW79: 28.6 | CX79: 24.1 | CY79: 52.6 | CZ79: 78.8 | DA79: 37.3 | DB79: 23.4 | DC79: 60.7 | DD79: 139.5 | DE79: 241.8 | DF79: 59.3 | DG79: 301.1 | DJ79: 440.6 | DK79: 15.2% | DL79: 828.5 | DM79: 83.2 | DN79: 713.8 | DO79: 25.5 | DP79: 605.9 | DQ79: 200.5 | DT79: 2,457.4 | DU79: kcal/capita/day | DV79: 0% | EI79: 5.16 | EJ79: Mtonne/Mha | EL79: 4.81 | EM79: 57.59 | EO79: 57.59 | EP79: 3.4 | EQ79: 3.1 | ER79: 2.35 | ES79: 2.71 | ET79: 3.4 | EU79: 3.1 | EV79: 3.33 | EW79: 5.28 | EX79: 2.87 | EY79: FCR (kg feed per kg animal) | FL79: 16.2% | FN79: 16.2% | FO79: 87.1% | FP79: 94.1% | FQ79: 85.9% | FR79: 88.6% | FS79: 20.7% | FT79: 95.3% | FU79: 19.0% | FV79: 91.5% | FW79: 26.8% | GA79: DIET
A80: 1 | B80: 2016 | C80: Meeting future food demand with current agricultural resources | D80: Davis, K. F. Gephart, J. A. Emery, K. A. Leach, A. M. Galloway, J. N. D’Odorico, P. | E80: Davis et al. (2016) | F80: Journal article | G80: Global Environmental Change | H80: S1 | I80: Mediterranean diet | J80: 2046 | K80: Food system | L80: Yes | M80: Davis et al. (2016) | N80: GHGLCA | AR80: 9.18 | AS80: Gt CO2e/yr | BA80: 0.0% | BB80: FAO - Permanent meadows and pastures | BC80: Agriculture | BD80: 5418.4 | BE80: 2935.3 | BF80: 2483.1 | BJ80: Mha | BL80: Water Footprint Network - Mekonnen & Hoekstra (2011) | BM80: 1,466.0 | BO80: 7,215.64 | BP80: km3/yr | BQ80: 0.0% | BS80: 0.0% | BU80: 188.17 | BX80: TgN/yr | BY80: 0.0% | CK80: 0.0% | CL80: 75.5% | CO80: 0% | CP80: 9.36 | CQ80: billion | CR80: 2,899.42 | CS80: OMN/FLX | CV80: 25.6 | CW80: 26.0 | CX80: 23.2 | CY80: 49.2 | CZ80: 74.9 | DA80: 37.7 | DB80: 23.2 | DC80: 60.9 | DD80: 135.8 | DE80: 244.6 | DF80: 59.9 | DG80: 304.6 | DJ80: 440.4 | DK80: 15.2% | DL80: 815.5 | DM80: 81.6 | DN80: 720.5 | DO80: 24.3 | DP80: 617.6 | DQ80: 199.5 | DT80: 2,459.0 | DU80: kcal/capita/day | DV80: 0% | EI80: 5.16 | EJ80: Mtonne/Mha | EL80: 4.77 | EM80: 57.59 | EO80: 57.59 | EP80: 3.4 | EQ80: 3.1 | ER80: 2.35 | ES80: 2.70 | ET80: 3.4 | EU80: 3.1 | EV80: 3.33 | EW80: 5.21 | EX80: 2.86 | EY80: FCR (kg feed per kg animal) | FL80: 16.2% | FN80: 16.2% | FO80: 87.1% | FP80: 94.1% | FQ80: 85.9% | FR80: 88.6% | FS80: 20.7% | FT80: 95.3% | FU80: 19.0% | FV80: 91.6% | FW80: 26.8% | GA80: DIET
A81: 1 | B81: 2016 | C81: Meeting future food demand with current agricultural resources | D81: Davis, K. F. Gephart, J. A. Emery, K. A. Leach, A. M. Galloway, J. N. D’Odorico, P. | E81: Davis et al. (2016) | F81: Journal article | G81: Global Environmental Change | H81: S1 | I81: Mediterranean diet | J81: 2047 | K81: Food system | L81: Yes | M81: Davis et al. (2016) | N81: GHGLCA | AR81: 9.20 | AS81: Gt CO2e/yr | BA81: 0.0% | BB81: FAO - Permanent meadows and pastures | BC81: Agriculture | BD81: 5410.2 | BE81: 2905.2 | BF81: 2505.0 | BJ81: Mha | BL81: Water Footprint Network - Mekonnen & Hoekstra (2011) | BM81: 1,484.0 | BO81: 7,279.89 | BP81: km3/yr | BQ81: 0.0% | BS81: 0.0% | BU81: 189.92 | BX81: TgN/yr | BY81: 0.0% | CK81: 0.0% | CL81: 75.5% | CO81: 0% | CP81: 9.41 | CQ81: billion | CR81: 2,900.82 | CS81: OMN/FLX | CV81: 25.1 | CW81: 23.5 | CX81: 22.3 | CY81: 45.8 | CZ81: 70.9 | DA81: 38.0 | DB81: 23.1 | DC81: 61.1 | DD81: 132.0 | DE81: 247.5 | DF81: 60.6 | DG81: 308.1 | DJ81: 440.1 | DK81: 15.2% | DL81: 802.5 | DM81: 79.9 | DN81: 727.2 | DO81: 23.1 | DP81: 629.4 | DQ81: 198.6 | DT81: 2,460.7 | DU81: kcal/capita/day | DV81: 0% | EI81: 5.16 | EJ81: Mtonne/Mha | EL81: 4.73 | EM81: 57.59 | EO81: 57.59 | EP81: 3.4 | EQ81: 3.1 | ER81: 2.35 | ES81: 2.68 | ET81: 3.4 | EU81: 3.1 | EV81: 3.33 | EW81: 5.15 | EX81: 2.85 | EY81: FCR (kg feed per kg animal) | FL81: 16.2% | FN81: 16.2% | FO81: 87.1% | FP81: 94.1% | FQ81: 85.9% | FR81: 88.5% | FS81: 20.7% | FT81: 95.3% | FU81: 19.0% | FV81: 91.6% | FW81: 26.7% | GA81: DIET
A82: 1 | B82: 2016 | C82: Meeting future food demand with current agricultural resources | D82: Davis, K. F. Gephart, J. A. Emery, K. A. Leach, A. M. Galloway, J. N. D’Odorico, P. | E82: Davis et al. (2016) | F82: Journal article | G82: Global Environmental Change | H82: S1 | I82: Mediterranean diet | J82: 2048 | K82: Food system | L82: Yes | M82: Davis et al. (2016) | N82: GHGLCA | AR82: 9.21 | AS82: Gt CO2e/yr | BA82: 0.0% | BB82: FAO - Permanent meadows and pastures | BC82: Agriculture | BD82: 5400.9 | BE82: 2874.3 | BF82: 2526.6 | BJ82: Mha | BL82: Water Footprint Network - Mekonnen & Hoekstra (2011) | BM82: 1,501.0 | BO82: 7,344.44 | BP82: km3/yr | BQ82: 0.0% | BS82: 0.0% | BU82: 191.66 | BX82: TgN/yr | BY82: 0.0% | CK82: 0.0% | CL82: 75.5% | CO82: 0% | CP82: 9.46 | CQ82: billion | CR82: 2,902.22 | CS82: OMN/FLX | CV82: 24.5 | CW82: 21.0 | CX82: 21.5 | CY82: 42.4 | CZ82: 66.9 | DA82: 38.4 | DB82: 23.0 | DC82: 61.4 | DD82: 128.3 | DE82: 250.3 | DF82: 61.3 | DG82: 311.6 | DJ82: 439.9 | DK82: 15.2% | DL82: 789.5 | DM82: 78.2 | DN82: 733.8 | DO82: 22.0 | DP82: 641.1 | DQ82: 197.6 | DT82: 2,462.3 | DU82: kcal/capita/day | DV82: 0% | EI82: 5.16 | EJ82: Mtonne/Mha | EL82: 4.68 | EM82: 57.59 | EO82: 57.59 | EP82: 3.4 | EQ82: 3.1 | ER82: 2.35 | ES82: 2.67 | ET82: 3.4 | EU82: 3.1 | EV82: 3.33 | EW82: 5.10 | EX82: 2.85 | EY82: FCR (kg feed per kg animal) | FL82: 16.2% | FN82: 16.2% | FO82: 87.1% | FP82: 94.1% | FQ82: 85.9% | FR82: 88.5% | FS82: 20.7% | FT82: 95.3% | FU82: 19.1% | FV82: 91.6% | FW82: 26.7% | GA82: DIET
A83: 1 | B83: 2016 | C83: Meeting future food demand with current agricultural resources | D83: Davis, K. F. Gephart, J. A. Emery, K. A. Leach, A. M. Galloway, J. N. D’Odorico, P. | E83: Davis et al. (2016) | F83: Journal article | G83: Global Environmental Change | H83: S1 | I83: Mediterranean diet | J83: 2049 | K83: Food system | L83: Yes | M83: Davis et al. (2016) | N83: GHGLCA | AR83: 9.22 | AS83: Gt CO2e/yr | BA83: 0.0% | BB83: FAO - Permanent meadows and pastures | BC83: Agriculture | BD83: 5390.6 | BE83: 2842.5 | BF83: 2548.1 | BJ83: Mha | BL83: Water Footprint Network - Mekonnen & Hoekstra (2011) | BM83: 1,518.0 | BO83: 7,408.29 | BP83: km3/yr | BQ83: 0.0% | BS83: 0.0% | BU83: 193.39 | BX83: TgN/yr | BY83: 0.0% | CK83: 0.0% | CL83: 75.5% | CO83: 0% | CP83: 9.50 | CQ83: billion | CR83: 2,903.62 | CS83: OMN/FLX | CV83: 23.9 | CW83: 18.5 | CX83: 20.6 | CY83: 39.0 | CZ83: 63.0 | DA83: 38.7 | DB83: 22.9 | DC83: 61.6 | DD83: 124.5 | DE83: 253.2 | DF83: 62.0 | DG83: 315.2 | DJ83: 439.7 | DK83: 15.1% | DL83: 776.5 | DM83: 76.6 | DN83: 740.5 | DO83: 20.8 | DP83: 652.9 | DQ83: 196.6 | DT83: 2,463.9 | DU83: kcal/capita/day | DV83: 0% | EI83: 5.16 | EJ83: Mtonne/Mha | EL83: 4.64 | EM83: 57.59 | EO83: 57.59 | EP83: 3.4 | EQ83: 3.1 | ER83: 2.35 | ES83: 2.65 | ET83: 3.4 | EU83: 3.1 | EV83: 3.33 | EW83: 5.04 | EX83: 2.84 | EY83: FCR (kg feed per kg animal) | FL83: 16.2% | FN83: 16.2% | FO83: 87.1% | FP83: 94.1% | FQ83: 85.9% | FR83: 88.4% | FS83: 20.7% | FT83: 95.3% | FU83: 19.1% | FV83: 91.7% | FW83: 26.7% | GA83: DIET
A84: 1 | B84: 2016 | C84: Meeting future food demand with current agricultural resources | D84: Davis, K. F. Gephart, J. A. Emery, K. A. Leach, A. M. Galloway, J. N. D’Odorico, P. | E84: Davis et al. (2016) | F84: Journal article | G84: Global Environmental Change | H84: S2 | I84: Mediterranean diet | J84: 2050 | K84: Food system | L84: Yes | M84: Davis et al. (2016) | N84: GHGLCA | AR84: 9.23 | AS84: Gt CO2e/yr | BA84: 0.0% | BB84: FAO - Permanent meadows and pastures | BC84: Agriculture | BD84: 5379.3 | BE84: 2810.0 | BF84: 2569.3 | BJ84: Mha | BL84: Water Footprint Network - Mekonnen & Hoekstra (2011) | BM84: 1,534.9 | BO84: 7,471.47 | BP84: km3/yr | BQ84: 0.0% | BS84: 0.0% | BU84: 195.09 | BX84: TgN/yr | BY84: 0.0% | CK84: 0.0% | CL84: 75.5% | CO84: 0% | CP84: 9.55 | CQ84: billion | CR84: 2,905.02 | CS84: OMN/FLX | CV84: 23.4 | CW84: 15.9 | CX84: 19.7 | CY84: 35.7 | CZ84: 59.0 | DA84: 39.0 | DB84: 22.8 | DC84: 61.8 | DD84: 120.8 | DE84: 256.1 | DF84: 62.6 | DG84: 318.7 | DJ84: 439.5 | DK84: 15.1% | DL84: 763.6 | DM84: 74.9 | DN84: 747.2 | DO84: 19.6 | DP84: 664.6 | DQ84: 195.7 | DT84: 2,465.5 | DU84: kcal/capita/day | DV84: 0% | EI84: 5.16 | EJ84: Mtonne/Mha | EL84: 4.60 | EM84: 57.59 | EO84: 57.59 | EP84: 3.4 | EQ84: 3.1 | ER84: 2.35 | ES84: 2.63 | ET84: 3.4 | EU84: 3.1 | EV84: 3.33 | EW84: 4.98 | EX84: 2.83 | EY84: FCR (kg feed per kg animal) | FL84: 16.2% | FN84: 16.2% | FO84: 87.1% | FP84: 94.1% | FQ84: 85.9% | FR84: 88.4% | FS84: 20.7% | FT84: 95.3% | FU84: 19.1% | FV84: 91.7% | FW84: 26.6% | GA84: DIET
A85: 1 | B85: 2016 | C85: Meeting future food demand with current agricultural resources | D85: Davis, K. F. Gephart, J. A. Emery, K. A. Leach, A. M. Galloway, J. N. D’Odorico, P. | E85: Davis et al. (2016) | F85: Journal article | G85: Global Environmental Change | H85: S2 | I85: Pescaterian diet | J85: 2010 | K85: Food system | L85: Yes | M85: Davis et al. (2016) | N85: GHGLCA | AR85: 7.64 | AS85: Gt CO2e/yr | BA85: 0.0% | BB85: FAO - Permanent meadows and pastures | BC85: Agriculture | BD85: 4949.1 | BE85: 3374.0 | BF85: 1575.1 | BJ85: Mha | BL85: Water Footprint Network - Mekonnen & Hoekstra (2011) | BM85: 796.0 | BO85: 4,623.43 | BP85: km3/yr | BQ85: 0.0% | BS85: 0.0% | BU85: 116.87 | BX85: TgN/yr | BY85: 0.0% | CK85: 0.0% | CL85: 75.5% | CO85: 0% | CP85: 6.92 | CQ85: billion | CR85: 2,835.94 | CS85: OMN/FLX | CV85: 45.6 | CW85: 116.6 | CX85: 53.9 | CY85: 170.5 | CZ85: 216.0 | DA85: 22.9 | DB85: 31.5 | DC85: 54.4 | DD85: 270.4 | DE85: 140.0 | DF85: 35.4 | DG85: 175.4 | DJ85: 445.8 | DK85: 15.7% | DL85: 1,286.1 | DM85: 142.4 | DN85: 475.0 | DO85: 69.2 | DP85: 183.4 | DQ85: 233.9 | DT85: 2,390.1 | DU85: kcal/capita/day | DV85: 0% | EI85: 5.16 | EJ85: Mtonne/Mha | EL85: 6.95 | EM85: 57.59 | EO85: 57.59 | EP85: 3.4 | EQ85: 3.1 | ER85: 2.35 | ES85: 3.04 | ET85: 3.4 | EU85: 3.1 | EV85: 3.33 | EW85: 8.74 | EX85: 3.05 | EY85: FCR (kg feed per kg animal) | FL85: 16.2% | FN85: 16.2% | FO85: 87.1% | FP85: 94.1% | FQ85: 85.9% | FR85: 89.5% | FS85: 20.7% | FT85: 95.3% | FU85: 17.8% | FV85: 90.7% | FW85: 27.8% | GA85: DIET
A86: 1 | B86: 2016 | C86: Meeting future food demand with current agricultural resources | D86: Davis, K. F. Gephart, J. A. Emery, K. A. Leach, A. M. Galloway, J. N. D’Odorico, P. | E86: Davis et al. (2016) | F86: Journal article | G86: Global Environmental Change | H86: S2 | I86: Pescaterian diet | J86: 2011 | K86: Food system | L86: Yes | M86: Davis et al. (2016) | N86: GHGLCA | AR86: 7.74 | AS86: Gt CO2e/yr | BA86: 0.0% | BB86: FAO - Permanent meadows and pastures | BC86: Agriculture | BD86: 4990.8 | BE86: 3384.0 | BF86: 1606.8 | BJ86: Mha | BL86: Water Footprint Network - Mekonnen & Hoekstra (2011) | BM86: 816.0 | BO86: 4,700.34 | BP86: km3/yr | BQ86: 0.0% | BS86: 0.0% | BU86: 119.11 | BX86: TgN/yr | BY86: 0.0% | CK86: 0.0% | CL86: 75.5% | CO86: 0% | CP86: 7.00 | CQ86: billion | CR86: 2,824.28 | CS86: OMN/FLX | CV86: 44.4 | CW86: 113.7 | CX86: 52.5 | CY86: 166.2 | CZ86: 210.6 | DA86: 24.7 | DB86: 31.1 | DC86: 55.8 | DD86: 266.5 | DE86: 140.9 | DF86: 35.6 | DG86: 176.5 | DJ86: 443.0 | DK86: 15.7% | DL86: 1,275.9 | DM86: 142.0 | DN86: 476.9 | DO86: 69.9 | DP86: 183.6 | DQ86: 232.9 | DT86: 2,381.3 | DU86: kcal/capita/day | DV86: 0% | EI86: 5.16 | EJ86: Mtonne/Mha | EL86: 6.85 | EM86: 57.59 | EO86: 57.59 | EP86: 3.4 | EQ86: 3.1 | ER86: 2.35 | ES86: 3.03 | ET86: 3.4 | EU86: 3.1 | EV86: 3.33 | EW86: 8.58 | EX86: 3.04 | EY86: FCR (kg feed per kg animal) | FL86: 16.2% | FN86: 16.2% | FO86: 87.1% | FP86: 94.1% | FQ86: 85.9% | FR86: 89.5% | FS86: 20.7% | FT86: 95.3% | FU86: 17.8% | FV86: 90.7% | FW86: 27.9% | GA86: DIET
A87: 1 | B87: 2016 | C87: Meeting future food demand with current agricultural resources | D87: Davis, K. F. Gephart, J. A. Emery, K. A. Leach, A. M. Galloway, J. N. D’Odorico, P. | E87: Davis et al. (2016) | F87: Journal article | G87: Global Environmental Change | H87: S2 | I87: Pescaterian diet | J87: 2012 | K87: Food system | L87: Yes | M87: Davis et al. (2016) | N87: GHGLCA | AR87: 7.72 | AS87: Gt CO2e/yr | BA87: 0.0% | BB87: FAO - Permanent meadows and pastures | BC87: Agriculture | BD87: 4969.7 | BE87: 3344.0 | BF87: 1625.7 | BJ87: Mha | BL87: Water Footprint Network - Mekonnen & Hoekstra (2011) | BM87: 837.0 | BO87: 4,717.84 | BP87: km3/yr | BQ87: 0.0% | BS87: 0.0% | BU87: 120.31 | BX87: TgN/yr | BY87: 0.0% | CK87: 0.0% | CL87: 75.5% | CO87: 0% | CP87: 7.08 | CQ87: billion | CR87: 2,812.61 | CS87: OMN/FLX | CV87: 43.3 | CW87: 110.7 | CX87: 51.2 | CY87: 161.9 | CZ87: 205.2 | DA87: 26.5 | DB87: 30.7 | DC87: 57.3 | DD87: 262.5 | DE87: 141.9 | DF87: 35.8 | DG87: 177.7 | DJ87: 440.1 | DK87: 15.6% | DL87: 1,265.7 | DM87: 141.6 | DN87: 478.7 | DO87: 70.6 | DP87: 183.8 | DQ87: 232.0 | DT87: 2,372.5 | DU87: kcal/capita/day | DV87: 0% | EI87: 5.16 | EJ87: Mtonne/Mha | EL87: 6.74 | EM87: 57.59 | EO87: 57.59 | EP87: 3.4 | EQ87: 3.1 | ER87: 2.35 | ES87: 3.01 | ET87: 3.4 | EU87: 3.1 | EV87: 3.33 | EW87: 8.43 | EX87: 3.03 | EY87: FCR (kg feed per kg animal) | FL87: 16.2% | FN87: 16.2% | FO87: 87.1% | FP87: 94.1% | FQ87: 85.9% | FR87: 89.4% | FS87: 20.7% | FT87: 95.3% | FU87: 17.8% | FV87: 90.6% | FW87: 28.0% | GA87: DIET
A88: 1 | B88: 2016 | C88: Meeting future food demand with current agricultural resources | D88: Davis, K. F. Gephart, J. A. Emery, K. A. Leach, A. M. Galloway, J. N. D’Odorico, P. | E88: Davis et al. (2016) | F88: Journal article | G88: Global Environmental Change | H88: S2 | I88: Pescaterian diet | J88: 2013 | K88: Food system | L88: Yes | M88: Davis et al. (2016) | N88: GHGLCA | AR88: 7.70 | AS88: Gt CO2e/yr | BA88: 0.0% | BB88: FAO - Permanent meadows and pastures | BC88: Agriculture | BD88: 4946.8 | BE88: 3302.2 | BF88: 1644.6 | BJ88: Mha | BL88: Water Footprint Network - Mekonnen & Hoekstra (2011) | BM88: 858.0 | BO88: 4,734.63 | BP88: km3/yr | BQ88: 0.0% | BS88: 0.0% | BU88: 121.50 | BX88: TgN/yr | BY88: 0.0% | CK88: 0.0% | CL88: 75.5% | CO88: 0% | CP88: 7.16 | CQ88: billion | CR88: 2,800.95 | CS88: OMN/FLX | CV88: 42.1 | CW88: 107.8 | CX88: 49.8 | CY88: 157.7 | CZ88: 199.8 | DA88: 28.3 | DB88: 30.4 | DC88: 58.7 | DD88: 258.5 | DE88: 142.8 | DF88: 36.0 | DG88: 178.8 | DJ88: 437.3 | DK88: 15.6% | DL88: 1,255.6 | DM88: 141.2 | DN88: 480.5 | DO88: 71.4 | DP88: 184.0 | DQ88: 231.0 | DT88: 2,363.6 | DU88: kcal/capita/day | DV88: 0% | EI88: 5.16 | EJ88: Mtonne/Mha | EL88: 6.64 | EM88: 57.59 | EO88: 57.59 | EP88: 3.4 | EQ88: 3.1 | ER88: 2.35 | ES88: 3.00 | ET88: 3.4 | EU88: 3.1 | EV88: 3.33 | EW88: 8.28 | EX88: 3.02 | EY88: FCR (kg feed per kg animal) | FL88: 16.2% | FN88: 16.2% | FO88: 87.1% | FP88: 94.1% | FQ88: 85.9% | FR88: 89.3% | FS88: 20.7% | FT88: 95.3% | FU88: 17.9% | FV88: 90.6% | FW88: 28.1% | GA88: DIET
A89: 1 | B89: 2016 | C89: Meeting future food demand with current agricultural resources | D89: Davis, K. F. Gephart, J. A. Emery, K. A. Leach, A. M. Galloway, J. N. D’Odorico, P. | E89: Davis et al. (2016) | F89: Journal article | G89: Global Environmental Change | H89: S2 | I89: Pescaterian diet | J89: 2014 | K89: Food system | L89: Yes | M89: Davis et al. (2016) | N89: GHGLCA | AR89: 7.67 | AS89: Gt CO2e/yr | BA89: 0.0% | BB89: FAO - Permanent meadows and pastures | BC89: Agriculture | BD89: 4921.6 | BE89: 3258.3 | BF89: 1663.3 | BJ89: Mha | BL89: Water Footprint Network - Mekonnen & Hoekstra (2011) | BM89: 879.0 | BO89: 4,750.42 | BP89: km3/yr | BQ89: 0.0% | BS89: 0.0% | BU89: 122.68 | BX89: TgN/yr | BY89: 0.0% | CK89: 0.0% | CL89: 75.5% | CO89: 0% | CP89: 7.24 | CQ89: billion | CR89: 2,789.28 | CS89: OMN/FLX | CV89: 41.0 | CW89: 104.9 | CX89: 48.5 | CY89: 153.4 | CZ89: 194.4 | DA89: 30.1 | DB89: 30.0 | DC89: 60.1 | DD89: 254.6 | DE89: 143.7 | DF89: 36.2 | DG89: 179.9 | DJ89: 434.5 | DK89: 15.6% | DL89: 1,245.4 | DM89: 140.8 | DN89: 482.3 | DO89: 72.1 | DP89: 184.1 | DQ89: 230.1 | DT89: 2,354.8 | DU89: kcal/capita/day | DV89: 0% | EI89: 5.16 | EJ89: Mtonne/Mha | EL89: 6.54 | EM89: 57.59 | EO89: 57.59 | EP89: 3.4 | EQ89: 3.1 | ER89: 2.35 | ES89: 2.98 | ET89: 3.4 | EU89: 3.1 | EV89: 3.33 | EW89: 8.13 | EX89: 3.00 | EY89: FCR (kg feed per kg animal) | FL89: 16.2% | FN89: 16.2% | FO89: 87.1% | FP89: 94.1% | FQ89: 85.9% | FR89: 89.3% | FS89: 20.7% | FT89: 95.3% | FU89: 17.9% | FV89: 90.5% | FW89: 28.2% | GA89: DIET
A90: 1 | B90: 2016 | C90: Meeting future food demand with current agricultural resources | D90: Davis, K. F. Gephart, J. A. Emery, K. A. Leach, A. M. Galloway, J. N. D’Odorico, P. | E90: Davis et al. (2016) | F90: Journal article | G90: Global Environmental Change | H90: S2 | I90: Pescaterian diet | J90: 2015 | K90: Food system | L90: Yes | M90: Davis et al. (2016) | N90: GHGLCA | AR90: 7.64 | AS90: Gt CO2e/yr | BA90: 0.0% | BB90: FAO - Permanent meadows and pastures | BC90: Agriculture | BD90: 4894.1 | BE90: 3212.3 | BF90: 1681.8 | BJ90: Mha | BL90: Water Footprint Network - Mekonnen & Hoekstra (2011) | BM90: 901.0 | BO90: 4,764.00 | BP90: km3/yr | BQ90: 0.0% | BS90: 0.0% | BU90: 123.83 | BX90: TgN/yr | BY90: 0.0% | CK90: 0.0% | CL90: 75.5% | CO90: 0% | CP90: 7.32 | CQ90: billion | CR90: 2,777.62 | CS90: OMN/FLX | CV90: 39.9 | CW90: 102.0 | CX90: 47.1 | CY90: 149.1 | CZ90: 189.0 | DA90: 31.9 | DB90: 29.7 | DC90: 61.6 | DD90: 250.6 | DE90: 144.6 | DF90: 36.4 | DG90: 181.0 | DJ90: 431.6 | DK90: 15.5% | DL90: 1,235.2 | DM90: 140.4 | DN90: 484.2 | DO90: 72.8 | DP90: 184.3 | DQ90: 229.1 | DT90: 2,346.0 | DU90: kcal/capita/day | DV90: 0% | EI90: 5.16 | EJ90: Mtonne/Mha | EL90: 6.44 | EM90: 57.59 | EO90: 57.59 | EP90: 3.4 | EQ90: 3.1 | ER90: 2.35 | ES90: 2.97 | ET90: 3.4 | EU90: 3.1 | EV90: 3.33 | EW90: 7.98 | EX90: 2.99 | EY90: FCR (kg feed per kg animal) | FL90: 16.2% | FN90: 16.2% | FO90: 87.1% | FP90: 94.1% | FQ90: 85.9% | FR90: 89.2% | FS90: 20.7% | FT90: 95.3% | FU90: 17.9% | FV90: 90.5% | FW90: 28.3% | GA90: DIET
A91: 1 | B91: 2016 | C91: Meeting future food demand with current agricultural resources | D91: Davis, K. F. Gephart, J. A. Emery, K. A. Leach, A. M. Galloway, J. N. D’Odorico, P. | E91: Davis et al. (2016) | F91: Journal article | G91: Global Environmental Change | H91: S2 | I91: Pescaterian diet | J91: 2016 | K91: Food system | L91: Yes | M91: Davis et al. (2016) | N91: GHGLCA | AR91: 7.61 | AS91: Gt CO2e/yr | BA91: 0.0% | BB91: FAO - Permanent meadows and pastures | BC91: Agriculture | BD91: 4864.2 | BE91: 3164.2 | BF91: 1700.0 | BJ91: Mha | BL91: Water Footprint Network - Mekonnen & Hoekstra (2011) | BM91: 922.0 | BO91: 4,777.25 | BP91: km3/yr | BQ91: 0.0% | BS91: 0.0% | BU91: 124.96 | BX91: TgN/yr | BY91: 0.0% | CK91: 0.0% | CL91: 75.5% | CO91: 0% | CP91: 7.40 | CQ91: billion | CR91: 2,765.96 | CS91: OMN/FLX | CV91: 38.7 | CW91: 99.1 | CX91: 45.8 | CY91: 144.9 | CZ91: 183.6 | DA91: 33.6 | DB91: 29.4 | DC91: 63.0 | DD91: 246.6 | DE91: 145.6 | DF91: 36.6 | DG91: 182.1 | DJ91: 428.8 | DK91: 15.5% | DL91: 1,225.0 | DM91: 140.0 | DN91: 486.0 | DO91: 73.5 | DP91: 184.5 | DQ91: 228.2 | DT91: 2,337.2 | DU91: kcal/capita/day | DV91: 0% | EI91: 5.16 | EJ91: Mtonne/Mha | EL91: 6.34 | EM91: 57.59 | EO91: 57.59 | EP91: 3.4 | EQ91: 3.1 | ER91: 2.35 | ES91: 2.95 | ET91: 3.4 | EU91: 3.1 | EV91: 3.33 | EW91: 7.84 | EX91: 2.98 | EY91: FCR (kg feed per kg animal) | FL91: 16.2% | FN91: 16.2% | FO91: 87.1% | FP91: 94.1% | FQ91: 85.9% | FR91: 89.1% | FS91: 20.7% | FT91: 95.3% | FU91: 18.0% | FV91: 90.5% | FW91: 28.4% | GA91: DIET
A92: 1 | B92: 2016 | C92: Meeting future food demand with current agricultural resources | D92: Davis, K. F. Gephart, J. A. Emery, K. A. Leach, A. M. Galloway, J. N. D’Odorico, P. | E92: Davis et al. (2016) | F92: Journal article | G92: Global Environmental Change | H92: S2 | I92: Pescaterian diet | J92: 2017 | K92: Food system | L92: Yes | M92: Davis et al. (2016) | N92: GHGLCA | AR92: 7.57 | AS92: Gt CO2e/yr | BA92: 0.0% | BB92: FAO - Permanent meadows and pastures | BC92: Agriculture | BD92: 4831.9 | BE92: 3113.9 | BF92: 1718.0 | BJ92: Mha | BL92: Water Footprint Network - Mekonnen & Hoekstra (2011) | BM92: 944.0 | BO92: 4,788.16 | BP92: km3/yr | BQ92: 0.0% | BS92: 0.0% | BU92: 126.06 | BX92: TgN/yr | BY92: 0.0% | CK92: 0.0% | CL92: 75.5% | CO92: 0% | CP92: 7.48 | CQ92: billion | CR92: 2,754.29 | CS92: OMN/FLX | CV92: 37.6 | CW92: 96.2 | CX92: 44.4 | CY92: 140.6 | CZ92: 178.2 | DA92: 35.4 | DB92: 29.1 | DC92: 64.4 | DD92: 242.7 | DE92: 146.5 | DF92: 36.8 | DG92: 183.2 | DJ92: 425.9 | DK92: 15.5% | DL92: 1,214.8 | DM92: 139.6 | DN92: 487.8 | DO92: 74.2 | DP92: 184.7 | DQ92: 227.2 | DT92: 2,328.4 | DU92: kcal/capita/day | DV92: 0% | EI92: 5.16 | EJ92: Mtonne/Mha | EL92: 6.24 | EM92: 57.59 | EO92: 57.59 | EP92: 3.4 | EQ92: 3.1 | ER92: 2.35 | ES92: 2.93 | ET92: 3.4 | EU92: 3.1 | EV92: 3.33 | EW92: 7.69 | EX92: 2.97 | EY92: FCR (kg feed per kg animal) | FL92: 16.2% | FN92: 16.2% | FO92: 87.1% | FP92: 94.1% | FQ92: 85.9% | FR92: 89.1% | FS92: 20.7% | FT92: 95.3% | FU92: 18.0% | FV92: 90.4% | FW92: 28.5% | GA92: DIET
A93: 1 | B93: 2016 | C93: Meeting future food demand with current agricultural resources | D93: Davis, K. F. Gephart, J. A. Emery, K. A. Leach, A. M. Galloway, J. N. D’Odorico, P. | E93: Davis et al. (2016) | F93: Journal article | G93: Global Environmental Change | H93: S2 | I93: Pescaterian diet | J93: 2018 | K93: Food system | L93: Yes | M93: Davis et al. (2016) | N93: GHGLCA | AR93: 7.53 | AS93: Gt CO2e/yr | BA93: 0.0% | BB93: FAO - Permanent meadows and pastures | BC93: Agriculture | BD93: 4797.1 | BE93: 3061.4 | BF93: 1735.7 | BJ93: Mha | BL93: Water Footprint Network - Mekonnen & Hoekstra (2011) | BM93: 965.0 | BO93: 4,798.67 | BP93: km3/yr | BQ93: 0.0% | BS93: 0.0% | BU93: 127.14 | BX93: TgN/yr | BY93: 0.0% | CK93: 0.0% | CL93: 75.5% | CO93: 0% | CP93: 7.56 | CQ93: billion | CR93: 2,742.63 | CS93: OMN/FLX | CV93: 36.4 | CW93: 93.3 | CX93: 43.1 | CY93: 136.4 | CZ93: 172.8 | DA93: 37.1 | DB93: 28.8 | DC93: 65.9 | DD93: 238.7 | DE93: 147.4 | DF93: 36.9 | DG93: 184.4 | DJ93: 423.1 | DK93: 15.4% | DL93: 1,204.7 | DM93: 139.2 | DN93: 489.6 | DO93: 74.9 | DP93: 184.9 | DQ93: 226.2 | DT93: 2,319.6 | DU93: kcal/capita/day | DV93: 0% | EI93: 5.16 | EJ93: Mtonne/Mha | EL93: 6.14 | EM93: 57.59 | EO93: 57.59 | EP93: 3.4 | EQ93: 3.1 | ER93: 2.35 | ES93: 2.92 | ET93: 3.4 | EU93: 3.1 | EV93: 3.33 | EW93: 7.55 | EX93: 2.95 | EY93: FCR (kg feed per kg animal) | FL93: 16.2% | FN93: 16.2% | FO93: 87.1% | FP93: 94.1% | FQ93: 85.9% | FR93: 89.0% | FS93: 20.7% | FT93: 95.3% | FU93: 18.1% | FV93: 90.4% | FW93: 28.6% | GA93: DIET
A94: 1 | B94: 2016 | C94: Meeting future food demand with current agricultural resources | D94: Davis, K. F. Gephart, J. A. Emery, K. A. Leach, A. M. Galloway, J. N. D’Odorico, P. | E94: Davis et al. (2016) | F94: Journal article | G94: Global Environmental Change | H94: S2 | I94: Pescaterian diet | J94: 2019 | K94: Food system | L94: Yes | M94: Davis et al. (2016) | N94: GHGLCA | AR94: 7.49 | AS94: Gt CO2e/yr | BA94: 0.0% | BB94: FAO - Permanent meadows and pastures | BC94: Agriculture | BD94: 4759.9 | BE94: 3006.8 | BF94: 1753.1 | BJ94: Mha | BL94: Water Footprint Network - Mekonnen & Hoekstra (2011) | BM94: 987.0 | BO94: 4,806.78 | BP94: km3/yr | BQ94: 0.0% | BS94: 0.0% | BU94: 128.19 | BX94: TgN/yr | BY94: 0.0% | CK94: 0.0% | CL94: 75.5% | CO94: 0% | CP94: 7.64 | CQ94: billion | CR94: 2,730.96 | CS94: OMN/FLX | CV94: 35.3 | CW94: 90.3 | CX94: 41.8 | CY94: 132.1 | CZ94: 167.4 | DA94: 38.8 | DB94: 28.5 | DC94: 67.3 | DD94: 234.7 | DE94: 148.3 | DF94: 37.1 | DG94: 185.5 | DJ94: 420.2 | DK94: 15.4% | DL94: 1,194.5 | DM94: 138.8 | DN94: 491.4 | DO94: 75.7 | DP94: 185.0 | DQ94: 225.3 | DT94: 2,310.8 | DU94: kcal/capita/day | DV94: 0% | EI94: 5.16 | EJ94: Mtonne/Mha | EL94: 6.04 | EM94: 57.59 | EO94: 57.59 | EP94: 3.4 | EQ94: 3.1 | ER94: 2.35 | ES94: 2.90 | ET94: 3.4 | EU94: 3.1 | EV94: 3.33 | EW94: 7.40 | EX94: 2.94 | EY94: FCR (kg feed per kg animal) | FL94: 16.2% | FN94: 16.2% | FO94: 87.1% | FP94: 94.1% | FQ94: 85.9% | FR94: 88.9% | FS94: 20.7% | FT94: 95.3% | FU94: 18.1% | FV94: 90.3% | FW94: 28.7% | GA94: DIET
A95: 1 | B95: 2016 | C95: Meeting future food demand with current agricultural resources | D95: Davis, K. F. Gephart, J. A. Emery, K. A. Leach, A. M. Galloway, J. N. D’Odorico, P. | E95: Davis et al. (2016) | F95: Journal article | G95: Global Environmental Change | H95: S2 | I95: Pescaterian diet | J95: 2020 | K95: Food system | L95: Yes | M95: Davis et al. (2016) | N95: GHGLCA | AR95: 7.44 | AS95: Gt CO2e/yr | BA95: 0.0% | BB95: FAO - Permanent meadows and pastures | BC95: Agriculture | BD95: 4720.2 | BE95: 2950.1 | BF95: 1770.2 | BJ95: Mha | BL95: Water Footprint Network - Mekonnen & Hoekstra (2011) | BM95: 1,008.0 | BO95: 4,814.47 | BP95: km3/yr | BQ95: 0.0% | BS95: 0.0% | BU95: 129.22 | BX95: TgN/yr | BY95: 0.0% | CK95: 0.0% | CL95: 75.5% | CO95: 0% | CP95: 7.72 | CQ95: billion | CR95: 2,719.30 | CS95: OMN/FLX | CV95: 34.2 | CW95: 87.4 | CX95: 40.4 | CY95: 127.8 | CZ95: 162.0 | DA95: 40.6 | DB95: 28.2 | DC95: 68.8 | DD95: 230.8 | DE95: 149.3 | DF95: 37.3 | DG95: 186.6 | DJ95: 417.4 | DK95: 15.3% | DL95: 1,184.3 | DM95: 138.4 | DN95: 493.3 | DO95: 76.4 | DP95: 185.2 | DQ95: 224.3 | DT95: 2,301.9 | DU95: kcal/capita/day | DV95: 0% | EI95: 5.16 | EJ95: Mtonne/Mha | EL95: 5.94 | EM95: 57.59 | EO95: 57.59 | EP95: 3.4 | EQ95: 3.1 | ER95: 2.35 | ES95: 2.89 | ET95: 3.4 | EU95: 3.1 | EV95: 3.33 | EW95: 7.26 | EX95: 2.93 | EY95: FCR (kg feed per kg animal) | FL95: 16.2% | FN95: 16.2% | FO95: 87.1% | FP95: 94.1% | FQ95: 85.9% | FR95: 88.9% | FS95: 20.7% | FT95: 95.3% | FU95: 18.1% | FV95: 90.3% | FW95: 28.8% | GA95: DIET
A96: 1 | B96: 2016 | C96: Meeting future food demand with current agricultural resources | D96: Davis, K. F. Gephart, J. A. Emery, K. A. Leach, A. M. Galloway, J. N. D’Odorico, P. | E96: Davis et al. (2016) | F96: Journal article | G96: Global Environmental Change | H96: S2 | I96: Pescaterian diet | J96: 2021 | K96: Food system | L96: Yes | M96: Davis et al. (2016) | N96: GHGLCA | AR96: 7.39 | AS96: Gt CO2e/yr | BA96: 0.0% | BB96: FAO - Permanent meadows and pastures | BC96: Agriculture | BD96: 4678.2 | BE96: 2891.2 | BF96: 1787.0 | BJ96: Mha | BL96: Water Footprint Network - Mekonnen & Hoekstra (2011) | BM96: 1,030.0 | BO96: 4,819.70 | BP96: km3/yr | BQ96: 0.0% | BS96: 0.0% | BU96: 130.21 | BX96: TgN/yr | BY96: 0.0% | CK96: 0.0% | CL96: 75.5% | CO96: 0% | CP96: 7.79 | CQ96: billion | CR96: 2,707.63 | CS96: OMN/FLX | CV96: 33.0 | CW96: 84.5 | CX96: 39.1 | CY96: 123.6 | CZ96: 156.6 | DA96: 42.3 | DB96: 27.9 | DC96: 70.2 | DD96: 226.8 | DE96: 150.2 | DF96: 37.5 | DG96: 187.7 | DJ96: 414.5 | DK96: 15.3% | DL96: 1,174.1 | DM96: 138.0 | DN96: 495.1 | DO96: 77.1 | DP96: 185.4 | DQ96: 223.4 | DT96: 2,293.1 | DU96: kcal/capita/day | DV96: 0% | EI96: 5.16 | EJ96: Mtonne/Mha | EL96: 5.84 | EM96: 57.59 | EO96: 57.59 | EP96: 3.4 | EQ96: 3.1 | ER96: 2.35 | ES96: 2.87 | ET96: 3.4 | EU96: 3.1 | EV96: 3.33 | EW96: 7.11 | EX96: 2.92 | EY96: FCR (kg feed per kg animal) | FL96: 16.2% | FN96: 16.2% | FO96: 87.1% | FP96: 94.1% | FQ96: 85.9% | FR96: 88.8% | FS96: 20.7% | FT96: 95.3% | FU96: 18.2% | FV96: 90.3% | FW96: 28.9% | GA96: DIET
A97: 1 | B97: 2016 | C97: Meeting future food demand with current agricultural resources | D97: Davis, K. F. Gephart, J. A. Emery, K. A. Leach, A. M. Galloway, J. N. D’Odorico, P. | E97: Davis et al. (2016) | F97: Journal article | G97: Global Environmental Change | H97: S2 | I97: Pescaterian diet | J97: 2022 | K97: Food system | L97: Yes | M97: Davis et al. (2016) | N97: GHGLCA | AR97: 7.33 | AS97: Gt CO2e/yr | BA97: 0.0% | BB97: FAO - Permanent meadows and pastures | BC97: Agriculture | BD97: 4633.7 | BE97: 2830.3 | BF97: 1803.4 | BJ97: Mha | BL97: Water Footprint Network - Mekonnen & Hoekstra (2011) | BM97: 1,051.0 | BO97: 4,824.45 | BP97: km3/yr | BQ97: 0.0% | BS97: 0.0% | BU97: 131.18 | BX97: TgN/yr | BY97: 0.0% | CK97: 0.0% | CL97: 75.5% | CO97: 0% | CP97: 7.87 | CQ97: billion | CR97: 2,695.97 | CS97: OMN/FLX | CV97: 31.9 | CW97: 81.6 | CX97: 37.7 | CY97: 119.3 | CZ97: 151.2 | DA97: 44.0 | DB97: 27.7 | DC97: 71.6 | DD97: 222.8 | DE97: 151.1 | DF97: 37.7 | DG97: 188.8 | DJ97: 411.7 | DK97: 15.3% | DL97: 1,164.0 | DM97: 137.6 | DN97: 496.9 | DO97: 77.8 | DP97: 185.6 | DQ97: 222.4 | DT97: 2,284.3 | DU97: kcal/capita/day | DV97: 0% | EI97: 5.16 | EJ97: Mtonne/Mha | EL97: 5.74 | EM97: 57.59 | EO97: 57.59 | EP97: 3.4 | EQ97: 3.1 | ER97: 2.35 | ES97: 2.85 | ET97: 3.4 | EU97: 3.1 | EV97: 3.33 | EW97: 6.97 | EX97: 2.91 | EY97: FCR (kg feed per kg animal) | FL97: 16.2% | FN97: 16.2% | FO97: 87.1% | FP97: 94.1% | FQ97: 85.9% | FR97: 88.7% | FS97: 20.7% | FT97: 95.3% | FU97: 18.2% | FV97: 90.2% | FW97: 29.0% | GA97: DIET
A98: 1 | B98: 2016 | C98: Meeting future food demand with current agricultural resources | D98: Davis, K. F. Gephart, J. A. Emery, K. A. Leach, A. M. Galloway, J. N. D’Odorico, P. | E98: Davis et al. (2016) | F98: Journal article | G98: Global Environmental Change | H98: S2 | I98: Pescaterian diet | J98: 2023 | K98: Food system | L98: Yes | M98: Davis et al. (2016) | N98: GHGLCA | AR98: 7.28 | AS98: Gt CO2e/yr | BA98: 0.0% | BB98: FAO - Permanent meadows and pastures | BC98: Agriculture | BD98: 4586.9 | BE98: 2767.3 | BF98: 1819.6 | BJ98: Mha | BL98: Water Footprint Network - Mekonnen & Hoekstra (2011) | BM98: 1,073.0 | BO98: 4,826.74 | BP98: km3/yr | BQ98: 0.0% | BS98: 0.0% | BU98: 132.12 | BX98: TgN/yr | BY98: 0.0% | CK98: 0.0% | CL98: 75.5% | CO98: 0% | CP98: 7.94 | CQ98: billion | CR98: 2,684.30 | CS98: OMN/FLX | CV98: 30.8 | CW98: 78.7 | CX98: 36.4 | CY98: 115.1 | CZ98: 145.8 | DA98: 45.7 | DB98: 27.4 | DC98: 73.1 | DD98: 218.9 | DE98: 152.0 | DF98: 37.9 | DG98: 189.9 | DJ98: 408.8 | DK98: 15.2% | DL98: 1,153.8 | DM98: 137.2 | DN98: 498.7 | DO98: 78.5 | DP98: 185.8 | DQ98: 221.5 | DT98: 2,275.5 | DU98: kcal/capita/day | DV98: 0% | EI98: 5.16 | EJ98: Mtonne/Mha | EL98: 5.65 | EM98: 57.59 | EO98: 57.59 | EP98: 3.4 | EQ98: 3.1 | ER98: 2.35 | ES98: 2.84 | ET98: 3.4 | EU98: 3.1 | EV98: 3.33 | EW98: 6.83 | EX98: 2.89 | EY98: FCR (kg feed per kg animal) | FL98: 16.2% | FN98: 16.2% | FO98: 87.1% | FP98: 94.1% | FQ98: 85.9% | FR98: 88.6% | FS98: 20.7% | FT98: 95.3% | FU98: 18.3% | FV98: 90.2% | FW98: 29.1% | GA98: DIET
A99: 1 | B99: 2016 | C99: Meeting future food demand with current agricultural resources | D99: Davis, K. F. Gephart, J. A. Emery, K. A. Leach, A. M. Galloway, J. N. D’Odorico, P. | E99: Davis et al. (2016) | F99: Journal article | G99: Global Environmental Change | H99: S2 | I99: Pescaterian diet | J99: 2024 | K99: Food system | L99: Yes | M99: Davis et al. (2016) | N99: GHGLCA | AR99: 7.22 | AS99: Gt CO2e/yr | BA99: 0.0% | BB99: FAO - Permanent meadows and pastures | BC99: Agriculture | BD99: 4537.8 | BE99: 2702.4 | BF99: 1835.4 | BJ99: Mha | BL99: Water Footprint Network - Mekonnen & Hoekstra (2011) | BM99: 1,094.0 | BO99: 4,828.63 | BP99: km3/yr | BQ99: 0.0% | BS99: 0.0% | BU99: 133.04 | BX99: TgN/yr | BY99: 0.0% | CK99: 0.0% | CL99: 75.5% | CO99: 0% | CP99: 8.01 | CQ99: billion | CR99: 2,672.64 | CS99: OMN/FLX | CV99: 29.6 | CW99: 75.8 | CX99: 35.0 | CY99: 110.8 | CZ99: 140.4 | DA99: 47.3 | DB99: 27.2 | DC99: 74.5 | DD99: 214.9 | DE99: 153.0 | DF99: 38.1 | DG99: 191.1 | DJ99: 406.0 | DK99: 15.2% | DL99: 1,143.6 | DM99: 136.8 | DN99: 500.6 | DO99: 79.2 | DP99: 185.9 | DQ99: 220.5 | DT99: 2,266.7 | DU99: kcal/capita/day | DV99: 0% | EI99: 5.16 | EJ99: Mtonne/Mha | EL99: 5.55 | EM99: 57.59 | EO99: 57.59 | EP99: 3.4 | EQ99: 3.1 | ER99: 2.35 | ES99: 2.82 | ET99: 3.4 | EU99: 3.1 | EV99: 3.33 | EW99: 6.69 | EX99: 2.88 | EY99: FCR (kg feed per kg animal) | FL99: 16.2% | FN99: 16.2% | FO99: 87.1% | FP99: 94.1% | FQ99: 85.9% | FR99: 88.6% | FS99: 20.7% | FT99: 95.3% | FU99: 18.3% | FV99: 90.1% | FW99: 29.2% | GA99: DIET
A100: 1 | B100: 2016 | C100: Meeting future food demand with current agricultural resources | D100: Davis, K. F. Gephart, J. A. Emery, K. A. Leach, A. M. Galloway, J. N. D’Odorico, P. | E100: Davis et al. (2016) | F100: Journal article | G100: Global Environmental Change | H100: S2 | I100: Pescaterian diet | J100: 2025 | K100: Food system | L100: Yes | M100: Davis et al. (2016) | N100: GHGLCA | AR100: 7.15 | AS100: Gt CO2e/yr | BA100: 0.0% | BB100: FAO - Permanent meadows and pastures | BC100: Agriculture | BD100: 4486.4 | BE100: 2635.4 | BF100: 1851.0 | BJ100: Mha | BL100: Water Footprint Network - Mekonnen & Hoekstra (2011) | BM100: 1,116.0 | BO100: 4,828.15 | BP100: km3/yr | BQ100: 0.0% | BS100: 0.0% | BU100: 133.92 | BX100: TgN/yr | BY100: 0.0% | CK100: 0.0% | CL100: 75.5% | CO100: 0% | CP100: 8.08 | CQ100: billion | CR100: 2,660.98 | CS100: OMN/FLX | CV100: 28.5 | CW100: 72.9 | CX100: 33.7 | CY100: 106.5 | CZ100: 135.0 | DA100: 49.0 | DB100: 26.9 | DC100: 75.9 | DD100: 210.9 | DE100: 153.9 | DF100: 38.3 | DG100: 192.2 | DJ100: 403.1 | DK100: 15.1% | DL100: 1,133.4 | DM100: 136.4 | DN100: 502.4 | DO100: 79.9 | DP100: 186.1 | DQ100: 219.6 | DT100: 2,257.9 | DU100: kcal/capita/day | DV100: 0% | EI100: 5.16 | EJ100: Mtonne/Mha | EL100: 5.45 | EM100: 57.59 | EO100: 57.59 | EP100: 3.4 | EQ100: 3.1 | ER100: 2.35 | ES100: 2.81 | ET100: 3.4 | EU100: 3.1 | EV100: 3.33 | EW100: 6.55 | EX100: 2.87 | EY100: FCR (kg feed per kg animal) | FL100: 16.2% | FN100: 16.2% | FO100: 87.1% | FP100: 94.1% | FQ100: 85.9% | FR100: 88.5% | FS100: 20.7% | FT100: 95.3% | FU100: 18.4% | FV100: 90.1% | FW100: 29.4% | GA100: DIET
A101: 1 | B101: 2016 | C101: Meeting future food demand with current agricultural resources | D101: Davis, K. F. Gephart, J. A. Emery, K. A. Leach, A. M. Galloway, J. N. D’Odorico, P. | E101: Davis et al. (2016) | F101: Journal article | G101: Global Environmental Change | H101: S2 | I101: Pescaterian diet | J101: 2026 | K101: Food system | L101: Yes | M101: Davis et al. (2016) | N101: GHGLCA | AR101: 7.09 | AS101: Gt CO2e/yr | BA101: 0.0% | BB101: FAO - Permanent meadows and pastures | BC101: Agriculture | BD101: 4432.8 | BE101: 2566.6 | BF101: 1866.2 | BJ101: Mha | BL101: Water Footprint Network - Mekonnen & Hoekstra (2011) | BM101: 1,137.0 | BO101: 4,827.31 | BP101: km3/yr | BQ101: 0.0% | BS101: 0.0% | BU101: 134.78 | BX101: TgN/yr | BY101: 0.0% | CK101: 0.0% | CL101: 75.5% | CO101: 0% | CP101: 8.15 | CQ101: billion | CR101: 2,649.31 | CS101: OMN/FLX | CV101: 27.3 | CW101: 69.9 | CX101: 32.3 | CY101: 102.3 | CZ101: 129.6 | DA101: 50.7 | DB101: 26.7 | DC101: 77.4 | DD101: 207.0 | DE101: 154.8 | DF101: 38.5 | DG101: 193.3 | DJ101: 400.3 | DK101: 15.1% | DL101: 1,123.2 | DM101: 136.0 | DN101: 504.2 | DO101: 80.7 | DP101: 186.3 | DQ101: 218.6 | DT101: 2,249.0 | DU101: kcal/capita/day | DV101: 0% | EI101: 5.16 | EJ101: Mtonne/Mha | EL101: 5.36 | EM101: 57.59 | EO101: 57.59 | EP101: 3.4 | EQ101: 3.1 | ER101: 2.35 | ES101: 2.79 | ET101: 3.4 | EU101: 3.1 | EV101: 3.33 | EW101: 6.42 | EX101: 2.86 | EY101: FCR (kg feed per kg animal) | FL101: 16.2% | FN101: 16.2% | FO101: 87.1% | FP101: 94.1% | FQ101: 85.9% | FR101: 88.4% | FS101: 20.7% | FT101: 95.3% | FU101: 18.4% | FV101: 90.1% | FW101: 29.5% | GA101: DIET
A102: 1 | B102: 2016 | C102: Meeting future food demand with current agricultural resources | D102: Davis, K. F. Gephart, J. A. Emery, K. A. Leach, A. M. Galloway, J. N. D’Odorico, P. | E102: Davis et al. (2016) | F102: Journal article | G102: Global Environmental Change | H102: S2 | I102: Pescaterian diet | J102: 2027 | K102: Food system | L102: Yes | M102: Davis et al. (2016) | N102: GHGLCA | AR102: 7.02 | AS102: Gt CO2e/yr | BA102: 0.0% | BB102: FAO - Permanent meadows and pastures | BC102: Agriculture | BD102: 4377.0 | BE102: 2495.9 | BF102: 1881.1 | BJ102: Mha | BL102: Water Footprint Network - Mekonnen & Hoekstra (2011) | BM102: 1,159.0 | BO102: 4,824.11 | BP102: km3/yr | BQ102: 0.0% | BS102: 0.0% | BU102: 135.62 | BX102: TgN/yr | BY102: 0.0% | CK102: 0.0% | CL102: 75.5% | CO102: 0% | CP102: 8.22 | CQ102: billion | CR102: 2,637.65 | CS102: OMN/FLX | CV102: 26.2 | CW102: 67.0 | CX102: 31.0 | CY102: 98.0 | CZ102: 124.2 | DA102: 52.3 | DB102: 26.5 | DC102: 78.8 | DD102: 203.0 | DE102: 155.7 | DF102: 38.7 | DG102: 194.4 | DJ102: 397.4 | DK102: 15.1% | DL102: 1,113.1 | DM102: 135.6 | DN102: 506.0 | DO102: 81.4 | DP102: 186.5 | DQ102: 217.7 | DT102: 2,240.2 | DU102: kcal/capita/day | DV102: 0% | EI102: 5.16 | EJ102: Mtonne/Mha | EL102: 5.26 | EM102: 57.59 | EO102: 57.59 | EP102: 3.4 | EQ102: 3.1 | ER102: 2.35 | ES102: 2.77 | ET102: 3.4 | EU102: 3.1 | EV102: 3.33 | EW102: 6.28 | EX102: 2.84 | EY102: FCR (kg feed per kg animal) | FL102: 16.2% | FN102: 16.2% | FO102: 87.1% | FP102: 94.1% | FQ102: 85.9% | FR102: 88.3% | FS102: 20.7% | FT102: 95.3% | FU102: 18.5% | FV102: 90.0% | FW102: 29.6% | GA102: DIET
A103: 1 | B103: 2016 | C103: Meeting future food demand with current agricultural resources | D103: Davis, K. F. Gephart, J. A. Emery, K. A. Leach, A. M. Galloway, J. N. D’Odorico, P. | E103: Davis et al. (2016) | F103: Journal article | G103: Global Environmental Change | H103: S2 | I103: Pescaterian diet | J103: 2028 | K103: Food system | L103: Yes | M103: Davis et al. (2016) | N103: GHGLCA | AR103: 6.94 | AS103: Gt CO2e/yr | BA103: 0.0% | BB103: FAO - Permanent meadows and pastures | BC103: Agriculture | BD103: 4319.1 | BE103: 2423.3 | BF103: 1895.8 | BJ103: Mha | BL103: Water Footprint Network - Mekonnen & Hoekstra (2011) | BM103: 1,180.0 | BO103: 4,820.59 | BP103: km3/yr | BQ103: 0.0% | BS103: 0.0% | BU103: 136.43 | BX103: TgN/yr | BY103: 0.0% | CK103: 0.0% | CL103: 75.5% | CO103: 0% | CP103: 8.29 | CQ103: billion | CR103: 2,625.98 | CS103: OMN/FLX | CV103: 25.1 | CW103: 64.1 | CX103: 29.6 | CY103: 93.7 | CZ103: 118.8 | DA103: 54.0 | DB103: 26.2 | DC103: 80.2 | DD103: 199.0 | DE103: 156.7 | DF103: 38.9 | DG103: 195.5 | DJ103: 394.6 | DK103: 15.0% | DL103: 1,102.9 | DM103: 135.2 | DN103: 507.9 | DO103: 82.1 | DP103: 186.6 | DQ103: 216.7 | DT103: 2,231.4 | DU103: kcal/capita/day | DV103: 0% | EI103: 5.16 | EJ103: Mtonne/Mha | EL103: 5.16 | EM103: 57.59 | EO103: 57.59 | EP103: 3.4 | EQ103: 3.1 | ER103: 2.35 | ES103: 2.76 | ET103: 3.4 | EU103: 3.1 | EV103: 3.33 | EW103: 6.14 | EX103: 2.83 | EY103: FCR (kg feed per kg animal) | FL103: 16.2% | FN103: 16.2% | FO103: 87.1% | FP103: 94.1% | FQ103: 85.9% | FR103: 88.2% | FS103: 20.7% | FT103: 95.3% | FU103: 18.5% | FV103: 90.0% | FW103: 29.8% | GA103: DIET
A104: 1 | B104: 2016 | C104: Meeting future food demand with current agricultural resources | D104: Davis, K. F. Gephart, J. A. Emery, K. A. Leach, A. M. Galloway, J. N. D’Odorico, P. | E104: Davis et al. (2016) | F104: Journal article | G104: Global Environmental Change | H104: S2 | I104: Pescaterian diet | J104: 2029 | K104: Food system | L104: Yes | M104: Davis et al. (2016) | N104: GHGLCA | AR104: 6.87 | AS104: Gt CO2e/yr | BA104: 0.0% | BB104: FAO - Permanent meadows and pastures | BC104: Agriculture | BD104: 4259.1 | BE104: 2348.9 | BF104: 1910.2 | BJ104: Mha | BL104: Water Footprint Network - Mekonnen & Hoekstra (2011) | BM104: 1,202.0 | BO104: 4,814.79 | BP104: km3/yr | BQ104: 0.0% | BS104: 0.0% | BU104: 137.21 | BX104: TgN/yr | BY104: 0.0% | CK104: 0.0% | CL104: 75.5% | CO104: 0% | CP104: 8.36 | CQ104: billion | CR104: 2,614.32 | CS104: OMN/FLX | CV104: 23.9 | CW104: 61.2 | CX104: 28.3 | CY104: 89.5 | CZ104: 113.4 | DA104: 55.6 | DB104: 26.0 | DC104: 81.7 | DD104: 195.1 | DE104: 157.6 | DF104: 39.0 | DG104: 196.6 | DJ104: 391.7 | DK104: 15.0% | DL104: 1,092.7 | DM104: 134.8 | DN104: 509.7 | DO104: 82.8 | DP104: 186.8 | DQ104: 215.7 | DT104: 2,222.6 | DU104: kcal/capita/day | DV104: 0% | EI104: 5.16 | EJ104: Mtonne/Mha | EL104: 5.07 | EM104: 57.59 | EO104: 57.59 | EP104: 3.4 | EQ104: 3.1 | ER104: 2.35 | ES104: 2.74 | ET104: 3.4 | EU104: 3.1 | EV104: 3.33 | EW104: 6.01 | EX104: 2.82 | EY104: FCR (kg feed per kg animal) | FL104: 16.2% | FN104: 16.2% | FO104: 87.1% | FP104: 94.1% | FQ104: 85.9% | FR104: 88.2% | FS104: 20.7% | FT104: 95.3% | FU104: 18.6% | FV104: 89.9% | FW104: 29.9% | GA104: DIET
A105: 1 | B105: 2016 | C105: Meeting future food demand with current agricultural resources | D105: Davis, K. F. Gephart, J. A. Emery, K. A. Leach, A. M. Galloway, J. N. D’Odorico, P. | E105: Davis et al. (2016) | F105: Journal article | G105: Global Environmental Change | H105: S2 | I105: Pescaterian diet | J105: 2030 | K105: Food system | L105: Yes | M105: Davis et al. (2016) | N105: GHGLCA | AR105: 6.79 | AS105: Gt CO2e/yr | BA105: 0.0% | BB105: FAO - Permanent meadows and pastures | BC105: Agriculture | BD105: 4197.0 | BE105: 2272.8 | BF105: 1924.3 | BJ105: Mha | BL105: Water Footprint Network - Mekonnen & Hoekstra (2011) | BM105: 1,223.0 | BO105: 4,808.75 | BP105: km3/yr | BQ105: 0.0% | BS105: 0.0% | BU105: 137.97 | BX105: TgN/yr | BY105: 0.0% | CK105: 0.0% | CL105: 75.5% | CO105: 0% | CP105: 8.42 | CQ105: billion | CR105: 2,602.65 | CS105: OMN/FLX | CV105: 22.8 | CW105: 58.3 | CX105: 26.9 | CY105: 85.2 | CZ105: 108.0 | DA105: 57.3 | DB105: 25.8 | DC105: 83.1 | DD105: 191.1 | DE105: 158.5 | DF105: 39.2 | DG105: 197.8 | DJ105: 388.9 | DK105: 14.9% | DL105: 1,082.5 | DM105: 134.4 | DN105: 511.5 | DO105: 83.5 | DP105: 187.0 | DQ105: 214.8 | DT105: 2,213.8 | DU105: kcal/capita/day | DV105: 0% | EI105: 5.16 | EJ105: Mtonne/Mha | EL105: 4.97 | EM105: 57.59 | EO105: 57.59 | EP105: 3.4 | EQ105: 3.1 | ER105: 2.35 | ES105: 2.72 | ET105: 3.4 | EU105: 3.1 | EV105: 3.33 | EW105: 5.87 | EX105: 2.81 | EY105: FCR (kg feed per kg animal) | FL105: 16.2% | FN105: 16.2% | FO105: 87.1% | FP105: 94.1% | FQ105: 85.9% | FR105: 88.1% | FS105: 20.7% | FT105: 95.3% | FU105: 18.7% | FV105: 89.9% | FW105: 30.1% | GA105: DIET
A106: 1 | B106: 2016 | C106: Meeting future food demand with current agricultural resources | D106: Davis, K. F. Gephart, J. A. Emery, K. A. Leach, A. M. Galloway, J. N. D’Odorico, P. | E106: Davis et al. (2016) | F106: Journal article | G106: Global Environmental Change | H106: S2 | I106: Pescaterian diet | J106: 2031 | K106: Food system | L106: Yes | M106: Davis et al. (2016) | N106: GHGLCA | AR106: 6.71 | AS106: Gt CO2e/yr | BA106: 0.0% | BB106: FAO - Permanent meadows and pastures | BC106: Agriculture | BD106: 4133.0 | BE106: 2194.9 | BF106: 1938.1 | BJ106: Mha | BL106: Water Footprint Network - Mekonnen & Hoekstra (2011) | BM106: 1,245.0 | BO106: 4,800.49 | BP106: km3/yr | BQ106: 0.0% | BS106: 0.0% | BU106: 138.71 | BX106: TgN/yr | BY106: 0.0% | CK106: 0.0% | CL106: 75.5% | CO106: 0% | CP106: 8.49 | CQ106: billion | CR106: 2,590.99 | CS106: OMN/FLX | CV106: 21.6 | CW106: 55.4 | CX106: 25.6 | CY106: 81.0 | CZ106: 102.6 | DA106: 58.9 | DB106: 25.6 | DC106: 84.5 | DD106: 187.1 | DE106: 159.4 | DF106: 39.4 | DG106: 198.9 | DJ106: 386.0 | DK106: 14.9% | DL106: 1,072.4 | DM106: 134.0 | DN106: 513.3 | DO106: 84.2 | DP106: 187.2 | DQ106: 213.8 | DT106: 2,205.0 | DU106: kcal/capita/day | DV106: 0% | EI106: 5.16 | EJ106: Mtonne/Mha | EL106: 4.88 | EM106: 57.59 | EO106: 57.59 | EP106: 3.4 | EQ106: 3.1 | ER106: 2.35 | ES106: 2.71 | ET106: 3.4 | EU106: 3.1 | EV106: 3.33 | EW106: 5.74 | EX106: 2.79 | EY106: FCR (kg feed per kg animal) | FL106: 16.2% | FN106: 16.2% | FO106: 87.1% | FP106: 94.1% | FQ106: 85.9% | FR106: 88.0% | FS106: 20.7% | FT106: 95.3% | FU106: 18.7% | FV106: 89.8% | FW106: 30.2% | GA106: DIET
A107: 1 | B107: 2016 | C107: Meeting future food demand with current agricultural resources | D107: Davis, K. F. Gephart, J. A. Emery, K. A. Leach, A. M. Galloway, J. N. D’Odorico, P. | E107: Davis et al. (2016) | F107: Journal article | G107: Global Environmental Change | H107: S2 | I107: Pescaterian diet | J107: 2032 | K107: Food system | L107: Yes | M107: Davis et al. (2016) | N107: GHGLCA | AR107: 6.62 | AS107: Gt CO2e/yr | BA107: 0.0% | BB107: FAO - Permanent meadows and pastures | BC107: Agriculture | BD107: 4067.0 | BE107: 2115.3 | BF107: 1951.7 | BJ107: Mha | BL107: Water Footprint Network - Mekonnen & Hoekstra (2011) | BM107: 1,266.0 | BO107: 4,792.01 | BP107: km3/yr | BQ107: 0.0% | BS107: 0.0% | BU107: 139.42 | BX107: TgN/yr | BY107: 0.0% | CK107: 0.0% | CL107: 75.5% | CO107: 0% | CP107: 8.56 | CQ107: billion | CR107: 2,579.33 | CS107: OMN/FLX | CV107: 20.5 | CW107: 52.5 | CX107: 24.2 | CY107: 76.7 | CZ107: 97.2 | DA107: 60.5 | DB107: 25.4 | DC107: 86.0 | DD107: 183.2 | DE107: 160.4 | DF107: 39.6 | DG107: 200.0 | DJ107: 383.2 | DK107: 14.9% | DL107: 1,062.2 | DM107: 133.6 | DN107: 515.1 | DO107: 85.0 | DP107: 187.4 | DQ107: 212.9 | DT107: 2,196.2 | DU107: kcal/capita/day | DV107: 0% | EI107: 5.16 | EJ107: Mtonne/Mha | EL107: 4.78 | EM107: 57.59 | EO107: 57.59 | EP107: 3.4 | EQ107: 3.1 | ER107: 2.35 | ES107: 2.69 | ET107: 3.4 | EU107: 3.1 | EV107: 3.33 | EW107: 5.61 | EX107: 2.78 | EY107: FCR (kg feed per kg animal) | FL107: 16.2% | FN107: 16.2% | FO107: 87.1% | FP107: 94.1% | FQ107: 85.9% | FR107: 87.9% | FS107: 20.7% | FT107: 95.3% | FU107: 18.8% | FV107: 89.8% | FW107: 30.4% | GA107: DIET
A108: 1 | B108: 2016 | C108: Meeting future food demand with current agricultural resources | D108: Davis, K. F. Gephart, J. A. Emery, K. A. Leach, A. M. Galloway, J. N. D’Odorico, P. | E108: Davis et al. (2016) | F108: Journal article | G108: Global Environmental Change | H108: S2 | I108: Pescaterian diet | J108: 2033 | K108: Food system | L108: Yes | M108: Davis et al. (2016) | N108: GHGLCA | AR108: 6.54 | AS108: Gt CO2e/yr | BA108: 0.0% | BB108: FAO - Permanent meadows and pastures | BC108: Agriculture | BD108: 3999.1 | BE108: 2034.1 | BF108: 1965.0 | BJ108: Mha | BL108: Water Footprint Network - Mekonnen & Hoekstra (2011) | BM108: 1,287.0 | BO108: 4,782.33 | BP108: km3/yr | BQ108: 0.0% | BS108: 0.0% | BU108: 140.12 | BX108: TgN/yr | BY108: 0.0% | CK108: 0.0% | CL108: 75.5% | CO108: 0% | CP108: 8.62 | CQ108: billion | CR108: 2,567.66 | CS108: OMN/FLX | CV108: 19.4 | CW108: 49.5 | CX108: 22.9 | CY108: 72.4 | CZ108: 91.8 | DA108: 62.2 | DB108: 25.2 | DC108: 87.4 | DD108: 179.2 | DE108: 161.3 | DF108: 39.8 | DG108: 201.1 | DJ108: 380.3 | DK108: 14.8% | DL108: 1,052.0 | DM108: 133.2 | DN108: 517.0 | DO108: 85.7 | DP108: 187.5 | DQ108: 211.9 | DT108: 2,187.3 | DU108: kcal/capita/day | DV108: 0% | EI108: 5.16 | EJ108: Mtonne/Mha | EL108: 4.69 | EM108: 57.59 | EO108: 57.59 | EP108: 3.4 | EQ108: 3.1 | ER108: 2.35 | ES108: 2.67 | ET108: 3.4 | EU108: 3.1 | EV108: 3.33 | EW108: 5.47 | EX108: 2.77 | EY108: FCR (kg feed per kg animal) | FL108: 16.2% | FN108: 16.2% | FO108: 87.1% | FP108: 94.1% | FQ108: 85.9% | FR108: 87.8% | FS108: 20.7% | FT108: 95.3% | FU108: 18.9% | FV108: 89.8% | FW108: 30.5% | GA108: DIET
A109: 1 | B109: 2016 | C109: Meeting future food demand with current agricultural resources | D109: Davis, K. F. Gephart, J. A. Emery, K. A. Leach, A. M. Galloway, J. N. D’Odorico, P. | E109: Davis et al. (2016) | F109: Journal article | G109: Global Environmental Change | H109: S2 | I109: Pescaterian diet | J109: 2034 | K109: Food system | L109: Yes | M109: Davis et al. (2016) | N109: GHGLCA | AR109: 6.45 | AS109: Gt CO2e/yr | BA109: 0.0% | BB109: FAO - Permanent meadows and pastures | BC109: Agriculture | BD109: 3929.2 | BE109: 1951.2 | BF109: 1978.0 | BJ109: Mha | BL109: Water Footprint Network - Mekonnen & Hoekstra (2011) | BM109: 1,309.0 | BO109: 4,770.45 | BP109: km3/yr | BQ109: 0.0% | BS109: 0.0% | BU109: 140.78 | BX109: TgN/yr | BY109: 0.0% | CK109: 0.0% | CL109: 75.5% | CO109: 0% | CP109: 8.68 | CQ109: billion | CR109: 2,556.00 | CS109: OMN/FLX | CV109: 18.2 | CW109: 46.6 | CX109: 21.6 | CY109: 68.2 | CZ109: 86.4 | DA109: 63.8 | DB109: 25.1 | DC109: 88.8 | DD109: 175.3 | DE109: 162.2 | DF109: 40.0 | DG109: 202.2 | DJ109: 377.5 | DK109: 14.8% | DL109: 1,041.8 | DM109: 132.8 | DN109: 518.8 | DO109: 86.4 | DP109: 187.7 | DQ109: 211.0 | DT109: 2,178.5 | DU109: kcal/capita/day | DV109: 0% | EI109: 5.16 | EJ109: Mtonne/Mha | EL109: 4.60 | EM109: 57.59 | EO109: 57.59 | EP109: 3.4 | EQ109: 3.1 | ER109: 2.35 | ES109: 2.65 | ET109: 3.4 | EU109: 3.1 | EV109: 3.33 | EW109: 5.34 | EX109: 2.76 | EY109: FCR (kg feed per kg animal) | FL109: 16.2% | FN109: 16.2% | FO109: 87.1% | FP109: 94.1% | FQ109: 85.9% | FR109: 87.7% | FS109: 20.7% | FT109: 95.3% | FU109: 18.9% | FV109: 89.7% | FW109: 30.7% | GA109: DIET
A110: 1 | B110: 2016 | C110: Meeting future food demand with current agricultural resources | D110: Davis, K. F. Gephart, J. A. Emery, K. A. Leach, A. M. Galloway, J. N. D’Odorico, P. | E110: Davis et al. (2016) | F110: Journal article | G110: Global Environmental Change | H110: S2 | I110: Pescaterian diet | J110: 2035 | K110: Food system | L110: Yes | M110: Davis et al. (2016) | N110: GHGLCA | AR110: 6.35 | AS110: Gt CO2e/yr | BA110: 0.0% | BB110: FAO - Permanent meadows and pastures | BC110: Agriculture | BD110: 3857.5 | BE110: 1866.8 | BF110: 1990.8 | BJ110: Mha | BL110: Water Footprint Network - Mekonnen & Hoekstra (2011) | BM110: 1,330.0 | BO110: 4,758.38 | BP110: km3/yr | BQ110: 0.0% | BS110: 0.0% | BU110: 141.43 | BX110: TgN/yr | BY110: 0.0% | CK110: 0.0% | CL110: 75.5% | CO110: 0% | CP110: 8.74 | CQ110: billion | CR110: 2,544.33 | CS110: OMN/FLX | CV110: 17.1 | CW110: 43.7 | CX110: 20.2 | CY110: 63.9 | CZ110: 81.0 | DA110: 65.4 | DB110: 24.9 | DC110: 90.3 | DD110: 171.3 | DE110: 163.1 | DF110: 40.2 | DG110: 203.3 | DJ110: 374.6 | DK110: 14.7% | DL110: 1,031.6 | DM110: 132.4 | DN110: 520.6 | DO110: 87.1 | DP110: 187.9 | DQ110: 210.0 | DT110: 2,169.7 | DU110: kcal/capita/day | DV110: 0% | EI110: 5.16 | EJ110: Mtonne/Mha | EL110: 4.50 | EM110: 57.59 | EO110: 57.59 | EP110: 3.4 | EQ110: 3.1 | ER110: 2.35 | ES110: 2.64 | ET110: 3.4 | EU110: 3.1 | EV110: 3.33 | EW110: 5.21 | EX110: 2.74 | EY110: FCR (kg feed per kg animal) | FL110: 16.2% | FN110: 16.2% | FO110: 87.1% | FP110: 94.1% | FQ110: 85.9% | FR110: 87.6% | FS110: 20.7% | FT110: 95.3% | FU110: 19.0% | FV110: 89.7% | FW110: 30.9% | GA110: DIET
A111: 1 | B111: 2016 | C111: Meeting future food demand with current agricultural resources | D111: Davis, K. F. Gephart, J. A. Emery, K. A. Leach, A. M. Galloway, J. N. D’Odorico, P. | E111: Davis et al. (2016) | F111: Journal article | G111: Global Environmental Change | H111: S2 | I111: Pescaterian diet | J111: 2036 | K111: Food system | L111: Yes | M111: Davis et al. (2016) | N111: GHGLCA | AR111: 6.26 | AS111: Gt CO2e/yr | BA111: 0.0% | BB111: FAO - Permanent meadows and pastures | BC111: Agriculture | BD111: 3784.0 | BE111: 1780.7 | BF111: 2003.3 | BJ111: Mha | BL111: Water Footprint Network - Mekonnen & Hoekstra (2011) | BM111: 1,352.0 | BO111: 4,744.13 | BP111: km3/yr | BQ111: 0.0% | BS111: 0.0% | BU111: 142.05 | BX111: TgN/yr | BY111: 0.0% | CK111: 0.0% | CL111: 75.5% | CO111: 0% | CP111: 8.80 | CQ111: billion | CR111: 2,532.67 | CS111: OMN/FLX | CV111: 15.9 | CW111: 40.8 | CX111: 18.9 | CY111: 59.7 | CZ111: 75.6 | DA111: 67.0 | DB111: 24.7 | DC111: 91.7 | DD111: 167.3 | DE111: 164.1 | DF111: 40.4 | DG111: 204.5 | DJ111: 371.8 | DK111: 14.7% | DL111: 1,021.5 | DM111: 132.0 | DN111: 522.4 | DO111: 87.8 | DP111: 188.1 | DQ111: 209.1 | DT111: 2,160.9 | DU111: kcal/capita/day | DV111: 0% | EI111: 5.16 | EJ111: Mtonne/Mha | EL111: 4.41 | EM111: 57.59 | EO111: 57.59 | EP111: 3.4 | EQ111: 3.1 | ER111: 2.35 | ES111: 2.62 | ET111: 3.4 | EU111: 3.1 | EV111: 3.33 | EW111: 5.08 | EX111: 2.73 | EY111: FCR (kg feed per kg animal) | FL111: 16.2% | FN111: 16.2% | FO111: 87.1% | FP111: 94.1% | FQ111: 85.9% | FR111: 87.5% | FS111: 20.7% | FT111: 95.3% | FU111: 19.1% | FV111: 89.6% | FW111: 31.1% | GA111: DIET
A112: 1 | B112: 2016 | C112: Meeting future food demand with current agricultural resources | D112: Davis, K. F. Gephart, J. A. Emery, K. A. Leach, A. M. Galloway, J. N. D’Odorico, P. | E112: Davis et al. (2016) | F112: Journal article | G112: Global Environmental Change | H112: S2 | I112: Pescaterian diet | J112: 2037 | K112: Food system | L112: Yes | M112: Davis et al. (2016) | N112: GHGLCA | AR112: 6.16 | AS112: Gt CO2e/yr | BA112: 0.0% | BB112: FAO - Permanent meadows and pastures | BC112: Agriculture | BD112: 3708.6 | BE112: 1693.1 | BF112: 2015.5 | BJ112: Mha | BL112: Water Footprint Network - Mekonnen & Hoekstra (2011) | BM112: 1,373.0 | BO112: 4,729.71 | BP112: km3/yr | BQ112: 0.0% | BS112: 0.0% | BU112: 142.64 | BX112: TgN/yr | BY112: 0.0% | CK112: 0.0% | CL112: 75.5% | CO112: 0% | CP112: 8.86 | CQ112: billion | CR112: 2,521.00 | CS112: OMN/FLX | CV112: 14.8 | CW112: 37.9 | CX112: 17.5 | CY112: 55.4 | CZ112: 70.2 | DA112: 68.6 | DB112: 24.5 | DC112: 93.2 | DD112: 163.4 | DE112: 165.0 | DF112: 40.6 | DG112: 205.6 | DJ112: 368.9 | DK112: 14.6% | DL112: 1,011.3 | DM112: 131.6 | DN112: 524.3 | DO112: 88.5 | DP112: 188.2 | DQ112: 208.1 | DT112: 2,152.1 | DU112: kcal/capita/day | DV112: 0% | EI112: 5.16 | EJ112: Mtonne/Mha | EL112: 4.32 | EM112: 57.59 | EO112: 57.59 | EP112: 3.4 | EQ112: 3.1 | ER112: 2.35 | ES112: 2.60 | ET112: 3.4 | EU112: 3.1 | EV112: 3.33 | EW112: 4.96 | EX112: 2.72 | EY112: FCR (kg feed per kg animal) | FL112: 16.2% | FN112: 16.2% | FO112: 87.1% | FP112: 94.1% | FQ112: 85.9% | FR112: 87.4% | FS112: 20.7% | FT112: 95.3% | FU112: 19.2% | FV112: 89.6% | FW112: 31.3% | GA112: DIET
A113: 1 | B113: 2016 | C113: Meeting future food demand with current agricultural resources | D113: Davis, K. F. Gephart, J. A. Emery, K. A. Leach, A. M. Galloway, J. N. D’Odorico, P. | E113: Davis et al. (2016) | F113: Journal article | G113: Global Environmental Change | H113: S2 | I113: Pescaterian diet | J113: 2038 | K113: Food system | L113: Yes | M113: Davis et al. (2016) | N113: GHGLCA | AR113: 6.06 | AS113: Gt CO2e/yr | BA113: 0.0% | BB113: FAO - Permanent meadows and pastures | BC113: Agriculture | BD113: 3631.4 | BE113: 1604.0 | BF113: 2027.5 | BJ113: Mha | BL113: Water Footprint Network - Mekonnen & Hoekstra (2011) | BM113: 1,394.0 | BO113: 4,714.10 | BP113: km3/yr | BQ113: 0.0% | BS113: 0.0% | BU113: 143.22 | BX113: TgN/yr | BY113: 0.0% | CK113: 0.0% | CL113: 75.5% | CO113: 0% | CP113: 8.92 | CQ113: billion | CR113: 2,509.34 | CS113: OMN/FLX | CV113: 13.7 | CW113: 35.0 | CX113: 16.2 | CY113: 51.1 | CZ113: 64.8 | DA113: 70.2 | DB113: 24.4 | DC113: 94.6 | DD113: 159.4 | DE113: 165.9 | DF113: 40.8 | DG113: 206.7 | DJ113: 366.1 | DK113: 14.6% | DL113: 1,001.1 | DM113: 131.2 | DN113: 526.1 | DO113: 89.3 | DP113: 188.4 | DQ113: 207.2 | DT113: 2,143.3 | DU113: kcal/capita/day | DV113: 0% | EI113: 5.16 | EJ113: Mtonne/Mha | EL113: 4.23 | EM113: 57.59 | EO113: 57.59 | EP113: 3.4 | EQ113: 3.1 | ER113: 2.35 | ES113: 2.58 | ET113: 3.4 | EU113: 3.1 | EV113: 3.33 | EW113: 4.83 | EX113: 2.71 | EY113: FCR (kg feed per kg animal) | FL113: 16.2% | FN113: 16.2% | FO113: 87.1% | FP113: 94.1% | FQ113: 85.9% | FR113: 87.3% | FS113: 20.7% | FT113: 95.3% | FU113: 19.2% | FV113: 89.5% | FW113: 31.5% | GA113: DIET
A114: 1 | B114: 2016 | C114: Meeting future food demand with current agricultural resources | D114: Davis, K. F. Gephart, J. A. Emery, K. A. Leach, A. M. Galloway, J. N. D’Odorico, P. | E114: Davis et al. (2016) | F114: Journal article | G114: Global Environmental Change | H114: S2 | I114: Pescaterian diet | J114: 2039 | K114: Food system | L114: Yes | M114: Davis et al. (2016) | N114: GHGLCA | AR114: 5.96 | AS114: Gt CO2e/yr | BA114: 0.0% | BB114: FAO - Permanent meadows and pastures | BC114: Agriculture | BD114: 3552.5 | BE114: 1513.3 | BF114: 2039.1 | BJ114: Mha | BL114: Water Footprint Network - Mekonnen & Hoekstra (2011) | BM114: 1,415.0 | BO114: 4,697.30 | BP114: km3/yr | BQ114: 0.0% | BS114: 0.0% | BU114: 143.77 | BX114: TgN/yr | BY114: 0.0% | CK114: 0.0% | CL114: 75.5% | CO114: 0% | CP114: 8.98 | CQ114: billion | CR114: 2,497.67 | CS114: OMN/FLX | CV114: 12.5 | CW114: 32.1 | CX114: 14.8 | CY114: 46.9 | CZ114: 59.4 | DA114: 71.8 | DB114: 24.2 | DC114: 96.0 | DD114: 155.4 | DE114: 166.8 | DF114: 41.0 | DG114: 207.8 | DJ114: 363.2 | DK114: 14.5% | DL114: 990.9 | DM114: 130.8 | DN114: 527.9 | DO114: 90.0 | DP114: 188.6 | DQ114: 206.2 | DT114: 2,134.4 | DU114: kcal/capita/day | DV114: 0% | EI114: 5.16 | EJ114: Mtonne/Mha | EL114: 4.13 | EM114: 57.59 | EO114: 57.59 | EP114: 3.4 | EQ114: 3.1 | ER114: 2.35 | ES114: 2.56 | ET114: 3.4 | EU114: 3.1 | EV114: 3.33 | EW114: 4.70 | EX114: 2.69 | EY114: FCR (kg feed per kg animal) | FL114: 16.2% | FN114: 16.2% | FO114: 87.1% | FP114: 94.1% | FQ114: 85.9% | FR114: 87.2% | FS114: 20.7% | FT114: 95.3% | FU114: 19.3% | FV114: 89.5% | FW114: 31.7% | GA114: DIET
A115: 1 | B115: 2016 | C115: Meeting future food demand with current agricultural resources | D115: Davis, K. F. Gephart, J. A. Emery, K. A. Leach, A. M. Galloway, J. N. D’Odorico, P. | E115: Davis et al. (2016) | F115: Journal article | G115: Global Environmental Change | H115: S2 | I115: Pescaterian diet | J115: 2040 | K115: Food system | L115: Yes | M115: Davis et al. (2016) | N115: GHGLCA | AR115: 5.85 | AS115: Gt CO2e/yr | BA115: 0.0% | BB115: FAO - Permanent meadows and pastures | BC115: Agriculture | BD115: 3471.8 | BE115: 1421.3 | BF115: 2050.5 | BJ115: Mha | BL115: Water Footprint Network - Mekonnen & Hoekstra (2011) | BM115: 1,437.0 | BO115: 4,678.30 | BP115: km3/yr | BQ115: 0.0% | BS115: 0.0% | BU115: 144.30 | BX115: TgN/yr | BY115: 0.0% | CK115: 0.0% | CL115: 75.5% | CO115: 0% | CP115: 9.04 | CQ115: billion | CR115: 2,486.01 | CS115: OMN/FLX | CV115: 11.4 | CW115: 29.1 | CX115: 13.5 | CY115: 42.6 | CZ115: 54.0 | DA115: 73.4 | DB115: 24.1 | DC115: 97.5 | DD115: 151.5 | DE115: 167.8 | DF115: 41.1 | DG115: 208.9 | DJ115: 360.4 | DK115: 14.5% | DL115: 980.8 | DM115: 130.4 | DN115: 529.7 | DO115: 90.7 | DP115: 188.8 | DQ115: 205.2 | DT115: 2,125.6 | DU115: kcal/capita/day | DV115: 0% | EI115: 5.16 | EJ115: Mtonne/Mha | EL115: 4.04 | EM115: 57.59 | EO115: 57.59 | EP115: 3.4 | EQ115: 3.1 | ER115: 2.35 | ES115: 2.55 | ET115: 3.4 | EU115: 3.1 | EV115: 3.33 | EW115: 4.58 | EX115: 2.68 | EY115: FCR (kg feed per kg animal) | FL115: 16.2% | FN115: 16.2% | FO115: 87.1% | FP115: 94.1% | FQ115: 85.9% | FR115: 87.1% | FS115: 20.7% | FT115: 95.3% | FU115: 19.4% | FV115: 89.4% | FW115: 31.9% | GA115: DIET
A116: 1 | B116: 2016 | C116: Meeting future food demand with current agricultural resources | D116: Davis, K. F. Gephart, J. A. Emery, K. A. Leach, A. M. Galloway, J. N. D’Odorico, P. | E116: Davis et al. (2016) | F116: Journal article | G116: Global Environmental Change | H116: S2 | I116: Pescaterian diet | J116: 2041 | K116: Food system | L116: Yes | M116: Davis et al. (2016) | N116: GHGLCA | AR116: 5.75 | AS116: Gt CO2e/yr | BA116: 0.0% | BB116: FAO - Permanent meadows and pastures | BC116: Agriculture | BD116: 3389.3 | BE116: 1327.7 | BF116: 2061.6 | BJ116: Mha | BL116: Water Footprint Network - Mekonnen & Hoekstra (2011) | BM116: 1,458.0 | BO116: 4,659.11 | BP116: km3/yr | BQ116: 0.0% | BS116: 0.0% | BU116: 144.80 | BX116: TgN/yr | BY116: 0.0% | CK116: 0.0% | CL116: 75.5% | CO116: 0% | CP116: 9.09 | CQ116: billion | CR116: 2,474.35 | CS116: OMN/FLX | CV116: 10.3 | CW116: 26.2 | CX116: 12.1 | CY116: 38.4 | CZ116: 48.6 | DA116: 75.0 | DB116: 23.9 | DC116: 98.9 | DD116: 147.5 | DE116: 168.7 | DF116: 41.3 | DG116: 210.0 | DJ116: 357.5 | DK116: 14.4% | DL116: 970.6 | DM116: 130.0 | DN116: 531.5 | DO116: 91.4 | DP116: 189.0 | DQ116: 204.3 | DT116: 2,116.8 | DU116: kcal/capita/day | DV116: 0% | EI116: 5.16 | EJ116: Mtonne/Mha | EL116: 3.95 | EM116: 57.59 | EO116: 57.59 | EP116: 3.4 | EQ116: 3.1 | ER116: 2.35 | ES116: 2.53 | ET116: 3.4 | EU116: 3.1 | EV116: 3.33 | EW116: 4.45 | EX116: 2.67 | EY116: FCR (kg feed per kg animal) | FL116: 16.2% | FN116: 16.2% | FO116: 87.1% | FP116: 94.1% | FQ116: 85.9% | FR116: 87.0% | FS116: 20.7% | FT116: 95.3% | FU116: 19.5% | FV116: 89.4% | FW116: 32.1% | GA116: DIET
A117: 1 | B117: 2016 | C117: Meeting future food demand with current agricultural resources | D117: Davis, K. F. Gephart, J. A. Emery, K. A. Leach, A. M. Galloway, J. N. D’Odorico, P. | E117: Davis et al. (2016) | F117: Journal article | G117: Global Environmental Change | H117: S2 | I117: Pescaterian diet | J117: 2042 | K117: Food system | L117: Yes | M117: Davis et al. (2016) | N117: GHGLCA | AR117: 5.64 | AS117: Gt CO2e/yr | BA117: 0.0% | BB117: FAO - Permanent meadows and pastures | BC117: Agriculture | BD117: 3305.2 | BE117: 1232.8 | BF117: 2072.4 | BJ117: Mha | BL117: Water Footprint Network - Mekonnen & Hoekstra (2011) | BM117: 1,479.0 | BO117: 4,638.73 | BP117: km3/yr | BQ117: 0.0% | BS117: 0.0% | BU117: 145.28 | BX117: TgN/yr | BY117: 0.0% | CK117: 0.0% | CL117: 75.5% | CO117: 0% | CP117: 9.15 | CQ117: billion | CR117: 2,462.68 | CS117: OMN/FLX | CV117: 9.1 | CW117: 23.3 | CX117: 10.8 | CY117: 34.1 | CZ117: 43.2 | DA117: 76.6 | DB117: 23.8 | DC117: 100.3 | DD117: 143.5 | DE117: 169.6 | DF117: 41.5 | DG117: 211.1 | DJ117: 354.7 | DK117: 14.4% | DL117: 960.4 | DM117: 129.6 | DN117: 533.4 | DO117: 92.1 | DP117: 189.1 | DQ117: 203.3 | DT117: 2,108.0 | DU117: kcal/capita/day | DV117: 0% | EI117: 5.16 | EJ117: Mtonne/Mha | EL117: 3.86 | EM117: 57.59 | EO117: 57.59 | EP117: 3.4 | EQ117: 3.1 | ER117: 2.35 | ES117: 2.51 | ET117: 3.4 | EU117: 3.1 | EV117: 3.33 | EW117: 4.33 | EX117: 2.65 | EY117: FCR (kg feed per kg animal) | FL117: 16.2% | FN117: 16.2% | FO117: 87.1% | FP117: 94.1% | FQ117: 85.9% | FR117: 86.9% | FS117: 20.7% | FT117: 95.3% | FU117: 19.6% | FV117: 89.3% | FW117: 32.4% | GA117: DIET
A118: 1 | B118: 2016 | C118: Meeting future food demand with current agricultural resources | D118: Davis, K. F. Gephart, J. A. Emery, K. A. Leach, A. M. Galloway, J. N. D’Odorico, P. | E118: Davis et al. (2016) | F118: Journal article | G118: Global Environmental Change | H118: S2 | I118: Pescaterian diet | J118: 2043 | K118: Food system | L118: Yes | M118: Davis et al. (2016) | N118: GHGLCA | AR118: 5.52 | AS118: Gt CO2e/yr | BA118: 0.0% | BB118: FAO - Permanent meadows and pastures | BC118: Agriculture | BD118: 3219.4 | BE118: 1136.5 | BF118: 2082.9 | BJ118: Mha | BL118: Water Footprint Network - Mekonnen & Hoekstra (2011) | BM118: 1,500.0 | BO118: 4,617.15 | BP118: km3/yr | BQ118: 0.0% | BS118: 0.0% | BU118: 145.73 | BX118: TgN/yr | BY118: 0.0% | CK118: 0.0% | CL118: 75.5% | CO118: 0% | CP118: 9.20 | CQ118: billion | CR118: 2,451.02 | CS118: OMN/FLX | CV118: 8.0 | CW118: 20.4 | CX118: 9.4 | CY118: 29.8 | CZ118: 37.8 | DA118: 78.1 | DB118: 23.6 | DC118: 101.8 | DD118: 139.6 | DE118: 170.5 | DF118: 41.7 | DG118: 212.3 | DJ118: 351.8 | DK118: 14.4% | DL118: 950.2 | DM118: 129.2 | DN118: 535.2 | DO118: 92.8 | DP118: 189.3 | DQ118: 202.4 | DT118: 2,099.2 | DU118: kcal/capita/day | DV118: 0% | EI118: 5.16 | EJ118: Mtonne/Mha | EL118: 3.77 | EM118: 57.59 | EO118: 57.59 | EP118: 3.4 | EQ118: 3.1 | ER118: 2.35 | ES118: 2.49 | ET118: 3.4 | EU118: 3.1 | EV118: 3.33 | EW118: 4.20 | EX118: 2.64 | EY118: FCR (kg feed per kg animal) | FL118: 16.2% | FN118: 16.2% | FO118: 87.1% | FP118: 94.1% | FQ118: 85.9% | FR118: 86.8% | FS118: 20.7% | FT118: 95.3% | FU118: 19.7% | FV118: 89.3% | FW118: 32.6% | GA118: DIET
A119: 1 | B119: 2016 | C119: Meeting future food demand with current agricultural resources | D119: Davis, K. F. Gephart, J. A. Emery, K. A. Leach, A. M. Galloway, J. N. D’Odorico, P. | E119: Davis et al. (2016) | F119: Journal article | G119: Global Environmental Change | H119: S2 | I119: Pescaterian diet | J119: 2044 | K119: Food system | L119: Yes | M119: Davis et al. (2016) | N119: GHGLCA | AR119: 5.41 | AS119: Gt CO2e/yr | BA119: 0.0% | BB119: FAO - Permanent meadows and pastures | BC119: Agriculture | BD119: 3132.0 | BE119: 1038.9 | BF119: 2093.1 | BJ119: Mha | BL119: Water Footprint Network - Mekonnen & Hoekstra (2011) | BM119: 1,521.0 | BO119: 4,594.39 | BP119: km3/yr | BQ119: 0.0% | BS119: 0.0% | BU119: 146.16 | BX119: TgN/yr | BY119: 0.0% | CK119: 0.0% | CL119: 75.5% | CO119: 0% | CP119: 9.26 | CQ119: billion | CR119: 2,439.35 | CS119: OMN/FLX | CV119: 6.8 | CW119: 17.5 | CX119: 8.1 | CY119: 25.6 | CZ119: 32.4 | DA119: 79.7 | DB119: 23.5 | DC119: 103.2 | DD119: 135.6 | DE119: 171.5 | DF119: 41.9 | DG119: 213.4 | DJ119: 349.0 | DK119: 14.3% | DL119: 940.0 | DM119: 128.8 | DN119: 537.0 | DO119: 93.6 | DP119: 189.5 | DQ119: 201.4 | DT119: 2,090.4 | DU119: kcal/capita/day | DV119: 0% | EI119: 5.16 | EJ119: Mtonne/Mha | EL119: 3.68 | EM119: 57.59 | EO119: 57.59 | EP119: 3.4 | EQ119: 3.1 | ER119: 2.35 | ES119: 2.47 | ET119: 3.4 | EU119: 3.1 | EV119: 3.33 | EW119: 4.08 | EX119: 2.63 | EY119: FCR (kg feed per kg animal) | FL119: 16.2% | FN119: 16.2% | FO119: 87.1% | FP119: 94.1% | FQ119: 85.9% | FR119: 86.6% | FS119: 20.7% | FT119: 95.3% | FU119: 19.9% | FV119: 89.2% | FW119: 32.9% | GA119: DIET
A120: 1 | B120: 2016 | C120: Meeting future food demand with current agricultural resources | D120: Davis, K. F. Gephart, J. A. Emery, K. A. Leach, A. M. Galloway, J. N. D’Odorico, P. | E120: Davis et al. (2016) | F120: Journal article | G120: Global Environmental Change | H120: S2 | I120: Pescaterian diet | J120: 2045 | K120: Food system | L120: Yes | M120: Davis et al. (2016) | N120: GHGLCA | AR120: 5.29 | AS120: Gt CO2e/yr | BA120: 0.0% | BB120: FAO - Permanent meadows and pastures | BC120: Agriculture | BD120: 3043.0 | BE120: 939.9 | BF120: 2103.0 | BJ120: Mha | BL120: Water Footprint Network - Mekonnen & Hoekstra (2011) | BM120: 1,541.0 | BO120: 4,571.44 | BP120: km3/yr | BQ120: 0.0% | BS120: 0.0% | BU120: 146.56 | BX120: TgN/yr | BY120: 0.0% | CK120: 0.0% | CL120: 75.5% | CO120: 0% | CP120: 9.31 | CQ120: billion | CR120: 2,427.69 | CS120: OMN/FLX | CV120: 5.7 | CW120: 14.6 | CX120: 6.7 | CY120: 21.3 | CZ120: 27.0 | DA120: 81.3 | DB120: 23.4 | DC120: 104.6 | DD120: 131.6 | DE120: 172.4 | DF120: 42.1 | DG120: 214.5 | DJ120: 346.1 | DK120: 14.3% | DL120: 929.9 | DM120: 128.4 | DN120: 538.8 | DO120: 94.3 | DP120: 189.7 | DQ120: 200.5 | DT120: 2,081.6 | DU120: kcal/capita/day | DV120: 0% | EI120: 5.16 | EJ120: Mtonne/Mha | EL120: 3.59 | EM120: 57.59 | EO120: 57.59 | EP120: 3.4 | EQ120: 3.1 | ER120: 2.35 | ES120: 2.45 | ET120: 3.4 | EU120: 3.1 | EV120: 3.33 | EW120: 3.96 | EX120: 2.61 | EY120: FCR (kg feed per kg animal) | FL120: 16.2% | FN120: 16.2% | FO120: 87.1% | FP120: 94.1% | FQ120: 85.9% | FR120: 86.5% | FS120: 20.7% | FT120: 95.3% | FU120: 20.0% | FV120: 89.2% | FW120: 33.2% | GA120: DIET
A121: 1 | B121: 2016 | C121: Meeting future food demand with current agricultural resources | D121: Davis, K. F. Gephart, J. A. Emery, K. A. Leach, A. M. Galloway, J. N. D’Odorico, P. | E121: Davis et al. (2016) | F121: Journal article | G121: Global Environmental Change | H121: S2 | I121: Pescaterian diet | J121: 2046 | K121: Food system | L121: Yes | M121: Davis et al. (2016) | N121: GHGLCA | AR121: 5.17 | AS121: Gt CO2e/yr | BA121: 0.0% | BB121: FAO - Permanent meadows and pastures | BC121: Agriculture | BD121: 2952.4 | BE121: 839.7 | BF121: 2112.6 | BJ121: Mha | BL121: Water Footprint Network - Mekonnen & Hoekstra (2011) | BM121: 1,562.0 | BO121: 4,546.30 | BP121: km3/yr | BQ121: 0.0% | BS121: 0.0% | BU121: 146.94 | BX121: TgN/yr | BY121: 0.0% | CK121: 0.0% | CL121: 75.5% | CO121: 0% | CP121: 9.36 | CQ121: billion | CR121: 2,416.02 | CS121: OMN/FLX | CV121: 4.6 | CW121: 11.7 | CX121: 5.4 | CY121: 17.0 | CZ121: 21.6 | DA121: 82.8 | DB121: 23.2 | DC121: 106.1 | DD121: 127.7 | DE121: 173.3 | DF121: 42.3 | DG121: 215.6 | DJ121: 343.3 | DK121: 14.2% | DL121: 919.7 | DM121: 128.0 | DN121: 540.7 | DO121: 95.0 | DP121: 189.9 | DQ121: 199.5 | DT121: 2,072.7 | DU121: kcal/capita/day | DV121: 0% | EI121: 5.16 | EJ121: Mtonne/Mha | EL121: 3.50 | EM121: 57.59 | EO121: 57.59 | EP121: 3.4 | EQ121: 3.1 | ER121: 2.35 | ES121: 2.43 | ET121: 3.4 | EU121: 3.1 | EV121: 3.33 | EW121: 3.84 | EX121: 2.60 | EY121: FCR (kg feed per kg animal) | FL121: 16.2% | FN121: 16.2% | FO121: 87.1% | FP121: 94.1% | FQ121: 85.9% | FR121: 86.4% | FS121: 20.7% | FT121: 95.3% | FU121: 20.1% | FV121: 89.1% | FW121: 33.5% | GA121: DIET
A122: 1 | B122: 2016 | C122: Meeting future food demand with current agricultural resources | D122: Davis, K. F. Gephart, J. A. Emery, K. A. Leach, A. M. Galloway, J. N. D’Odorico, P. | E122: Davis et al. (2016) | F122: Journal article | G122: Global Environmental Change | H122: S2 | I122: Pescaterian diet | J122: 2047 | K122: Food system | L122: Yes | M122: Davis et al. (2016) | N122: GHGLCA | AR122: 5.05 | AS122: Gt CO2e/yr | BA122: 0.0% | BB122: FAO - Permanent meadows and pastures | BC122: Agriculture | BD122: 2860.3 | BE122: 738.3 | BF122: 2121.9 | BJ122: Mha | BL122: Water Footprint Network - Mekonnen & Hoekstra (2011) | BM122: 1,583.0 | BO122: 4,520.00 | BP122: km3/yr | BQ122: 0.0% | BS122: 0.0% | BU122: 147.30 | BX122: TgN/yr | BY122: 0.0% | CK122: 0.0% | CL122: 75.5% | CO122: 0% | CP122: 9.41 | CQ122: billion | CR122: 2,404.36 | CS122: OMN/FLX | CV122: 3.4 | CW122: 8.7 | CX122: 4.0 | CY122: 12.8 | CZ122: 16.2 | DA122: 84.4 | DB122: 23.1 | DC122: 107.5 | DD122: 123.7 | DE122: 174.2 | DF122: 42.5 | DG122: 216.7 | DJ122: 340.4 | DK122: 14.2% | DL122: 909.5 | DM122: 127.6 | DN122: 542.5 | DO122: 95.7 | DP122: 190.0 | DQ122: 198.6 | DT122: 2,063.9 | DU122: kcal/capita/day | DV122: 0% | EI122: 5.16 | EJ122: Mtonne/Mha | EL122: 3.41 | EM122: 57.59 | EO122: 57.59 | EP122: 3.4 | EQ122: 3.1 | ER122: 2.35 | ES122: 2.41 | ET122: 3.4 | EU122: 3.1 | EV122: 3.33 | EW122: 3.72 | EX122: 2.59 | EY122: FCR (kg feed per kg animal) | FL122: 16.2% | FN122: 16.2% | FO122: 87.1% | FP122: 94.1% | FQ122: 85.9% | FR122: 86.3% | FS122: 20.7% | FT122: 95.3% | FU122: 20.2% | FV122: 89.1% | FW122: 33.8% | GA122: DIET
A123: 1 | B123: 2016 | C123: Meeting future food demand with current agricultural resources | D123: Davis, K. F. Gephart, J. A. Emery, K. A. Leach, A. M. Galloway, J. N. D’Odorico, P. | E123: Davis et al. (2016) | F123: Journal article | G123: Global Environmental Change | H123: S2 | I123: Pescaterian diet | J123: 2048 | K123: Food system | L123: Yes | M123: Davis et al. (2016) | N123: GHGLCA | AR123: 4.93 | AS123: Gt CO2e/yr | BA123: 0.0% | BB123: FAO - Permanent meadows and pastures | BC123: Agriculture | BD123: 2766.6 | BE123: 635.7 | BF123: 2130.9 | BJ123: Mha | BL123: Water Footprint Network - Mekonnen & Hoekstra (2011) | BM123: 1,603.0 | BO123: 4,493.54 | BP123: km3/yr | BQ123: 0.0% | BS123: 0.0% | BU123: 147.63 | BX123: TgN/yr | BY123: 0.0% | CK123: 0.0% | CL123: 75.5% | CO123: 0% | CP123: 9.46 | CQ123: billion | CR123: 2,392.70 | CS123: OMN/FLX | CV123: 2.3 | CW123: 5.8 | CX123: 2.7 | CY123: 8.5 | CZ123: 10.8 | DA123: 85.9 | DB123: 23.0 | DC123: 108.9 | DD123: 119.7 | DE123: 175.2 | DF123: 42.7 | DG123: 217.8 | DJ123: 337.6 | DK123: 14.1% | DL123: 899.3 | DM123: 127.2 | DN123: 544.3 | DO123: 96.4 | DP123: 190.2 | DQ123: 197.6 | DT123: 2,055.1 | DU123: kcal/capita/day | DV123: 0% | EI123: 5.16 | EJ123: Mtonne/Mha | EL123: 3.32 | EM123: 57.59 | EO123: 57.59 | EP123: 3.4 | EQ123: 3.1 | ER123: 2.35 | ES123: 2.39 | ET123: 3.4 | EU123: 3.1 | EV123: 3.33 | EW123: 3.60 | EX123: 2.57 | EY123: FCR (kg feed per kg animal) | FL123: 16.2% | FN123: 16.2% | FO123: 87.1% | FP123: 94.1% | FQ123: 85.9% | FR123: 86.1% | FS123: 20.7% | FT123: 95.3% | FU123: 20.4% | FV123: 89.0% | FW123: 34.1% | GA123: DIET
A124: 1 | B124: 2016 | C124: Meeting future food demand with current agricultural resources | D124: Davis, K. F. Gephart, J. A. Emery, K. A. Leach, A. M. Galloway, J. N. D’Odorico, P. | E124: Davis et al. (2016) | F124: Journal article | G124: Global Environmental Change | H124: S2 | I124: Pescaterian diet | J124: 2049 | K124: Food system | L124: Yes | M124: Davis et al. (2016) | N124: GHGLCA | AR124: 4.80 | AS124: Gt CO2e/yr | BA124: 0.0% | BB124: FAO - Permanent meadows and pastures | BC124: Agriculture | BD124: 2671.6 | BE124: 531.9 | BF124: 2139.6 | BJ124: Mha | BL124: Water Footprint Network - Mekonnen & Hoekstra (2011) | BM124: 1,623.0 | BO124: 4,465.93 | BP124: km3/yr | BQ124: 0.0% | BS124: 0.0% | BU124: 147.93 | BX124: TgN/yr | BY124: 0.0% | CK124: 0.0% | CL124: 75.5% | CO124: 0% | CP124: 9.50 | CQ124: billion | CR124: 2,381.03 | CS124: OMN/FLX | CV124: 1.1 | CW124: 2.9 | CX124: 1.3 | CY124: 4.3 | CZ124: 5.4 | DA124: 87.5 | DB124: 22.9 | DC124: 110.4 | DD124: 115.8 | DE124: 176.1 | DF124: 42.9 | DG124: 219.0 | DJ124: 334.7 | DK124: 14.1% | DL124: 889.2 | DM124: 126.8 | DN124: 546.1 | DO124: 97.1 | DP124: 190.4 | DQ124: 196.6 | DT124: 2,046.3 | DU124: kcal/capita/day | DV124: 0% | EI124: 5.16 | EJ124: Mtonne/Mha | EL124: 3.23 | EM124: 57.59 | EO124: 57.59 | EP124: 3.4 | EQ124: 3.1 | ER124: 2.35 | ES124: 2.37 | ET124: 3.4 | EU124: 3.1 | EV124: 3.33 | EW124: 3.48 | EX124: 2.56 | EY124: FCR (kg feed per kg animal) | FL124: 16.2% | FN124: 16.2% | FO124: 87.1% | FP124: 94.1% | FQ124: 85.9% | FR124: 86.0% | FS124: 20.7% | FT124: 95.3% | FU124: 20.5% | FV124: 89.0% | FW124: 34.4% | GA124: DIET
A125: 1 | B125: 2016 | C125: Meeting future food demand with current agricultural resources | D125: Davis, K. F. Gephart, J. A. Emery, K. A. Leach, A. M. Galloway, J. N. D’Odorico, P. | E125: Davis et al. (2016) | F125: Journal article | G125: Global Environmental Change | H125: S3 | I125: Pescaterian diet | J125: 2050 | K125: Food system | L125: Yes | M125: Davis et al. (2016) | N125: GHGLCA | AR125: 4.68 | AS125: Gt CO2e/yr | BA125: 0.0% | BB125: FAO - Permanent meadows and pastures | BC125: Agriculture | BD125: 2575.1 | BE125: 427.1 | BF125: 2148.0 | BJ125: Mha | BL125: Water Footprint Network - Mekonnen & Hoekstra (2011) | BM125: 1,643.6 | BO125: 4,436.57 | BP125: km3/yr | BQ125: 0.0% | BS125: 0.0% | BU125: 148.22 | BX125: TgN/yr | BY125: 0.0% | CK125: 0.0% | CL125: 75.5% | CO125: 0% | CP125: 9.55 | CQ125: billion | CR125: 2,369.37 | CS125: PSC | CV125: 0.0 | CW125: 0.0 | CX125: 0.0 | CY125: 0.0 | CZ125: 0.0 | DA125: 89.0 | DB125: 22.8 | DC125: 111.8 | DD125: 111.8 | DE125: 177.0 | DF125: 43.1 | DG125: 220.1 | DJ125: 331.9 | DK125: 14.0% | DL125: 879.0 | DM125: 126.4 | DN125: 547.9 | DO125: 97.8 | DP125: 190.6 | DQ125: 195.7 | DT125: 2,037.5 | DU125: kcal/capita/day | DV125: 0% | EI125: 5.16 | EJ125: Mtonne/Mha | EL125: 3.14 | EM125: NA | EO125: NA | EP125: NA | EQ125: NA | ER125: 2.35 | ES125: 2.35 | ET125: 3.4 | EU125: 3.1 | EV125: 3.33 | EW125: 3.36 | EX125: 2.55 | EY125: FCR (kg feed per kg animal) | FL125: NA | FN125: NA | FO125: NA | FP125: NA | FQ125: 85.9% | FR125: 85.9% | FS125: 20.7% | FT125: 95.3% | FU125: 20.7% | FV125: 88.9% | FW125: 34.8% | GA125: DIET
A126: 1 | B126: 2016 | C126: Meeting future food demand with current agricultural resources | D126: Davis, K. F. Gephart, J. A. Emery, K. A. Leach, A. M. Galloway, J. N. D’Odorico, P. | E126: Davis et al. (2016) | F126: Journal article | G126: Global Environmental Change | H126: S3 | I126: Vegetarian diet | J126: 2010 | K126: Food system | L126: Yes | M126: Davis et al. (2016) | N126: GHGLCA | AR126: 7.64 | AS126: Gt CO2e/yr | BA126: 0.0% | BB126: FAO - Permanent meadows and pastures | BC126: Agriculture | BD126: 4949.1 | BE126: 3374.0 | BF126: 1575.1 | BJ126: Mha | BL126: Water Footprint Network - Mekonnen & Hoekstra (2011) | BM126: 796.0 | BO126: 4,623.43 | BP126: km3/yr | BQ126: 0.0% | BS126: 0.0% | BU126: 116.87 | BX126: TgN/yr | BY126: 0.0% | CK126: 0.0% | CL126: 75.5% | CO126: 0% | CP126: 6.92 | CQ126: billion | CR126: 2,837.85 | CS126: OMN/FLX | CV126: 45.6 | CW126: 116.6 | CX126: 53.9 | CY126: 170.5 | CZ126: 216.0 | DA126: 20.2 | DB126: 31.5 | DC126: 51.7 | DD126: 267.7 | DE126: 141.8 | DF126: 35.9 | DG126: 177.7 | DJ126: 445.4 | DK126: 15.7% | DL126: 1,287.6 | DM126: 142.7 | DN126: 475.7 | DO126: 69.2 | DP126: 183.4 | DQ126: 233.9 | DT126: 2,392.4 | DU126: kcal/capita/day | DV126: 0% | EI126: 5.16 | EJ126: Mtonne/Mha | EL126: 6.95 | EM126: 57.59 | EO126: 57.59 | EP126: 3.4 | EQ126: 3.1 | ER126: 2.35 | ES126: 3.06 | ET126: 3.4 | EU126: 3.1 | EV126: 3.33 | EW126: 8.68 | EX126: 3.07 | EY126: FCR (kg feed per kg animal) | FL126: 16.2% | FN126: 16.2% | FO126: 87.1% | FP126: 94.1% | FQ126: 85.9% | FR126: 89.6% | FS126: 20.7% | FT126: 95.3% | FU126: 17.8% | FV126: 90.8% | FW126: 27.7% | GA126: DIET
A127: 1 | B127: 2016 | C127: Meeting future food demand with current agricultural resources | D127: Davis, K. F. Gephart, J. A. Emery, K. A. Leach, A. M. Galloway, J. N. D’Odorico, P. | E127: Davis et al. (2016) | F127: Journal article | G127: Global Environmental Change | H127: S3 | I127: Vegetarian diet | J127: 2011 | K127: Food system | L127: Yes | M127: Davis et al. (2016) | N127: GHGLCA | AR127: 7.74 | AS127: Gt CO2e/yr | BA127: 0.0% | BB127: FAO - Permanent meadows and pastures | BC127: Agriculture | BD127: 4986.9 | BE127: 3384.0 | BF127: 1602.9 | BJ127: Mha | BL127: Water Footprint Network - Mekonnen & Hoekstra (2011) | BM127: 810.0 | BO127: 4,700.81 | BP127: km3/yr | BQ127: 0.0% | BS127: 0.0% | BU127: 118.80 | BX127: TgN/yr | BY127: 0.0% | CK127: 0.0% | CL127: 75.5% | CO127: 0% | CP127: 7.00 | CQ127: billion | CR127: 2,828.10 | CS127: OMN/FLX | CV127: 44.4 | CW127: 113.7 | CX127: 52.5 | CY127: 166.2 | CZ127: 210.6 | DA127: 19.3 | DB127: 31.1 | DC127: 50.4 | DD127: 261.0 | DE127: 144.6 | DF127: 36.6 | DG127: 181.1 | DJ127: 442.1 | DK127: 15.6% | DL127: 1,278.9 | DM127: 142.5 | DN127: 478.1 | DO127: 69.9 | DP127: 183.6 | DQ127: 232.9 | DT127: 2,386.0 | DU127: kcal/capita/day | DV127: 0% | EI127: 5.16 | EJ127: Mtonne/Mha | EL127: 6.84 | EM127: 57.59 | EO127: 57.59 | EP127: 3.4 | EQ127: 3.1 | ER127: 2.35 | ES127: 3.07 | ET127: 3.4 | EU127: 3.1 | EV127: 3.33 | EW127: 8.47 | EX127: 3.07 | EY127: FCR (kg feed per kg animal) | FL127: 16.2% | FN127: 16.2% | FO127: 87.1% | FP127: 94.1% | FQ127: 85.9% | FR127: 89.6% | FS127: 20.7% | FT127: 95.3% | FU127: 17.8% | FV127: 90.8% | FW127: 27.7% | GA127: DIET
A128: 1 | B128: 2016 | C128: Meeting future food demand with current agricultural resources | D128: Davis, K. F. Gephart, J. A. Emery, K. A. Leach, A. M. Galloway, J. N. D’Odorico, P. | E128: Davis et al. (2016) | F128: Journal article | G128: Global Environmental Change | H128: S3 | I128: Vegetarian diet | J128: 2012 | K128: Food system | L128: Yes | M128: Davis et al. (2016) | N128: GHGLCA | AR128: 7.72 | AS128: Gt CO2e/yr | BA128: 0.0% | BB128: FAO - Permanent meadows and pastures | BC128: Agriculture | BD128: 4960.5 | BE128: 3347.5 | BF128: 1613.0 | BJ128: Mha | BL128: Water Footprint Network - Mekonnen & Hoekstra (2011) | BM128: 812.0 | BO128: 4,730.92 | BP128: km3/yr | BQ128: 0.0% | BS128: 0.0% | BU128: 119.17 | BX128: TgN/yr | BY128: 0.0% | CK128: 0.0% | CL128: 75.5% | CO128: 0% | CP128: 7.08 | CQ128: billion | CR128: 2,818.35 | CS128: OMN/FLX | CV128: 43.3 | CW128: 110.7 | CX128: 51.2 | CY128: 161.9 | CZ128: 205.2 | DA128: 18.4 | DB128: 30.7 | DC128: 49.1 | DD128: 254.3 | DE128: 147.3 | DF128: 37.2 | DG128: 184.5 | DJ128: 438.8 | DK128: 15.6% | DL128: 1,270.3 | DM128: 142.3 | DN128: 480.5 | DO128: 70.6 | DP128: 183.8 | DQ128: 232.0 | DT128: 2,379.5 | DU128: kcal/capita/day | DV128: 0% | EI128: 5.16 | EJ128: Mtonne/Mha | EL128: 6.74 | EM128: 57.59 | EO128: 57.59 | EP128: 3.4 | EQ128: 3.1 | ER128: 2.35 | ES128: 3.07 | ET128: 3.4 | EU128: 3.1 | EV128: 3.33 | EW128: 8.26 | EX128: 3.07 | EY128: FCR (kg feed per kg animal) | FL128: 16.2% | FN128: 16.2% | FO128: 87.1% | FP128: 94.1% | FQ128: 85.9% | FR128: 89.6% | FS128: 20.7% | FT128: 95.3% | FU128: 17.9% | FV128: 90.9% | FW128: 27.7% | GA128: DIET
A129: 1 | B129: 2016 | C129: Meeting future food demand with current agricultural resources | D129: Davis, K. F. Gephart, J. A. Emery, K. A. Leach, A. M. Galloway, J. N. D’Odorico, P. | E129: Davis et al. (2016) | F129: Journal article | G129: Global Environmental Change | H129: S3 | I129: Vegetarian diet | J129: 2013 | K129: Food system | L129: Yes | M129: Davis et al. (2016) | N129: GHGLCA | AR129: 7.69 | AS129: Gt CO2e/yr | BA129: 0.0% | BB129: FAO - Permanent meadows and pastures | BC129: Agriculture | BD129: 4932.2 | BE129: 3309.2 | BF129: 1622.9 | BJ129: Mha | BL129: Water Footprint Network - Mekonnen & Hoekstra (2011) | BM129: 814.0 | BO129: 4,760.26 | BP129: km3/yr | BQ129: 0.0% | BS129: 0.0% | BU129: 119.51 | BX129: TgN/yr | BY129: 0.0% | CK129: 0.0% | CL129: 75.5% | CO129: 0% | CP129: 7.16 | CQ129: billion | CR129: 2,808.60 | CS129: OMN/FLX | CV129: 42.1 | CW129: 107.8 | CX129: 49.8 | CY129: 157.7 | CZ129: 199.8 | DA129: 17.4 | DB129: 30.4 | DC129: 47.8 | DD129: 247.6 | DE129: 150.0 | DF129: 37.9 | DG129: 187.9 | DJ129: 435.5 | DK129: 15.5% | DL129: 1,261.6 | DM129: 142.2 | DN129: 482.9 | DO129: 71.4 | DP129: 184.0 | DQ129: 231.0 | DT129: 2,373.1 | DU129: kcal/capita/day | DV129: 0% | EI129: 5.16 | EJ129: Mtonne/Mha | EL129: 6.64 | EM129: 57.59 | EO129: 57.59 | EP129: 3.4 | EQ129: 3.1 | ER129: 2.35 | ES129: 3.07 | ET129: 3.4 | EU129: 3.1 | EV129: 3.33 | EW129: 8.07 | EX129: 3.08 | EY129: FCR (kg feed per kg animal) | FL129: 16.2% | FN129: 16.2% | FO129: 87.1% | FP129: 94.1% | FQ129: 85.9% | FR129: 89.6% | FS129: 20.7% | FT129: 95.3% | FU129: 17.9% | FV129: 91.0% | FW129: 27.7% | GA129: DIET
A130: 1 | B130: 2016 | C130: Meeting future food demand with current agricultural resources | D130: Davis, K. F. Gephart, J. A. Emery, K. A. Leach, A. M. Galloway, J. N. D’Odorico, P. | E130: Davis et al. (2016) | F130: Journal article | G130: Global Environmental Change | H130: S3 | I130: Vegetarian diet | J130: 2014 | K130: Food system | L130: Yes | M130: =E130 -> Davis et al. (2016) | N130: GHGLCA | AR130: 7.66 | AS130: Gt CO2e/yr | BA130: 0.0% | BB130: FAO - Permanent meadows and pastures | BC130: Agriculture | BD130: 4901.6 | BE130: 3269.0 | BF130: 1632.6 | BJ130: Mha | BL130: Water Footprint Network - Mekonnen & Hoekstra (2011) | BM130: 816.0 | BO130: 4,788.55 | BP130: km3/yr | BQ130: 0.0% | BS130: 0.0% | BU130: 119.82 | BX130: TgN/yr | BY130: 0.0% | CK130: 0.0% | CL130: 75.5% | CO130: 0% | CP130: 7.24 | CQ130: billion | CR130: =SUM(DJ130,DT130) -> 2,798.85 | CS130: =IF(AND(CZ130=0,DE130=0),"VGN",IF(AND(CZ130=0,DE130>0,DC130=0),"VEG",IF(AND(CZ130=0,DE130>0,DC130>0),"PSC","OMN/FLX"))) -> OMN/FLX | CV130: 41.0 | CW130: 104.9 | CX130: 48.5 | CY130: =CW130+CX130 -> 153.4 | CZ130: =CV130+CY130 -> 194.4 | DA130: =DC130-DB130 -> 16.5 | DB130: 30.0 | DC130: 46.5 | DD130: =CZ130+DC130 -> 240.9 | DE130: 152.8 | DF130: 38.6 | DG130: =SUM(DE130:DF130) -> 191.3 | DJ130: =DD130+DG130 -> 432.3 | DK130: =DJ130/CR130 -> 15.4% | DL130: 1,253.0 | DM130: 142.0 | DN130: 485.4 | DO130: 72.1 | DP130: 184.1 | DQ130: 230.1 | DT130: =SUM(DL130:DQ130) -> 2,366.6 | DU130: kcal/capita/day | DV130: 0% | EI130: 5.16 | EJ130: Mtonne/Mha | EL130: 6.53 | EM130: 57.59 | EO130: 57.59 | EP130: 3.4 | EQ130: 3.1 | ER130: 2.35 | ES130: 3.08 | ET130: 3.4 | EU130: 3.1 | EV130: 3.33 | EW130: 7.87 | EX130: 3.08 | EY130: FCR (kg feed per kg animal) | FL130: 16.2% | FN130: 16.2% | FO130: 87.1% | FP130: 94.1% | FQ130: 85.9% | FR130: 89.7% | FS130: 20.7% | FT130: 95.3% | FU130: 18.0% | FV130: 91.0% | FW130: 27.7% | GA130: DIET
A131: =IF(C131=C130,A130,A130+1) -> 1 | B131: 2016 | C131: Meeting future food demand with current agricultural resources | D131: Davis, K. F. Gephart, J. A. Emery, K. A. Leach, A. M. Galloway, J. N. D’Odorico, P. | E131: Davis et al. (2016) | F131: Journal article | G131: Global Environmental Change | H131: S3 | I131: Vegetarian diet | J131: 2015 | K131: Food system | L131: Yes | M131: Davis et al. (2016) | N131: GHGLCA | AR131: 7.63 | AS131: Gt CO2e/yr | BA131: 0.0% | BB131: FAO - Permanent meadows and pastures | BC131: Agriculture | BD131: 4868.5 | BE131: 3226.7 | BF131: 1641.8 | BJ131: Mha | BL131: Water Footprint Network - Mekonnen & Hoekstra (2011) | BM131: 818.0 | BO131: 4,815.57 | BP131: km3/yr | BQ131: 0.0% | BS131: 0.0% | BU131: 120.10 | BX131: TgN/yr | BY131: 0.0% | CK131: 0.0% | CL131: =CL$2 -> 75.5% | CO131: 0% | CP131: 7.32 | CQ131: billion | CR131: 2,789.10 | CS131: OMN/FLX | CV131: 39.9 | CW131: 102.0 | CX131: 47.1 | CY131: 149.1 | CZ131: 189.0 | DA131: 15.5 | DB131: =IF(DB$2*CP$2/CP131<DC131,DB$2*CP$2/CP131,DC131) -> 29.7 | DC131: 45.2 | DD131: 234.2 | DE131: 155.5 | DF131: 39.2 | DG131: 194.7 | DJ131: 429.0 | DK131: 15.4% | DL131: 1,244.3 | DM131: 141.8 | DN131: 487.8 | DO131: 72.8 | DP131: 184.3 | DQ131: 229.1 | DT131: 2,360.1 | DU131: kcal/capita/day | DV131: 0% | EI131: 5.16 | EJ131: Mtonne/Mha | EL131: 6.43 | EM131: 57.59 | EO131: 57.59 | EP131: 3.4 | EQ131: 3.1 | ER131: 2.35 | ES131: 3.08 | ET131: 3.4 | EU131: 3.1 | EV131: 3.33 | EW131: 7.69 | EX131: 3.08 | EY131: FCR (kg feed per kg animal) | FL131: 16.2% | FN131: 16.2% | FO131: 87.1% | FP131: 94.1% | FQ131: 85.9% | FR131: 89.7% | FS131: 20.7% | FT131: 95.3% | FU131: 18.0% | FV131: 91.1% | FW131: 27.7% | GA131: DIET
A132: 1 | B132: 2016 | C132: Meeting future food demand with current agricultural resources | D132: Davis, K. F. Gephart, J. A. Emery, K. A. Leach, A. M. Galloway, J. N. D’Odorico, P. | E132: Davis et al. (2016) | F132: Journal article | G132: Global Environmental Change | H132: S3 | I132: Vegetarian diet | J132: 2016 | K132: Food system | L132: Yes | M132: Davis et al. (2016) | N132: GHGLCA | AR132: 7.60 | AS132: Gt CO2e/yr | BA132: 0.0% | BB132: FAO - Permanent meadows and pastures | BC132: Agriculture | BD132: 4833.1 | BE132: 3182.4 | BF132: 1650.7 | BJ132: Mha | BL132: Water Footprint Network - Mekonnen & Hoekstra (2011) | BM132: 819.0 | BO132: 4,842.24 | BP132: km3/yr | BQ132: 0.0% | BS132: 0.0% | BU132: 120.33 | BX132: TgN/yr | BY132: 0.0% | CK132: 0.0% | CL132: 75.5% | CO132: 0% | CP132: 7.40 | CQ132: billion | CR132: 2,779.35 | CS132: OMN/FLX | CV132: 38.7 | CW132: 99.1 | CX132: 45.8 | CY132: 144.9 | CZ132: 183.6 | DA132: 14.5 | DB132: 29.4 | DC132: 43.9 | DD132: 227.5 | DE132: 158.2 | DF132: 39.9 | DG132: 198.2 | DJ132: 425.7 | DK132: 15.3% | DL132: 1,235.6 | DM132: 141.6 | DN132: 490.2 | DO132: 73.5 | DP132: 184.5 | DQ132: 228.2 | DT132: 2,353.7 | DU132: kcal/capita/day | DV132: 0% | EI132: 5.16 | EJ132: Mtonne/Mha | EL132: 6.33 | EM132: 57.59 | EO132: 57.59 | EP132: 3.4 | EQ132: 3.1 | ER132: 2.35 | ES132: 3.08 | ET132: 3.4 | EU132: 3.1 | EV132: 3.33 | EW132: 7.51 | EX132: 3.09 | EY132: FCR (kg feed per kg animal) | FL132: 16.2% | FN132: 16.2% | FO132: 87.1% | FP132: 94.1% | FQ132: 85.9% | FR132: 89.7% | FS132: 20.7% | FT132: 95.3% | FU132: 18.1% | FV132: 91.2% | FW132: 27.7% | GA132: DIET
A133: 1 | B133: 2016 | C133: Meeting future food demand with current agricultural resources | D133: Davis, K. F. Gephart, J. A. Emery, K. A. Leach, A. M. Galloway, J. N. D’Odorico, P. | E133: Davis et al. (2016) | F133: Journal article | G133: Global Environmental Change | H133: S3 | I133: Vegetarian diet | J133: 2017 | K133: Food system | L133: Yes | M133: Davis et al. (2016) | N133: GHGLCA | AR133: 7.56 | AS133: Gt CO2e/yr | BA133: 0.0% | BB133: FAO - Permanent meadows and pastures | BC133: Agriculture | BD133: 4795.1 | BE133: 3135.9 | BF133: 1659.2 | BJ133: Mha | BL133: Water Footprint Network - Mekonnen & Hoekstra (2011) | BM133: 820.0 | BO133: 4,867.52 | BP133: km3/yr | BQ133: 0.0% | BS133: 0.0% | BU133: 120.54 | BX133: TgN/yr | BY133: 0.0% | CK133: 0.0% | CL133: 75.5% | CO133: 0% | CP133: 7.48 | CQ133: billion | CR133: 2,769.60 | CS133: OMN/FLX | CV133: 37.6 | CW133: 96.2 | CX133: 44.4 | CY133: 140.6 | CZ133: 178.2 | DA133: 13.6 | DB133: 29.1 | DC133: 42.6 | DD133: 220.8 | DE133: 161.0 | DF133: 40.6 | DG133: 201.6 | DJ133: 422.4 | DK133: 15.3% | DL133: 1,227.0 | DM133: 141.5 | DN133: 492.7 | DO133: 74.2 | DP133: 184.7 | DQ133: 227.2 | DT133: 2,347.2 | DU133: kcal/capita/day | DV133: 0% | EI133: 5.16 | EJ133: Mtonne/Mha | EL133: 6.23 | EM133: 57.59 | EO133: 57.59 | EP133: 3.4 | EQ133: 3.1 | ER133: 2.35 | ES133: 3.09 | ET133: 3.4 | EU133: 3.1 | EV133: 3.33 | EW133: 7.33 | EX133: 3.09 | EY133: FCR (kg feed per kg animal) | FL133: 16.2% | FN133: 16.2% | FO133: 87.1% | FP133: 94.1% | FQ133: 85.9% | FR133: 89.7% | FS133: 20.7% | FT133: 95.3% | FU133: 18.1% | FV133: 91.2% | FW133: 27.7% | GA133: DIET
A134: 1 | B134: 2016 | C134: Meeting future food demand with current agricultural resources | D134: Davis, K. F. Gephart, J. A. Emery, K. A. Leach, A. M. Galloway, J. N. D’Odorico, P. | E134: Davis et al. (2016) | F134: Journal article | G134: Global Environmental Change | H134: S3 | I134: Vegetarian diet | J134: 2018 | K134: Food system | L134: Yes | M134: Davis et al. (2016) | N134: GHGLCA | AR134: 7.52 | AS134: Gt CO2e/yr | BA134: 0.0% | BB134: FAO - Permanent meadows and pastures | BC134: Agriculture | BD134: 4754.7 | BE134: 3087.4 | BF134: 1667.3 | BJ134: Mha | BL134: Water Footprint Network - Mekonnen & Hoekstra (2011) | BM134: 820.0 | BO134: 4,892.39 | BP134: km3/yr | BQ134: 0.0% | BS134: 0.0% | BU134: 120.70 | BX134: TgN/yr | BY134: 0.0% | CK134: 0.0% | CL134: 75.5% | CO134: 0% | CP134: 7.56 | CQ134: billion | CR134: 2,759.85 | CS134: OMN/FLX | CV134: 36.4 | CW134: 93.3 | CX134: 43.1 | CY134: 136.4 | CZ134: 172.8 | DA134: 12.6 | DB134: 28.8 | DC134: 41.3 | DD134: 214.2 | DE134: 163.7 | DF134: 41.2 | DG134: 205.0 | DJ134: 419.1 | DK134: 15.2% | DL134: 1,218.3 | DM134: 141.3 | DN134: 495.1 | DO134: 74.9 | DP134: 184.9 | DQ134: 226.2 | DT134: 2,340.7 | DU134: kcal/capita/day | DV134: 0% | EI134: 5.16 | EJ134: Mtonne/Mha | EL134: 6.13 | EM134: 57.59 | EO134: 57.59 | EP134: 3.4 | EQ134: 3.1 | ER134: 2.35 | ES134: 3.09 | ET134: 3.4 | EU134: 3.1 | EV134: 3.33 | EW134: 7.16 | EX134: 3.09 | EY134: FCR (kg feed per kg animal) | FL134: 16.2% | FN134: 16.2% | FO134: 87.1% | FP134: 94.1% | FQ134: 85.9% | FR134: 89.7% | FS134: 20.7% | FT134: 95.3% | FU134: 18.2% | FV134: 91.3% | FW134: 27.7% | GA134: DIET
A135: 1 | B135: 2016 | C135: Meeting future food demand with current agricultural resources | D135: Davis, K. F. Gephart, J. A. Emery, K. A. Leach, A. M. Galloway, J. N. D’Odorico, P. | E135: Davis et al. (2016) | F135: Journal article | G135: Global Environmental Change | H135: S3 | I135: Vegetarian diet | J135: 2019 | K135: Food system | L135: Yes | M135: Davis et al. (2016) | N135: GHGLCA | AR135: 7.47 | AS135: Gt CO2e/yr | BA135: 0.0% | BB135: FAO - Permanent meadows and pastures | BC135: Agriculture | BD135: 4711.8 | BE135: 3036.8 | BF135: 1675.0 | BJ135: Mha | BL135: Water Footprint Network - Mekonnen & Hoekstra (2011) | BM135: 821.0 | BO135: 4,914.83 | BP135: km3/yr | BQ135: 0.0% | BS135: 0.0% | BU135: 120.83 | BX135: TgN/yr | BY135: 0.0% | CK135: 0.0% | CL135: 75.5% | CO135: 0% | CP135: 7.64 | CQ135: billion | CR135: 2,750.10 | CS135: OMN/FLX | CV135: 35.3 | CW135: 90.3 | CX135: 41.8 | CY135: 132.1 | CZ135: 167.4 | DA135: 11.6 | DB135: 28.5 | DC135: 40.0 | DD135: 207.5 | DE135: 166.5 | DF135: 41.9 | DG135: 208.4 | DJ135: 415.8 | DK135: 15.1% | DL135: 1,209.6 | DM135: 141.1 | DN135: 497.5 | DO135: 75.7 | DP135: 185.0 | DQ135: 225.3 | DT135: 2,334.3 | DU135: kcal/capita/day | DV135: 0% | EI135: 5.16 | EJ135: Mtonne/Mha | EL135: 6.04 | EM135: 57.59 | EO135: 57.59 | EP135: 3.4 | EQ135: 3.1 | ER135: 2.35 | ES135: 3.10 | ET135: 3.4 | EU135: 3.1 | EV135: 3.33 | EW135: 6.99 | EX135: 3.10 | EY135: FCR (kg feed per kg animal) | FL135: 16.2% | FN135: 16.2% | FO135: 87.1% | FP135: 94.1% | FQ135: 85.9% | FR135: 89.8% | FS135: 20.7% | FT135: 95.3% | FU135: 18.2% | FV135: 91.4% | FW135: 27.6% | GA135: DIET
A136: 1 | B136: 2016 | C136: Meeting future food demand with current agricultural resources | D136: Davis, K. F. Gephart, J. A. Emery, K. A. Leach, A. M. Galloway, J. N. D’Odorico, P. | E136: Davis et al. (2016) | F136: Journal article | G136: Global Environmental Change | H136: S3 | I136: Vegetarian diet | J136: 2020 | K136: Food system | L136: Yes | M136: Davis et al. (2016) | N136: GHGLCA | AR136: 7.42 | AS136: Gt CO2e/yr | BA136: 0.0% | BB136: FAO - Permanent meadows and pastures | BC136: Agriculture | BD136: 4666.5 | BE136: 2984.2 | BF136: 1682.3 | BJ136: Mha | BL136: Water Footprint Network - Mekonnen & Hoekstra (2011) | BM136: 821.0 | BO136: 4,936.82 | BP136: km3/yr | BQ136: 0.0% | BS136: 0.0% | BU136: 120.92 | BX136: TgN/yr | BY136: 0.0% | CK136: 0.0% | CL136: 75.5% | CO136: 0% | CP136: 7.72 | CQ136: billion | CR136: 2,740.35 | CS136: OMN/FLX | CV136: 34.2 | CW136: 87.4 | CX136: 40.4 | CY136: 127.8 | CZ136: 162.0 | DA136: 10.6 | DB136: 28.2 | DC136: 38.8 | DD136: 200.8 | DE136: 169.2 | DF136: 42.6 | DG136: 211.8 | DJ136: 412.5 | DK136: 15.1% | DL136: 1,201.0 | DM136: 141.0 | DN136: 500.0 | DO136: 76.4 | DP136: 185.2 | DQ136: 224.3 | DT136: 2,327.8 | DU136: kcal/capita/day | DV136: 0% | EI136: 5.16 | EJ136: Mtonne/Mha | EL136: 5.94 | EM136: 57.59 | EO136: 57.59 | EP136: 3.4 | EQ136: 3.1 | ER136: 2.35 | ES136: 3.11 | ET136: 3.4 | EU136: 3.1 | EV136: 3.33 | EW136: 6.83 | EX136: 3.10 | EY136: FCR (kg feed per kg animal) | FL136: 16.2% | FN136: 16.2% | FO136: 87.1% | FP136: 94.1% | FQ136: 85.9% | FR136: 89.8% | FS136: 20.7% | FT136: 95.3% | FU136: 18.3% | FV136: 91.5% | FW136: 27.6% | GA136: DIET
A137: 1 | B137: 2016 | C137: Meeting future food demand with current agricultural resources | D137: Davis, K. F. Gephart, J. A. Emery, K. A. Leach, A. M. Galloway, J. N. D’Odorico, P. | E137: Davis et al. (2016) | F137: Journal article | G137: Global Environmental Change | H137: S3 | I137: Vegetarian diet | J137: 2021 | K137: Food system | L137: Yes | M137: Davis et al. (2016) | N137: GHGLCA | AR137: 7.37 | AS137: Gt CO2e/yr | BA137: 0.0% | BB137: FAO - Permanent meadows and pastures | BC137: Agriculture | BD137: 4618.7 | BE137: 2929.5 | BF137: 1689.2 | BJ137: Mha | BL137: Water Footprint Network - Mekonnen & Hoekstra (2011) | BM137: 821.0 | BO137: 4,957.33 | BP137: km3/yr | BQ137: 0.0% | BS137: 0.0% | BU137: 120.97 | BX137: TgN/yr | BY137: 0.0% | CK137: 0.0% | CL137: 75.5% | CO137: 0% | CP137: 7.79 | CQ137: billion | CR137: 2,730.60 | CS137: OMN/FLX | CV137: 33.0 | CW137: 84.5 | CX137: 39.1 | CY137: 123.6 | CZ137: 156.6 | DA137: 9.5 | DB137: 27.9 | DC137: 37.5 | DD137: 194.1 | DE137: 171.9 | DF137: 43.2 | DG137: 215.2 | DJ137: 409.3 | DK137: 15.0% | DL137: 1,192.3 | DM137: 140.8 | DN137: 502.4 | DO137: 77.1 | DP137: 185.4 | DQ137: 223.4 | DT137: 2,321.3 | DU137: kcal/capita/day | DV137: 0% | EI137: 5.16 | EJ137: Mtonne/Mha | EL137: 5.85 | EM137: 57.59 | EO137: 57.59 | EP137: 3.4 | EQ137: 3.1 | ER137: 2.35 | ES137: 3.11 | ET137: 3.4 | EU137: 3.1 | EV137: 3.33 | EW137: 6.67 | EX137: 3.11 | EY137: FCR (kg feed per kg animal) | FL137: 16.2% | FN137: 16.2% | FO137: 87.1% | FP137: 94.1% | FQ137: 85.9% | FR137: 89.8% | FS137: 20.7% | FT137: 95.3% | FU137: 18.3% | FV137: 91.5% | FW137: 27.6% | GA137: DIET
A138: 1 | B138: 2016 | C138: Meeting future food demand with current agricultural resources | D138: Davis, K. F. Gephart, J. A. Emery, K. A. Leach, A. M. Galloway, J. N. D’Odorico, P. | E138: Davis et al. (2016) | F138: Journal article | G138: Global Environmental Change | H138: S3 | I138: Vegetarian diet | J138: 2022 | K138: Food system | L138: Yes | M138: Davis et al. (2016) | N138: GHGLCA | AR138: 7.31 | AS138: Gt CO2e/yr | BA138: 0.0% | BB138: FAO - Permanent meadows and pastures | BC138: Agriculture | BD138: 4568.5 | BE138: 2872.8 | BF138: 1695.7 | BJ138: Mha | BL138: Water Footprint Network - Mekonnen & Hoekstra (2011) | BM138: 820.0 | BO138: 4,977.35 | BP138: km3/yr | BQ138: 0.0% | BS138: 0.0% | BU138: 120.98 | BX138: TgN/yr | BY138: 0.0% | CK138: 0.0% | CL138: 75.5% | CO138: 0% | CP138: 7.87 | CQ138: billion | CR138: 2,720.85 | CS138: OMN/FLX | CV138: 31.9 | CW138: 81.6 | CX138: 37.7 | CY138: 119.3 | CZ138: 151.2 | DA138: 8.5 | DB138: 27.7 | DC138: 36.2 | DD138: 187.4 | DE138: 174.7 | DF138: 43.9 | DG138: 218.6 | DJ138: 406.0 | DK138: 14.9% | DL138: 1,183.7 | DM138: 140.6 | DN138: 504.8 | DO138: 77.8 | DP138: 185.6 | DQ138: 222.4 | DT138: 2,314.9 | DU138: kcal/capita/day | DV138: 0% | EI138: 5.16 | EJ138: Mtonne/Mha | EL138: 5.75 | EM138: 57.59 | EO138: 57.59 | EP138: 3.4 | EQ138: 3.1 | ER138: 2.35 | ES138: 3.12 | ET138: 3.4 | EU138: 3.1 | EV138: 3.33 | EW138: 6.51 | EX138: 3.11 | EY138: FCR (kg feed per kg animal) | FL138: 16.2% | FN138: 16.2% | FO138: 87.1% | FP138: 94.1% | FQ138: 85.9% | FR138: 89.8% | FS138: 20.7% | FT138: 95.3% | FU138: 18.4% | FV138: 91.6% | FW138: 27.6% | GA138: DIET
A139: 1 | B139: 2016 | C139: Meeting future food demand with current agricultural resources | D139: Davis, K. F. Gephart, J. A. Emery, K. A. Leach, A. M. Galloway, J. N. D’Odorico, P. | E139: Davis et al. (2016) | F139: Journal article | G139: Global Environmental Change | H139: S3 | I139: Vegetarian diet | J139: 2023 | K139: Food system | L139: Yes | M139: Davis et al. (2016) | N139: GHGLCA | AR139: 7.25 | AS139: Gt CO2e/yr | BA139: 0.0% | BB139: FAO - Permanent meadows and pastures | BC139: Agriculture | BD139: 4515.9 | BE139: 2814.1 | BF139: 1701.7 | BJ139: Mha | BL139: Water Footprint Network - Mekonnen & Hoekstra (2011) | BM139: 820.0 | BO139: 4,994.90 | BP139: km3/yr | BQ139: 0.0% | BS139: 0.0% | BU139: 120.96 | BX139: TgN/yr | BY139: 0.0% | CK139: 0.0% | CL139: 75.5% | CO139: 0% | CP139: 7.94 | CQ139: billion | CR139: 2,711.10 | CS139: OMN/FLX | CV139: 30.8 | CW139: 78.7 | CX139: 36.4 | CY139: 115.1 | CZ139: 145.8 | DA139: 7.5 | DB139: 27.4 | DC139: 34.9 | DD139: 180.7 | DE139: 177.4 | DF139: 44.6 | DG139: 222.0 | DJ139: 402.7 | DK139: 14.9% | DL139: 1,175.0 | DM139: 140.4 | DN139: 507.2 | DO139: 78.5 | DP139: 185.8 | DQ139: 221.5 | DT139: 2,308.4 | DU139: kcal/capita/day | DV139: 0% | EI139: 5.16 | EJ139: Mtonne/Mha | EL139: 5.66 | EM139: 57.59 | EO139: 57.59 | EP139: 3.4 | EQ139: 3.1 | ER139: 2.35 | ES139: 3.13 | ET139: 3.4 | EU139: 3.1 | EV139: 3.33 | EW139: 6.36 | EX139: 3.12 | EY139: FCR (kg feed per kg animal) | FL139: 16.2% | FN139: 16.2% | FO139: 87.1% | FP139: 94.1% | FQ139: 85.9% | FR139: 89.9% | FS139: 20.7% | FT139: 95.3% | FU139: 18.5% | FV139: 91.7% | FW139: 27.6% | GA139: DIET
A140: 1 | B140: 2016 | C140: Meeting future food demand with current agricultural resources | D140: Davis, K. F. Gephart, J. A. Emery, K. A. Leach, A. M. Galloway, J. N. D’Odorico, P. | E140: Davis et al. (2016) | F140: Journal article | G140: Global Environmental Change | H140: S3 | I140: Vegetarian diet | J140: 2024 | K140: Food system | L140: Yes | M140: Davis et al. (2016) | N140: GHGLCA | AR140: 7.19 | AS140: Gt CO2e/yr | BA140: 0.0% | BB140: FAO - Permanent meadows and pastures | BC140: Agriculture | BD140: 4460.9 | BE140: 2753.5 | BF140: 1707.4 | BJ140: Mha | BL140: Water Footprint Network - Mekonnen & Hoekstra (2011) | BM140: 819.0 | BO140: 5,012.02 | BP140: km3/yr | BQ140: 0.0% | BS140: 0.0% | BU140: 120.89 | BX140: TgN/yr | BY140: 0.0% | CK140: 0.0% | CL140: 75.5% | CO140: 0% | CP140: 8.01 | CQ140: billion | CR140: 2,701.35 | CS140: OMN/FLX | CV140: 29.6 | CW140: 75.8 | CX140: 35.0 | CY140: 110.8 | CZ140: 140.4 | DA140: 6.4 | DB140: 27.2 | DC140: 33.6 | DD140: 174.0 | DE140: 180.1 | DF140: 45.2 | DG140: 225.4 | DJ140: 399.4 | DK140: 14.8% | DL140: 1,166.3 | DM140: 140.3 | DN140: 509.7 | DO140: 79.2 | DP140: 185.9 | DQ140: 220.5 | DT140: 2,302.0 | DU140: kcal/capita/day | DV140: 0% | EI140: 5.16 | EJ140: Mtonne/Mha | EL140: 5.56 | EM140: 57.59 | EO140: 57.59 | EP140: 3.4 | EQ140: 3.1 | ER140: 2.35 | ES140: 3.14 | ET140: 3.4 | EU140: 3.1 | EV140: 3.33 | EW140: 6.22 | EX140: 3.12 | EY140: FCR (kg feed per kg animal) | FL140: 16.2% | FN140: 16.2% | FO140: 87.1% | FP140: 94.1% | FQ140: 85.9% | FR140: 89.9% | FS140: 20.7% | FT140: 95.3% | FU140: 18.5% | FV140: 91.8% | FW140: 27.6% | GA140: DIET
A141: 1 | B141: 2016 | C141: Meeting future food demand with current agricultural resources | D141: Davis, K. F. Gephart, J. A. Emery, K. A. Leach, A. M. Galloway, J. N. D’Odorico, P. | E141: Davis et al. (2016) | F141: Journal article | G141: Global Environmental Change | H141: S3 | I141: Vegetarian diet | J141: 2025 | K141: Food system | L141: Yes | M141: Davis et al. (2016) | N141: GHGLCA | AR141: 7.13 | AS141: Gt CO2e/yr | BA141: 0.0% | BB141: FAO - Permanent meadows and pastures | BC141: Agriculture | BD141: 4403.7 | BE141: 2691.0 | BF141: 1712.7 | BJ141: Mha | BL141: Water Footprint Network - Mekonnen & Hoekstra (2011) | BM141: 817.0 | BO141: 5,028.76 | BP141: km3/yr | BQ141: 0.0% | BS141: 0.0% | BU141: 120.79 | BX141: TgN/yr | BY141: 0.0% | CK141: 0.0% | CL141: 75.5% | CO141: 0% | CP141: 8.08 | CQ141: billion | CR141: 2,691.60 | CS141: OMN/FLX | CV141: 28.5 | CW141: 72.9 | CX141: 33.7 | CY141: 106.5 | CZ141: 135.0 | DA141: 5.4 | DB141: 26.9 | DC141: 32.3 | DD141: 167.3 | DE141: 182.9 | DF141: 45.9 | DG141: 228.8 | DJ141: 396.1 | DK141: 14.7% | DL141: 1,157.7 | DM141: 140.1 | DN141: 512.1 | DO141: 79.9 | DP141: 186.1 | DQ141: 219.6 | DT141: 2,295.5 | DU141: kcal/capita/day | DV141: 0% | EI141: 5.16 | EJ141: Mtonne/Mha | EL141: 5.47 | EM141: 57.59 | EO141: 57.59 | EP141: 3.4 | EQ141: 3.1 | ER141: 2.35 | ES141: 3.15 | ET141: 3.4 | EU141: 3.1 | EV141: 3.33 | EW141: 6.07 | EX141: 3.13 | EY141: FCR (kg feed per kg animal) | FL141: 16.2% | FN141: 16.2% | FO141: 87.1% | FP141: 94.1% | FQ141: 85.9% | FR141: 90.0% | FS141: 20.7% | FT141: 95.3% | FU141: 18.6% | FV141: 91.9% | FW141: 27.6% | GA141: DIET
A142: 1 | B142: 2016 | C142: Meeting future food demand with current agricultural resources | D142: Davis, K. F. Gephart, J. A. Emery, K. A. Leach, A. M. Galloway, J. N. D’Odorico, P. | E142: Davis et al. (2016) | F142: Journal article | G142: Global Environmental Change | H142: S3 | I142: Vegetarian diet | J142: 2026 | K142: Food system | L142: Yes | M142: Davis et al. (2016) | N142: GHGLCA | AR142: 7.06 | AS142: Gt CO2e/yr | BA142: 0.0% | BB142: FAO - Permanent meadows and pastures | BC142: Agriculture | BD142: 4344.2 | BE142: 2626.7 | BF142: 1717.5 | BJ142: Mha | BL142: Water Footprint Network - Mekonnen & Hoekstra (2011) | BM142: 816.0 | BO142: 5,043.12 | BP142: km3/yr | BQ142: 0.0% | BS142: 0.0% | BU142: 120.66 | BX142: TgN/yr | BY142: 0.0% | CK142: 0.0% | CL142: 75.5% | CO142: 0% | CP142: 8.15 | CQ142: billion | CR142: 2,681.85 | CS142: OMN/FLX | CV142: 27.3 | CW142: 69.9 | CX142: 32.3 | CY142: 102.3 | CZ142: 129.6 | DA142: 4.3 | DB142: 26.7 | DC142: 31.0 | DD142: 160.6 | DE142: 185.6 | DF142: 46.6 | DG142: 232.2 | DJ142: 392.8 | DK142: 14.6% | DL142: 1,149.0 | DM142: 139.9 | DN142: 514.5 | DO142: 80.7 | DP142: 186.3 | DQ142: 218.6 | DT142: 2,289.0 | DU142: kcal/capita/day | DV142: 0% | EI142: 5.16 | EJ142: Mtonne/Mha | EL142: 5.38 | EM142: 57.59 | EO142: 57.59 | EP142: 3.4 | EQ142: 3.1 | ER142: 2.35 | ES142: 3.16 | ET142: 3.4 | EU142: 3.1 | EV142: 3.33 | EW142: 5.93 | EX142: 3.14 | EY142: FCR (kg feed per kg animal) | FL142: 16.2% | FN142: 16.2% | FO142: 87.1% | FP142: 94.1% | FQ142: 85.9% | FR142: 90.0% | FS142: 20.7% | FT142: 95.3% | FU142: 18.6% | FV142: 92.0% | FW142: 27.5% | GA142: DIET
A143: 1 | B143: 2016 | C143: Meeting future food demand with current agricultural resources | D143: Davis, K. F. Gephart, J. A. Emery, K. A. Leach, A. M. Galloway, J. N. D’Odorico, P. | E143: Davis et al. (2016) | F143: Journal article | G143: Global Environmental Change | H143: S3 | I143: Vegetarian diet | J143: 2027 | K143: Food system | L143: Yes | M143: Davis et al. (2016) | N143: GHGLCA | AR143: 6.98 | AS143: Gt CO2e/yr | BA143: 0.0% | BB143: FAO - Permanent meadows and pastures | BC143: Agriculture | BD143: 4282.5 | BE143: 2560.5 | BF143: 1722.0 | BJ143: Mha | BL143: Water Footprint Network - Mekonnen & Hoekstra (2011) | BM143: 814.0 | BO143: 5,057.12 | BP143: km3/yr | BQ143: 0.0% | BS143: 0.0% | BU143: 120.49 | BX143: TgN/yr | BY143: 0.0% | CK143: 0.0% | CL143: 75.5% | CO143: 0% | CP143: 8.22 | CQ143: billion | CR143: 2,672.10 | CS143: OMN/FLX | CV143: 26.2 | CW143: 67.0 | CX143: 31.0 | CY143: 98.0 | CZ143: 124.2 | DA143: 3.3 | DB143: 26.5 | DC143: 29.7 | DD143: 153.9 | DE143: 188.4 | DF143: 47.3 | DG143: 235.6 | DJ143: 389.5 | DK143: 14.6% | DL143: 1,140.3 | DM143: 139.8 | DN143: 517.0 | DO143: 81.4 | DP143: 186.5 | DQ143: 217.7 | DT143: 2,282.6 | DU143: kcal/capita/day | DV143: 0% | EI143: 5.16 | EJ143: Mtonne/Mha | EL143: 5.29 | EM143: 57.59 | EO143: 57.59 | EP143: 3.4 | EQ143: 3.1 | ER143: 2.35 | ES143: 3.18 | ET143: 3.4 | EU143: 3.1 | EV143: 3.33 | EW143: 5.80 | EX143: 3.14 | EY143: FCR (kg feed per kg animal) | FL143: 16.2% | FN143: 16.2% | FO143: 87.1% | FP143: 94.1% | FQ143: 85.9% | FR143: 90.1% | FS143: 20.7% | FT143: 95.3% | FU143: 18.7% | FV143: 92.2% | FW143: 27.5% | GA143: DIET
A144: 1 | B144: 2016 | C144: Meeting future food demand with current agricultural resources | D144: Davis, K. F. Gephart, J. A. Emery, K. A. Leach, A. M. Galloway, J. N. D’Odorico, P. | E144: Davis et al. (2016) | F144: Journal article | G144: Global Environmental Change | H144: S3 | I144: Vegetarian diet | J144: 2028 | K144: Food system | L144: Yes | M144: Davis et al. (2016) | N144: GHGLCA | AR144: 6.91 | AS144: Gt CO2e/yr | BA144: 0.0% | BB144: FAO - Permanent meadows and pastures | BC144: Agriculture | BD144: 4218.7 | BE144: 2492.5 | BF144: 1726.2 | BJ144: Mha | BL144: Water Footprint Network - Mekonnen & Hoekstra (2011) | BM144: 812.0 | BO144: 5,069.78 | BP144: km3/yr | BQ144: 0.0% | BS144: 0.0% | BU144: 120.29 | BX144: TgN/yr | BY144: 0.0% | CK144: 0.0% | CL144: 75.5% | CO144: 0% | CP144: 8.29 | CQ144: billion | CR144: 2,662.34 | CS144: OMN/FLX | CV144: 25.1 | CW144: 64.1 | CX144: 29.6 | CY144: 93.7 | CZ144: 118.8 | DA144: 2.2 | DB144: 26.2 | DC144: 28.4 | DD144: 147.2 | DE144: 191.1 | DF144: 47.9 | DG144: 239.0 | DJ144: 386.2 | DK144: 14.5% | DL144: 1,131.7 | DM144: 139.6 | DN144: 519.4 | DO144: 82.1 | DP144: 186.6 | DQ144: 216.7 | DT144: 2,276.1 | DU144: kcal/capita/day | DV144: 0% | EI144: 5.16 | EJ144: Mtonne/Mha | EL144: 5.20 | EM144: 57.59 | EO144: 57.59 | EP144: 3.4 | EQ144: 3.1 | ER144: 2.35 | ES144: 3.20 | ET144: 3.4 | EU144: 3.1 | EV144: 3.33 | EW144: 5.66 | EX144: 3.15 | EY144: FCR (kg feed per kg animal) | FL144: 16.2% | FN144: 16.2% | FO144: 87.1% | FP144: 94.1% | FQ144: 85.9% | FR144: 90.1% | FS144: 20.7% | FT144: 95.3% | FU144: 18.8% | FV144: 92.3% | FW144: 27.5% | GA144: DIET
A145: 1 | B145: 2016 | C145: Meeting future food demand with current agricultural resources | D145: Davis, K. F. Gephart, J. A. Emery, K. A. Leach, A. M. Galloway, J. N. D’Odorico, P. | E145: Davis et al. (2016) | F145: Journal article | G145: Global Environmental Change | H145: S3 | I145: Vegetarian diet | J145: 2029 | K145: Food system | L145: Yes | M145: Davis et al. (2016) | N145: GHGLCA | AR145: 6.83 | AS145: Gt CO2e/yr | BA145: 0.0% | BB145: FAO - Permanent meadows and pastures | BC145: Agriculture | BD145: 4152.7 | BE145: 2422.8 | BF145: 1729.9 | BJ145: Mha | BL145: Water Footprint Network - Mekonnen & Hoekstra (2011) | BM145: 810.0 | BO145: 5,081.15 | BP145: km3/yr | BQ145: 0.0% | BS145: 0.0% | BU145: 120.05 | BX145: TgN/yr | BY145: 0.0% | CK145: 0.0% | CL145: 75.5% | CO145: 0% | CP145: 8.36 | CQ145: billion | CR145: 2,652.59 | CS145: OMN/FLX | CV145: 23.9 | CW145: 61.2 | CX145: 28.3 | CY145: 89.5 | CZ145: 113.4 | DA145: 1.1 | DB145: 26.0 | DC145: 27.1 | DD145: 140.5 | DE145: 193.8 | DF145: 48.6 | DG145: 242.4 | DJ145: 383.0 | DK145: 14.4% | DL145: 1,123.0 | DM145: 139.4 | DN145: 521.8 | DO145: 82.8 | DP145: 186.8 | DQ145: 215.7 | DT145: 2,269.6 | DU145: kcal/capita/day | DV145: 0% | EI145: 5.16 | EJ145: Mtonne/Mha | EL145: 5.11 | EM145: 57.59 | EO145: 57.59 | EP145: 3.4 | EQ145: 3.1 | ER145: 2.35 | ES145: 3.21 | ET145: 3.4 | EU145: 3.1 | EV145: 3.33 | EW145: 5.53 | EX145: 3.16 | EY145: FCR (kg feed per kg animal) | FL145: 16.2% | FN145: 16.2% | FO145: 87.1% | FP145: 94.1% | FQ145: 85.9% | FR145: 90.2% | FS145: 20.7% | FT145: 95.3% | FU145: 18.8% | FV145: 92.4% | FW145: 27.5% | GA145: DIET
A146: 1 | B146: 2016 | C146: Meeting future food demand with current agricultural resources | D146: Davis, K. F. Gephart, J. A. Emery, K. A. Leach, A. M. Galloway, J. N. D’Odorico, P. | E146: Davis et al. (2016) | F146: Journal article | G146: Global Environmental Change | H146: S3 | I146: Vegetarian diet | J146: 2030 | K146: Food system | L146: Yes | M146: Davis et al. (2016) | N146: GHGLCA | AR146: 6.75 | AS146: Gt CO2e/yr | BA146: 0.0% | BB146: FAO - Permanent meadows and pastures | BC146: Agriculture | BD146: 4084.7 | BE146: 2351.4 | BF146: 1733.3 | BJ146: Mha | BL146: Water Footprint Network - Mekonnen & Hoekstra (2011) | BM146: 808.0 | BO146: 5,091.26 | BP146: km3/yr | BQ146: 0.0% | BS146: 0.0% | BU146: 119.78 | BX146: TgN/yr | BY146: 0.0% | CK146: 0.0% | CL146: 75.5% | CO146: 0% | CP146: 8.42 | CQ146: billion | CR146: 2,642.84 | CS146: OMN/FLX | CV146: 22.8 | CW146: 58.3 | CX146: 26.9 | CY146: 85.2 | CZ146: 108.0 | DA146: 0.0 | DB146: 25.8 | DC146: 25.8 | DD146: 133.8 | DE146: 196.6 | DF146: 49.3 | DG146: 245.8 | DJ146: 379.7 | DK146: 14.4% | DL146: 1,114.4 | DM146: 139.2 | DN146: 524.3 | DO146: 83.5 | DP146: 187.0 | DQ146: 214.8 | DT146: 2,263.2 | DU146: kcal/capita/day | DV146: 0% | EI146: 5.16 | EJ146: Mtonne/Mha | EL146: 5.02 | EM146: 57.59 | EO146: 57.59 | EP146: 3.4 | EQ146: 3.1 | ER146: 2.35 | ES146: 3.24 | ET146: 3.4 | EU146: 3.1 | EV146: 3.33 | EW146: 5.40 | EX146: 3.17 | EY146: FCR (kg feed per kg animal) | FL146: 16.2% | FN146: 16.2% | FO146: 87.1% | FP146: 94.1% | FQ146: 85.9% | FR146: 90.3% | FS146: 20.7% | FT146: 95.3% | FU146: 18.9% | FV146: 92.6% | FW146: 27.5% | GA146: DIET
A147: 1 | B147: 2016 | C147: Meeting future food demand with current agricultural resources | D147: Davis, K. F. Gephart, J. A. Emery, K. A. Leach, A. M. Galloway, J. N. D’Odorico, P. | E147: Davis et al. (2016) | F147: Journal article | G147: Global Environmental Change | H147: S3 | I147: Vegetarian diet | J147: 2031 | K147: Food system | L147: Yes | M147: Davis et al. (2016) | N147: GHGLCA | AR147: 6.67 | AS147: Gt CO2e/yr | BA147: 0.0% | BB147: FAO - Permanent meadows and pastures | BC147: Agriculture | BD147: 4014.7 | BE147: 2278.3 | BF147: 1736.4 | BJ147: Mha | BL147: Water Footprint Network - Mekonnen & Hoekstra (2011) | BM147: 805.0 | BO147: 5,101.14 | BP147: km3/yr | BQ147: 0.0% | BS147: 0.0% | BU147: 119.48 | BX147: TgN/yr | BY147: 0.0% | CK147: 0.0% | CL147: 75.5% | CO147: 0% | CP147: 8.49 | CQ147: billion | CR147: 2,633.09 | CS147: OMN/FLX | CV147: 21.6 | CW147: 55.4 | CX147: 25.6 | CY147: 81.0 | CZ147: 102.6 | DA147: 0.0 | DB147: 24.5 | DC147: 24.5 | DD147: 127.2 | DE147: 199.3 | DF147: 49.9 | DG147: 249.2 | DJ147: 376.4 | DK147: 14.3% | DL147: 1,105.7 | DM147: 139.1 | DN147: 526.7 | DO147: 84.2 | DP147: 187.2 | DQ147: 213.8 | DT147: 2,256.7 | DU147: kcal/capita/day | DV147: 0% | EI147: 5.16 | EJ147: Mtonne/Mha | EL147: 4.93 | EM147: 57.59 | EO147: 57.59 | EP147: 3.4 | EQ147: 3.1 | ER147: 2.35 | ES147: 3.24 | ET147: 3.4 | EU147: 3.1 | EV147: 3.33 | EW147: 5.28 | EX147: 3.16 | EY147: FCR (kg feed per kg animal) | FL147: 16.2% | FN147: 16.2% | FO147: 87.1% | FP147: 94.1% | FQ147: 85.9% | FR147: 90.3% | FS147: 20.7% | FT147: 95.3% | FU147: 19.0% | FV147: 92.7% | FW147: 27.5% | GA147: DIET
A148: 1 | B148: 2016 | C148: Meeting future food demand with current agricultural resources | D148: Davis, K. F. Gephart, J. A. Emery, K. A. Leach, A. M. Galloway, J. N. D’Odorico, P. | E148: Davis et al. (2016) | F148: Journal article | G148: Global Environmental Change | H148: S3 | I148: Vegetarian diet | J148: 2032 | K148: Food system | L148: Yes | M148: Davis et al. (2016) | N148: GHGLCA | AR148: 6.58 | AS148: Gt CO2e/yr | BA148: 0.0% | BB148: FAO - Permanent meadows and pastures | BC148: Agriculture | BD148: 3942.7 | BE148: 2203.6 | BF148: 1739.1 | BJ148: Mha | BL148: Water Footprint Network - Mekonnen & Hoekstra (2011) | BM148: 802.0 | BO148: 5,109.79 | BP148: km3/yr | BQ148: 0.0% | BS148: 0.0% | BU148: 119.14 | BX148: TgN/yr | BY148: 0.0% | CK148: 0.0% | CL148: 75.5% | CO148: 0% | CP148: 8.56 | CQ148: billion | CR148: 2,623.34 | CS148: OMN/FLX | CV148: 20.5 | CW148: 52.5 | CX148: 24.2 | CY148: 76.7 | CZ148: 97.2 | DA148: 0.0 | DB148: 23.3 | DC148: 23.3 | DD148: 120.5 | DE148: 202.0 | DF148: 50.6 | DG148: 252.6 | DJ148: 373.1 | DK148: 14.2% | DL148: 1,097.0 | DM148: 138.9 | DN148: 529.1 | DO148: 85.0 | DP148: 187.4 | DQ148: 212.9 | DT148: 2,250.2 | DU148: kcal/capita/day | DV148: 0% | EI148: 5.16 | EJ148: Mtonne/Mha | EL148: 4.83 | EM148: 57.59 | EO148: 57.59 | EP148: 3.4 | EQ148: 3.1 | ER148: 2.35 | ES148: 3.24 | ET148: 3.4 | EU148: 3.1 | EV148: 3.33 | EW148: 5.16 | EX148: 3.16 | EY148: FCR (kg feed per kg animal) | FL148: 16.2% | FN148: 16.2% | FO148: 87.1% | FP148: 94.1% | FQ148: 85.9% | FR148: 90.3% | FS148: 20.7% | FT148: 95.3% | FU148: 19.0% | FV148: 92.7% | FW148: 27.4% | GA148: DIET
A149: 1 | B149: 2016 | C149: Meeting future food demand with current agricultural resources | D149: Davis, K. F. Gephart, J. A. Emery, K. A. Leach, A. M. Galloway, J. N. D’Odorico, P. | E149: Davis et al. (2016) | F149: Journal article | G149: Global Environmental Change | H149: S3 | I149: Vegetarian diet | J149: 2033 | K149: Food system | L149: Yes | M149: Davis et al. (2016) | N149: GHGLCA | AR149: 6.49 | AS149: Gt CO2e/yr | BA149: 0.0% | BB149: FAO - Permanent meadows and pastures | BC149: Agriculture | BD149: 3868.7 | BE149: 2127.2 | BF149: 1741.5 | BJ149: Mha | BL149: Water Footprint Network - Mekonnen & Hoekstra (2011) | BM149: 799.0 | BO149: 5,117.23 | BP149: km3/yr | BQ149: 0.0% | BS149: 0.0% | BU149: 118.78 | BX149: TgN/yr | BY149: 0.0% | CK149: 0.0% | CL149: 75.5% | CO149: 0% | CP149: 8.62 | CQ149: billion | CR149: 2,613.59 | CS149: OMN/FLX | CV149: 19.4 | CW149: 49.5 | CX149: 22.9 | CY149: 72.4 | CZ149: 91.8 | DA149: 0.0 | DB149: 22.0 | DC149: 22.0 | DD149: 113.8 | DE149: 204.8 | DF149: 51.3 | DG149: 256.0 | DJ149: 369.8 | DK149: 14.1% | DL149: 1,088.4 | DM149: 138.7 | DN149: 531.5 | DO149: 85.7 | DP149: 187.5 | DQ149: 211.9 | DT149: 2,243.8 | DU149: kcal/capita/day | DV149: 0% | EI149: 5.16 | EJ149: Mtonne/Mha | EL149: 4.74 | EM149: 57.59 | EO149: 57.59 | EP149: 3.4 | EQ149: 3.1 | ER149: 2.35 | ES149: 3.24 | ET149: 3.4 | EU149: 3.1 | EV149: 3.33 | EW149: 5.04 | EX149: 3.16 | EY149: FCR (kg feed per kg animal) | FL149: 16.2% | FN149: 16.2% | FO149: 87.1% | FP149: 94.1% | FQ149: 85.9% | FR149: 90.3% | FS149: 20.7% | FT149: 95.3% | FU149: 19.1% | FV149: 92.8% | FW149: 27.4% | GA149: DIET
A150: 1 | B150: 2016 | C150: Meeting future food demand with current agricultural resources | D150: Davis, K. F. Gephart, J. A. Emery, K. A. Leach, A. M. Galloway, J. N. D’Odorico, P. | E150: Davis et al. (2016) | F150: Journal article | G150: Global Environmental Change | H150: S3 | I150: Vegetarian diet | J150: 2034 | K150: Food system | L150: Yes | M150: Davis et al. (2016) | N150: GHGLCA | AR150: 6.40 | AS150: Gt CO2e/yr | BA150: 0.0% | BB150: FAO - Permanent meadows and pastures | BC150: Agriculture | BD150: 3792.8 | BE150: 2049.3 | BF150: 1743.5 | BJ150: Mha | BL150: Water Footprint Network - Mekonnen & Hoekstra (2011) | BM150: 796.0 | BO150: 5,123.46 | BP150: km3/yr | BQ150: 0.0% | BS150: 0.0% | BU150: 118.38 | BX150: TgN/yr | BY150: 0.0% | CK150: 0.0% | CL150: 75.5% | CO150: 0% | CP150: 8.68 | CQ150: billion | CR150: 2,603.84 | CS150: OMN/FLX | CV150: 18.2 | CW150: 46.6 | CX150: 21.6 | CY150: 68.2 | CZ150: 86.4 | DA150: 0.0 | DB150: 20.7 | DC150: 20.7 | DD150: 107.1 | DE150: 207.5 | DF150: 51.9 | DG150: 259.4 | DJ150: 366.5 | DK150: 14.1% | DL150: 1,079.7 | DM150: 138.6 | DN150: 534.0 | DO150: 86.4 | DP150: 187.7 | DQ150: 211.0 | DT150: 2,237.3 | DU150: kcal/capita/day | DV150: 0% | EI150: 5.16 | EJ150: Mtonne/Mha | EL150: 4.65 | EM150: 57.59 | EO150: 57.59 | EP150: 3.4 | EQ150: 3.1 | ER150: 2.35 | ES150: 3.24 | ET150: 3.4 | EU150: 3.1 | EV150: 3.33 | EW150: 4.92 | EX150: 3.16 | EY150: FCR (kg feed per kg animal) | FL150: 16.2% | FN150: 16.2% | FO150: 87.1% | FP150: 94.1% | FQ150: 85.9% | FR150: 90.3% | FS150: 20.7% | FT150: 95.3% | FU150: 19.2% | FV150: 92.9% | FW150: 27.4% | GA150: DIET
A151: 1 | B151: 2016 | C151: Meeting future food demand with current agricultural resources | D151: Davis, K. F. Gephart, J. A. Emery, K. A. Leach, A. M. Galloway, J. N. D’Odorico, P. | E151: Davis et al. (2016) | F151: Journal article | G151: Global Environmental Change | H151: S3 | I151: Vegetarian diet | J151: 2035 | K151: Food system | L151: Yes | M151: Davis et al. (2016) | N151: GHGLCA | AR151: 6.30 | AS151: Gt CO2e/yr | BA151: 0.0% | BB151: FAO - Permanent meadows and pastures | BC151: Agriculture | BD151: 3715.0 | BE151: 1969.8 | BF151: 1745.2 | BJ151: Mha | BL151: Water Footprint Network - Mekonnen & Hoekstra (2011) | BM151: 792.0 | BO151: 5,129.49 | BP151: km3/yr | BQ151: 0.0% | BS151: 0.0% | BU151: 117.96 | BX151: TgN/yr | BY151: 0.0% | CK151: 0.0% | CL151: 75.5% | CO151: 0% | CP151: 8.74 | CQ151: billion | CR151: 2,594.09 | CS151: OMN/FLX | CV151: 17.1 | CW151: 43.7 | CX151: 20.2 | CY151: 63.9 | CZ151: 81.0 | DA151: 0.0 | DB151: 19.4 | DC151: 19.4 | DD151: 100.4 | DE151: 210.3 | DF151: 52.6 | DG151: 262.9 | DJ151: 363.2 | DK151: 14.0% | DL151: 1,071.1 | DM151: 138.4 | DN151: 536.4 | DO151: 87.1 | DP151: 187.9 | DQ151: 210.0 | DT151: 2,230.9 | DU151: kcal/capita/day | DV151: 0% | EI151: 5.16 | EJ151: Mtonne/Mha | EL151: 4.56 | EM151: 57.59 | EO151: 57.59 | EP151: 3.4 | EQ151: 3.1 | ER151: 2.35 | ES151: 3.24 | ET151: 3.4 | EU151: 3.1 | EV151: 3.33 | EW151: 4.81 | EX151: 3.15 | EY151: FCR (kg feed per kg animal) | FL151: 16.2% | FN151: 16.2% | FO151: 87.1% | FP151: 94.1% | FQ151: 85.9% | FR151: 90.3% | FS151: 20.7% | FT151: 95.3% | FU151: 19.3% | FV151: 93.0% | FW151: 27.4% | GA151: DIET
A152: 1 | B152: 2016 | C152: Meeting future food demand with current agricultural resources | D152: Davis, K. F. Gephart, J. A. Emery, K. A. Leach, A. M. Galloway, J. N. D’Odorico, P. | E152: Davis et al. (2016) | F152: Journal article | G152: Global Environmental Change | H152: S3 | I152: Vegetarian diet | J152: 2036 | K152: Food system | L152: Yes | M152: Davis et al. (2016) | N152: GHGLCA | AR152: 6.21 | AS152: Gt CO2e/yr | BA152: 0.0% | BB152: FAO - Permanent meadows and pastures | BC152: Agriculture | BD152: 3635.4 | BE152: 1888.8 | BF152: 1746.6 | BJ152: Mha | BL152: Water Footprint Network - Mekonnen & Hoekstra (2011) | BM152: 789.0 | BO152: 5,133.33 | BP152: km3/yr | BQ152: 0.0% | BS152: 0.0% | BU152: 117.50 | BX152: TgN/yr | BY152: 0.0% | CK152: 0.0% | CL152: 75.5% | CO152: 0% | CP152: 8.80 | CQ152: billion | CR152: 2,584.34 | CS152: OMN/FLX | CV152: 15.9 | CW152: 40.8 | CX152: 18.9 | CY152: 59.7 | CZ152: 75.6 | DA152: 0.0 | DB152: 18.1 | DC152: 18.1 | DD152: 93.7 | DE152: 213.0 | DF152: 53.3 | DG152: 266.3 | DJ152: 359.9 | DK152: 13.9% | DL152: 1,062.4 | DM152: 138.2 | DN152: 538.8 | DO152: 87.8 | DP152: 188.1 | DQ152: 209.1 | DT152: 2,224.4 | DU152: kcal/capita/day | DV152: 0% | EI152: 5.16 | EJ152: Mtonne/Mha | EL152: 4.47 | EM152: 57.59 | EO152: 57.59 | EP152: 3.4 | EQ152: 3.1 | ER152: 2.35 | ES152: 3.24 | ET152: 3.4 | EU152: 3.1 | EV152: 3.33 | EW152: 4.70 | EX152: 3.15 | EY152: FCR (kg feed per kg animal) | FL152: 16.2% | FN152: 16.2% | FO152: 87.1% | FP152: 94.1% | FQ152: 85.9% | FR152: 90.3% | FS152: 20.7% | FT152: 95.3% | FU152: 19.3% | FV152: 93.1% | FW152: 27.4% | GA152: DIET
A153: 1 | B153: 2016 | C153: Meeting future food demand with current agricultural resources | D153: Davis, K. F. Gephart, J. A. Emery, K. A. Leach, A. M. Galloway, J. N. D’Odorico, P. | E153: Davis et al. (2016) | F153: Journal article | G153: Global Environmental Change | H153: S3 | I153: Vegetarian diet | J153: 2037 | K153: Food system | L153: Yes | M153: Davis et al. (2016) | N153: GHGLCA | AR153: 6.11 | AS153: Gt CO2e/yr | BA153: 0.0% | BB153: FAO - Permanent meadows and pastures | BC153: Agriculture | BD153: 3553.9 | BE153: 1806.3 | BF153: 1747.6 | BJ153: Mha | BL153: Water Footprint Network - Mekonnen & Hoekstra (2011) | BM153: 785.0 | BO153: 5,137.00 | BP153: km3/yr | BQ153: 0.0% | BS153: 0.0% | BU153: 117.02 | BX153: TgN/yr | BY153: 0.0% | CK153: 0.0% | CL153: 75.5% | CO153: 0% | CP153: 8.86 | CQ153: billion | CR153: 2,574.59 | CS153: OMN/FLX | CV153: 14.8 | CW153: 37.9 | CX153: 17.5 | CY153: 55.4 | CZ153: 70.2 | DA153: 0.0 | DB153: 16.8 | DC153: 16.8 | DD153: 87.0 | DE153: 215.7 | DF153: 53.9 | DG153: 269.7 | DJ153: 356.7 | DK153: 13.9% | DL153: 1,053.7 | DM153: 138.0 | DN153: 541.3 | DO153: 88.5 | DP153: 188.2 | DQ153: 208.1 | DT153: 2,217.9 | DU153: kcal/capita/day | DV153: 0% | EI153: 5.16 | EJ153: Mtonne/Mha | EL153: 4.39 | EM153: 57.59 | EO153: 57.59 | EP153: 3.4 | EQ153: 3.1 | ER153: 2.35 | ES153: 3.24 | ET153: 3.4 | EU153: 3.1 | EV153: 3.33 | EW153: 4.59 | EX153: 3.15 | EY153: FCR (kg feed per kg animal) | FL153: 16.2% | FN153: 16.2% | FO153: 87.1% | FP153: 94.1% | FQ153: 85.9% | FR153: 90.3% | FS153: 20.7% | FT153: 95.3% | FU153: 19.4% | FV153: 93.2% | FW153: 27.3% | GA153: DIET
A154: 1 | B154: 2016 | C154: Meeting future food demand with current agricultural resources | D154: Davis, K. F. Gephart, J. A. Emery, K. A. Leach, A. M. Galloway, J. N. D’Odorico, P. | E154: Davis et al. (2016) | F154: Journal article | G154: Global Environmental Change | H154: S3 | I154: Vegetarian diet | J154: 2038 | K154: Food system | L154: Yes | M154: Davis et al. (2016) | N154: GHGLCA | AR154: 6.00 | AS154: Gt CO2e/yr | BA154: 0.0% | BB154: FAO - Permanent meadows and pastures | BC154: Agriculture | BD154: 3470.6 | BE154: 1722.3 | BF154: 1748.3 | BJ154: Mha | BL154: Water Footprint Network - Mekonnen & Hoekstra (2011) | BM154: 781.0 | BO154: 5,139.48 | BP154: km3/yr | BQ154: 0.0% | BS154: 0.0% | BU154: 116.50 | BX154: TgN/yr | BY154: 0.0% | CK154: 0.0% | CL154: 75.5% | CO154: 0% | CP154: 8.92 | CQ154: billion | CR154: 2,564.84 | CS154: OMN/FLX | CV154: 13.7 | CW154: 35.0 | CX154: 16.2 | CY154: 51.1 | CZ154: 64.8 | DA154: 0.0 | DB154: 15.5 | DC154: 15.5 | DD154: 80.3 | DE154: 218.5 | DF154: 54.6 | DG154: 273.1 | DJ154: 353.4 | DK154: 13.8% | DL154: 1,045.1 | DM154: 137.9 | DN154: 543.7 | DO154: 89.3 | DP154: 188.4 | DQ154: 207.2 | DT154: 2,211.5 | DU154: kcal/capita/day | DV154: 0% | EI154: 5.16 | EJ154: Mtonne/Mha | EL154: 4.30 | EM154: 57.59 | EO154: 57.59 | EP154: 3.4 | EQ154: 3.1 | ER154: 2.35 | ES154: 3.24 | ET154: 3.4 | EU154: 3.1 | EV154: 3.33 | EW154: 4.48 | EX154: 3.14 | EY154: FCR (kg feed per kg animal) | FL154: 16.2% | FN154: 16.2% | FO154: 87.1% | FP154: 94.1% | FQ154: 85.9% | FR154: 90.3% | FS154: 20.7% | FT154: 95.3% | FU154: 19.5% | FV154: 93.3% | FW154: 27.3% | GA154: DIET
A155: 1 | B155: 2016 | C155: Meeting future food demand with current agricultural resources | D155: Davis, K. F. Gephart, J. A. Emery, K. A. Leach, A. M. Galloway, J. N. D’Odorico, P. | E155: Davis et al. (2016) | F155: Journal article | G155: Global Environmental Change | H155: S3 | I155: Vegetarian diet | J155: 2039 | K155: Food system | L155: Yes | M155: Davis et al. (2016) | N155: GHGLCA | AR155: 5.90 | AS155: Gt CO2e/yr | BA155: 0.0% | BB155: FAO - Permanent meadows and pastures | BC155: Agriculture | BD155: 3385.5 | BE155: 1636.9 | BF155: 1748.7 | BJ155: Mha | BL155: Water Footprint Network - Mekonnen & Hoekstra (2011) | BM155: 776.0 | BO155: 5,141.77 | BP155: km3/yr | BQ155: 0.0% | BS155: 0.0% | BU155: 115.95 | BX155: TgN/yr | BY155: 0.0% | CK155: 0.0% | CL155: 75.5% | CO155: 0% | CP155: 8.98 | CQ155: billion | CR155: 2,555.09 | CS155: OMN/FLX | CV155: 12.5 | CW155: 32.1 | CX155: 14.8 | CY155: 46.9 | CZ155: 59.4 | DA155: 0.0 | DB155: 14.2 | DC155: 14.2 | DD155: 73.6 | DE155: 221.2 | DF155: 55.3 | DG155: 276.5 | DJ155: 350.1 | DK155: 13.7% | DL155: 1,036.4 | DM155: 137.7 | DN155: 546.1 | DO155: 90.0 | DP155: 188.6 | DQ155: 206.2 | DT155: 2,205.0 | DU155: kcal/capita/day | DV155: 0% | EI155: 5.16 | EJ155: Mtonne/Mha | EL155: 4.21 | EM155: 57.59 | EO155: 57.59 | EP155: 3.4 | EQ155: 3.1 | ER155: 2.35 | ES155: 3.24 | ET155: 3.4 | EU155: 3.1 | EV155: 3.33 | EW155: 4.38 | EX155: 3.14 | EY155: FCR (kg feed per kg animal) | FL155: 16.2% | FN155: 16.2% | FO155: 87.1% | FP155: 94.1% | FQ155: 85.9% | FR155: 90.3% | FS155: 20.7% | FT155: 95.3% | FU155: 19.6% | FV155: 93.4% | FW155: 27.3% | GA155: DIET
A156: 1 | B156: 2016 | C156: Meeting future food demand with current agricultural resources | D156: Davis, K. F. Gephart, J. A. Emery, K. A. Leach, A. M. Galloway, J. N. D’Odorico, P. | E156: Davis et al. (2016) | F156: Journal article | G156: Global Environmental Change | H156: S3 | I156: Vegetarian diet | J156: 2040 | K156: Food system | L156: Yes | M156: Davis et al. (2016) | N156: GHGLCA | AR156: 5.79 | AS156: Gt CO2e/yr | BA156: 0.0% | BB156: FAO - Permanent meadows and pastures | BC156: Agriculture | BD156: 3298.7 | BE156: 1550.0 | BF156: 1748.7 | BJ156: Mha | BL156: Water Footprint Network - Mekonnen & Hoekstra (2011) | BM156: 772.0 | BO156: 5,141.86 | BP156: km3/yr | BQ156: 0.0% | BS156: 0.0% | BU156: 115.38 | BX156: TgN/yr | BY156: 0.0% | CK156: 0.0% | CL156: 75.5% | CO156: 0% | CP156: 9.04 | CQ156: billion | CR156: 2,545.34 | CS156: OMN/FLX | CV156: 11.4 | CW156: 29.1 | CX156: 13.5 | CY156: 42.6 | CZ156: 54.0 | DA156: 0.0 | DB156: 12.9 | DC156: 12.9 | DD156: 66.9 | DE156: 223.9 | DF156: 55.9 | DG156: 279.9 | DJ156: 346.8 | DK156: 13.6% | DL156: 1,027.7 | DM156: 137.5 | DN156: 548.6 | DO156: 90.7 | DP156: 188.8 | DQ156: 205.2 | DT156: 2,198.5 | DU156: kcal/capita/day | DV156: 0% | EI156: 5.16 | EJ156: Mtonne/Mha | EL156: 4.13 | EM156: 57.59 | EO156: 57.59 | EP156: 3.4 | EQ156: 3.1 | ER156: 2.35 | ES156: 3.24 | ET156: 3.4 | EU156: 3.1 | EV156: 3.33 | EW156: 4.28 | EX156: 3.14 | EY156: FCR (kg feed per kg animal) | FL156: 16.2% | FN156: 16.2% | FO156: 87.1% | FP156: 94.1% | FQ156: 85.9% | FR156: 90.3% | FS156: 20.7% | FT156: 95.3% | FU156: 19.7% | FV156: 93.6% | FW156: 27.3% | GA156: DIET
A157: 1 | B157: 2016 | C157: Meeting future food demand with current agricultural resources | D157: Davis, K. F. Gephart, J. A. Emery, K. A. Leach, A. M. Galloway, J. N. D’Odorico, P. | E157: Davis et al. (2016) | F157: Journal article | G157: Global Environmental Change | H157: S3 | I157: Vegetarian diet | J157: 2041 | K157: Food system | L157: Yes | M157: Davis et al. (2016) | N157: GHGLCA | AR157: 5.68 | AS157: Gt CO2e/yr | BA157: 0.0% | BB157: FAO - Permanent meadows and pastures | BC157: Agriculture | BD157: 3210.1 | BE157: 1461.7 | BF157: 1748.4 | BJ157: Mha | BL157: Water Footprint Network - Mekonnen & Hoekstra (2011) | BM157: 767.0 | BO157: 5,141.76 | BP157: km3/yr | BQ157: 0.0% | BS157: 0.0% | BU157: 114.77 | BX157: TgN/yr | BY157: 0.0% | CK157: 0.0% | CL157: 75.5% | CO157: 0% | CP157: 9.09 | CQ157: billion | CR157: 2,535.59 | CS157: OMN/FLX | CV157: 10.3 | CW157: 26.2 | CX157: 12.1 | CY157: 38.4 | CZ157: 48.6 | DA157: 0.0 | DB157: 11.6 | DC157: 11.6 | DD157: 60.2 | DE157: 226.7 | DF157: 56.6 | DG157: 283.3 | DJ157: 343.5 | DK157: 13.5% | DL157: 1,019.1 | DM157: 137.4 | DN157: 551.0 | DO157: 91.4 | DP157: 189.0 | DQ157: 204.3 | DT157: 2,192.1 | DU157: kcal/capita/day | DV157: 0% | EI157: 5.16 | EJ157: Mtonne/Mha | EL157: 4.04 | EM157: 57.59 | EO157: 57.59 | EP157: 3.4 | EQ157: 3.1 | ER157: 2.35 | ES157: 3.24 | ET157: 3.4 | EU157: 3.1 | EV157: 3.33 | EW157: 4.18 | EX157: 3.13 | EY157: FCR (kg feed per kg animal) | FL157: 16.2% | FN157: 16.2% | FO157: 87.1% | FP157: 94.1% | FQ157: 85.9% | FR157: 90.3% | FS157: 20.7% | FT157: 95.3% | FU157: 19.8% | FV157: 93.7% | FW157: 27.3% | GA157: DIET
A158: 1 | B158: 2016 | C158: Meeting future food demand with current agricultural resources | D158: Davis, K. F. Gephart, J. A. Emery, K. A. Leach, A. M. Galloway, J. N. D’Odorico, P. | E158: Davis et al. (2016) | F158: Journal article | G158: Global Environmental Change | H158: S3 | I158: Vegetarian diet | J158: 2042 | K158: Food system | L158: Yes | M158: Davis et al. (2016) | N158: GHGLCA | AR158: 5.57 | AS158: Gt CO2e/yr | BA158: 0.0% | BB158: FAO - Permanent meadows and pastures | BC158: Agriculture | BD158: 3119.8 | BE158: 1372.1 | BF158: 1747.7 | BJ158: Mha | BL158: Water Footprint Network - Mekonnen & Hoekstra (2011) | BM158: 762.0 | BO158: 5,140.49 | BP158: km3/yr | BQ158: 0.0% | BS158: 0.0% | BU158: 114.14 | BX158: TgN/yr | BY158: 0.0% | CK158: 0.0% | CL158: 75.5% | CO158: 0% | CP158: 9.15 | CQ158: billion | CR158: 2,525.84 | CS158: OMN/FLX | CV158: 9.1 | CW158: 23.3 | CX158: 10.8 | CY158: 34.1 | CZ158: 43.2 | DA158: 0.0 | DB158: 10.3 | DC158: 10.3 | DD158: 53.5 | DE158: 229.4 | DF158: 57.3 | DG158: 286.7 | DJ158: 340.2 | DK158: 13.5% | DL158: 1,010.4 | DM158: 137.2 | DN158: 553.4 | DO158: 92.1 | DP158: 189.1 | DQ158: 203.3 | DT158: 2,185.6 | DU158: kcal/capita/day | DV158: 0% | EI158: 5.16 | EJ158: Mtonne/Mha | EL158: 3.96 | EM158: 57.59 | EO158: 57.59 | EP158: 3.4 | EQ158: 3.1 | ER158: 2.35 | ES158: 3.24 | ET158: 3.4 | EU158: 3.1 | EV158: 3.33 | EW158: 4.08 | EX158: 3.13 | EY158: FCR (kg feed per kg animal) | FL158: 16.2% | FN158: 16.2% | FO158: 87.1% | FP158: 94.1% | FQ158: 85.9% | FR158: 90.3% | FS158: 20.7% | FT158: 95.3% | FU158: 19.9% | FV158: 93.8% | FW158: 27.2% | GA158: DIET
A159: 1 | B159: 2016 | C159: Meeting future food demand with current agricultural resources | D159: Davis, K. F. Gephart, J. A. Emery, K. A. Leach, A. M. Galloway, J. N. D’Odorico, P. | E159: Davis et al. (2016) | F159: Journal article | G159: Global Environmental Change | H159: S3 | I159: Vegetarian diet | J159: 2043 | K159: Food system | L159: Yes | M159: Davis et al. (2016) | N159: GHGLCA | AR159: 5.45 | AS159: Gt CO2e/yr | BA159: 0.0% | BB159: FAO - Permanent meadows and pastures | BC159: Agriculture | BD159: 3027.9 | BE159: 1281.2 | BF159: 1746.7 | BJ159: Mha | BL159: Water Footprint Network - Mekonnen & Hoekstra (2011) | BM159: 757.0 | BO159: 5,138.03 | BP159: km3/yr | BQ159: 0.0% | BS159: 0.0% | BU159: 113.47 | BX159: TgN/yr | BY159: 0.0% | CK159: 0.0% | CL159: 75.5% | CO159: 0% | CP159: 9.20 | CQ159: billion | CR159: 2,516.09 | CS159: OMN/FLX | CV159: 8.0 | CW159: 20.4 | CX159: 9.4 | CY159: 29.8 | CZ159: 37.8 | DA159: 0.0 | DB159: 9.0 | DC159: 9.0 | DD159: 46.8 | DE159: 232.2 | DF159: 57.9 | DG159: 290.1 | DJ159: 336.9 | DK159: 13.4% | DL159: 1,001.8 | DM159: 137.0 | DN159: 555.8 | DO159: 92.8 | DP159: 189.3 | DQ159: 202.4 | DT159: 2,179.1 | DU159: kcal/capita/day | DV159: 0% | EI159: 5.16 | EJ159: Mtonne/Mha | EL159: 3.88 | EM159: 57.59 | EO159: 57.59 | EP159: 3.4 | EQ159: 3.1 | ER159: 2.35 | ES159: 3.24 | ET159: 3.4 | EU159: 3.1 | EV159: 3.33 | EW159: 3.98 | EX159: 3.13 | EY159: FCR (kg feed per kg animal) | FL159: 16.2% | FN159: 16.2% | FO159: 87.1% | FP159: 94.1% | FQ159: 85.9% | FR159: 90.3% | FS159: 20.7% | FT159: 95.3% | FU159: 20.0% | FV159: 94.0% | FW159: 27.2% | GA159: DIET
A160: 1 | B160: 2016 | C160: Meeting future food demand with current agricultural resources | D160: Davis, K. F. Gephart, J. A. Emery, K. A. Leach, A. M. Galloway, J. N. D’Odorico, P. | E160: Davis et al. (2016) | F160: Journal article | G160: Global Environmental Change | H160: S3 | I160: Vegetarian diet | J160: 2044 | K160: Food system | L160: Yes | M160: Davis et al. (2016) | N160: GHGLCA | AR160: 5.34 | AS160: Gt CO2e/yr | BA160: 0.0% | BB160: FAO - Permanent meadows and pastures | BC160: Agriculture | BD160: 2934.3 | BE160: 1188.9 | BF160: 1745.4 | BJ160: Mha | BL160: Water Footprint Network - Mekonnen & Hoekstra (2011) | BM160: 752.0 | BO160: 5,134.39 | BP160: km3/yr | BQ160: 0.0% | BS160: 0.0% | BU160: 112.78 | BX160: TgN/yr | BY160: 0.0% | CK160: 0.0% | CL160: 75.5% | CO160: 0% | CP160: 9.26 | CQ160: billion | CR160: 2,506.34 | CS160: OMN/FLX | CV160: 6.8 | CW160: 17.5 | CX160: 8.1 | CY160: 25.6 | CZ160: 32.4 | DA160: 0.0 | DB160: 7.8 | DC160: 7.8 | DD160: 40.2 | DE160: 234.9 | DF160: 58.6 | DG160: 293.5 | DJ160: 333.7 | DK160: 13.3% | DL160: 993.1 | DM160: 136.8 | DN160: 558.3 | DO160: 93.6 | DP160: 189.5 | DQ160: 201.4 | DT160: 2,172.7 | DU160: kcal/capita/day | DV160: 0% | EI160: 5.16 | EJ160: Mtonne/Mha | EL160: 3.80 | EM160: 57.59 | EO160: 57.59 | EP160: 3.4 | EQ160: 3.1 | ER160: 2.35 | ES160: 3.24 | ET160: 3.4 | EU160: 3.1 | EV160: 3.33 | EW160: 3.89 | EX160: 3.12 | EY160: FCR (kg feed per kg animal) | FL160: 16.2% | FN160: 16.2% | FO160: 87.1% | FP160: 94.1% | FQ160: 85.9% | FR160: 90.3% | FS160: 20.7% | FT160: 95.3% | FU160: 20.0% | FV160: 94.1% | FW160: 27.2% | GA160: DIET
A161: 1 | B161: 2016 | C161: Meeting future food demand with current agricultural resources | D161: Davis, K. F. Gephart, J. A. Emery, K. A. Leach, A. M. Galloway, J. N. D’Odorico, P. | E161: Davis et al. (2016) | F161: Journal article | G161: Global Environmental Change | H161: S3 | I161: Vegetarian diet | J161: 2045 | K161: Food system | L161: Yes | M161: Davis et al. (2016) | N161: GHGLCA | AR161: 5.22 | AS161: Gt CO2e/yr | BA161: 0.0% | BB161: FAO - Permanent meadows and pastures | BC161: Agriculture | BD161: 2839.1 | BE161: 1095.4 | BF161: 1743.7 | BJ161: Mha | BL161: Water Footprint Network - Mekonnen & Hoekstra (2011) | BM161: 746.0 | BO161: 5,130.58 | BP161: km3/yr | BQ161: 0.0% | BS161: 0.0% | BU161: 112.06 | BX161: TgN/yr | BY161: 0.0% | CK161: 0.0% | CL161: 75.5% | CO161: 0% | CP161: 9.31 | CQ161: billion | CR161: 2,496.59 | CS161: OMN/FLX | CV161: 5.7 | CW161: 14.6 | CX161: 6.7 | CY161: 21.3 | CZ161: 27.0 | DA161: 0.0 | DB161: 6.5 | DC161: 6.5 | DD161: 33.5 | DE161: 237.6 | DF161: 59.3 | DG161: 296.9 | DJ161: 330.4 | DK161: 13.2% | DL161: 984.4 | DM161: 136.7 | DN161: 560.7 | DO161: 94.3 | DP161: 189.7 | DQ161: 200.5 | DT161: 2,166.2 | DU161: kcal/capita/day | DV161: 0% | EI161: 5.16 | EJ161: Mtonne/Mha | EL161: 3.72 | EM161: 57.59 | EO161: 57.59 | EP161: 3.4 | EQ161: 3.1 | ER161: 2.35 | ES161: 3.24 | ET161: 3.4 | EU161: 3.1 | EV161: 3.33 | EW161: 3.79 | EX161: 3.12 | EY161: FCR (kg feed per kg animal) | FL161: 16.2% | FN161: 16.2% | FO161: 87.1% | FP161: 94.1% | FQ161: 85.9% | FR161: 90.3% | FS161: 20.7% | FT161: 95.3% | FU161: 20.1% | FV161: 94.3% | FW161: 27.2% | GA161: DIET
A162: 1 | B162: 2016 | C162: Meeting future food demand with current agricultural resources | D162: Davis, K. F. Gephart, J. A. Emery, K. A. Leach, A. M. Galloway, J. N. D’Odorico, P. | E162: Davis et al. (2016) | F162: Journal article | G162: Global Environmental Change | H162: S3 | I162: Vegetarian diet | J162: 2046 | K162: Food system | L162: Yes | M162: Davis et al. (2016) | N162: GHGLCA | AR162: 5.09 | AS162: Gt CO2e/yr | BA162: 0.0% | BB162: FAO - Permanent meadows and pastures | BC162: Agriculture | BD162: 2742.4 | BE162: 1000.6 | BF162: 1741.7 | BJ162: Mha | BL162: Water Footprint Network - Mekonnen & Hoekstra (2011) | BM162: 740.0 | BO162: 5,125.60 | BP162: km3/yr | BQ162: 0.0% | BS162: 0.0% | BU162: 111.31 | BX162: TgN/yr | BY162: 0.0% | CK162: 0.0% | CL162: 75.5% | CO162: 0% | CP162: 9.36 | CQ162: billion | CR162: 2,486.83 | CS162: OMN/FLX | CV162: 4.6 | CW162: 11.7 | CX162: 5.4 | CY162: 17.0 | CZ162: 21.6 | DA162: 0.0 | DB162: 5.2 | DC162: 5.2 | DD162: 26.8 | DE162: 240.4 | DF162: 59.9 | DG162: 300.3 | DJ162: 327.1 | DK162: 13.2% | DL162: 975.8 | DM162: 136.5 | DN162: 563.1 | DO162: 95.0 | DP162: 189.9 | DQ162: 199.5 | DT162: 2,159.8 | DU162: kcal/capita/day | DV162: 0% | EI162: 5.16 | EJ162: Mtonne/Mha | EL162: 3.64 | EM162: 57.59 | EO162: 57.59 | EP162: 3.4 | EQ162: 3.1 | ER162: 2.35 | ES162: 3.24 | ET162: 3.4 | EU162: 3.1 | EV162: 3.33 | EW162: 3.70 | EX162: 3.11 | EY162: FCR (kg feed per kg animal) | FL162: 16.2% | FN162: 16.2% | FO162: 87.1% | FP162: 94.1% | FQ162: 85.9% | FR162: 90.3% | FS162: 20.7% | FT162: 95.3% | FU162: 20.3% | FV162: 94.5% | FW162: 27.1% | GA162: DIET
A163: 1 | B163: 2016 | C163: Meeting future food demand with current agricultural resources | D163: Davis, K. F. Gephart, J. A. Emery, K. A. Leach, A. M. Galloway, J. N. D’Odorico, P. | E163: Davis et al. (2016) | F163: Journal article | G163: Global Environmental Change | H163: S3 | I163: Vegetarian diet | J163: 2047 | K163: Food system | L163: Yes | M163: Davis et al. (2016) | N163: GHGLCA | AR163: 4.97 | AS163: Gt CO2e/yr | BA163: 0.0% | BB163: FAO - Permanent meadows and pastures | BC163: Agriculture | BD163: 2644.1 | BE163: 904.7 | BF163: 1739.4 | BJ163: Mha | BL163: Water Footprint Network - Mekonnen & Hoekstra (2011) | BM163: 734.0 | BO163: 5,119.47 | BP163: km3/yr | BQ163: 0.0% | BS163: 0.0% | BU163: 110.54 | BX163: TgN/yr | BY163: 0.0% | CK163: 0.0% | CL163: 75.5% | CO163: 0% | CP163: 9.41 | CQ163: billion | CR163: 2,477.08 | CS163: OMN/FLX | CV163: 3.4 | CW163: 8.7 | CX163: 4.0 | CY163: 12.8 | CZ163: 16.2 | DA163: 0.0 | DB163: 3.9 | DC163: 3.9 | DD163: 20.1 | DE163: 243.1 | DF163: 60.6 | DG163: 303.7 | DJ163: 323.8 | DK163: 13.1% | DL163: 967.1 | DM163: 136.3 | DN163: 565.6 | DO163: 95.7 | DP163: 190.0 | DQ163: 198.6 | DT163: 2,153.3 | DU163: kcal/capita/day | DV163: 0% | EI163: 5.16 | EJ163: Mtonne/Mha | EL163: 3.56 | EM163: 57.59 | EO163: 57.59 | EP163: 3.4 | EQ163: 3.1 | ER163: 2.35 | ES163: 3.24 | ET163: 3.4 | EU163: 3.1 | EV163: 3.33 | EW163: 3.61 | EX163: 3.11 | EY163: FCR (kg feed per kg animal) | FL163: 16.2% | FN163: 16.2% | FO163: 87.1% | FP163: 94.1% | FQ163: 85.9% | FR163: 90.3% | FS163: 20.7% | FT163: 95.3% | FU163: 20.4% | FV163: 94.6% | FW163: 27.1% | GA163: DIET
A164: 1 | B164: 2016 | C164: Meeting future food demand with current agricultural resources | D164: Davis, K. F. Gephart, J. A. Emery, K. A. Leach, A. M. Galloway, J. N. D’Odorico, P. | E164: Davis et al. (2016) | F164: Journal article | G164: Global Environmental Change | H164: S3 | I164: Vegetarian diet | J164: 2048 | K164: Food system | L164: Yes | M164: Davis et al. (2016) | N164: GHGLCA | AR164: 4.84 | AS164: Gt CO2e/yr | BA164: 0.0% | BB164: FAO - Permanent meadows and pastures | BC164: Agriculture | BD164: 2544.4 | BE164: 807.6 | BF164: 1736.8 | BJ164: Mha | BL164: Water Footprint Network - Mekonnen & Hoekstra (2011) | BM164: 728.0 | BO164: 5,112.21 | BP164: km3/yr | BQ164: 0.0% | BS164: 0.0% | BU164: 109.73 | BX164: TgN/yr | BY164: 0.0% | CK164: 0.0% | CL164: 75.5% | CO164: 0% | CP164: 9.46 | CQ164: billion | CR164: 2,467.33 | CS164: OMN/FLX | CV164: 2.3 | CW164: 5.8 | CX164: 2.7 | CY164: 8.5 | CZ164: 10.8 | DA164: 0.0 | DB164: 2.6 | DC164: 2.6 | DD164: 13.4 | DE164: 245.8 | DF164: 61.3 | DG164: 307.1 | DJ164: 320.5 | DK164: 13.0% | DL164: 958.4 | DM164: 136.2 | DN164: 568.0 | DO164: 96.4 | DP164: 190.2 | DQ164: 197.6 | DT164: 2,146.8 | DU164: kcal/capita/day | DV164: 0% | EI164: 5.16 | EJ164: Mtonne/Mha | EL164: 3.49 | EM164: 57.59 | EO164: 57.59 | EP164: 3.4 | EQ164: 3.1 | ER164: 2.35 | ES164: 3.24 | ET164: 3.4 | EU164: 3.1 | EV164: 3.33 | EW164: 3.53 | EX164: 3.10 | EY164: FCR (kg feed per kg animal) | FL164: 16.2% | FN164: 16.2% | FO164: 87.1% | FP164: 94.1% | FQ164: 85.9% | FR164: 90.3% | FS164: 20.7% | FT164: 95.3% | FU164: 20.5% | FV164: 94.8% | FW164: 27.1% | GA164: DIET
A165: 1 | B165: 2016 | C165: Meeting future food demand with current agricultural resources | D165: Davis, K. F. Gephart, J. A. Emery, K. A. Leach, A. M. Galloway, J. N. D’Odorico, P. | E165: Davis et al. (2016) | F165: Journal article | G165: Global Environmental Change | H165: S3 | I165: Vegetarian diet | J165: 2049 | K165: Food system | L165: Yes | M165: Davis et al. (2016) | N165: GHGLCA | AR165: 4.71 | AS165: Gt CO2e/yr | BA165: 0.0% | BB165: FAO - Permanent meadows and pastures | BC165: Agriculture | BD165: 2443.2 | BE165: 709.3 | BF165: 1733.8 | BJ165: Mha | BL165: Water Footprint Network - Mekonnen & Hoekstra (2011) | BM165: 722.0 | BO165: 5,103.82 | BP165: km3/yr | BQ165: 0.0% | BS165: 0.0% | BU165: 108.90 | BX165: TgN/yr | BY165: 0.0% | CK165: 0.0% | CL165: 75.5% | CO165: 0% | CP165: 9.50 | CQ165: billion | CR165: 2,457.58 | CS165: OMN/FLX | CV165: 1.1 | CW165: 2.9 | CX165: 1.3 | CY165: 4.3 | CZ165: 5.4 | DA165: 0.0 | DB165: 1.3 | DC165: 1.3 | DD165: 6.7 | DE165: 248.6 | DF165: 62.0 | DG165: 310.5 | DJ165: 317.2 | DK165: 12.9% | DL165: 949.8 | DM165: 136.0 | DN165: 570.4 | DO165: 97.1 | DP165: 190.4 | DQ165: 196.6 | DT165: 2,140.4 | DU165: kcal/capita/day | DV165: 0% | EI165: 5.16 | EJ165: Mtonne/Mha | EL165: 3.41 | EM165: 57.59 | EO165: 57.59 | EP165: 3.4 | EQ165: 3.1 | ER165: 2.35 | ES165: 3.24 | ET165: 3.4 | EU165: 3.1 | EV165: 3.33 | EW165: 3.44 | EX165: 3.10 | EY165: FCR (kg feed per kg animal) | FL165: 16.2% | FN165: 16.2% | FO165: 87.1% | FP165: 94.1% | FQ165: 85.9% | FR165: 90.3% | FS165: 20.7% | FT165: 95.3% | FU165: 20.6% | FV165: 95.1% | FW165: 27.0% | GA165: DIET
A166: 1 | B166: 2016 | C166: Meeting future food demand with current agricultural resources | D166: Davis, K. F. Gephart, J. A. Emery, K. A. Leach, A. M. Galloway, J. N. D’Odorico, P. | E166: Davis et al. (2016) | F166: Journal article | G166: Global Environmental Change | H166: S3 | I166: Vegetarian diet | J166: 2050 | K166: Food system | L166: Yes | M166: Davis et al. (2016) | N166: GHGLCA | AR166: 4.58 | AS166: Gt CO2e/yr | BA166: 0.0% | BB166: FAO - Permanent meadows and pastures | BC166: Agriculture | BD166: 2340.6 | BE166: 610.0 | BF166: 1730.6 | BJ166: Mha | BL166: Water Footprint Network - Mekonnen & Hoekstra (2011) | BM166: 715.4 | BO166: 5,094.92 | BP166: km3/yr | BQ166: 0.0% | BS166: 0.0% | BU166: 108.05 | BX166: TgN/yr | BY166: 0.0% | CK166: 0.0% | CL166: 75.5% | CO166: 0% | CP166: 9.55 | CQ166: billion | CR166: 2,447.83 | CS166: VEG | CV166: 0.0 | CW166: 0.0 | CX166: 0.0 | CY166: 0.0 | CZ166: 0.0 | DA166: 0.0 | DB166: 0.0 | DC166: 0.0 | DD166: 0.0 | DE166: 251.3 | DF166: 62.6 | DG166: 313.9 | DJ166: 313.9 | DK166: 12.8% | DL166: 941.1 | DM166: 135.8 | DN166: 572.9 | DO166: 97.8 | DP166: 190.6 | DQ166: 195.7 | DT166: 2,133.9 | DU166: kcal/capita/day | DV166: 0% | EI166: 5.16 | EJ166: Mtonne/Mha | EL166: 3.33 | EM166: NA | EO166: NA | EP166: NA | EQ166: NA | ER166: NA | ES166: NA | ET166: 3.4 | EU166: 3.1 | EV166: 3.33 | EW166: 3.36 | EX166: 3.09 | EY166: FCR (kg feed per kg animal) | FL166: NA | FN166: NA | FO166: NA | FP166: NA | FQ166: NA | FR166: NA | FS166: 20.7% | FT166: 95.3% | FU166: 20.7% | FV166: 95.3% | FW166: 27.0% | GA166: DIET
A167: 1 | B167: 2016 | C167: Meeting future food demand with current agricultural resources | D167: Davis, K. F. Gephart, J. A. Emery, K. A. Leach, A. M. Galloway, J. N. D’Odorico, P. | E167: Davis et al. (2016) | F167: Journal article | G167: Global Environmental Change | H167: =CONCATENATE(H3," + prod") -> B + prod | I167: =CONCATENATE(I3," + productivity") -> BAU + productivity | J167: 2010 | K167: Food system | L167: Yes | M167: Davis et al. (2016) | N167: GHGLCA | AR167: 7.58 | AS167: Gt CO2e/yr | BA167: 0.0% | BB167: FAO - Permanent meadows and pastures | BC167: Agriculture | BJ167: Mha | BL167: Water Footprint Network - Mekonnen & Hoekstra (2011) | BM167: 789.7 | BP167: km3/yr | BQ167: 0.0% | BS167: 0.8% | BU167: 116.66 | BX167: TgN/yr | CK167: 0.0% | CL167: 75.5% | CO167: 0% | CP167: 6.92 | CQ167: billion | CR167: 2,849.63 | CS167: OMN/FLX | CV167: 47.2 | CW167: 120.3 | CX167: 55.2 | CY167: 175.5 | CZ167: 222.6 | DA167: 22.4 | DB167: 31.5 | DC167: 53.8 | DD167: 276.5 | DE167: 140.9 | DF167: 35.6 | DG167: 176.5 | DJ167: 453.0 | DK167: 15.9% | DL167: 1,296.5 | DM167: 143.6 | DN167: 469.0 | DO167: 67.5 | DP167: 182.1 | DQ167: 237.9 | DT167: 2,396.6 | DU167: kcal/capita/day | DV167: 0% | EI167: 5.16 | EJ167: Mtonne/Mha | EL167: 7.04 | EM167: 57.59 | EO167: 57.59 | EP167: 3.4 | EQ167: 3.1 | ER167: 2.35 | ES167: 3.05 | ET167: 3.4 | EU167: 3.1 | EV167: 3.33 | EW167: 8.87 | EX167: 3.06 | EY167: FCR (kg feed per kg animal) | FL167: 16.2% | FN167: 16.2% | FO167: 87.1% | FP167: 94.1% | FQ167: 85.9% | FR167: 89.6% | FS167: 20.7% | FT167: 95.3% | FU167: 17.7% | FV167: 90.7% | FW167: 27.7% | GA167: BAU
A168: 1 | B168: 2016 | C168: Meeting future food demand with current agricultural resources | D168: Davis, K. F. Gephart, J. A. Emery, K. A. Leach, A. M. Galloway, J. N. D’Odorico, P. | E168: Davis et al. (2016) | F168: Journal article | G168: Global Environmental Change | H168: B + prod | I168: BAU + productivity | J168: 2011 | K168: Food system | L168: Yes | M168: Davis et al. (2016) | N168: GHGLCA | AR168: 7.62 | AS168: Gt CO2e/yr | BA168: 0.0% | BB168: FAO - Permanent meadows and pastures | BC168: Agriculture | BJ168: Mha | BL168: Water Footprint Network - Mekonnen & Hoekstra (2011) | BM168: 803.7 | BP168: km3/yr | BQ168: 0.0% | BS168: 1.5% | BU168: 118.70 | BX168: TgN/yr | CK168: 0.0% | CL168: 75.5% | CO168: 0% | CP168: 7.00 | CQ168: billion | CR168: 2,851.65 | CS168: OMN/FLX | CV168: 47.6 | CW168: 121.0 | CX168: 55.2 | CY168: 176.3 | CZ168: 223.9 | DA168: 23.6 | DB168: 31.1 | DC168: 54.7 | DD168: 278.6 | DE168: 142.7 | DF168: 36.0 | DG168: 178.7 | DJ168: 457.3 | DK168: 16.0% | DL168: 1,296.7 | DM168: 144.3 | DN168: 464.7 | DO168: 66.6 | DP168: 181.0 | DQ168: 241.0 | DT168: 2,394.4 | DU168: kcal/capita/day | DV168: 0% | EI168: 5.16 | EJ168: Mtonne/Mha | EL168: 7.03 | EM168: 57.59 | EO168: 57.59 | EP168: 3.4 | EQ168: 3.1 | ER168: 2.35 | ES168: 3.05 | ET168: 3.4 | EU168: 3.1 | EV168: 3.33 | EW168: 8.86 | EX168: 3.05 | EY168: FCR (kg feed per kg animal) | FL168: 16.2% | FN168: 16.2% | FO168: 87.1% | FP168: 94.1% | FQ168: 85.9% | FR168: 89.5% | FS168: 20.7% | FT168: 95.3% | FU168: 17.7% | FV168: 90.7% | FW168: 27.7% | GA168: BAU
A169: 1 | B169: 2016 | C169: Meeting future food demand with current agricultural resources | D169: Davis, K. F. Gephart, J. A. Emery, K. A. Leach, A. M. Galloway, J. N. D’Odorico, P. | E169: Davis et al. (2016) | F169: Journal article | G169: Global Environmental Change | H169: B + prod | I169: BAU + productivity | J169: 2012 | K169: Food system | L169: Yes | M169: Davis et al. (2016) | N169: GHGLCA | AR169: 7.70 | AS169: Gt CO2e/yr | BA169: 0.0% | BB169: FAO - Permanent meadows and pastures | BC169: Agriculture | BJ169: Mha | BL169: Water Footprint Network - Mekonnen & Hoekstra (2011) | BM169: 819.3 | BP169: km3/yr | BQ169: 0.0% | BS169: 2.2% | BU169: 121.08 | BX169: TgN/yr | CK169: 0.0% | CL169: 75.5% | CO169: 0% | CP169: 7.08 | CQ169: billion | CR169: 2,853.68 | CS169: OMN/FLX | CV169: 48.1 | CW169: 121.8 | CX169: 55.2 | CY169: 177.0 | CZ169: 225.1 | DA169: 24.8 | DB169: 30.7 | DC169: 55.5 | DD169: 280.7 | DE169: 144.5 | DF169: 36.4 | DG169: 180.9 | DJ169: 461.6 | DK169: 16.2% | DL169: 1,296.9 | DM169: 145.1 | DN169: 460.5 | DO169: 65.6 | DP169: 179.9 | DQ169: 244.1 | DT169: 2,392.1 | DU169: kcal/capita/day | DV169: 0% | EI169: 5.16 | EJ169: Mtonne/Mha | EL169: 7.01 | EM169: 57.59 | EO169: 57.59 | EP169: 3.4 | EQ169: 3.1 | ER169: 2.35 | ES169: 3.04 | ET169: 3.4 | EU169: 3.1 | EV169: 3.33 | EW169: 8.84 | EX169: 3.05 | EY169: FCR (kg feed per kg animal) | FL169: 16.2% | FN169: 16.2% | FO169: 87.1% | FP169: 94.1% | FQ169: 85.9% | FR169: 89.5% | FS169: 20.7% | FT169: 95.3% | FU169: 17.8% | FV169: 90.6% | FW169: 27.7% | GA169: BAU
A170: 1 | B170: 2016 | C170: Meeting future food demand with current agricultural resources | D170: Davis, K. F. Gephart, J. A. Emery, K. A. Leach, A. M. Galloway, J. N. D’Odorico, P. | E170: Davis et al. (2016) | F170: Journal article | G170: Global Environmental Change | H170: B + prod | I170: BAU + productivity | J170: 2013 | K170: Food system | L170: Yes | M170: Davis et al. (2016) | N170: GHGLCA | AR170: 7.79 | AS170: Gt CO2e/yr | BA170: 0.0% | BB170: FAO - Permanent meadows and pastures | BC170: Agriculture | BJ170: Mha | BL170: Water Footprint Network - Mekonnen & Hoekstra (2011) | BM170: 835.1 | BP170: km3/yr | BQ170: 0.0% | BS170: 2.9% | BU170: 123.48 | BX170: TgN/yr | CK170: 0.0% | CL170: 75.5% | CO170: 0% | CP170: 7.16 | CQ170: billion | CR170: 2,855.70 | CS170: OMN/FLX | CV170: 48.5 | CW170: 122.6 | CX170: 55.2 | CY170: 177.8 | CZ170: 226.3 | DA170: 26.0 | DB170: 30.4 | DC170: 56.4 | DD170: 282.8 | DE170: 146.3 | DF170: 36.8 | DG170: 183.1 | DJ170: 465.8 | DK170: 16.3% | DL170: 1,297.1 | DM170: 145.8 | DN170: 456.2 | DO170: 64.7 | DP170: 178.8 | DQ170: 247.2 | DT170: 2,389.9 | DU170: kcal/capita/day | DV170: 0% | EI170: 5.16 | EJ170: Mtonne/Mha | EL170: 7.00 | EM170: 57.59 | EO170: 57.59 | EP170: 3.4 | EQ170: 3.1 | ER170: 2.35 | ES170: 3.03 | ET170: 3.4 | EU170: 3.1 | EV170: 3.33 | EW170: 8.83 | EX170: 3.04 | EY170: FCR (kg feed per kg animal) | FL170: 16.2% | FN170: 16.2% | FO170: 87.1% | FP170: 94.1% | FQ170: 85.9% | FR170: 89.4% | FS170: 20.7% | FT170: 95.3% | FU170: 17.8% | FV170: 90.6% | FW170: 27.7% | GA170: BAU
A171: 1 | B171: 2016 | C171: Meeting future food demand with current agricultural resources | D171: Davis, K. F. Gephart, J. A. Emery, K. A. Leach, A. M. Galloway, J. N. D’Odorico, P. | E171: Davis et al. (2016) | F171: Journal article | G171: Global Environmental Change | H171: B + prod | I171: BAU + productivity | J171: 2014 | K171: Food system | L171: Yes | M171: Davis et al. (2016) | N171: GHGLCA | AR171: 7.87 | AS171: Gt CO2e/yr | BA171: 0.0% | BB171: FAO - Permanent meadows and pastures | BC171: Agriculture | BJ171: Mha | BL171: Water Footprint Network - Mekonnen & Hoekstra (2011) | BM171: 851.0 | BP171: km3/yr | BQ171: 0.0% | BS171: 3.6% | BU171: 125.90 | BX171: TgN/yr | CK171: 0.0% | CL171: 75.5% | CO171: 0% | CP171: 7.24 | CQ171: billion | CR171: 2,857.72 | CS171: OMN/FLX | CV171: 49.0 | CW171: 123.4 | CX171: 55.2 | CY171: 178.6 | CZ171: 227.6 | DA171: 27.2 | DB171: 30.0 | DC171: 57.3 | DD171: 284.9 | DE171: 148.1 | DF171: 37.1 | DG171: 185.3 | DJ171: 470.1 | DK171: 16.5% | DL171: 1,297.3 | DM171: 146.6 | DN171: 452.0 | DO171: 63.7 | DP171: 177.7 | DQ171: 250.3 | DT171: 2,387.6 | DU171: kcal/capita/day | DV171: 0% | EI171: 5.16 | EJ171: Mtonne/Mha | EL171: 6.99 | EM171: 57.59 | EO171: 57.59 | EP171: 3.4 | EQ171: 3.1 | ER171: 2.35 | ES171: 3.03 | ET171: 3.4 | EU171: 3.1 | EV171: 3.33 | EW171: 8.81 | EX171: 3.04 | EY171: FCR (kg feed per kg animal) | FL171: 16.2% | FN171: 16.2% | FO171: 87.1% | FP171: 94.1% | FQ171: 85.9% | FR171: 89.4% | FS171: 20.7% | FT171: 95.3% | FU171: 17.8% | FV171: 90.6% | FW171: 27.7% | GA171: BAU
A172: 1 | B172: 2016 | C172: Meeting future food demand with current agricultural resources | D172: Davis, K. F. Gephart, J. A. Emery, K. A. Leach, A. M. Galloway, J. N. D’Odorico, P. | E172: Davis et al. (2016) | F172: Journal article | G172: Global Environmental Change | H172: B + prod | I172: BAU + productivity | J172: 2015 | K172: Food system | L172: Yes | M172: Davis et al. (2016) | N172: GHGLCA | AR172: 7.96 | AS172: Gt CO2e/yr | BA172: 0.0% | BB172: FAO - Permanent meadows and pastures | BC172: Agriculture | BJ172: Mha | BL172: Water Footprint Network - Mekonnen & Hoekstra (2011) | BM172: 866.8 | BP172: km3/yr | BQ172: 0.0% | BS172: 4.2% | BU172: 128.33 | BX172: TgN/yr | CK172: 0.0% | CL172: 75.5% | CO172: 0% | CP172: 7.32 | CQ172: billion | CR172: 2,859.75 | CS172: OMN/FLX | CV172: 49.4 | CW172: 124.2 | CX172: 55.2 | CY172: 179.4 | CZ172: 228.8 | DA172: 28.4 | DB172: 29.7 | DC172: 58.1 | DD172: 286.9 | DE172: 150.0 | DF172: 37.5 | DG172: 187.5 | DJ172: 474.4 | DK172: 16.6% | DL172: 1,297.6 | DM172: 147.3 | DN172: 447.7 | DO172: 62.8 | DP172: 176.5 | DQ172: 253.4 | DT172: 2,385.3 | DU172: kcal/capita/day | DV172: 0% | EI172: 5.16 | EJ172: Mtonne/Mha | EL172: 6.98 | EM172: 57.59 | EO172: 57.59 | EP172: 3.4 | EQ172: 3.1 | ER172: 2.35 | ES172: 3.02 | ET172: 3.4 | EU172: 3.1 | EV172: 3.33 | EW172: 8.80 | EX172: 3.03 | EY172: FCR (kg feed per kg animal) | FL172: 16.2% | FN172: 16.2% | FO172: 87.1% | FP172: 94.1% | FQ172: 85.9% | FR172: 89.4% | FS172: 20.7% | FT172: 95.3% | FU172: 17.8% | FV172: 90.6% | FW172: 27.7% | GA172: BAU
A173: 1 | B173: 2016 | C173: Meeting future food demand with current agricultural resources | D173: Davis, K. F. Gephart, J. A. Emery, K. A. Leach, A. M. Galloway, J. N. D’Odorico, P. | E173: Davis et al. (2016) | F173: Journal article | G173: Global Environmental Change | H173: B + prod | I173: BAU + productivity | J173: 2016 | K173: Food system | L173: Yes | M173: Davis et al. (2016) | N173: GHGLCA | AR173: 8.04 | AS173: Gt CO2e/yr | BA173: 0.0% | BB173: FAO - Permanent meadows and pastures | BC173: Agriculture | BJ173: Mha | BL173: Water Footprint Network - Mekonnen & Hoekstra (2011) | BM173: 882.6 | BP173: km3/yr | BQ173: 0.0% | BS173: 4.8% | BU173: 130.76 | BX173: TgN/yr | CK173: 0.0% | CL173: 75.5% | CO173: 0% | CP173: 7.40 | CQ173: billion | CR173: 2,861.77 | CS173: OMN/FLX | CV173: 49.9 | CW173: 124.9 | CX173: 55.2 | CY173: 180.2 | CZ173: 230.0 | DA173: 29.6 | DB173: 29.4 | DC173: 59.0 | DD173: 289.0 | DE173: 151.8 | DF173: 37.9 | DG173: 189.7 | DJ173: 478.7 | DK173: 16.7% | DL173: 1,297.8 | DM173: 148.0 | DN173: 443.5 | DO173: 61.8 | DP173: 175.4 | DQ173: 256.6 | DT173: 2,383.1 | DU173: kcal/capita/day | DV173: 0% | EI173: 5.16 | EJ173: Mtonne/Mha | EL173: 6.96 | EM173: 57.59 | EO173: 57.59 | EP173: 3.4 | EQ173: 3.1 | ER173: 2.35 | ES173: 3.01 | ET173: 3.4 | EU173: 3.1 | EV173: 3.33 | EW173: 8.79 | EX173: 3.03 | EY173: FCR (kg feed per kg animal) | FL173: 16.2% | FN173: 16.2% | FO173: 87.1% | FP173: 94.1% | FQ173: 85.9% | FR173: 89.3% | FS173: 20.7% | FT173: 95.3% | FU173: 17.8% | FV173: 90.5% | FW173: 27.7% | GA173: BAU
A174: 1 | B174: 2016 | C174: Meeting future food demand with current agricultural resources | D174: Davis, K. F. Gephart, J. A. Emery, K. A. Leach, A. M. Galloway, J. N. D’Odorico, P. | E174: Davis et al. (2016) | F174: Journal article | G174: Global Environmental Change | H174: B + prod | I174: BAU + productivity | J174: 2017 | K174: Food system | L174: Yes | M174: Davis et al. (2016) | N174: GHGLCA | AR174: 8.13 | AS174: Gt CO2e/yr | BA174: 0.0% | BB174: FAO - Permanent meadows and pastures | BC174: Agriculture | BJ174: Mha | BL174: Water Footprint Network - Mekonnen & Hoekstra (2011) | BM174: 898.4 | BP174: km3/yr | BQ174: 0.0% | BS174: 5.4% | BU174: 133.20 | BX174: TgN/yr | CK174: 0.0% | CL174: 75.5% | CO174: 0% | CP174: 7.48 | CQ174: billion | CR174: 2,863.80 | CS174: OMN/FLX | CV174: 50.3 | CW174: 125.7 | CX174: 55.2 | CY174: 180.9 | CZ174: 231.3 | DA174: 30.8 | DB174: 29.1 | DC174: 59.9 | DD174: 291.1 | DE174: 153.6 | DF174: 38.3 | DG174: 191.9 | DJ174: 483.0 | DK174: 16.9% | DL174: 1,298.0 | DM174: 148.8 | DN174: 439.2 | DO174: 60.9 | DP174: 174.3 | DQ174: 259.7 | DT174: 2,380.8 | DU174: kcal/capita/day | DV174: 0% | EI174: 5.16 | EJ174: Mtonne/Mha | EL174: 6.95 | EM174: 57.59 | EO174: 57.59 | EP174: 3.4 | EQ174: 3.1 | ER174: 2.35 | ES174: 3.01 | ET174: 3.4 | EU174: 3.1 | EV174: 3.33 | EW174: 8.77 | EX174: 3.02 | EY174: FCR (kg feed per kg animal) | FL174: 16.2% | FN174: 16.2% | FO174: 87.1% | FP174: 94.1% | FQ174: 85.9% | FR174: 89.3% | FS174: 20.7% | FT174: 95.3% | FU174: 17.8% | FV174: 90.5% | FW174: 27.6% | GA174: BAU
A175: 1 | B175: 2016 | C175: Meeting future food demand with current agricultural resources | D175: Davis, K. F. Gephart, J. A. Emery, K. A. Leach, A. M. Galloway, J. N. D’Odorico, P. | E175: Davis et al. (2016) | F175: Journal article | G175: Global Environmental Change | H175: B + prod | I175: BAU + productivity | J175: 2018 | K175: Food system | L175: Yes | M175: Davis et al. (2016) | N175: GHGLCA | AR175: 8.22 | AS175: Gt CO2e/yr | BA175: 0.0% | BB175: FAO - Permanent meadows and pastures | BC175: Agriculture | BJ175: Mha | BL175: Water Footprint Network - Mekonnen & Hoekstra (2011) | BM175: 914.2 | BP175: km3/yr | BQ175: 0.0% | BS175: 6.0% | BU175: 135.65 | BX175: TgN/yr | CK175: 0.0% | CL175: 75.5% | CO175: 0% | CP175: 7.56 | CQ175: billion | CR175: 2,865.82 | CS175: OMN/FLX | CV175: 50.8 | CW175: 126.5 | CX175: 55.2 | CY175: 181.7 | CZ175: 232.5 | DA175: 31.9 | DB175: 28.8 | DC175: 60.7 | DD175: 293.2 | DE175: 155.4 | DF175: 38.7 | DG175: 194.1 | DJ175: 487.3 | DK175: 17.0% | DL175: 1,298.2 | DM175: 149.5 | DN175: 435.0 | DO175: 59.9 | DP175: 173.2 | DQ175: 262.8 | DT175: 2,378.5 | DU175: kcal/capita/day | DV175: 0% | EI175: 5.16 | EJ175: Mtonne/Mha | EL175: 6.94 | EM175: 57.59 | EO175: 57.59 | EP175: 3.4 | EQ175: 3.1 | ER175: 2.35 | ES175: 3.00 | ET175: 3.4 | EU175: 3.1 | EV175: 3.33 | EW175: 8.76 | EX175: 3.02 | EY175: FCR (kg feed per kg animal) | FL175: 16.2% | FN175: 16.2% | FO175: 87.1% | FP175: 94.1% | FQ175: 85.9% | FR175: 89.3% | FS175: 20.7% | FT175: 95.3% | FU175: 17.8% | FV175: 90.5% | FW175: 27.6% | GA175: BAU
A176: 1 | B176: 2016 | C176: Meeting future food demand with current agricultural resources | D176: Davis, K. F. Gephart, J. A. Emery, K. A. Leach, A. M. Galloway, J. N. D’Odorico, P. | E176: Davis et al. (2016) | F176: Journal article | G176: Global Environmental Change | H176: B + prod | I176: BAU + productivity | J176: 2019 | K176: Food system | L176: Yes | M176: Davis et al. (2016) | N176: GHGLCA | AR176: 8.30 | AS176: Gt CO2e/yr | BA176: 0.0% | BB176: FAO - Permanent meadows and pastures | BC176: Agriculture | BJ176: Mha | BL176: Water Footprint Network - Mekonnen & Hoekstra (2011) | BM176: 930.0 | BP176: km3/yr | BQ176: 0.0% | BS176: 6.6% | BU176: 138.10 | BX176: TgN/yr | CK176: 0.0% | CL176: 75.5% | CO176: 0% | CP176: 7.64 | CQ176: billion | CR176: 2,867.84 | CS176: OMN/FLX | CV176: 51.3 | CW176: 127.3 | CX176: 55.2 | CY176: 182.5 | CZ176: 233.7 | DA176: 33.1 | DB176: 28.5 | DC176: 61.6 | DD176: 295.3 | DE176: 157.2 | DF176: 39.0 | DG176: 196.3 | DJ176: 491.6 | DK176: 17.1% | DL176: 1,298.4 | DM176: 150.3 | DN176: 430.7 | DO176: 58.9 | DP176: 172.1 | DQ176: 265.9 | DT176: 2,376.3 | DU176: kcal/capita/day | DV176: 0% | EI176: 5.16 | EJ176: Mtonne/Mha | EL176: 6.93 | EM176: 57.59 | EO176: 57.59 | EP176: 3.4 | EQ176: 3.1 | ER176: 2.35 | ES176: 3.00 | ET176: 3.4 | EU176: 3.1 | EV176: 3.33 | EW176: 8.75 | EX176: 3.02 | EY176: FCR (kg feed per kg animal) | FL176: 16.2% | FN176: 16.2% | FO176: 87.1% | FP176: 94.1% | FQ176: 85.9% | FR176: 89.2% | FS176: 20.7% | FT176: 95.3% | FU176: 17.8% | FV176: 90.4% | FW176: 27.6% | GA176: BAU
A177: 1 | B177: 2016 | C177: Meeting future food demand with current agricultural resources | D177: Davis, K. F. Gephart, J. A. Emery, K. A. Leach, A. M. Galloway, J. N. D’Odorico, P. | E177: Davis et al. (2016) | F177: Journal article | G177: Global Environmental Change | H177: B + prod | I177: BAU + productivity | J177: 2020 | K177: Food system | L177: Yes | M177: Davis et al. (2016) | N177: GHGLCA | AR177: 8.39 | AS177: Gt CO2e/yr | BA177: 0.0% | BB177: FAO - Permanent meadows and pastures | BC177: Agriculture | BJ177: Mha | BL177: Water Footprint Network - Mekonnen & Hoekstra (2011) | BM177: 945.7 | BP177: km3/yr | BQ177: 0.0% | BS177: 7.1% | BU177: 140.54 | BX177: TgN/yr | CK177: 0.0% | CL177: 75.5% | CO177: 0% | CP177: 7.72 | CQ177: billion | CR177: 2,869.87 | CS177: OMN/FLX | CV177: 51.7 | CW177: 128.0 | CX177: 55.2 | CY177: 183.3 | CZ177: 235.0 | DA177: 34.2 | DB177: 28.2 | DC177: 62.4 | DD177: 297.4 | DE177: 159.0 | DF177: 39.4 | DG177: 198.4 | DJ177: 495.9 | DK177: 17.3% | DL177: 1,298.6 | DM177: 151.0 | DN177: 426.4 | DO177: 58.0 | DP177: 171.0 | DQ177: 269.0 | DT177: 2,374.0 | DU177: kcal/capita/day | DV177: 0% | EI177: 5.16 | EJ177: Mtonne/Mha | EL177: 6.92 | EM177: 57.59 | EO177: 57.59 | EP177: 3.4 | EQ177: 3.1 | ER177: 2.35 | ES177: 2.99 | ET177: 3.4 | EU177: 3.1 | EV177: 3.33 | EW177: 8.73 | EX177: 3.01 | EY177: FCR (kg feed per kg animal) | FL177: 16.2% | FN177: 16.2% | FO177: 87.1% | FP177: 94.1% | FQ177: 85.9% | FR177: 89.2% | FS177: 20.7% | FT177: 95.3% | FU177: 17.8% | FV177: 90.4% | FW177: 27.6% | GA177: BAU
A178: 1 | B178: 2016 | C178: Meeting future food demand with current agricultural resources | D178: Davis, K. F. Gephart, J. A. Emery, K. A. Leach, A. M. Galloway, J. N. D’Odorico, P. | E178: Davis et al. (2016) | F178: Journal article | G178: Global Environmental Change | H178: B + prod | I178: BAU + productivity | J178: 2021 | K178: Food system | L178: Yes | M178: Davis et al. (2016) | N178: GHGLCA | AR178: 8.47 | AS178: Gt CO2e/yr | BA178: 0.0% | BB178: FAO - Permanent meadows and pastures | BC178: Agriculture | BJ178: Mha | BL178: Water Footprint Network - Mekonnen & Hoekstra (2011) | BM178: 961.3 | BP178: km3/yr | BQ178: 0.0% | BS178: 7.6% | BU178: 142.99 | BX178: TgN/yr | CK178: 0.0% | CL178: 75.5% | CO178: 0% | CP178: 7.79 | CQ178: billion | CR178: 2,871.89 | CS178: OMN/FLX | CV178: 52.2 | CW178: 128.8 | CX178: 55.2 | CY178: 184.0 | CZ178: 236.2 | DA178: 35.4 | DB178: 27.9 | DC178: 63.3 | DD178: 299.5 | DE178: 160.8 | DF178: 39.8 | DG178: 200.6 | DJ178: 500.1 | DK178: 17.4% | DL178: 1,298.9 | DM178: 151.8 | DN178: 422.2 | DO178: 57.0 | DP178: 169.8 | DQ178: 272.1 | DT178: 2,371.7 | DU178: kcal/capita/day | DV178: 0% | EI178: 5.16 | EJ178: Mtonne/Mha | EL178: 6.91 | EM178: 57.59 | EO178: 57.59 | EP178: 3.4 | EQ178: 3.1 | ER178: 2.35 | ES178: 2.99 | ET178: 3.4 | EU178: 3.1 | EV178: 3.33 | EW178: 8.72 | EX178: 3.01 | EY178: FCR (kg feed per kg animal) | FL178: 16.2% | FN178: 16.2% | FO178: 87.1% | FP178: 94.1% | FQ178: 85.9% | FR178: 89.2% | FS178: 20.7% | FT178: 95.3% | FU178: 17.8% | FV178: 90.4% | FW178: 27.6% | GA178: BAU
A179: 1 | B179: 2016 | C179: Meeting future food demand with current agricultural resources | D179: Davis, K. F. Gephart, J. A. Emery, K. A. Leach, A. M. Galloway, J. N. D’Odorico, P. | E179: Davis et al. (2016) | F179: Journal article | G179: Global Environmental Change | H179: B + prod | I179: BAU + productivity | J179: 2022 | K179: Food system | L179: Yes | M179: Davis et al. (2016) | N179: GHGLCA | AR179: 8.56 | AS179: Gt CO2e/yr | BA179: 0.0% | BB179: FAO - Permanent meadows and pastures | BC179: Agriculture | BJ179: Mha | BL179: Water Footprint Network - Mekonnen & Hoekstra (2011) | BM179: 976.9 | BP179: km3/yr | BQ179: 0.0% | BS179: 8.1% | BU179: 145.44 | BX179: TgN/yr | CK179: 0.0% | CL179: 75.5% | CO179: 0% | CP179: 7.87 | CQ179: billion | CR179: 2,873.92 | CS179: OMN/FLX | CV179: 52.6 | CW179: 129.6 | CX179: 55.2 | CY179: 184.8 | CZ179: 237.4 | DA179: 36.5 | DB179: 27.7 | DC179: 64.2 | DD179: 301.6 | DE179: 162.6 | DF179: 40.2 | DG179: 202.8 | DJ179: 504.4 | DK179: 17.6% | DL179: 1,299.1 | DM179: 152.5 | DN179: 417.9 | DO179: 56.1 | DP179: 168.7 | DQ179: 275.2 | DT179: 2,369.5 | DU179: kcal/capita/day | DV179: 0% | EI179: 5.16 | EJ179: Mtonne/Mha | EL179: 6.90 | EM179: 57.59 | EO179: 57.59 | EP179: 3.4 | EQ179: 3.1 | ER179: 2.35 | ES179: 2.98 | ET179: 3.4 | EU179: 3.1 | EV179: 3.33 | EW179: 8.71 | EX179: 3.00 | EY179: FCR (kg feed per kg animal) | FL179: 16.2% | FN179: 16.2% | FO179: 87.1% | FP179: 94.1% | FQ179: 85.9% | FR179: 89.2% | FS179: 20.7% | FT179: 95.3% | FU179: 17.8% | FV179: 90.4% | FW179: 27.6% | GA179: BAU
A180: 1 | B180: 2016 | C180: Meeting future food demand with current agricultural resources | D180: Davis, K. F. Gephart, J. A. Emery, K. A. Leach, A. M. Galloway, J. N. D’Odorico, P. | E180: Davis et al. (2016) | F180: Journal article | G180: Global Environmental Change | H180: B + prod | I180: BAU + productivity | J180: 2023 | K180: Food system | L180: Yes | M180: Davis et al. (2016) | N180: GHGLCA | AR180: 8.65 | AS180: Gt CO2e/yr | BA180: 0.0% | BB180: FAO - Permanent meadows and pastures | BC180: Agriculture | BJ180: Mha | BL180: Water Footprint Network - Mekonnen & Hoekstra (2011) | BM180: 992.4 | BP180: km3/yr | BQ180: 0.0% | BS180: 8.6% | BU180: 147.89 | BX180: TgN/yr | CK180: 0.0% | CL180: 75.5% | CO180: 0% | CP180: 7.94 | CQ180: billion | CR180: 2,875.94 | CS180: OMN/FLX | CV180: 53.1 | CW180: 130.4 | CX180: 55.2 | CY180: 185.6 | CZ180: 238.7 | DA180: 37.6 | DB180: 27.4 | DC180: 65.0 | DD180: 303.7 | DE180: 164.5 | DF180: 40.6 | DG180: 205.0 | DJ180: 508.7 | DK180: 17.7% | DL180: 1,299.3 | DM180: 153.2 | DN180: 413.7 | DO180: 55.1 | DP180: 167.6 | DQ180: 278.3 | DT180: 2,367.2 | DU180: kcal/capita/day | DV180: 0% | EI180: 5.16 | EJ180: Mtonne/Mha | EL180: 6.89 | EM180: 57.59 | EO180: 57.59 | EP180: 3.4 | EQ180: 3.1 | ER180: 2.35 | ES180: 2.98 | ET180: 3.4 | EU180: 3.1 | EV180: 3.33 | EW180: 8.70 | EX180: 3.00 | EY180: FCR (kg feed per kg animal) | FL180: 16.2% | FN180: 16.2% | FO180: 87.1% | FP180: 94.1% | FQ180: 85.9% | FR180: 89.1% | FS180: 20.7% | FT180: 95.3% | FU180: 17.8% | FV180: 90.4% | FW180: 27.6% | GA180: BAU
A181: 1 | B181: 2016 | C181: Meeting future food demand with current agricultural resources | D181: Davis, K. F. Gephart, J. A. Emery, K. A. Leach, A. M. Galloway, J. N. D’Odorico, P. | E181: Davis et al. (2016) | F181: Journal article | G181: Global Environmental Change | H181: B + prod | I181: BAU + productivity | J181: 2024 | K181: Food system | L181: Yes | M181: Davis et al. (2016) | N181: GHGLCA | AR181: 8.73 | AS181: Gt CO2e/yr | BA181: 0.0% | BB181: FAO - Permanent meadows and pastures | BC181: Agriculture | BJ181: Mha | BL181: Water Footprint Network - Mekonnen & Hoekstra (2011) | BM181: 1,007.8 | BP181: km3/yr | BQ181: 0.0% | BS181: 9.1% | BU181: 150.34 | BX181: TgN/yr | CK181: 0.0% | CL181: 75.5% | CO181: 0% | CP181: 8.01 | CQ181: billion | CR181: 2,877.96 | CS181: OMN/FLX | CV181: 53.5 | CW181: 131.2 | CX181: 55.2 | CY181: 186.4 | CZ181: 239.9 | DA181: 38.7 | DB181: 27.2 | DC181: 65.9 | DD181: 305.8 | DE181: 166.3 | DF181: 41.0 | DG181: 207.2 | DJ181: 513.0 | DK181: 17.8% | DL181: 1,299.5 | DM181: 154.0 | DN181: 409.4 | DO181: 54.2 | DP181: 166.5 | DQ181: 281.4 | DT181: 2,365.0 | DU181: kcal/capita/day | DV181: 0% | EI181: 5.16 | EJ181: Mtonne/Mha | EL181: 6.88 | EM181: 57.59 | EO181: 57.59 | EP181: 3.4 | EQ181: 3.1 | ER181: 2.35 | ES181: 2.97 | ET181: 3.4 | EU181: 3.1 | EV181: 3.33 | EW181: 8.69 | EX181: 3.00 | EY181: FCR (kg feed per kg animal) | FL181: 16.2% | FN181: 16.2% | FO181: 87.1% | FP181: 94.1% | FQ181: 85.9% | FR181: 89.1% | FS181: 20.7% | FT181: 95.3% | FU181: 17.8% | FV181: 90.3% | FW181: 27.6% | GA181: BAU
A182: 1 | B182: 2016 | C182: Meeting future food demand with current agricultural resources | D182: Davis, K. F. Gephart, J. A. Emery, K. A. Leach, A. M. Galloway, J. N. D’Odorico, P. | E182: Davis et al. (2016) | F182: Journal article | G182: Global Environmental Change | H182: B + prod | I182: BAU + productivity | J182: 2025 | K182: Food system | L182: Yes | M182: Davis et al. (2016) | N182: GHGLCA | AR182: 8.82 | AS182: Gt CO2e/yr | BA182: 0.0% | BB182: FAO - Permanent meadows and pastures | BC182: Agriculture | BJ182: Mha | BL182: Water Footprint Network - Mekonnen & Hoekstra (2011) | BM182: 1,023.2 | BP182: km3/yr | BQ182: 0.0% | BS182: 9.6% | BU182: 152.78 | BX182: TgN/yr | CK182: 0.0% | CL182: 75.5% | CO182: 0% | CP182: 8.08 | CQ182: billion | CR182: 2,879.99 | CS182: OMN/FLX | CV182: 54.0 | CW182: 131.9 | CX182: 55.2 | CY182: 187.2 | CZ182: 241.1 | DA182: 39.8 | DB182: 26.9 | DC182: 66.7 | DD182: 307.9 | DE182: 168.1 | DF182: 41.3 | DG182: 209.4 | DJ182: 517.3 | DK182: 18.0% | DL182: 1,299.7 | DM182: 154.7 | DN182: 405.2 | DO182: 53.2 | DP182: 165.4 | DQ182: 284.5 | DT182: 2,362.7 | DU182: kcal/capita/day | DV182: 0% | EI182: 5.16 | EJ182: Mtonne/Mha | EL182: 6.87 | EM182: 57.59 | EO182: 57.59 | EP182: 3.4 | EQ182: 3.1 | ER182: 2.35 | ES182: 2.97 | ET182: 3.4 | EU182: 3.1 | EV182: 3.33 | EW182: 8.67 | EX182: 2.99 | EY182: FCR (kg feed per kg animal) | FL182: 16.2% | FN182: 16.2% | FO182: 87.1% | FP182: 94.1% | FQ182: 85.9% | FR182: 89.1% | FS182: 20.7% | FT182: 95.3% | FU182: 17.8% | FV182: 90.3% | FW182: 27.6% | GA182: BAU
A183: 1 | B183: 2016 | C183: Meeting future food demand with current agricultural resources | D183: Davis, K. F. Gephart, J. A. Emery, K. A. Leach, A. M. Galloway, J. N. D’Odorico, P. | E183: Davis et al. (2016) | F183: Journal article | G183: Global Environmental Change | H183: B + prod | I183: BAU + productivity | J183: 2026 | K183: Food system | L183: Yes | M183: Davis et al. (2016) | N183: GHGLCA | AR183: 8.90 | AS183: Gt CO2e/yr | BA183: 0.0% | BB183: FAO - Permanent meadows and pastures | BC183: Agriculture | BJ183: Mha | BL183: Water Footprint Network - Mekonnen & Hoekstra (2011) | BM183: 1,038.6 | BP183: km3/yr | BQ183: 0.0% | BS183: 10.0% | BU183: 155.22 | BX183: TgN/yr | CK183: 0.0% | CL183: 75.5% | CO183: 0% | CP183: 8.15 | CQ183: billion | CR183: 2,882.01 | CS183: OMN/FLX | CV183: 54.4 | CW183: 132.7 | CX183: 55.2 | CY183: 187.9 | CZ183: 242.4 | DA183: 40.9 | DB183: 26.7 | DC183: 67.6 | DD183: 310.0 | DE183: 169.9 | DF183: 41.7 | DG183: 211.6 | DJ183: 521.6 | DK183: 18.1% | DL183: 1,299.9 | DM183: 155.5 | DN183: 400.9 | DO183: 52.3 | DP183: 164.2 | DQ183: 287.6 | DT183: 2,360.4 | DU183: kcal/capita/day | DV183: 0% | EI183: 5.16 | EJ183: Mtonne/Mha | EL183: 6.87 | EM183: 57.59 | EO183: 57.59 | EP183: 3.4 | EQ183: 3.1 | ER183: 2.35 | ES183: 2.96 | ET183: 3.4 | EU183: 3.1 | EV183: 3.33 | EW183: 8.66 | EX183: 2.99 | EY183: FCR (kg feed per kg animal) | FL183: 16.2% | FN183: 16.2% | FO183: 87.1% | FP183: 94.1% | FQ183: 85.9% | FR183: 89.0% | FS183: 20.7% | FT183: 95.3% | FU183: 17.8% | FV183: 90.3% | FW183: 27.6% | GA183: BAU
A184: 1 | B184: 2016 | C184: Meeting future food demand with current agricultural resources | D184: Davis, K. F. Gephart, J. A. Emery, K. A. Leach, A. M. Galloway, J. N. D’Odorico, P. | E184: Davis et al. (2016) | F184: Journal article | G184: Global Environmental Change | H184: B + prod | I184: BAU + productivity | J184: 2027 | K184: Food system | L184: Yes | M184: Davis et al. (2016) | N184: GHGLCA | AR184: 8.99 | AS184: Gt CO2e/yr | BA184: 0.0% | BB184: FAO - Permanent meadows and pastures | BC184: Agriculture | BJ184: Mha | BL184: Water Footprint Network - Mekonnen & Hoekstra (2011) | BM184: 1,053.8 | BP184: km3/yr | BQ184: 0.0% | BS184: 10.5% | BU184: 157.67 | BX184: TgN/yr | CK184: 0.0% | CL184: 75.5% | CO184: 0% | CP184: 8.22 | CQ184: billion | CR184: 2,884.03 | CS184: OMN/FLX | CV184: 54.9 | CW184: 133.5 | CX184: 55.2 | CY184: 188.7 | CZ184: 243.6 | DA184: 42.0 | DB184: 26.5 | DC184: 68.5 | DD184: 312.1 | DE184: 171.7 | DF184: 42.1 | DG184: 213.8 | DJ184: 525.9 | DK184: 18.2% | DL184: 1,300.2 | DM184: 156.2 | DN184: 396.7 | DO184: 51.3 | DP184: 163.1 | DQ184: 290.7 | DT184: 2,358.2 | DU184: kcal/capita/day | DV184: 0% | EI184: 5.16 | EJ184: Mtonne/Mha | EL184: 6.86 | EM184: 57.59 | EO184: 57.59 | EP184: 3.4 | EQ184: 3.1 | ER184: 2.35 | ES184: 2.96 | ET184: 3.4 | EU184: 3.1 | EV184: 3.33 | EW184: 8.65 | EX184: 2.99 | EY184: FCR (kg feed per kg animal) | FL184: 16.2% | FN184: 16.2% | FO184: 87.1% | FP184: 94.1% | FQ184: 85.9% | FR184: 89.0% | FS184: 20.7% | FT184: 95.3% | FU184: 17.8% | FV184: 90.3% | FW184: 27.6% | GA184: BAU
A185: 1 | B185: 2016 | C185: Meeting future food demand with current agricultural resources | D185: Davis, K. F. Gephart, J. A. Emery, K. A. Leach, A. M. Galloway, J. N. D’Odorico, P. | E185: Davis et al. (2016) | F185: Journal article | G185: Global Environmental Change | H185: B + prod | I185: BAU + productivity | J185: 2028 | K185: Food system | L185: Yes | M185: Davis et al. (2016) | N185: GHGLCA | AR185: 9.07 | AS185: Gt CO2e/yr | BA185: 0.0% | BB185: FAO - Permanent meadows and pastures | BC185: Agriculture | BJ185: Mha | BL185: Water Footprint Network - Mekonnen & Hoekstra (2011) | BM185: 1,069.1 | BP185: km3/yr | BQ185: 0.0% | BS185: 10.9% | BU185: 160.11 | BX185: TgN/yr | CK185: 0.0% | CL185: 75.5% | CO185: 0% | CP185: 8.29 | CQ185: billion | CR185: 2,886.06 | CS185: OMN/FLX | CV185: 55.4 | CW185: 134.3 | CX185: 55.2 | CY185: 189.5 | CZ185: 244.8 | DA185: 43.1 | DB185: 26.2 | DC185: 69.3 | DD185: 314.2 | DE185: 173.5 | DF185: 42.5 | DG185: 216.0 | DJ185: 530.2 | DK185: 18.4% | DL185: 1,300.4 | DM185: 156.9 | DN185: 392.4 | DO185: 50.4 | DP185: 162.0 | DQ185: 293.8 | DT185: 2,355.9 | DU185: kcal/capita/day | DV185: 0% | EI185: 5.16 | EJ185: Mtonne/Mha | EL185: 6.85 | EM185: 57.59 | EO185: 57.59 | EP185: 3.4 | EQ185: 3.1 | ER185: 2.35 | ES185: 2.96 | ET185: 3.4 | EU185: 3.1 | EV185: 3.33 | EW185: 8.64 | EX185: 2.98 | EY185: FCR (kg feed per kg animal) | FL185: 16.2% | FN185: 16.2% | FO185: 87.1% | FP185: 94.1% | FQ185: 85.9% | FR185: 89.0% | FS185: 20.7% | FT185: 95.3% | FU185: 17.8% | FV185: 90.2% | FW185: 27.5% | GA185: BAU
A186: 1 | B186: 2016 | C186: Meeting future food demand with current agricultural resources | D186: Davis, K. F. Gephart, J. A. Emery, K. A. Leach, A. M. Galloway, J. N. D’Odorico, P. | E186: Davis et al. (2016) | F186: Journal article | G186: Global Environmental Change | H186: B + prod | I186: BAU + productivity | J186: 2029 | K186: Food system | L186: Yes | M186: Davis et al. (2016) | N186: GHGLCA | AR186: 9.16 | AS186: Gt CO2e/yr | BA186: 0.0% | BB186: FAO - Permanent meadows and pastures | BC186: Agriculture | BJ186: Mha | BL186: Water Footprint Network - Mekonnen & Hoekstra (2011) | BM186: 1,084.2 | BP186: km3/yr | BQ186: 0.0% | BS186: 11.3% | BU186: 162.55 | BX186: TgN/yr | CK186: 0.0% | CL186: 75.5% | CO186: 0% | CP186: 8.36 | CQ186: billion | CR186: 2,888.08 | CS186: OMN/FLX | CV186: 55.8 | CW186: 135.0 | CX186: 55.2 | CY186: 190.3 | CZ186: 246.1 | DA186: 44.2 | DB186: 26.0 | DC186: 70.2 | DD186: 316.3 | DE186: 175.3 | DF186: 42.9 | DG186: 218.2 | DJ186: 534.5 | DK186: 18.5% | DL186: 1,300.6 | DM186: 157.7 | DN186: 388.2 | DO186: 49.4 | DP186: 160.9 | DQ186: 296.9 | DT186: 2,353.6 | DU186: kcal/capita/day | DV186: 0% | EI186: 5.16 | EJ186: Mtonne/Mha | EL186: 6.84 | EM186: 57.59 | EO186: 57.59 | EP186: 3.4 | EQ186: 3.1 | ER186: 2.35 | ES186: 2.95 | ET186: 3.4 | EU186: 3.1 | EV186: 3.33 | EW186: 8.63 | EX186: 2.98 | EY186: FCR (kg feed per kg animal) | FL186: 16.2% | FN186: 16.2% | FO186: 87.1% | FP186: 94.1% | FQ186: 85.9% | FR186: 89.0% | FS186: 20.7% | FT186: 95.3% | FU186: 17.8% | FV186: 90.2% | FW186: 27.5% | GA186: BAU
A187: 1 | B187: 2016 | C187: Meeting future food demand with current agricultural resources | D187: Davis, K. F. Gephart, J. A. Emery, K. A. Leach, A. M. Galloway, J. N. D’Odorico, P. | E187: Davis et al. (2016) | F187: Journal article | G187: Global Environmental Change | H187: B + prod | I187: BAU + productivity | J187: 2030 | K187: Food system | L187: Yes | M187: Davis et al. (2016) | N187: GHGLCA | AR187: 9.24 | AS187: Gt CO2e/yr | BA187: 0.0% | BB187: FAO - Permanent meadows and pastures | BC187: Agriculture | BJ187: Mha | BL187: Water Footprint Network - Mekonnen & Hoekstra (2011) | BM187: 1,099.3 | BP187: km3/yr | BQ187: 0.0% | BS187: 11.7% | BU187: 164.98 | BX187: TgN/yr | CK187: 0.0% | CL187: 75.5% | CO187: 0% | CP187: 8.42 | CQ187: billion | CR187: 2,890.11 | CS187: OMN/FLX | CV187: 56.3 | CW187: 135.8 | CX187: 55.2 | CY187: 191.0 | CZ187: 247.3 | DA187: 45.2 | DB187: 25.8 | DC187: 71.0 | DD187: 318.4 | DE187: 177.1 | DF187: 43.2 | DG187: 220.4 | DJ187: 538.7 | DK187: 18.6% | DL187: 1,300.8 | DM187: 158.4 | DN187: 383.9 | DO187: 48.4 | DP187: 159.8 | DQ187: 300.0 | DT187: 2,351.4 | DU187: kcal/capita/day | DV187: 0% | EI187: 5.16 | EJ187: Mtonne/Mha | EL187: 6.83 | EM187: 57.59 | EO187: 57.59 | EP187: 3.4 | EQ187: 3.1 | ER187: 2.35 | ES187: 2.95 | ET187: 3.4 | EU187: 3.1 | EV187: 3.33 | EW187: 8.62 | EX187: 2.98 | EY187: FCR (kg feed per kg animal) | FL187: 16.2% | FN187: 16.2% | FO187: 87.1% | FP187: 94.1% | FQ187: 85.9% | FR187: 88.9% | FS187: 20.7% | FT187: 95.3% | FU187: 17.8% | FV187: 90.2% | FW187: 27.5% | GA187: BAU
